Workbook

Sheet Info
C1: Information
C2: Tunisie Basse Tension - Version mai 2022
C5: A propos de l'outil
C7: A quoi sert l’outil?
C8: Permet de calculer la rentabilité des projets PV pour tous les segments de marché PV en Tunisie
C9: Les résultats présentés sous forme de graphiques donnent un aperçu des flux de trésorerie du projet et les paramètres financiers indiquent la rentabilité et les risques des investissements
C10: Permet de tester la sensibilité d’un projet aux changements des conditions-cadres (tarifs d’électricité, coût du système etc.)
C11: Permet de confirmer les résultats et les prévisions de rentabilité d’un projet tels que présentés par des tierces personnes
C13: Pourquoi l'utiliser?
C14: Afin d’optimiser les projets en déterminant la taille de l’installation, le montant de la dette, la durée du crédit ou encore le TRI des capitaux propres
C15: Afin de comprendre les rouages du projet et le modèle commercial utilisé, pour ensuite comprendre les risques éventuels associés au projet (analyse des scénarios)
C16: Pour découvrir des segments de marché réellement attractifs et pouvoir associer des chiffres concrets aux discussions avec les banques et développeurs de projets
C17: Pour bénéficier de la transparence qu’offre l’outil concernant les méthodes de calcul (contrairement aux calculs opaques des outils de planification technique standards)
C19: Guide pour la modélisation des flux de trésorerie
C20: Vous trouverez un guide détaillé sur le site internet du projet, avec une introduction aux notions fondamentales de la modélisation des flux de trésorerie pour les projets PV
C21: Le projet "Enabling PV dans la région MENA" décrit et analyse de manière détaillée les modèles commerciaux les plus appliqués pour le PV en Tunisie. De plus, il établit des calculs de rentabilité pour plusieurs projets-type du secteur résidentiel, commercial et industriel.
C23: Sites internet
C24: Les rapports du projet "Enabling PV" sont disponibles à l'adresse suivante:
C25: https://energypedia.info/wiki/Enabling_PV_in_the_MENA_Region
C26: Les outils de modélisation pour les projets en moyenne et basse tension ainsi que le guide correspondant sont disponibles à l'adresse suivante:
C27: https://energypedia.info/wiki/Dynamic_Cash_Flow_Analysis_of_Photovoltaic_Projects_in_Tunisia
C30: Soutiens et partenaires
C38: Contact
C46: Christian Grundner | F46: Amin Chtioui | N46: Nafaa Baccari
C47: Chef de projet (ingénieur industriel) | F47: Renforcement du Marché Solaire en Tunisie | N47: Directeur des Energies Renouvelables
C48: Spécialiste du financement des énergies renouvelables | F48: Chef de Projet
C50: eclareon GmbH | F50: Deutsche Gesellschaft für Internationale Zusammenarbeit (GIZ) GmbH | N50: Agence Nationale pour la Maîtrise de l'Energie
C51: Giesebrechtstraße 20 | F51: B.P. 753 | N51: Cité Administrative, Av. Japan B.P. 213 Montplaisir, Tunis
C52: D-10629 Berlin | F52: 1080 Tunis-Cedex, Tunisie
N53: Email: baccarin@anme.nat.tn
C54: Email: cg@eclareon.com | F54: Email: amin.chtioui@giz.de | N54: Web: www.anme.nat.tn
C55: URL: www.eclareon.com | F55: URL: www.giz.de
C57: (auteur de la version originale de l'outil 2015)
C60: Clause de non-responsabilité
C62: Le contenu de ce document a été soigneusement préparé et révisé. Cependant, eclareon ne garantit pas l'exactitude, l'exhaustivité ou la qualité des informations fournies, ni que celles-ci soient à jour.
C63: Les actions en responsabilité contre eclareon au titre du dommage matériel ou immatériel causé par l'utilisation ou la non-utilisation des informations fournies ou par l’utilisation d’informations inexactes ou incomplètes,
C64: sont en principe exclues à moins qu'on ne puisse apporter la preuve d'une faute intentionnelle ou d'une négligence grave de la part de la société.

Sheet entrées par défault (hidden)
A1: Valeurs par défaut
B2: Délais | G2: Coûts initiaux supplémentaires
B3: Date de début de la modélisation | C3: 2020 | G3: Pourcentage du coût de l'installation venant de la main d'œuvre | I3: 0
B5: Exploitation | G5: Coût de l'étude de faisabilité | I5: 0 | J5: DT
B6: Durée de l'hypothèse de référence | C6: 20
B8: Exploitation
B9: Production
B10: Dégradation des performances | C10: 0.007 | D10: % p.a.
B11: Rendement global | C11: 1 | D11: x
B13: Economies d'électricité
B15: Tarif STEG
B16: Les tarifs par défault sont applicables pour avril 2020.
B18: Résidentiel (Consommation >100 kWh/mois)
B19: Tranche | C19: kWh | D19: 200 | E19: 300 | F19: 500 | G19: 500+ | I19: Surtaxe municipale | J19: 0.005 | K19: DT/kWh
B20: Tarif | C20: DT/kWh | D20: 0.176 | E20: 0.218 | F20: 0.341 | G20: 0.414
B22: Non-résidentiel BT (Consommation >100 kWh/mois)
B23: Tranche | C23: kWh | D23: 200 | E23: 300 | F23: 500 | G23: 500+
B24: Tarif | C24: DT/kWh | D24: 0.195 | E24: 0.24 | F24: 0.333 | G24: 0.391
B26: Projections de prix | C26: année | D26: 1 | E26: 2 | F26: 3 | G26: 4 | H26: 5 | I26: 6
B27: Augmentation du tarif de vente STEG | C27: % | D27: 0 | E27: 0.05 | F27: 0.05 | G27: 0.05 | H27: 0.05 | I27: 0.05
B29: Coûts d’exploitation
B30: Exploitation & Maintenance
B31: Coûts fixes d'exploitation | C31: 0.015 | D31: % de l'investissement par an
B33: Catégories de coûts
B34: Coûts fixes
B35: Assurance | C35: 0 | D35: DT p.a.
B36: Autre | C36: 0 | D36: DT p.a.
B37: Autre | C37: 0 | D37: DT p.a.
B38: Autre | C38: 0 | D38: DT p.a.
B40: Coûts variables
B41: Bail Foncier | C41: 0 | D41: DT/kWh
B42: Autre | C42: 0 | D42: DT/kWh
B43: Autre | C43: 0 | D43: DT/kWh
B44: Autre | C44: 0 | D44: DT/kWh
B46: Dépenses en immobilisations permanentes (valeure nominale)
C47: année | D47: 1 | E47: 2 | F47: 3 | G47: 4 | H47: 5 | I47: 6 | J47: 7 | K47: 8 | L47: 9 | M47: 10 | N47: 11 | O47: 12 | P47: 13 | Q47: 14 | R47: 15 | S47: 16 | T47: 17 | U47: 18 | V47: 19 | W47: 20
B48: Autre | C48: DT | D48: 0 | E48: 0 | F48: 0 | G48: 0 | H48: 0 | I48: 0 | J48: 0 | K48: 0 | L48: 0 | M48: 0 | N48: 0 | O48: 0 | P48: 0 | Q48: 0 | R48: 0 | S48: 0 | T48: 0 | U48: 0 | V48: 0 | W48: 0
B49: Autre | C49: DT | D49: 0 | E49: 0 | F49: 0 | G49: 0 | H49: 0 | I49: 0 | J49: 0 | K49: 0 | L49: 0 | M49: 0 | N49: 0 | O49: 0 | P49: 0 | Q49: 0 | R49: 0 | S49: 0 | T49: 0 | U49: 0 | V49: 0 | W49: 0
B50: Autre | C50: DT | D50: 0 | E50: 0 | F50: 0 | G50: 0 | H50: 0 | I50: 0 | J50: 0 | K50: 0 | L50: 0 | M50: 0 | N50: 0 | O50: 0 | P50: 0 | Q50: 0 | R50: 0 | S50: 0 | T50: 0 | U50: 0 | V50: 0 | W50: 0
B52: Financement
B53: Dette de premier rang
B54: Limite | C54: 10000 | D54: DT
B55: Montant de la dette | C55: 0.7 | D55: % | E55: € | G55: correspond à | H55: 5040 | I55: DT
B58: Période | D58: Cons | E58: 1 | F58: 2 | G58: 3 | H58: 4
B59: Marge | C59: % p.a. | D59: 0.0125 | E59: 0.0125 | F59: 0.0125 | G59: 0.0125 | H59: 0.0125
B61: Frais de financement
B62: Commission initiale | C62: 0.01 | D62: % crédit
B63: Commission d'engagement | C63: 0.25 | D63: % marge
B65: Modalités de remboursement
B66: Durée du crédit | C66: 10
B67: Délai de grâce | C67: 0
B69: Capitaux propres
B71: Taux d'actualisation | C71: 0.1
B73: Elements macroéconomiques
B74: Taux d'intérêt
B75: Année civile | D75: 2020 | E75: 2021 | F75: 2022 | G75: 2023
B76: Taux de référence (Banque Centrale) | C76: % p.a. | D76: 0.0775 | E76: 0.0775 | F76: 0.0775 | G76: 0.0425
B78: Inflation
B79: Année civile | D79: 2020 | E79: 2021 | F79: 2022 | G79: 2023
B80: Taux d'augmentation | C80: % p.a. | D80: 0.075 | E80: 0.075 | F80: 0.075 | G80: 0.04

Sheet Cadre Autoproduction
A2: Le cadre du régime d’autoproduction (clients BT)
C13: jan | D13: fév | E13: mar | F13: avr | G13: mai | H13: juin | I13: juil | J13: aout | K13: sept | L13: oct | M13: nov | N13: déc
B14: Consommation brute | C14: 550 | D14: 450 | E14: 475 | F14: 550 | G14: 600 | H14: 675 | I14: 700 | J14: 800 | K14: 700 | L14: 650 | M14: 600 | N14: 600
B15: Production solaire | C15: 369.1167307 | D15: 426.8679572 | E15: 567.9093271 | F15: 613.3575101 | G15: 652.1551836 | H15: 694.2057544 | I15: 702.5340597 | J15: 680.8725051 | K15: 570.2091301 | L15: 506.8461006 | M15: 411.3580655 | N15: 404.5676759
B16: Différence | C16: =C14-C15 -> 180.8832693 | D16: =D14-D15 -> 23.13204276 | E16: -92.90932713 | F16: -63.35751007 | G16: -52.15518356 | H16: -19.20575444 | I16: -2.5340597 | J16: 119.1274949 | K16: 129.7908699 | L16: 143.1538994 | M16: 188.6419345 | N16: 195.4323241
B17: Crédit transféré aux mois futurs | C17: =IF(C16<0,C16,0) -> 0 | D17: =IF((D16+C17)<0,D16+C17,0) -> 0 | E17: =IF((E16+D17)<0,E16+D17,0) -> -92.90932713 | F17: -156.2668372 | G17: -208.4220208 | H17: -227.6277752 | I17: -230.1618349 | J17: -111.03434 | K17: 0 | L17: 0 | M17: 0 | N17: 0
B18: Quantité facturée | C18: =IF(C16>0,C16,0) -> 180.8832693 | D18: =IF((D16+C17)>0,D16+C17,0) -> 23.13204276 | E18: =IF((E16+D17)>0,E16+D17,0) -> 0 | F18: 0 | G18: 0 | H18: 0 | I18: 0 | J18: 0 | K18: 18.75652987 | L18: 143.1538994 | M18: 188.6419345 | N18: 195.4323241
K52: (Graphique adapté de Zinaman, Darghouth, et al. 2017)

Sheet Entrées Utilisateurs
B2: Veuillez indiquer vos hypothèses et entrées pour les analyses
A4: =CHAR(128) -> € | B4: Cliquer sur les flèches pour voir les choix possible.
B6: Hypothèses de base
B8: Construction | G8: Abonné
B10: Coût de l'installation Hors Taxes | C10: 22000 | D10: DT | G10: Type d'abonné | H10: Résidentiel | I10: =HYPERLINK("#"&ADDRESS(ROW(),COLUMN()-1),CHAR(128)) -> €
B11: Subvention | D11: DT | E11: =HYPERLINK("#"&ADDRESS(ROW(),COLUMN()-1),CHAR(128)) -> €
C12: =IF(D11="DT",C11/C17,MIN(C11*C17,IF(H10="Résidentiel",3000,5000))) -> 0 | D12: =IF(D11="DT/kW","DT","DT/kW") -> DT/kW | G12: TVA
B13: TVA | D13: DT
B14: Coût net total de l'installation TTC | C14: =C10-IF(D11="DT",C11,C12)+C13 -> 22000 | D14: DT | G14: TVA, tarif d'électricité | H14: Résidentiel (13%) | I14: =HYPERLINK("#"&ADDRESS(ROW(),COLUMN()-1),CHAR(128)) -> €
B15: Exploitation
B17: Taille de l'installation | C17: 6 | D17: kWc
B19: Consommation
G20: Consommation (kWh) | H20: janvier | I20: février | J20: mars | K20: avril | L20: mai | M20: juin
B21: Entrer consommation annuelle ou mensuelle? | C21: annuelle | D21: =HYPERLINK("#"&ADDRESS(ROW(),COLUMN()-1),CHAR(128)) -> € | H21: 3500 | I21: 3500 | J21: 3800 | K21: 4500 | L21: 5200 | M21: 6000
H22: juillet | I22: août | J22: septembre | K22: octobre | L22: novembre | M22: décembre
B23: Consommation annuelle | C23: 9600 | D23: kWh/an | H23: 6500 | I23: 6500 | J23: 6000 | K23: 5000 | L23: 4500 | M23: 3500
B25: Site et Caractéristiques des Panneaux PV
G26: Production PV (kWh) | H26: janvier | I26: février | J26: mars | K26: avril | L26: mai | M26: juin
B27: Région | C27: Tunis | E27: =HYPERLINK("#"&ADDRESS(ROW(),COLUMN()-1),CHAR(128)) -> € | H27: 500 | I27: 500 | J27: 500 | K27: 500 | L27: 500 | M27: 500
B28: Orientation des panneaux | C28: Sud | E28: =HYPERLINK("#"&ADDRESS(ROW(),COLUMN()-1),CHAR(128)) -> € | H28: juillet | I28: août | J28: septembre | K28: octobre | L28: novembre | M28: décembre
H29: 500 | I29: 500 | J29: 500 | K29: 500 | L29: 500 | M29: 500
B35: Hypothèses détaillées
B36: Changer les hypothèses si nécessaire. Les valeurs par défault sont appropriées pour des utilisateurs typiques.
B41: Délais | G41: Coûts initiaux supplémentaires
B42: Départ
B43: Date de début de la modélisation | C43: 2022 | G43: Coût de l'étude de faisabilité | I43: 0 | J43: DT
B45: Exploitation
B46: Durée de l'hypothèse de référence | C46: 20
B48: Exploitation
B49: Production
B50: Dégradation des performances | C50: 0.007 | D50: % p.a.
B51: Rendement global | C51: 1 | D51: x
B53: Economies d'électricité
B55: Tarif STEG
B56: Les tarifs par défault sont applicables pour avril 2020.
B58: Résidentiel (Consommation >100 kWh/mois)
B59: Consommation mensuelle | C59: kWh | D59: 0-200 | E59: 201-300 | F59: 301-500 | G59: 500+ | I59: Surtaxe municipale | J59: 0.005 | K59: DT/kWh
B60: Tarif | C60: DT/kWh | D60: 0.195 | E60: 0.218 | F60: 0.341 | G60: 0.414
B62: Non-résidentiel BT (Consommation >100 kWh/mois)
B63: Consommation mensuelle | C63: kWh | D63: 200 | E63: 300 | F63: 500 | G63: 500+
B64: Tarif | C64: DT/kWh | D64: 0.195 | E64: 0.24 | F64: 0.333 | G64: 0.391
B66: Projections de prix | C66: année | D66: 1 | E66: =D66+1 -> 2 | F66: =E66+1 -> 3 | G66: =F66+1 -> 4 | H66: =G66+1 -> 5 | I66: =H66+1 -> 6
B67: Augmentation du tarif de vente STEG | C67: % | D67: 0 | E67: 0.03 | F67: 0.03 | G67: 0.03 | H67: 0.03 | I67: 0.03
B69: Coûts d’exploitation
B70: Exploitation & Maintenance
B71: Coûts fixes d'exploitation | C71: 0.01 | D71: % de l'investissement par an
B73: Catégories de coûts
B74: Coûts fixes
B75: Assurance | C75: 0 | D75: DT p.a.
B76: Autre | C76: 0 | D76: DT p.a.
B77: Autre | C77: 0 | D77: DT p.a.
B78: Autre | C78: 0 | D78: DT p.a.
B80: Coûts variables
B81: Bail Foncier | C81: 0 | D81: DT/kWh
B82: Autre | C82: 0 | D82: DT/kWh
B83: Autre | C83: 0 | D83: DT/kWh
B84: Autre | C84: 0 | D84: DT/kWh
B86: Dépenses en immobilisations permanentes (valeure nominale)
C87: année | D87: 1 | E87: =D87+1 -> 2 | F87: =E87+1 -> 3 | G87: 4 | H87: 5 | I87: 6 | J87: 7 | K87: 8 | L87: 9 | M87: 10 | N87: 11 | O87: 12 | P87: 13 | Q87: 14 | R87: 15 | S87: 16 | T87: 17 | U87: 18 | V87: 19 | W87: 20
B88: Autre | C88: DT | D88: 0 | E88: 0 | F88: 0 | G88: 0 | H88: 0 | I88: 0 | J88: 0 | K88: 0 | L88: 0 | M88: 30000 | N88: 0 | O88: 0 | P88: 0 | Q88: 0 | R88: 0 | S88: 0 | T88: 0 | U88: 0 | V88: 0 | W88: 0
B89: Autre | C89: DT | D89: 0 | E89: 0 | F89: 0 | G89: 0 | H89: 0 | I89: 0 | J89: 0 | K89: 0 | L89: 0 | M89: 0 | N89: 0 | O89: 0 | P89: 0 | Q89: 0 | R89: 0 | S89: 0 | T89: 0 | U89: 0 | V89: 0 | W89: 0
B90: Autre | C90: DT | D90: 0 | E90: 0 | F90: 0 | G90: 0 | H90: 0 | I90: 0 | J90: 0 | K90: 0 | L90: 0 | M90: 0 | N90: 0 | O90: 0 | P90: 0 | Q90: 0 | R90: 0 | S90: 0 | T90: 0 | U90: 0 | V90: 0 | W90: 0
B92: Financement
B93: Dette de premier rang
B94: Limite | C94: 80000 | D94: DT
B95: Montant de la dette | C95: 0.7 | D95: % | E95: =HYPERLINK("#"&ADDRESS(ROW(),COLUMN()-1),CHAR(128)) -> € | G95: correspond à | H95: =IF(D95="%",MIN(C94,Données!G20*C95),MIN('Entrées Utilisateurs'!C95/Données!G20)) -> 15400 | I95: =IF(D95="%","DT","") -> DT
B98: Période | D98: Cons | E98: 1 | F98: 2 | G98: 3 | H98: 4
B99: Marge | C99: % p.a. | D99: 0.035 | E99: 0.035 | F99: 0.035 | G99: 0.035 | H99: 0.035
B101: Frais de financement
B102: Commission initiale | C102: 0.01 | D102: % crédit
B103: Commission d'engagement | C103: 0.25 | D103: % marge
B105: Modalités de remboursement
B106: Durée du crédit | C106: 5
B107: Délai de grâce | C107: 0
B109: Capitaux propres
B111: Taux d'actualisation | C111: 0.08
B113: Elements macroéconomiques
B114: Taux d'intérêt
B115: Année civile | D115: =C43 -> 2022 | E115: =D115+1 -> 2023 | F115: =E115+1 -> 2024 | G115: =F115+1 -> 2025
B116: Taux de référence (Banque Centrale) | C116: % p.a. | D116: 0.08 | E116: 0.08 | F116: 0.08 | G116: 0.08
B118: Inflation
B119: Année civile | D119: =C43 -> 2022 | E119: =D119+1 -> 2023 | F119: =E119+1 -> 2024 | G119: =F119+1 -> 2025
B120: Taux d'augmentation | C120: % p.a. | D120: 0.07 | E120: 0.07 | F120: 0.07 | G120: 0.07

Sheet Scénarios
B1: Sensibilités
C2: Cliquer ou sur le bouton "recalculer tous scénarios" ou sur le bouton du scénario voulu
B4: Dimensionnement du système PV
B5: Tableaux Scenario
D7: Scénario | F7: Taille Système PV | G7: % de la consommation annuelle généré par le system PV | H7: tarif évité moyen, première année (DT/kWh) | I7: TRI des capitaux propres | J7: TRI du projet | K7: Temps de retour
D8: changement | E8: # | F8: =Données!G33 -> 6 | G8: =Résultats!C7 -> 1.03125 | H8: =Factures!D19 -> 0.4677884437 | I8: =IF(OR('Capitaux propres'!$F$33<0.001,'Capitaux propres'!$F$33>1,ISERROR('Capitaux propres'!$F$33)=TRUE),#N/A,'Capitaux propres'!$F$33) -> 0.1812882125 | J8: =IF(OR('Flux de trésorerie'!I57<0.001,'Flux de trésorerie'!I57>1,ISERROR('Flux de trésorerie'!I57)),#N/A,'Flux de trésorerie'!I57) -> 0.1581940472 | K8: =IF(Résultats!C12=-1,Données!G11&"+",Résultats!C12) -> 6.719133629 | M8: =IF(K8=Données!$G$11&"+",#N/A,K8) -> 6.719133629
D9: =D10-0.1 -> -0.7 | E9: 1
D10: -0.6 | E10: =E9+1 -> 2
D11: -0.5 | E11: 3
D12: -0.4 | E12: 4
D13: -0.3 | E13: 5
D14: -0.2 | E14: 6
D15: =D16-0.1 -> -0.1 | E15: 7
D16: 0 | E16: 8
D17: =D16+0.1 -> 0.1 | E17: 9
D18: =D17+0.1 -> 0.2 | E18: 10
D19: 0.3 | E19: 11
D20: 0.4 | E20: 12
D21: 0.5 | E21: 13
D22: 0.6 | E22: 14
D23: 0.7 | E23: 15
D24: Note: le coût du système reste fixe en DT/kW
B26: Coût de l'installation
B27: Tableaux Scenario
D29: Scénario | F29: Coût de l'installation | G29: TRI des capitaux propres | H29: TRI du projet | I29: Temps de retour | J29: Valeur actualisée nette | K29: Coût moyen actualisé de l'énergie (sans subvention) | L29: Coût moyen actualisé de l'énergie (avec subvention)
D30: changement | E30: # | F30: =Données!G16 -> 22000 | G30: =IF(OR('Capitaux propres'!$F$33<0.001,'Capitaux propres'!$F$33>1,ISERROR('Capitaux propres'!$F$33)=TRUE),#N/A,'Capitaux propres'!$F$33) -> 0.1812882125 | H30: =IF(OR('Flux de trésorerie'!I57<0.001,'Flux de trésorerie'!I57>1,ISERROR('Flux de trésorerie'!I57)),#N/A,'Flux de trésorerie'!I57) -> 0.1581940472 | I30: =IF(Résultats!C12=-1,Données!G11&"+",Résultats!C12) -> 6.719133629 | J30: =IF(ISERROR('Capitaux propres'!F36)=TRUE,#N/A,'Capitaux propres'!F36) -> 20378.482 | K30: =IF(ISERROR('Flux de trésorerie'!I70)=TRUE,#N/A,'Flux de trésorerie'!I70) -> 0.4366384401 | L30: =IF(ISERROR('Flux de trésorerie'!I71)=TRUE,#N/A,'Flux de trésorerie'!I71) -> 0.4366384401
D31: -0.35 | E31: 1 | N31: =IF(I31=Données!$G$11&"+",#N/A,I31) -> 0
D32: -0.3 | E32: =E31+1 -> 2 | N32: =IF(I32=Données!$G$11&"+",#N/A,I32) -> 0
D33: -0.25 | E33: 3 | N33: =IF(I33=Données!$G$11&"+",#N/A,I33) -> 0
D34: -0.2 | E34: 4 | N34: =IF(I34=Données!$G$11&"+",#N/A,I34) -> 0
D35: -0.15 | E35: 5 | N35: =IF(I35=Données!$G$11&"+",#N/A,I35) -> 0
D36: -0.1 | E36: 6 | N36: =IF(I36=Données!$G$11&"+",#N/A,I36) -> 0
D37: -0.05 | E37: 7 | N37: =IF(I37=Données!$G$11&"+",#N/A,I37) -> 0
D38: 0 | E38: 8 | N38: =IF(I38=Données!$G$11&"+",#N/A,I38) -> 0
D39: 0.05 | E39: 9 | N39: =IF(I39=Données!$G$11&"+",#N/A,I39) -> 0
D40: 0.1 | E40: 10 | N40: =IF(I40=Données!$G$11&"+",#N/A,I40) -> 0
D41: 0.15 | E41: 11 | N41: =IF(I41=Données!$G$11&"+",#N/A,I41) -> 0
D42: 0.2 | E42: 12 | N42: =IF(I42=Données!$G$11&"+",#N/A,I42) -> 0
D43: 0.25 | E43: 13 | N43: =IF(I43=Données!$G$11&"+",#N/A,I43) -> 0
D44: 0.3 | E44: 14 | N44: =IF(I44=Données!$G$11&"+",#N/A,I44) -> 0
D45: 0.35 | E45: 15 | N45: =IF(I45=Données!$G$11&"+",#N/A,I45) -> 0
B47: Consommation annuelle d'électricité
B48: Tableaux Scenario
D50: Scénario | F50: Con-sommation annuelle | G50: TRI des capitaux propres | H50: TRI du projet | I50: Temps de retour | J50: Valeur actualisée nette
D51: changement | E51: # | F51: =Factures!D17 -> 9600 | G51: =IF(OR('Capitaux propres'!$F$33<0.001,'Capitaux propres'!$F$33>1,ISERROR('Capitaux propres'!$F$33)=TRUE),#N/A,'Capitaux propres'!$F$33) -> 0.1812882125 | H51: =IF(OR('Flux de trésorerie'!I57<0.001,'Flux de trésorerie'!I57>1,ISERROR('Flux de trésorerie'!I57)),#N/A,'Flux de trésorerie'!I57) -> 0.1581940472 | I51: =IF(Résultats!C12=-1,Données!G11&"+",Résultats!C12) -> 6.719133629 | J51: =IF(ISERROR('Capitaux propres'!F36)=TRUE,#N/A,'Capitaux propres'!F36) -> 20378.482
D52: -0.35 | E52: 1 | L52: =IF(I52=Données!$G$11&"+",#N/A,I52) -> 0
D53: -0.3 | E53: =E52+1 -> 2 | L53: =IF(I53=Données!$G$11&"+",#N/A,I53) -> 0
D54: -0.25 | E54: 3 | L54: =IF(I54=Données!$G$11&"+",#N/A,I54) -> 0
D55: -0.2 | E55: 4 | L55: =IF(I55=Données!$G$11&"+",#N/A,I55) -> 0
D56: -0.15 | E56: 5 | L56: =IF(I56=Données!$G$11&"+",#N/A,I56) -> 0
D57: -0.1 | E57: 6 | L57: =IF(I57=Données!$G$11&"+",#N/A,I57) -> 0
D58: -0.05 | E58: 7 | L58: =IF(I58=Données!$G$11&"+",#N/A,I58) -> 0
D59: 0 | E59: 8 | L59: =IF(I59=Données!$G$11&"+",#N/A,I59) -> 0
D60: 0.05 | E60: 9 | L60: =IF(I60=Données!$G$11&"+",#N/A,I60) -> 0
D61: 0.1 | E61: 10 | L61: =IF(I61=Données!$G$11&"+",#N/A,I61) -> 0
D62: 0.15 | E62: 11 | L62: =IF(I62=Données!$G$11&"+",#N/A,I62) -> 0
D63: 0.2 | E63: 12 | L63: =IF(I63=Données!$G$11&"+",#N/A,I63) -> 0
D64: 0.25 | E64: 13 | L64: =IF(I64=Données!$G$11&"+",#N/A,I64) -> 0
D65: 0.3 | E65: 14 | L65: =IF(I65=Données!$G$11&"+",#N/A,I65) -> 0
D66: 0.35 | E66: 15 | L66: =IF(I66=Données!$G$11&"+",#N/A,I66) -> 0
B68: Augmentation du tarif de vente d'électricité
B69: Tableaux Scenario
D71: Scénario | E71: Évolution du tarif par an | F71: TRI des capitaux propres | G71: TRI du projet | H71: Temps de retour | I71: Valeur actualisée nette
D72: # | E72: =AVERAGE('Entrées Utilisateurs'!E67:I67) -> 0.03 | F72: =IF(OR('Capitaux propres'!$F$33<0.001,'Capitaux propres'!$F$33>1,ISERROR('Capitaux propres'!$F$33)=TRUE),#N/A,'Capitaux propres'!$F$33) -> 0.1812882125 | G72: =IF(OR('Flux de trésorerie'!I57<0.001,'Flux de trésorerie'!I57>1,ISERROR('Flux de trésorerie'!I57)),#N/A,'Flux de trésorerie'!I57) -> 0.1581940472 | H72: =IF(Résultats!C12=-1,Données!G11&"+",Résultats!C12) -> 6.719133629 | I72: =IF(ISERROR('Capitaux propres'!F36)=TRUE,#N/A,'Capitaux propres'!F36) -> 20378.482
D73: 1 | K73: =IF(H73=Données!$G$11&"+",#N/A,H73) -> 0
D74: =D73+1 -> 2 | K74: =IF(H74=Données!$G$11&"+",#N/A,H74) -> 0
D75: 3 | K75: =IF(H75=Données!$G$11&"+",#N/A,H75) -> 0
D76: 4 | K76: =IF(H76=Données!$G$11&"+",#N/A,H76) -> 0
D77: 5 | K77: =IF(H77=Données!$G$11&"+",#N/A,H77) -> 0
D78: 6 | K78: =IF(H78=Données!$G$11&"+",#N/A,H78) -> 0
D79: 7 | K79: =IF(H79=Données!$G$11&"+",#N/A,H79) -> 0
D80: 8 | K80: =IF(H80=Données!$G$11&"+",#N/A,H80) -> 0
D81: 9 | K81: =IF(H81=Données!$G$11&"+",#N/A,H81) -> 0
D82: 10 | K82: =IF(H82=Données!$G$11&"+",#N/A,H82) -> 0
D83: 11 | K83: =IF(H83=Données!$G$11&"+",#N/A,H83) -> 0
D84: 12 | K84: =IF(H84=Données!$G$11&"+",#N/A,H84) -> 0
D85: 13 | K85: =IF(H85=Données!$G$11&"+",#N/A,H85) -> 0
D86: 14 | K86: =IF(H86=Données!$G$11&"+",#N/A,H86) -> 0
D87: 15 | K87: =IF(H87=Données!$G$11&"+",#N/A,H87) -> 0

Sheet Graphiques
B2: Factures d'électricité
B30: Flux de trésorerie

Sheet Résultats
B2: ="Résultats" -> Résultats
B4: variable | C4: valeur | D4: unité | E4: Description
B5: Consommation brute annuelle | C5: =Factures!D17 -> 9600 | D5: kWh | E5: La consommation électrique du client sur l'année
B6: Production PV annuelle | C6: =Factures!F17 -> 9900 | D6: kWh | E6: L'électricité générée par le système PV la première année
B7: Taux de couverture totale | C7: =C6/C5 -> 1.03125 | D7: - | E7: Pourcentage de la consommation brute annuelle produite par le système PV
B8: Coût Moyen Actualisé de l'Énergie (LCOE) avec subvention | C8: ='Flux de trésorerie'!I71 -> 0.4366384401 | D8: DT/kWh | E8: Le coût actualisé de l'énergie, qui correspond au prix moyen de l'électricité généré par le système sur la vie du projet prenant en compte la subvention
B9: Facture annuelle sans PV | C9: =Factures!E17 -> 4539.072 | D9: DT/an | E9: La facture d'électricité totale sur la première année sans système PV
B10: Facture annuelle avec PV | C10: =Factures!J17 -> 97.89926013 | D10: DT/an | E10: La facture d'électricité totale sur la première année avec système PV
B11: Tarif évité moyen, première année | C11: =Factures!D19 -> 0.4677884437 | D11: DT/kWh | E11: Le tarif évité moyen sur l'année pour toute production PV autoconsommée
B12: Temps de retour sur investissement | C12: =IFERROR('Capitaux propres'!F50,Données!G11&"+") -> 6.719133629 | D12: années | E12: Le nombre d'années nécessaire pour que le client rembourse sont investissement initial
B13: Taux de rentabilité interne du projet | C13: =IFERROR('Flux de trésorerie'!I57,"-") -> 0.1581940472 | D13: - | E13: Le taux d'actualisation nécessaire pour que la valeur actuelle nette du projet soit égale à zero. Le TRI est utilisé pour comparer l'investissement à d'autres investissement de risques similaires.
B14: Réduction d'émissions de gaz à effet de serre sur la vie du système PV | C14: =SUM(Exploitation!K19:BM19)*0.57/1000 -> 105.6608567 | D14: tonnes équivalent CO2 | E14: En produisant de l'électricité à partir du solaire, la production d'électricité de sources conventionnelles est évitée ainsi que ses émissions CO2. La production de 1 MWh d'électricité solaire en Tunisie déplace en moyenne 0,57 tonnes équivalent de CO2.
B20: Installation PV | F20: Investissement
B21: Taille de l’installation | C21: kWc | D21: ='Entrées Utilisateurs'!C17 -> 6 | F21: Durée du projet | G21: années | H21: =Données!G11 -> 20
B22: Coût d’investissement spécifique TTC avec subvention | C22: DT/kWc | D22: =D23/D21 -> 3666.666667 | F22: Subventions | G22: DT | H22: =Données!G29 -> 0
B23: Coût d’investissement avec subvention | C23: DT | D23: =Données!G20 -> 22000 | F23: Capitaux propres | G23: DT | H23: =Données!G96 -> 6765.444521
B24: Rendement spécifique | C24: kWh/kWc/a | D24: =Factures!F17/Données!G33 -> 1650 | F24: Montant de la dette | G24: DT | H24: =Données!G78 -> 15400
B25: Dégradation des performances | C25: % p.a. | D25: ='Entrées Utilisateurs'!C50 -> 0.007 | F25: Durée du crédit | G25: années | H25: =Données!G89 -> 5
B26: Coûts fixes | C26: DT/a | D26: =Données!G59 -> 220 | F26: Taux global de la dette | G26: % | H26: =Données!G101 -> 0.115
B27: Coûts variables | C27: DT/kWh | D27: =Données!G66 -> 0 | F27: Taux d'actualisation | G27: % | H27: =Données!G100 -> 0.08
B30: Paramètres de prix | F30: Autres indicateurs de rentabilité et financiers
B31: Économies facturation* | C31: DT/kWh | D31: =Factures!E17-Factures!J17 -> 4441.17274 | F31: Coût Moyen Actualisé de l'Énergie (LCOE) sans subvention | G31: DT/kWh | H31: ='Flux de trésorerie'!I70 -> 0.4366384401
B32: Augmentation du prix de l’électricité** | C32: % p.a. | D32: ='Entrées Utilisateurs'!I67 -> 0.03 | F32: Valeur Actualisée Nette | G32: DT | H32: ='Capitaux propres'!F36 -> 20378.482
B33: Inflation** | C33: % p.a. | D33: ='Entrées Utilisateurs'!G120 -> 0.07 | F33: TRI des capitaux propres | G33: % | H33: ='Capitaux propres'!F33 -> 0.1812882125
B34: * avec TVA (si applicable), tarif STEG de l'année de construction | F34: Min DSCR* | G34: x | H34: =Financement!F47 -> 1.012193856
B35: ** après 5 ans | F35: Min LLCR** | G35: x | H35: =Financement!F60 -> 1.063819902
F37: * DSCR: Ratio de couverture du service de la dette
F38: ** LLCR: Ratio de couverture de la durée du prêt

Sheet Factures
D3: Sans solaire | F3: avec solaire
C4: Mois | D4: consommation brute (kWh) | E4: facture consommation (DT) | F4: Production PV (kWh) | G4: consommation nette (kWh) | H4: crédit (kWh) | I4: consommation facturé (kWh) | J4: facture consommation (DT)
B5: jan | C5: janvier | D5: =IF('Entrées Utilisateurs'!$C$21="annuelle",'Entrées Utilisateurs'!$C$23/12,'Entrées Utilisateurs'!H21)*$D$22 -> 800 | E5: =(IF(D5>Données!$H$40,D5*Données!$I$41, IF(D5>Données!$G$40,D5*Données!$H$41, IF(D5>Données!$F$40,D5*Données!$G$41, D5*Données!$F$41))))*(1+Données!$L$40)+D5*Données!$L$41 -> 378.256 | F5: =IF('Entrées Utilisateurs'!$C$27="Saisie Manuelle",'Entrées Utilisateurs'!H27,'Entrées Utilisateurs'!$C$17*INDEX('rendements PV'!C5:V5,MATCH(1,('Entrées Utilisateurs'!$C$27='rendements PV'!C$3:V$3)*('Entrées Utilisateurs'!$C$28='rendements PV'!C$4:V$4),0))) -> 553.675096 | G5: =D5-F5 -> 246.324904 | H5: =IF(G5<0,G5,0) -> 0 | I5: =MAX(0,G5) -> 246.324904 | J5: =(IF(I5>Données!$H$40,I5*Données!$I$41, IF(I5>Données!$G$40,I5*Données!$H$41, IF(I5>Données!$F$40,I5*Données!$G$41, I5*Données!$F$41))))*(1+Données!$L$40)+I5*Données!$L$41 -> 61.91130137
B6: fév | C6: février | D6: =IF('Entrées Utilisateurs'!$C$21="annuelle",'Entrées Utilisateurs'!$C$23/12,'Entrées Utilisateurs'!I21)*$D$22 -> 800 | E6: =(IF(D6>Données!$H$40,D6*Données!$I$41, IF(D6>Données!$G$40,D6*Données!$H$41, IF(D6>Données!$F$40,D6*Données!$G$41, D6*Données!$F$41))))*(1+Données!$L$40)+D6*Données!$L$41 -> 378.256 | F6: =IF('Entrées Utilisateurs'!$C$27="Saisie Manuelle",'Entrées Utilisateurs'!I27,'Entrées Utilisateurs'!$C$17*INDEX('rendements PV'!C6:V6,MATCH(1,('Entrées Utilisateurs'!$C$27='rendements PV'!C$3:V$3)*('Entrées Utilisateurs'!$C$28='rendements PV'!C$4:V$4),0))) -> 640.3019359 | G6: =D6-F6 -> 159.6980641 | H6: =IF((G6+H5)<0,G6+H5,0) -> 0 | I6: =MAX(0,G6+H5) -> 159.6980641 | J6: =(IF(I6>Données!$H$40,I6*Données!$I$41, IF(I6>Données!$G$40,I6*Données!$H$41, IF(I6>Données!$F$40,I6*Données!$G$41, I6*Données!$F$41))))*(1+Données!$L$40)+I6*Données!$L$41 -> 35.98795875
B7: mar | C7: mars | D7: =IF('Entrées Utilisateurs'!$C$21="annuelle",'Entrées Utilisateurs'!$C$23/12,'Entrées Utilisateurs'!J21)*$D$22 -> 800 | E7: =(IF(D7>Données!$H$40,D7*Données!$I$41, IF(D7>Données!$G$40,D7*Données!$H$41, IF(D7>Données!$F$40,D7*Données!$G$41, D7*Données!$F$41))))*(1+Données!$L$40)+D7*Données!$L$41 -> 378.256 | F7: =IF('Entrées Utilisateurs'!$C$27="Saisie Manuelle",'Entrées Utilisateurs'!J27,'Entrées Utilisateurs'!$C$17*INDEX('rendements PV'!C7:V7,MATCH(1,('Entrées Utilisateurs'!$C$27='rendements PV'!C$3:V$3)*('Entrées Utilisateurs'!$C$28='rendements PV'!C$4:V$4),0))) -> 851.8639907 | G7: -51.8639907 | H7: -51.8639907 | I7: 0 | J7: =(IF(I7>Données!$H$40,I7*Données!$I$41, IF(I7>Données!$G$40,I7*Données!$H$41, IF(I7>Données!$F$40,I7*Données!$G$41, I7*Données!$F$41))))*(1+Données!$L$40)+I7*Données!$L$41 -> 0
B8: avr | C8: avril | D8: =IF('Entrées Utilisateurs'!$C$21="annuelle",'Entrées Utilisateurs'!$C$23/12,'Entrées Utilisateurs'!K21)*$D$22 -> 800 | E8: =(IF(D8>Données!$H$40,D8*Données!$I$41, IF(D8>Données!$G$40,D8*Données!$H$41, IF(D8>Données!$F$40,D8*Données!$G$41, D8*Données!$F$41))))*(1+Données!$L$40)+D8*Données!$L$41 -> 378.256 | F8: =IF('Entrées Utilisateurs'!$C$27="Saisie Manuelle",'Entrées Utilisateurs'!K27,'Entrées Utilisateurs'!$C$17*INDEX('rendements PV'!C8:V8,MATCH(1,('Entrées Utilisateurs'!$C$27='rendements PV'!C$3:V$3)*('Entrées Utilisateurs'!$C$28='rendements PV'!C$4:V$4),0))) -> 920.0362651 | G8: -120.0362651 | H8: -171.9002558 | I8: 0 | J8: =(IF(I8>Données!$H$40,I8*Données!$I$41, IF(I8>Données!$G$40,I8*Données!$H$41, IF(I8>Données!$F$40,I8*Données!$G$41, I8*Données!$F$41))))*(1+Données!$L$40)+I8*Données!$L$41 -> 0
B9: mai | C9: mai | D9: =IF('Entrées Utilisateurs'!$C$21="annuelle",'Entrées Utilisateurs'!$C$23/12,'Entrées Utilisateurs'!L21)*$D$22 -> 800 | E9: =(IF(D9>Données!$H$40,D9*Données!$I$41, IF(D9>Données!$G$40,D9*Données!$H$41, IF(D9>Données!$F$40,D9*Données!$G$41, D9*Données!$F$41))))*(1+Données!$L$40)+D9*Données!$L$41 -> 378.256 | F9: =IF('Entrées Utilisateurs'!$C$27="Saisie Manuelle",'Entrées Utilisateurs'!L27,'Entrées Utilisateurs'!$C$17*INDEX('rendements PV'!C9:V9,MATCH(1,('Entrées Utilisateurs'!$C$27='rendements PV'!C$3:V$3)*('Entrées Utilisateurs'!$C$28='rendements PV'!C$4:V$4),0))) -> 978.2327753 | G9: -178.2327753 | H9: -350.1330311 | I9: 0 | J9: =(IF(I9>Données!$H$40,I9*Données!$I$41, IF(I9>Données!$G$40,I9*Données!$H$41, IF(I9>Données!$F$40,I9*Données!$G$41, I9*Données!$F$41))))*(1+Données!$L$40)+I9*Données!$L$41 -> 0
B10: jui | C10: juin | D10: =IF('Entrées Utilisateurs'!$C$21="annuelle",'Entrées Utilisateurs'!$C$23/12,'Entrées Utilisateurs'!M21)*$D$22 -> 800 | E10: =(IF(D10>Données!$H$40,D10*Données!$I$41, IF(D10>Données!$G$40,D10*Données!$H$41, IF(D10>Données!$F$40,D10*Données!$G$41, D10*Données!$F$41))))*(1+Données!$L$40)+D10*Données!$L$41 -> 378.256 | F10: =IF('Entrées Utilisateurs'!$C$27="Saisie Manuelle",'Entrées Utilisateurs'!M27,'Entrées Utilisateurs'!$C$17*INDEX('rendements PV'!C10:V10,MATCH(1,('Entrées Utilisateurs'!$C$27='rendements PV'!C$3:V$3)*('Entrées Utilisateurs'!$C$28='rendements PV'!C$4:V$4),0))) -> 1041.308632 | G10: -241.3086317 | H10: -591.4416628 | I10: 0 | J10: =(IF(I10>Données!$H$40,I10*Données!$I$41, IF(I10>Données!$G$40,I10*Données!$H$41, IF(I10>Données!$F$40,I10*Données!$G$41, I10*Données!$F$41))))*(1+Données!$L$40)+I10*Données!$L$41 -> 0
B11: jui | C11: juillet | D11: =IF('Entrées Utilisateurs'!$C$21="annuelle",'Entrées Utilisateurs'!$C$23/12,'Entrées Utilisateurs'!H23)*$D$22 -> 800 | E11: =(IF(D11>Données!$H$40,D11*Données!$I$41, IF(D11>Données!$G$40,D11*Données!$H$41, IF(D11>Données!$F$40,D11*Données!$G$41, D11*Données!$F$41))))*(1+Données!$L$40)+D11*Données!$L$41 -> 378.256 | F11: =IF('Entrées Utilisateurs'!$C$27="Saisie Manuelle",'Entrées Utilisateurs'!H29,'Entrées Utilisateurs'!$C$17*INDEX('rendements PV'!C11:V11,MATCH(1,('Entrées Utilisateurs'!$C$27='rendements PV'!C$3:V$3)*('Entrées Utilisateurs'!$C$28='rendements PV'!C$4:V$4),0))) -> 1053.80109 | G11: -253.8010896 | H11: -845.2427523 | I11: 0 | J11: =(IF(I11>Données!$H$40,I11*Données!$I$41, IF(I11>Données!$G$40,I11*Données!$H$41, IF(I11>Données!$F$40,I11*Données!$G$41, I11*Données!$F$41))))*(1+Données!$L$40)+I11*Données!$L$41 -> 0
B12: aoû | C12: août | D12: =IF('Entrées Utilisateurs'!$C$21="annuelle",'Entrées Utilisateurs'!$C$23/12,'Entrées Utilisateurs'!I23)*$D$22 -> 800 | E12: =(IF(D12>Données!$H$40,D12*Données!$I$41, IF(D12>Données!$G$40,D12*Données!$H$41, IF(D12>Données!$F$40,D12*Données!$G$41, D12*Données!$F$41))))*(1+Données!$L$40)+D12*Données!$L$41 -> 378.256 | F12: =IF('Entrées Utilisateurs'!$C$27="Saisie Manuelle",'Entrées Utilisateurs'!I29,'Entrées Utilisateurs'!$C$17*INDEX('rendements PV'!C12:V12,MATCH(1,('Entrées Utilisateurs'!$C$27='rendements PV'!C$3:V$3)*('Entrées Utilisateurs'!$C$28='rendements PV'!C$4:V$4),0))) -> 1021.308758 | G12: -221.3087576 | H12: -1066.55151 | I12: 0 | J12: =(IF(I12>Données!$H$40,I12*Données!$I$41, IF(I12>Données!$G$40,I12*Données!$H$41, IF(I12>Données!$F$40,I12*Données!$G$41, I12*Données!$F$41))))*(1+Données!$L$40)+I12*Données!$L$41 -> 0
B13: sep | C13: septembre | D13: =IF('Entrées Utilisateurs'!$C$21="annuelle",'Entrées Utilisateurs'!$C$23/12,'Entrées Utilisateurs'!J23)*$D$22 -> 800 | E13: =(IF(D13>Données!$H$40,D13*Données!$I$41, IF(D13>Données!$G$40,D13*Données!$H$41, IF(D13>Données!$F$40,D13*Données!$G$41, D13*Données!$F$41))))*(1+Données!$L$40)+D13*Données!$L$41 -> 378.256 | F13: =IF('Entrées Utilisateurs'!$C$27="Saisie Manuelle",'Entrées Utilisateurs'!J29,'Entrées Utilisateurs'!$C$17*INDEX('rendements PV'!C13:V13,MATCH(1,('Entrées Utilisateurs'!$C$27='rendements PV'!C$3:V$3)*('Entrées Utilisateurs'!$C$28='rendements PV'!C$4:V$4),0))) -> 855.3136952 | G13: -55.3136952 | H13: -1121.865205 | I13: 0 | J13: =(IF(I13>Données!$H$40,I13*Données!$I$41, IF(I13>Données!$G$40,I13*Données!$H$41, IF(I13>Données!$F$40,I13*Données!$G$41, I13*Données!$F$41))))*(1+Données!$L$40)+I13*Données!$L$41 -> 0
B14: oct | C14: octobre | D14: =IF('Entrées Utilisateurs'!$C$21="annuelle",'Entrées Utilisateurs'!$C$23/12,'Entrées Utilisateurs'!K23)*$D$22 -> 800 | E14: =(IF(D14>Données!$H$40,D14*Données!$I$41, IF(D14>Données!$G$40,D14*Données!$H$41, IF(D14>Données!$F$40,D14*Données!$G$41, D14*Données!$F$41))))*(1+Données!$L$40)+D14*Données!$L$41 -> 378.256 | F14: =IF('Entrées Utilisateurs'!$C$27="Saisie Manuelle",'Entrées Utilisateurs'!K29,'Entrées Utilisateurs'!$C$17*INDEX('rendements PV'!C14:V14,MATCH(1,('Entrées Utilisateurs'!$C$27='rendements PV'!C$3:V$3)*('Entrées Utilisateurs'!$C$28='rendements PV'!C$4:V$4),0))) -> 760.2691509 | G14: 39.73084909 | H14: -1082.134356 | I14: 0 | J14: =(IF(I14>Données!$H$40,I14*Données!$I$41, IF(I14>Données!$G$40,I14*Données!$H$41, IF(I14>Données!$F$40,I14*Données!$G$41, I14*Données!$F$41))))*(1+Données!$L$40)+I14*Données!$L$41 -> 0
B15: nov | C15: novembre | D15: =IF('Entrées Utilisateurs'!$C$21="annuelle",'Entrées Utilisateurs'!$C$23/12,'Entrées Utilisateurs'!L23)*$D$22 -> 800 | E15: =(IF(D15>Données!$H$40,D15*Données!$I$41, IF(D15>Données!$G$40,D15*Données!$H$41, IF(D15>Données!$F$40,D15*Données!$G$41, D15*Données!$F$41))))*(1+Données!$L$40)+D15*Données!$L$41 -> 378.256 | F15: =IF('Entrées Utilisateurs'!$C$27="Saisie Manuelle",'Entrées Utilisateurs'!L29,'Entrées Utilisateurs'!$C$17*INDEX('rendements PV'!C15:V15,MATCH(1,('Entrées Utilisateurs'!$C$27='rendements PV'!C$3:V$3)*('Entrées Utilisateurs'!$C$28='rendements PV'!C$4:V$4),0))) -> 617.0370982 | G15: 182.9629018 | H15: -899.1714543 | I15: 0 | J15: =(IF(I15>Données!$H$40,I15*Données!$I$41, IF(I15>Données!$G$40,I15*Données!$H$41, IF(I15>Données!$F$40,I15*Données!$G$41, I15*Données!$F$41))))*(1+Données!$L$40)+I15*Données!$L$41 -> 0
B16: déc | C16: décembre | D16: =IF('Entrées Utilisateurs'!$C$21="annuelle",'Entrées Utilisateurs'!$C$23/12,'Entrées Utilisateurs'!M23)*$D$22 -> 800 | E16: =(IF(D16>Données!$H$40,D16*Données!$I$41, IF(D16>Données!$G$40,D16*Données!$H$41, IF(D16>Données!$F$40,D16*Données!$G$41, D16*Données!$F$41))))*(1+Données!$L$40)+D16*Données!$L$41 -> 378.256 | F16: =IF('Entrées Utilisateurs'!$C$27="Saisie Manuelle",'Entrées Utilisateurs'!M29,'Entrées Utilisateurs'!$C$17*INDEX('rendements PV'!C16:V16,MATCH(1,('Entrées Utilisateurs'!$C$27='rendements PV'!C$3:V$3)*('Entrées Utilisateurs'!$C$28='rendements PV'!C$4:V$4),0))) -> 606.8515139 | G16: 193.1484861 | H16: -706.0229681 | I16: 0 | J16: =(IF(I16>Données!$H$40,I16*Données!$I$41, IF(I16>Données!$G$40,I16*Données!$H$41, IF(I16>Données!$F$40,I16*Données!$G$41, I16*Données!$F$41))))*(1+Données!$L$40)+I16*Données!$L$41 -> 0
C17: totale annuelle | D17: =SUM(D5:D16) -> 9600 | E17: =SUM(E5:E16) -> 4539.072 | F17: 9900 | G17: =MAX(SUM(G5:G16),0) -> 0 | H17: =H16 -> -706.0229681 | I17: =I16 -> 0 | J17: =MAX(0,SUM(J5:J16)) -> 97.89926013
C19: tarif évité moyen (DT/kWh) | D19: =(E17-J17)/(F17+H19) -> 0.4677884437 | G19: crédit utilisé dans la prochaine année | H19: =MAX(H17,-SUM(IF(I5:I16>0,I5:I16))) -> -406.0229681
D22: 1

Sheet Données
C1: Assumptions | D1: Hypothèses
C2: =Name_Project -> 
C5: Timing | D5: Délais
C6: Start | D6: Départ
C7: Start | D7: Début | E7: Date | G7: =DATE('Entrées Utilisateurs'!C43,1,1) -> 2022-01-01
C9: Operations | D9: Exploitation
C10: Start | D10: Début | E10: Date | G10: =Cons_Start -> 2022-01-01
C11: Base Case Duration | D11: Durée de l'hypothèse de référence | E11: Yr(s) | G11: ='Entrées Utilisateurs'!C46 -> 20
C12: End | D12: Fin | E12: Date | G12: =EOMONTH(G10,G11*12-1) -> 2041-12-31
C14: Construction | D14: Construction
C15: System prices | D15: Coût du système
C16: Manual System Price Entry | D16: Coût de l'installation | E16: DT | G16: ='Entrées Utilisateurs'!C10+'Entrées Utilisateurs'!C13 -> 22000
C17: Applied Subsidy | D17: Subvention appliquée | E17: DT | G17: =G29 -> 0
D18: Coût de l'étude de faisabilité | E18: DT | G18: ='Entrées Utilisateurs'!I43 -> 0
D19: Subvention appliquée | E19: DT | G19: =MIN(30000,0.7*G18) -> 0
C20: Applied System Price | D20: Coût de l'installation appliqué | E20: DT | G20: =G16-G17+G18-G19 -> 22000
C23: Subsidy | D23: Subvention
C24: Selection | D24: Sélection
C25: Type of Subsidy
C26: Unit
C27: Amount of Subsidy | D27: Montant de la subvention | E27: DT | G27: =IF('Entrées Utilisateurs'!D11="%",'Entrées Utilisateurs'!C11*'Entrées Utilisateurs'!C10,'Entrées Utilisateurs'!C12) -> 0
C28: Limit | D28: Limite | E28: DT | G28: 200000
C29: Applied Subsidy | D29: Subvention appliquée | E29: DT | G29: =IF('Entrées Utilisateurs'!D11="DT",'Entrées Utilisateurs'!C11,'Entrées Utilisateurs'!C12) -> 0
C31: Operations | D31: Exploitation
C32: Generation | D32: Production
C33: System Size | D33: Taille de l'installation | E33: kWp | G33: ='Entrées Utilisateurs'!C17 -> 6
C35: Degradation | D35: Dégradation des performances | E35: % p.a. | G35: ='Entrées Utilisateurs'!C50 -> 0.007
C36: Overall Efficiency | D36: Rendement global | E36: % | G36: ='Entrées Utilisateurs'!C51 -> 1
C38: Electricity Savings | D38: Economies d'électricité
C39: Consumption without PV | D39: Tarif d'électricité appliqué
C40: Average Electricity Price | D40: Consommation mensuelle | E40: kWh | F40: 200 | G40: 300 | H40: 500 | I40: =IF('Entrées Utilisateurs'!$H$10="Résidentiel",'Entrées Utilisateurs'!G59,'Entrées Utilisateurs'!G63) -> 500+ | K40: TVA | L40: =IF('Entrées Utilisateurs'!H14="Résidentiel (13%)",13%,IF('Entrées Utilisateurs'!H14="Non-Résidentiel (19%)",19%,0)) -> 0.13
D41: Tarif d'électricité | E41: DT/kWh | F41: =IF('Entrées Utilisateurs'!$H$10="Résidentiel",'Entrées Utilisateurs'!D60,'Entrées Utilisateurs'!D64) -> 0.195 | G41: =IF('Entrées Utilisateurs'!$H$10="Résidentiel",'Entrées Utilisateurs'!E60,'Entrées Utilisateurs'!E64) -> 0.218 | H41: =IF('Entrées Utilisateurs'!$H$10="Résidentiel",'Entrées Utilisateurs'!F60,'Entrées Utilisateurs'!F64) -> 0.341 | I41: =IF('Entrées Utilisateurs'!$H$10="Résidentiel",'Entrées Utilisateurs'!G60,'Entrées Utilisateurs'!G64) -> 0.414 | K41: surtaxe municipale | L41: ='Entrées Utilisateurs'!J59 -> 0.005
C43: Price Forecast | D43: Projections de prix | G43: =YEAR(Ops_Start) -> 2022 | H43: =G43+1 -> 2023 | I43: =H43+1 -> 2024 | J43: =I43+1 -> 2025 | K43: =J43+1 -> 2026 | L43: 2027 | M43: 2028 | N43: 2029 | O43: 2030 | P43: 2031 | Q43: 2032 | R43: 2033 | S43: 2034 | T43: 2035 | U43: 2036 | V43: 2037 | W43: 2038 | X43: 2039 | Y43: 2040 | Z43: 2041 | AA43: 2042 | AB43: 2043 | AC43: 2044 | AD43: 2045 | AE43: 2046 | AF43: 2047 | AG43: 2048 | AH43: 2049
C44: Price Escalation | D44: Augmentation du prix | E44: % | G44: ='Entrées Utilisateurs'!D67 -> 0 | H44: ='Entrées Utilisateurs'!E67 -> 0.03 | I44: ='Entrées Utilisateurs'!F67 -> 0.03 | J44: ='Entrées Utilisateurs'!G67 -> 0.03 | K44: ='Entrées Utilisateurs'!H67 -> 0.03 | L44: ='Entrées Utilisateurs'!I67 -> 0.03 | M44: x | N44: x | O44: x | P44: x | Q44: x | R44: x | S44: x | T44: x | U44: x | V44: x | W44: x | X44: x | Y44: x | Z44: x | AA44: x | AB44: x | AC44: x | AD44: x | AE44: x | AF44: x | AG44: x | AH44: x
C45: Applied Electricity Price | D45: tarif évité moyen (DT/kWh) | E45: DT/kWh | G45: =IF(G44="x",Factures!$D$19*(1+$L$44),Factures!$D$19*(1+G44)) -> 0.4677884437 | H45: =IF(H44="x",G45*(1+$L$44),G45*(1+H44)) -> 0.481822097 | I45: =IF(I44="x",H45*(1+$L$44),H45*(1+I44)) -> 0.4962767599 | J45: 0.5111650627 | K45: 0.5265000146 | L45: 0.542295015 | M45: 0.5585638654 | N45: 0.5753207814 | O45: 0.5925804048 | P45: 0.610357817 | Q45: 0.6286685515 | R45: 0.647528608 | S45: 0.6669544663 | T45: 0.6869631003 | U45: 0.7075719933 | V45: 0.7287991531 | W45: 0.7506631277 | X45: 0.7731830215 | Y45: 0.7963785122 | Z45: 0.8202698675 | AA45: 0.8448779635 | AB45: 0.8702243024 | AC45: 0.8963310315 | AD45: 0.9232209625 | AE45: 0.9509175913 | AF45: 0.9794451191 | AG45: 1.008828473 | AH45: 1.039093327
C47: OpEx | D47: Coûts d’exploitation
C48: O&M | D48: Exploitation & Maintenance
C49: Fixed Operation Costs | D49: Coûts fixes d'exploitation | E49: % | G49: ='Entrées Utilisateurs'!C71 -> 0.01
C50: Fixed Operation Costs | D50: Coûts fixes d'exploitation | E50: DT/p.a. | G50: =G16*G49 -> 220
C52: Cost Categories | D52: Catégories de coûts
C53: Fixed Costs | D53: Coûts fixes
C54: Fixed Operation | D54: Exploitation fixe | E54: DT p.a. | G54: =G50 -> 220
C55: Spare | D55: Assurance | E55: DT p.a. | G55: ='Entrées Utilisateurs'!C75 -> 0
C56: Spare | D56: Autre | E56: DT p.a. | G56: ='Entrées Utilisateurs'!C76 -> 0
C57: Spare | D57: Autre | E57: DT p.a. | G57: ='Entrées Utilisateurs'!C77 -> 0
C58: Spare | D58: Autre | E58: DT p.a. | G58: ='Entrées Utilisateurs'!C78 -> 0
C59: Total | D59: Sommaire | E59: DT p.a. | G59: =SUM(G54:G58) -> 220
C61: Variable Costs | D61: Coûts variables
C62: Land Lease | D62: Bail Foncier | E62: DT/kWh | G62: ='Entrées Utilisateurs'!C81 -> 0
C63: Spare | D63: Autre | E63: DT/kWh | G63: ='Entrées Utilisateurs'!C82 -> 0
C64: Spare | D64: Autre | E64: DT/kWh | G64: ='Entrées Utilisateurs'!C83 -> 0
C65: Spare | D65: Autre | E65: DT/kWh | G65: ='Entrées Utilisateurs'!C84 -> 0
C66: Total | D66: Sommaire | E66: DT/kWh | G66: =SUM(G62:G65) -> 0
C68: Ongoing CapEx | D68: Dépenses en immobilisations permanentes (valeure nominale)
G69: 1 | H69: 2 | I69: 3 | J69: 4 | K69: 5 | L69: 6 | M69: 7 | N69: 8 | O69: 9 | P69: 10 | Q69: 11 | R69: 12 | S69: 13 | T69: 14 | U69: 15 | V69: 16 | W69: 17 | X69: 18 | Y69: 19 | Z69: 20
C70: Spare | D70: Autre | E70: DT | G70: ='Entrées Utilisateurs'!D88 -> 0 | H70: ='Entrées Utilisateurs'!E88 -> 0 | I70: ='Entrées Utilisateurs'!F88 -> 0 | J70: ='Entrées Utilisateurs'!G88 -> 0 | K70: ='Entrées Utilisateurs'!H88 -> 0 | L70: ='Entrées Utilisateurs'!I88 -> 0 | M70: ='Entrées Utilisateurs'!J88 -> 0 | N70: ='Entrées Utilisateurs'!K88 -> 0 | O70: ='Entrées Utilisateurs'!L88 -> 0 | P70: ='Entrées Utilisateurs'!M88 -> 30000 | Q70: ='Entrées Utilisateurs'!N88 -> 0 | R70: ='Entrées Utilisateurs'!O88 -> 0 | S70: ='Entrées Utilisateurs'!P88 -> 0 | T70: ='Entrées Utilisateurs'!Q88 -> 0 | U70: ='Entrées Utilisateurs'!R88 -> 0 | V70: ='Entrées Utilisateurs'!S88 -> 0 | W70: ='Entrées Utilisateurs'!T88 -> 0 | X70: ='Entrées Utilisateurs'!U88 -> 0 | Y70: ='Entrées Utilisateurs'!V88 -> 0 | Z70: ='Entrées Utilisateurs'!W88 -> 0
C71: Spare | D71: Autre | E71: DT | G71: ='Entrées Utilisateurs'!D89 -> 0 | H71: ='Entrées Utilisateurs'!E89 -> 0 | I71: ='Entrées Utilisateurs'!F89 -> 0 | J71: ='Entrées Utilisateurs'!G89 -> 0 | K71: ='Entrées Utilisateurs'!H89 -> 0 | L71: ='Entrées Utilisateurs'!I89 -> 0 | M71: ='Entrées Utilisateurs'!J89 -> 0 | N71: ='Entrées Utilisateurs'!K89 -> 0 | O71: ='Entrées Utilisateurs'!L89 -> 0 | P71: ='Entrées Utilisateurs'!M89 -> 0 | Q71: ='Entrées Utilisateurs'!N89 -> 0 | R71: ='Entrées Utilisateurs'!O89 -> 0 | S71: ='Entrées Utilisateurs'!P89 -> 0 | T71: ='Entrées Utilisateurs'!Q89 -> 0 | U71: ='Entrées Utilisateurs'!R89 -> 0 | V71: ='Entrées Utilisateurs'!S89 -> 0 | W71: ='Entrées Utilisateurs'!T89 -> 0 | X71: ='Entrées Utilisateurs'!U89 -> 0 | Y71: ='Entrées Utilisateurs'!V89 -> 0 | Z71: ='Entrées Utilisateurs'!W89 -> 0
C72: Spare | D72: Autre | E72: DT | G72: ='Entrées Utilisateurs'!D90 -> 0 | H72: ='Entrées Utilisateurs'!E90 -> 0 | I72: ='Entrées Utilisateurs'!F90 -> 0 | J72: ='Entrées Utilisateurs'!G90 -> 0 | K72: ='Entrées Utilisateurs'!H90 -> 0 | L72: ='Entrées Utilisateurs'!I90 -> 0 | M72: ='Entrées Utilisateurs'!J90 -> 0 | N72: ='Entrées Utilisateurs'!K90 -> 0 | O72: ='Entrées Utilisateurs'!L90 -> 0 | P72: ='Entrées Utilisateurs'!M90 -> 0 | Q72: ='Entrées Utilisateurs'!N90 -> 0 | R72: ='Entrées Utilisateurs'!O90 -> 0 | S72: ='Entrées Utilisateurs'!P90 -> 0 | T72: ='Entrées Utilisateurs'!Q90 -> 0 | U72: ='Entrées Utilisateurs'!R90 -> 0 | V72: ='Entrées Utilisateurs'!S90 -> 0 | W72: ='Entrées Utilisateurs'!T90 -> 0 | X72: ='Entrées Utilisateurs'!U90 -> 0 | Y72: ='Entrées Utilisateurs'!V90 -> 0 | Z72: ='Entrées Utilisateurs'!W90 -> 0
C74: Funding | D74: Financement
C75: Senior Debt | D75: Dette de premier rang
C76: Fixed Debt Limit | D76: Limite | E76: DT | G76: ='Entrées Utilisateurs'!C94 -> 80000
C77: Debt Gearing Base Case | D77: Ratio | E77: % | G77: ='Entrées Utilisateurs'!C95 -> 0.7
C78: Selection | D78: Montant de la dette | E78: DT | G78: =MIN(G77*G20,G76) -> 15400
C80: Period | D80: Période | G80: Cons | H80: 1 | I80: 2 | J80: 3 | K80: 4
C81: Margin | D81: Marge | E81: % p.a. | G81: ='Entrées Utilisateurs'!D99 -> 0.035 | H81: ='Entrées Utilisateurs'!E99 -> 0.035 | I81: ='Entrées Utilisateurs'!F99 -> 0.035 | J81: ='Entrées Utilisateurs'!G99 -> 0.035 | K81: ='Entrées Utilisateurs'!H99 -> 0.035
C83: Financing Fees | D83: Frais de financement
C84: Upfront Fee | D84: Commission initiale | E84: % Facility | G84: ='Entrées Utilisateurs'!C102 -> 0.01 | H84: =G78*G84 -> 154
C85: Commitment Fee | D85: Commission d'engagement | E85: % Margin | G85: ='Entrées Utilisateurs'!C103 -> 0.25
C86: Commitment Fee | D86: Commission d'engagement | E86: % p.a. | G86: =G81*G85 -> 0.00875
C88: Repayment Terms | D88: Modalités de remboursement | I88: De | J88: à
C89: Tenor | D89: Durée du crédit | E89: Yr(s) | G89: ='Entrées Utilisateurs'!C106 -> 5 | I89: =G10 -> 2022-01-01 | J89: =EOMONTH(I89,G89*12-1) -> 2026-12-31
C90: Grace Period | D90: Délai de grâce | E90: Yr(s) | G90: ='Entrées Utilisateurs'!C107 -> 0 | I90: =I89 -> 2022-01-01 | J90: =EOMONTH(I90,G90*12-1) -> 2021-12-31
C92: Equity | D92: Capitaux propres
C93: Equity | D93: Capitaux propres
C94: Initial Equity | D94: Capital initial | E94: DT | G94: =IF(G78>Construction!I21,0,Construction!I21-G78) -> 6600
C95: Additional Equity | D95: Capitaux propres supplémentaires | E95: DT | G95: =ROUND(-Construction!I33,6) -> 165.444521
C96: Total | D96: Total | E96: DT | G96: =SUM(G94:G95) -> 6765.444521
C99: WACC | D99: Coût moyen pondéré du capital
C100: Target Equity IRR | D100: Taux d'actualisation des capitaux propres | E100: % | G100: ='Entrées Utilisateurs'!C111 -> 0.08
C101: Debt All-in Rate | D101: Taux global de la dette | E101: % | G101: =AVERAGE(G107:J107)+AVERAGE(G81:K81) -> 0.115
C102: WACC nominal | D102: Coût moyen pondéré du capital | E102: % | G102: =(G78/(G78+G96))*G101+(G96/(G78+G96))*G100 -> 0.1043171302
C104: Macroeconomics | D104: Elements macroéconomiques
C105: Interest Rate | D105: Taux d'intérêt
C106: Calendar Year | D106: Année civile | G106: =YEAR(Cons_Start) -> 2022 | H106: =G106+1 -> 2023 | I106: =H106+1 -> 2024 | J106: =I106+1 -> 2025
C107: Base Rate | D107: Taux de référence | E107: % p.a. | G107: ='Entrées Utilisateurs'!D116 -> 0.08 | H107: ='Entrées Utilisateurs'!E116 -> 0.08 | I107: ='Entrées Utilisateurs'!F116 -> 0.08 | J107: ='Entrées Utilisateurs'!G116 -> 0.08
C109: Cost Escalation | D109: Inflation
C110: Calendar Year | D110: Année civile | G110: =YEAR(Cons_Start) -> 2022 | H110: =G110+1 -> 2023 | I110: =H110+1 -> 2024 | J110: =I110+1 -> 2025
C111: Escalation Rate | D111: Taux d'augmentation | E111: % p.a. | G111: ='Entrées Utilisateurs'!D120 -> 0.07 | H111: ='Entrées Utilisateurs'!E120 -> 0.07 | I111: ='Entrées Utilisateurs'!F120 -> 0.07 | J111: ='Entrées Utilisateurs'!G120 -> 0.07

Sheet Flux de trésorerie
C1: Financial Statements | D1: États financiers
C2: =Name_Project -> 
C4: Period Start | D4: Date de début de la période | J4: =Délais!J4 -> 2021-12-01 | K4: =Délais!K4 -> 2022-01-01 | L4: =Délais!L4 -> 2023-01-01 | M4: =Délais!M4 -> 2024-01-01 | N4: =Délais!N4 -> 2025-01-01 | O4: =Délais!O4 -> 2026-01-01 | P4: =Délais!P4 -> 2027-01-01 | Q4: =Délais!Q4 -> 2028-01-01 | R4: =Délais!R4 -> 2029-01-01 | S4: =Délais!S4 -> 2030-01-01 | T4: =Délais!T4 -> 2031-01-01 | U4: =Délais!U4 -> 2032-01-01 | V4: =Délais!V4 -> 2033-01-01 | W4: =Délais!W4 -> 2034-01-01 | X4: =Délais!X4 -> 2035-01-01 | Y4: =Délais!Y4 -> 2036-01-01 | Z4: =Délais!Z4 -> 2037-01-01 | AA4: =Délais!AA4 -> 2038-01-01 | AB4: =Délais!AB4 -> 2039-01-01 | AC4: =Délais!AC4 -> 2040-01-01 | AD4: =Délais!AD4 -> 2041-01-01 | AE4: =Délais!AE4 -> 2042-01-01 | AF4: =Délais!AF4 -> 2043-01-01 | AG4: =Délais!AG4 -> 2044-01-01 | AH4: =Délais!AH4 -> 2045-01-01 | AI4: =Délais!AI4 -> 2046-01-01 | AJ4: =Délais!AJ4 -> 2047-01-01 | AK4: =Délais!AK4 -> 2048-01-01 | AL4: =Délais!AL4 -> 2049-01-01 | AM4: =Délais!AM4 -> 2050-01-01 | AN4: =Délais!AN4 -> 2051-01-01 | AO4: =Délais!AO4 -> 2052-01-01 | AP4: =Délais!AP4 -> 2053-01-01 | AQ4: =Délais!AQ4 -> 2054-01-01 | AR4: =Délais!AR4 -> 2055-01-01 | AS4: =Délais!AS4 -> 2056-01-01 | AT4: =Délais!AT4 -> 2057-01-01 | AU4: =Délais!AU4 -> 2058-01-01 | AV4: =Délais!AV4 -> 2059-01-01 | AW4: =Délais!AW4 -> 2060-01-01 | AX4: =Délais!AX4 -> 2061-01-01 | AY4: =Délais!AY4 -> 2062-01-01 | AZ4: =Délais!AZ4 -> 2063-01-01 | BA4: =Délais!BA4 -> 2064-01-01 | BB4: =Délais!BB4 -> 2065-01-01 | BC4: =Délais!BC4 -> 2066-01-01 | BD4: =Délais!BD4 -> 2067-01-01 | BE4: =Délais!BE4 -> 2068-01-01 | BF4: =Délais!BF4 -> 2069-01-01 | BG4: =Délais!BG4 -> 2070-01-01 | BH4: =Délais!BH4 -> 2071-01-01 | BI4: =Délais!BI4 -> 2072-01-01 | BJ4: =Délais!BJ4 -> 2073-01-01 | BK4: =Délais!BK4 -> 2074-01-01 | BL4: =Délais!BL4 -> 2075-01-01 | BM4: =Délais!BM4 -> 2076-01-01
C5: Period End | D5: Date de fin de la période | I5: =Délais!I5 -> 2022-01-01 | J5: =Délais!J5 -> 2021-12-31 | K5: =Délais!K5 -> 2022-12-31 | L5: =Délais!L5 -> 2023-12-31 | M5: =Délais!M5 -> 2024-12-31 | N5: =Délais!N5 -> 2025-12-31 | O5: =Délais!O5 -> 2026-12-31 | P5: =Délais!P5 -> 2027-12-31 | Q5: =Délais!Q5 -> 2028-12-31 | R5: =Délais!R5 -> 2029-12-31 | S5: =Délais!S5 -> 2030-12-31 | T5: =Délais!T5 -> 2031-12-31 | U5: =Délais!U5 -> 2032-12-31 | V5: =Délais!V5 -> 2033-12-31 | W5: =Délais!W5 -> 2034-12-31 | X5: =Délais!X5 -> 2035-12-31 | Y5: =Délais!Y5 -> 2036-12-31 | Z5: =Délais!Z5 -> 2037-12-31 | AA5: =Délais!AA5 -> 2038-12-31 | AB5: =Délais!AB5 -> 2039-12-31 | AC5: =Délais!AC5 -> 2040-12-31 | AD5: =Délais!AD5 -> 2041-12-31 | AE5: =Délais!AE5 -> 2042-12-31 | AF5: =Délais!AF5 -> 2043-12-31 | AG5: =Délais!AG5 -> 2044-12-31 | AH5: =Délais!AH5 -> 2045-12-31 | AI5: =Délais!AI5 -> 2046-12-31 | AJ5: =Délais!AJ5 -> 2047-12-31 | AK5: =Délais!AK5 -> 2048-12-31 | AL5: =Délais!AL5 -> 2049-12-31 | AM5: =Délais!AM5 -> 2050-12-31 | AN5: =Délais!AN5 -> 2051-12-31 | AO5: =Délais!AO5 -> 2052-12-31 | AP5: =Délais!AP5 -> 2053-12-31 | AQ5: =Délais!AQ5 -> 2054-12-31 | AR5: =Délais!AR5 -> 2055-12-31 | AS5: =Délais!AS5 -> 2056-12-31 | AT5: =Délais!AT5 -> 2057-12-31 | AU5: =Délais!AU5 -> 2058-12-31 | AV5: =Délais!AV5 -> 2059-12-31 | AW5: =Délais!AW5 -> 2060-12-31 | AX5: =Délais!AX5 -> 2061-12-31 | AY5: =Délais!AY5 -> 2062-12-31 | AZ5: =Délais!AZ5 -> 2063-12-31 | BA5: =Délais!BA5 -> 2064-12-31 | BB5: =Délais!BB5 -> 2065-12-31 | BC5: =Délais!BC5 -> 2066-12-31 | BD5: =Délais!BD5 -> 2067-12-31 | BE5: =Délais!BE5 -> 2068-12-31 | BF5: =Délais!BF5 -> 2069-12-31 | BG5: =Délais!BG5 -> 2070-12-31 | BH5: =Délais!BH5 -> 2071-12-31 | BI5: =Délais!BI5 -> 2072-12-31 | BJ5: =Délais!BJ5 -> 2073-12-31 | BK5: =Délais!BK5 -> 2074-12-31 | BL5: =Délais!BL5 -> 2075-12-31 | BM5: =Délais!BM5 -> 2076-12-31
C6: Construction | D6: Construction | J6: =Délais!J6 -> 1 | K6: =Délais!K6 -> 0 | L6: =Délais!L6 -> 0 | M6: =Délais!M6 -> 0 | N6: =Délais!N6 -> 0 | O6: =Délais!O6 -> 0 | P6: =Délais!P6 -> 0 | Q6: =Délais!Q6 -> 0 | R6: =Délais!R6 -> 0 | S6: =Délais!S6 -> 0 | T6: =Délais!T6 -> 0 | U6: =Délais!U6 -> 0 | V6: =Délais!V6 -> 0 | W6: =Délais!W6 -> 0 | X6: =Délais!X6 -> 0 | Y6: =Délais!Y6 -> 0 | Z6: =Délais!Z6 -> 0 | AA6: =Délais!AA6 -> 0 | AB6: =Délais!AB6 -> 0 | AC6: =Délais!AC6 -> 0 | AD6: =Délais!AD6 -> 0 | AE6: =Délais!AE6 -> 0 | AF6: =Délais!AF6 -> 0 | AG6: =Délais!AG6 -> 0 | AH6: =Délais!AH6 -> 0 | AI6: =Délais!AI6 -> 0 | AJ6: =Délais!AJ6 -> 0 | AK6: =Délais!AK6 -> 0 | AL6: =Délais!AL6 -> 0 | AM6: =Délais!AM6 -> 0 | AN6: =Délais!AN6 -> 0 | AO6: =Délais!AO6 -> 0 | AP6: =Délais!AP6 -> 0 | AQ6: =Délais!AQ6 -> 0 | AR6: =Délais!AR6 -> 0 | AS6: =Délais!AS6 -> 0 | AT6: =Délais!AT6 -> 0 | AU6: =Délais!AU6 -> 0 | AV6: =Délais!AV6 -> 0 | AW6: =Délais!AW6 -> 0 | AX6: =Délais!AX6 -> 0 | AY6: =Délais!AY6 -> 0 | AZ6: =Délais!AZ6 -> 0 | BA6: =Délais!BA6 -> 0 | BB6: =Délais!BB6 -> 0 | BC6: =Délais!BC6 -> 0 | BD6: =Délais!BD6 -> 0 | BE6: =Délais!BE6 -> 0 | BF6: =Délais!BF6 -> 0 | BG6: =Délais!BG6 -> 0 | BH6: =Délais!BH6 -> 0 | BI6: =Délais!BI6 -> 0 | BJ6: =Délais!BJ6 -> 0 | BK6: =Délais!BK6 -> 0 | BL6: =Délais!BL6 -> 0 | BM6: =Délais!BM6 -> 0
C7: Operations | D7: Exploitation | J7: =Délais!J7 -> 0 | K7: =Délais!K7 -> 1 | L7: =Délais!L7 -> 1 | M7: =Délais!M7 -> 1 | N7: =Délais!N7 -> 1 | O7: =Délais!O7 -> 1 | P7: =Délais!P7 -> 1 | Q7: =Délais!Q7 -> 1 | R7: =Délais!R7 -> 1 | S7: =Délais!S7 -> 1 | T7: =Délais!T7 -> 1 | U7: =Délais!U7 -> 1 | V7: =Délais!V7 -> 1 | W7: =Délais!W7 -> 1 | X7: =Délais!X7 -> 1 | Y7: =Délais!Y7 -> 1 | Z7: =Délais!Z7 -> 1 | AA7: =Délais!AA7 -> 1 | AB7: =Délais!AB7 -> 1 | AC7: =Délais!AC7 -> 1 | AD7: =Délais!AD7 -> 1 | AE7: =Délais!AE7 -> 0 | AF7: =Délais!AF7 -> 0 | AG7: =Délais!AG7 -> 0 | AH7: =Délais!AH7 -> 0 | AI7: =Délais!AI7 -> 0 | AJ7: =Délais!AJ7 -> 0 | AK7: =Délais!AK7 -> 0 | AL7: =Délais!AL7 -> 0 | AM7: =Délais!AM7 -> 0 | AN7: =Délais!AN7 -> 0 | AO7: =Délais!AO7 -> 0 | AP7: =Délais!AP7 -> 0 | AQ7: =Délais!AQ7 -> 0 | AR7: =Délais!AR7 -> 0 | AS7: =Délais!AS7 -> 0 | AT7: =Délais!AT7 -> 0 | AU7: =Délais!AU7 -> 0 | AV7: =Délais!AV7 -> 0 | AW7: =Délais!AW7 -> 0 | AX7: =Délais!AX7 -> 0 | AY7: =Délais!AY7 -> 0 | AZ7: =Délais!AZ7 -> 0 | BA7: =Délais!BA7 -> 0 | BB7: =Délais!BB7 -> 0 | BC7: =Délais!BC7 -> 0 | BD7: =Délais!BD7 -> 0 | BE7: =Délais!BE7 -> 0 | BF7: =Délais!BF7 -> 0 | BG7: =Délais!BG7 -> 0 | BH7: =Délais!BH7 -> 0 | BI7: =Délais!BI7 -> 0 | BJ7: =Délais!BJ7 -> 0 | BK7: =Délais!BK7 -> 0 | BL7: =Délais!BL7 -> 0 | BM7: =Délais!BM7 -> 0
C9: Timing | D9: Délais
C10: Calendar Year | D10: Année civile | E10: Num# | J10: =Délais!J10 -> 2021 | K10: =Délais!K10 -> 2022 | L10: =Délais!L10 -> 2023 | M10: =Délais!M10 -> 2024 | N10: =Délais!N10 -> 2025 | O10: =Délais!O10 -> 2026 | P10: =Délais!P10 -> 2027 | Q10: =Délais!Q10 -> 2028 | R10: =Délais!R10 -> 2029 | S10: =Délais!S10 -> 2030 | T10: =Délais!T10 -> 2031 | U10: =Délais!U10 -> 2032 | V10: =Délais!V10 -> 2033 | W10: =Délais!W10 -> 2034 | X10: =Délais!X10 -> 2035 | Y10: =Délais!Y10 -> 2036 | Z10: =Délais!Z10 -> 2037 | AA10: =Délais!AA10 -> 2038 | AB10: =Délais!AB10 -> 2039 | AC10: =Délais!AC10 -> 2040 | AD10: =Délais!AD10 -> 2041 | AE10: =Délais!AE10 -> 2042 | AF10: =Délais!AF10 -> 2043 | AG10: =Délais!AG10 -> 2044 | AH10: =Délais!AH10 -> 2045 | AI10: =Délais!AI10 -> 2046 | AJ10: =Délais!AJ10 -> 2047 | AK10: =Délais!AK10 -> 2048 | AL10: =Délais!AL10 -> 2049 | AM10: =Délais!AM10 -> 2050 | AN10: =Délais!AN10 -> 2051 | AO10: =Délais!AO10 -> 2052 | AP10: =Délais!AP10 -> 2053 | AQ10: =Délais!AQ10 -> 2054 | AR10: =Délais!AR10 -> 2055 | AS10: =Délais!AS10 -> 2056 | AT10: =Délais!AT10 -> 2057 | AU10: =Délais!AU10 -> 2058 | AV10: =Délais!AV10 -> 2059 | AW10: =Délais!AW10 -> 2060 | AX10: =Délais!AX10 -> 2061 | AY10: =Délais!AY10 -> 2062 | AZ10: =Délais!AZ10 -> 2063 | BA10: =Délais!BA10 -> 2064 | BB10: =Délais!BB10 -> 2065 | BC10: =Délais!BC10 -> 2066 | BD10: =Délais!BD10 -> 2067 | BE10: =Délais!BE10 -> 2068 | BF10: =Délais!BF10 -> 2069 | BG10: =Délais!BG10 -> 2070 | BH10: =Délais!BH10 -> 2071 | BI10: =Délais!BI10 -> 2072 | BJ10: =Délais!BJ10 -> 2073 | BK10: =Délais!BK10 -> 2074 | BL10: =Délais!BL10 -> 2075 | BM10: =Délais!BM10 -> 2076
C12: Construction Period | D12: Période de construction | E12: Num# | J12: =Délais!J13 -> 1 | K12: =Délais!K13 -> 0 | L12: =Délais!L13 -> 0 | M12: =Délais!M13 -> 0 | N12: =Délais!N13 -> 0 | O12: =Délais!O13 -> 0 | P12: =Délais!P13 -> 0 | Q12: =Délais!Q13 -> 0 | R12: =Délais!R13 -> 0 | S12: =Délais!S13 -> 0 | T12: =Délais!T13 -> 0 | U12: =Délais!U13 -> 0 | V12: =Délais!V13 -> 0 | W12: =Délais!W13 -> 0 | X12: =Délais!X13 -> 0 | Y12: =Délais!Y13 -> 0 | Z12: =Délais!Z13 -> 0 | AA12: =Délais!AA13 -> 0 | AB12: =Délais!AB13 -> 0 | AC12: =Délais!AC13 -> 0 | AD12: =Délais!AD13 -> 0 | AE12: =Délais!AE13 -> 0 | AF12: =Délais!AF13 -> 0 | AG12: =Délais!AG13 -> 0 | AH12: =Délais!AH13 -> 0 | AI12: =Délais!AI13 -> 0 | AJ12: =Délais!AJ13 -> 0 | AK12: =Délais!AK13 -> 0 | AL12: =Délais!AL13 -> 0 | AM12: =Délais!AM13 -> 0 | AN12: =Délais!AN13 -> 0 | AO12: =Délais!AO13 -> 0 | AP12: =Délais!AP13 -> 0 | AQ12: =Délais!AQ13 -> 0 | AR12: =Délais!AR13 -> 0 | AS12: =Délais!AS13 -> 0 | AT12: =Délais!AT13 -> 0 | AU12: =Délais!AU13 -> 0 | AV12: =Délais!AV13 -> 0 | AW12: =Délais!AW13 -> 0 | AX12: =Délais!AX13 -> 0 | AY12: =Délais!AY13 -> 0 | AZ12: =Délais!AZ13 -> 0 | BA12: =Délais!BA13 -> 0 | BB12: =Délais!BB13 -> 0 | BC12: =Délais!BC13 -> 0 | BD12: =Délais!BD13 -> 0 | BE12: =Délais!BE13 -> 0 | BF12: =Délais!BF13 -> 0 | BG12: =Délais!BG13 -> 0 | BH12: =Délais!BH13 -> 0 | BI12: =Délais!BI13 -> 0 | BJ12: =Délais!BJ13 -> 0 | BK12: =Délais!BK13 -> 0 | BL12: =Délais!BL13 -> 0 | BM12: =Délais!BM13 -> 0
C13: Operations Period | D13: Période d'exploitation | E13: Num# | J13: =Délais!J14 -> 0 | K13: =Délais!K14 -> 1 | L13: =Délais!L14 -> 2 | M13: =Délais!M14 -> 3 | N13: =Délais!N14 -> 4 | O13: =Délais!O14 -> 5 | P13: =Délais!P14 -> 6 | Q13: =Délais!Q14 -> 7 | R13: =Délais!R14 -> 8 | S13: =Délais!S14 -> 9 | T13: =Délais!T14 -> 10 | U13: =Délais!U14 -> 11 | V13: =Délais!V14 -> 12 | W13: =Délais!W14 -> 13 | X13: =Délais!X14 -> 14 | Y13: =Délais!Y14 -> 15 | Z13: =Délais!Z14 -> 16 | AA13: =Délais!AA14 -> 17 | AB13: =Délais!AB14 -> 18 | AC13: =Délais!AC14 -> 19 | AD13: =Délais!AD14 -> 20 | AE13: =Délais!AE14 -> 0 | AF13: =Délais!AF14 -> 0 | AG13: =Délais!AG14 -> 0 | AH13: =Délais!AH14 -> 0 | AI13: =Délais!AI14 -> 0 | AJ13: =Délais!AJ14 -> 0 | AK13: =Délais!AK14 -> 0 | AL13: =Délais!AL14 -> 0 | AM13: =Délais!AM14 -> 0 | AN13: =Délais!AN14 -> 0 | AO13: =Délais!AO14 -> 0 | AP13: =Délais!AP14 -> 0 | AQ13: =Délais!AQ14 -> 0 | AR13: =Délais!AR14 -> 0 | AS13: =Délais!AS14 -> 0 | AT13: =Délais!AT14 -> 0 | AU13: =Délais!AU14 -> 0 | AV13: =Délais!AV14 -> 0 | AW13: =Délais!AW14 -> 0 | AX13: =Délais!AX14 -> 0 | AY13: =Délais!AY14 -> 0 | AZ13: =Délais!AZ14 -> 0 | BA13: =Délais!BA14 -> 0 | BB13: =Délais!BB14 -> 0 | BC13: =Délais!BC14 -> 0 | BD13: =Délais!BD14 -> 0 | BE13: =Délais!BE14 -> 0 | BF13: =Délais!BF14 -> 0 | BG13: =Délais!BG14 -> 0 | BH13: =Délais!BH14 -> 0 | BI13: =Délais!BI14 -> 0 | BJ13: =Délais!BJ14 -> 0 | BK13: =Délais!BK14 -> 0 | BL13: =Délais!BL14 -> 0 | BM13: =Délais!BM14 -> 0
C15: Cashflow Waterfall (EUR) | D15: Cascade des flux de trésorerie
C16: Revenue | D16: Produits d’exploitation | I16: =SUM(J16:BM16) -> 115310.2618 | J16: =Exploitation!J29 -> 0 | K16: =Exploitation!K29 -> 4490.769059 | L16: =Exploitation!L29 -> 4625.492131 | M16: =Exploitation!M29 -> 4764.256895 | N16: =Exploitation!N29 -> 4907.184602 | O16: =Exploitation!O29 -> 5054.40014 | P16: =Exploitation!P29 -> 5183.427748 | Q16: =Exploitation!Q29 -> 5301.558067 | R16: =Exploitation!R29 -> 5422.380575 | S16: =Exploitation!S29 -> 5545.956629 | T16: =Exploitation!T29 -> 5672.34898 | U16: =Exploitation!U29 -> 5801.621813 | V16: =Exploitation!V29 -> 5933.840774 | W16: =Exploitation!W29 -> 6069.073006 | X16: =Exploitation!X29 -> 6207.38718 | Y16: =Exploitation!Y29 -> 6348.853533 | Z16: =Exploitation!Z29 -> 6493.543905 | AA16: =Exploitation!AA29 -> 6641.531771 | AB16: =Exploitation!AB29 -> 6792.89228 | AC16: =Exploitation!AC29 -> 6947.702295 | AD16: =Exploitation!AD29 -> 7106.04043 | AE16: =Exploitation!AE29 -> 0 | AF16: =Exploitation!AF29 -> 0 | AG16: =Exploitation!AG29 -> 0 | AH16: =Exploitation!AH29 -> 0 | AI16: =Exploitation!AI29 -> 0 | AJ16: =Exploitation!AJ29 -> 0 | AK16: =Exploitation!AK29 -> 0 | AL16: =Exploitation!AL29 -> 0 | AM16: =Exploitation!AM29 -> 0 | AN16: =Exploitation!AN29 -> 0 | AO16: =Exploitation!AO29 -> 0 | AP16: =Exploitation!AP29 -> 0 | AQ16: =Exploitation!AQ29 -> 0 | AR16: =Exploitation!AR29 -> 0 | AS16: =Exploitation!AS29 -> 0 | AT16: =Exploitation!AT29 -> 0 | AU16: =Exploitation!AU29 -> 0 | AV16: =Exploitation!AV29 -> 0 | AW16: =Exploitation!AW29 -> 0 | AX16: =Exploitation!AX29 -> 0 | AY16: =Exploitation!AY29 -> 0 | AZ16: =Exploitation!AZ29 -> 0 | BA16: =Exploitation!BA29 -> 0 | BB16: =Exploitation!BB29 -> 0 | BC16: =Exploitation!BC29 -> 0 | BD16: =Exploitation!BD29 -> 0 | BE16: =Exploitation!BE29 -> 0 | BF16: =Exploitation!BF29 -> 0 | BG16: =Exploitation!BG29 -> 0 | BH16: =Exploitation!BH29 -> 0 | BI16: =Exploitation!BI29 -> 0 | BJ16: =Exploitation!BJ29 -> 0 | BK16: =Exploitation!BK29 -> 0 | BL16: =Exploitation!BL29 -> 0 | BM16: =Exploitation!BM29 -> 0
C18: Opex nominal | D18: Coûts d’exploitation (valeur nominale)
C19: Fixed | D19: Fixes | E19: DT | I19: =SUM(J19:BM19) -> -9019.008311 | J19: =-Exploitation!J72 -> 0 | K19: =-Exploitation!K72 -> -220 | L19: =-Exploitation!L72 -> -235.4 | M19: =-Exploitation!M72 -> -251.878 | N19: =-Exploitation!N72 -> -269.50946 | O19: =-Exploitation!O72 -> -288.3751222 | P19: =-Exploitation!P72 -> -308.5613808 | Q19: =-Exploitation!Q72 -> -330.1606774 | R19: =-Exploitation!R72 -> -353.2719248 | S19: =-Exploitation!S72 -> -378.0009596 | T19: =-Exploitation!T72 -> -404.4610267 | U19: =-Exploitation!U72 -> -432.7732986 | V19: =-Exploitation!V72 -> -463.0674295 | W19: =-Exploitation!W72 -> -495.4821496 | X19: =-Exploitation!X72 -> -530.1659 | Y19: =-Exploitation!Y72 -> -567.277513 | Z19: =-Exploitation!Z72 -> -606.986939 | AA19: =-Exploitation!AA72 -> -649.4760247 | AB19: =-Exploitation!AB72 -> -694.9393464 | AC19: =-Exploitation!AC72 -> -743.5851007 | AD19: =-Exploitation!AD72 -> -795.6360577 | AE19: =-Exploitation!AE72 -> 0 | AF19: =-Exploitation!AF72 -> 0 | AG19: =-Exploitation!AG72 -> 0 | AH19: =-Exploitation!AH72 -> 0 | AI19: =-Exploitation!AI72 -> 0 | AJ19: =-Exploitation!AJ72 -> 0 | AK19: =-Exploitation!AK72 -> 0 | AL19: =-Exploitation!AL72 -> 0 | AM19: =-Exploitation!AM72 -> 0 | AN19: =-Exploitation!AN72 -> 0 | AO19: =-Exploitation!AO72 -> 0 | AP19: =-Exploitation!AP72 -> 0 | AQ19: =-Exploitation!AQ72 -> 0 | AR19: =-Exploitation!AR72 -> 0 | AS19: =-Exploitation!AS72 -> 0 | AT19: =-Exploitation!AT72 -> 0 | AU19: =-Exploitation!AU72 -> 0 | AV19: =-Exploitation!AV72 -> 0 | AW19: =-Exploitation!AW72 -> 0 | AX19: =-Exploitation!AX72 -> 0 | AY19: =-Exploitation!AY72 -> 0 | AZ19: =-Exploitation!AZ72 -> 0 | BA19: =-Exploitation!BA72 -> 0 | BB19: =-Exploitation!BB72 -> 0 | BC19: =-Exploitation!BC72 -> 0 | BD19: =-Exploitation!BD72 -> 0 | BE19: =-Exploitation!BE72 -> 0 | BF19: =-Exploitation!BF72 -> 0 | BG19: =-Exploitation!BG72 -> 0 | BH19: =-Exploitation!BH72 -> 0 | BI19: =-Exploitation!BI72 -> 0 | BJ19: =-Exploitation!BJ72 -> 0 | BK19: =-Exploitation!BK72 -> 0 | BL19: =-Exploitation!BL72 -> 0 | BM19: =-Exploitation!BM72 -> 0
C20: Variable | D20: Variables | E20: DT | I20: =SUM(J20:BM20) -> 0 | J20: =-Exploitation!J73 -> 0 | K20: =-Exploitation!K73 -> 0 | L20: =-Exploitation!L73 -> 0 | M20: =-Exploitation!M73 -> 0 | N20: =-Exploitation!N73 -> 0 | O20: =-Exploitation!O73 -> 0 | P20: =-Exploitation!P73 -> 0 | Q20: =-Exploitation!Q73 -> 0 | R20: =-Exploitation!R73 -> 0 | S20: =-Exploitation!S73 -> 0 | T20: =-Exploitation!T73 -> 0 | U20: =-Exploitation!U73 -> 0 | V20: =-Exploitation!V73 -> 0 | W20: =-Exploitation!W73 -> 0 | X20: =-Exploitation!X73 -> 0 | Y20: =-Exploitation!Y73 -> 0 | Z20: =-Exploitation!Z73 -> 0 | AA20: =-Exploitation!AA73 -> 0 | AB20: =-Exploitation!AB73 -> 0 | AC20: =-Exploitation!AC73 -> 0 | AD20: =-Exploitation!AD73 -> 0 | AE20: =-Exploitation!AE73 -> 0 | AF20: =-Exploitation!AF73 -> 0 | AG20: =-Exploitation!AG73 -> 0 | AH20: =-Exploitation!AH73 -> 0 | AI20: =-Exploitation!AI73 -> 0 | AJ20: =-Exploitation!AJ73 -> 0 | AK20: =-Exploitation!AK73 -> 0 | AL20: =-Exploitation!AL73 -> 0 | AM20: =-Exploitation!AM73 -> 0 | AN20: =-Exploitation!AN73 -> 0 | AO20: =-Exploitation!AO73 -> 0 | AP20: =-Exploitation!AP73 -> 0 | AQ20: =-Exploitation!AQ73 -> 0 | AR20: =-Exploitation!AR73 -> 0 | AS20: =-Exploitation!AS73 -> 0 | AT20: =-Exploitation!AT73 -> 0 | AU20: =-Exploitation!AU73 -> 0 | AV20: =-Exploitation!AV73 -> 0 | AW20: =-Exploitation!AW73 -> 0 | AX20: =-Exploitation!AX73 -> 0 | AY20: =-Exploitation!AY73 -> 0 | AZ20: =-Exploitation!AZ73 -> 0 | BA20: =-Exploitation!BA73 -> 0 | BB20: =-Exploitation!BB73 -> 0 | BC20: =-Exploitation!BC73 -> 0 | BD20: =-Exploitation!BD73 -> 0 | BE20: =-Exploitation!BE73 -> 0 | BF20: =-Exploitation!BF73 -> 0 | BG20: =-Exploitation!BG73 -> 0 | BH20: =-Exploitation!BH73 -> 0 | BI20: =-Exploitation!BI73 -> 0 | BJ20: =-Exploitation!BJ73 -> 0 | BK20: =-Exploitation!BK73 -> 0 | BL20: =-Exploitation!BL73 -> 0 | BM20: =-Exploitation!BM73 -> 0
C21: Total | D21: Total | E21: DT | I21: =SUM(J21:BM21) -> -9019.008311 | J21: =SUM(J19:J20) -> 0 | K21: =SUM(K19:K20) -> -220 | L21: -235.4 | M21: -251.878 | N21: -269.50946 | O21: -288.3751222 | P21: -308.5613808 | Q21: -330.1606774 | R21: -353.2719248 | S21: -378.0009596 | T21: -404.4610267 | U21: -432.7732986 | V21: -463.0674295 | W21: -495.4821496 | X21: -530.1659 | Y21: -567.277513 | Z21: -606.986939 | AA21: -649.4760247 | AB21: -694.9393464 | AC21: -743.5851007 | AD21: -795.6360577 | AE21: 0 | AF21: 0 | AG21: 0 | AH21: 0 | AI21: 0 | AJ21: 0 | AK21: 0 | AL21: 0 | AM21: 0 | AN21: 0 | AO21: 0 | AP21: 0 | AQ21: 0 | AR21: 0 | AS21: 0 | AT21: 0 | AU21: 0 | AV21: 0 | AW21: 0 | AX21: 0 | AY21: 0 | AZ21: 0 | BA21: 0 | BB21: 0 | BC21: 0 | BD21: 0 | BE21: 0 | BF21: 0 | BG21: 0 | BH21: 0 | BI21: 0 | BJ21: 0 | BK21: 0 | BL21: 0 | BM21: 0
C23: Capex | D23: Dépenses en Capital
C24: Applied System Cost | D24: Coût de l'installation appliqué | E24: DT | I24: =SUM(J24:BM24) -> -22000 | J24: =-Construction!J18 -> -22000 | K24: =-Construction!K18 -> 0 | L24: =-Construction!L18 -> 0 | M24: =-Construction!M18 -> 0 | N24: =-Construction!N18 -> 0 | O24: =-Construction!O18 -> 0 | P24: =-Construction!P18 -> 0 | Q24: =-Construction!Q18 -> 0 | R24: =-Construction!R18 -> 0 | S24: =-Construction!S18 -> 0 | T24: =-Construction!T18 -> 0 | U24: =-Construction!U18 -> 0 | V24: =-Construction!V18 -> 0 | W24: =-Construction!W18 -> 0 | X24: =-Construction!X18 -> 0 | Y24: =-Construction!Y18 -> 0 | Z24: =-Construction!Z18 -> 0 | AA24: =-Construction!AA18 -> 0 | AB24: =-Construction!AB18 -> 0 | AC24: =-Construction!AC18 -> 0 | AD24: =-Construction!AD18 -> 0 | AE24: =-Construction!AE18 -> 0 | AF24: =-Construction!AF18 -> 0 | AG24: =-Construction!AG18 -> 0 | AH24: =-Construction!AH18 -> 0 | AI24: =-Construction!AI18 -> 0 | AJ24: =-Construction!AJ18 -> 0 | AK24: =-Construction!AK18 -> 0 | AL24: =-Construction!AL18 -> 0 | AM24: =-Construction!AM18 -> 0 | AN24: =-Construction!AN18 -> 0 | AO24: =-Construction!AO18 -> 0 | AP24: =-Construction!AP18 -> 0 | AQ24: =-Construction!AQ18 -> 0 | AR24: =-Construction!AR18 -> 0 | AS24: =-Construction!AS18 -> 0 | AT24: =-Construction!AT18 -> 0 | AU24: =-Construction!AU18 -> 0 | AV24: =-Construction!AV18 -> 0 | AW24: =-Construction!AW18 -> 0 | AX24: =-Construction!AX18 -> 0 | AY24: =-Construction!AY18 -> 0 | AZ24: =-Construction!AZ18 -> 0 | BA24: =-Construction!BA18 -> 0 | BB24: =-Construction!BB18 -> 0 | BC24: =-Construction!BC18 -> 0 | BD24: =-Construction!BD18 -> 0 | BE24: =-Construction!BE18 -> 0 | BF24: =-Construction!BF18 -> 0 | BG24: =-Construction!BG18 -> 0 | BH24: =-Construction!BH18 -> 0 | BI24: =-Construction!BI18 -> 0 | BJ24: =-Construction!BJ18 -> 0 | BK24: =-Construction!BK18 -> 0 | BL24: =-Construction!BL18 -> 0 | BM24: =-Construction!BM18 -> 0
C25: Interest during Construction | D25: Intérêts intercalaires | E25: DT | I25: =SUM(J25:BM25) -> 0 | J25: =-Construction!J22 -> 0 | K25: =-Construction!K22 -> 0 | L25: =-Construction!L22 -> 0 | M25: =-Construction!M22 -> 0 | N25: =-Construction!N22 -> 0 | O25: =-Construction!O22 -> 0 | P25: =-Construction!P22 -> 0 | Q25: =-Construction!Q22 -> 0 | R25: =-Construction!R22 -> 0 | S25: =-Construction!S22 -> 0 | T25: =-Construction!T22 -> 0 | U25: =-Construction!U22 -> 0 | V25: =-Construction!V22 -> 0 | W25: =-Construction!W22 -> 0 | X25: =-Construction!X22 -> 0 | Y25: =-Construction!Y22 -> 0 | Z25: =-Construction!Z22 -> 0 | AA25: =-Construction!AA22 -> 0 | AB25: =-Construction!AB22 -> 0 | AC25: =-Construction!AC22 -> 0 | AD25: =-Construction!AD22 -> 0 | AE25: =-Construction!AE22 -> 0 | AF25: =-Construction!AF22 -> 0 | AG25: =-Construction!AG22 -> 0 | AH25: =-Construction!AH22 -> 0 | AI25: =-Construction!AI22 -> 0 | AJ25: =-Construction!AJ22 -> 0 | AK25: =-Construction!AK22 -> 0 | AL25: =-Construction!AL22 -> 0 | AM25: =-Construction!AM22 -> 0 | AN25: =-Construction!AN22 -> 0 | AO25: =-Construction!AO22 -> 0 | AP25: =-Construction!AP22 -> 0 | AQ25: =-Construction!AQ22 -> 0 | AR25: =-Construction!AR22 -> 0 | AS25: =-Construction!AS22 -> 0 | AT25: =-Construction!AT22 -> 0 | AU25: =-Construction!AU22 -> 0 | AV25: =-Construction!AV22 -> 0 | AW25: =-Construction!AW22 -> 0 | AX25: =-Construction!AX22 -> 0 | AY25: =-Construction!AY22 -> 0 | AZ25: =-Construction!AZ22 -> 0 | BA25: =-Construction!BA22 -> 0 | BB25: =-Construction!BB22 -> 0 | BC25: =-Construction!BC22 -> 0 | BD25: =-Construction!BD22 -> 0 | BE25: =-Construction!BE22 -> 0 | BF25: =-Construction!BF22 -> 0 | BG25: =-Construction!BG22 -> 0 | BH25: =-Construction!BH22 -> 0 | BI25: =-Construction!BI22 -> 0 | BJ25: =-Construction!BJ22 -> 0 | BK25: =-Construction!BK22 -> 0 | BL25: =-Construction!BL22 -> 0 | BM25: =-Construction!BM22 -> 0
C26: Financing fees | D26: Frais de financement | E26: DT | I26: -165.4445205 | J26: =-Construction!J23 -> -165.4445205 | K26: =-Construction!K23 -> 0 | L26: =-Construction!L23 -> 0 | M26: =-Construction!M23 -> 0 | N26: =-Construction!N23 -> 0 | O26: =-Construction!O23 -> 0 | P26: =-Construction!P23 -> 0 | Q26: =-Construction!Q23 -> 0 | R26: =-Construction!R23 -> 0 | S26: =-Construction!S23 -> 0 | T26: =-Construction!T23 -> 0 | U26: =-Construction!U23 -> 0 | V26: =-Construction!V23 -> 0 | W26: =-Construction!W23 -> 0 | X26: =-Construction!X23 -> 0 | Y26: =-Construction!Y23 -> 0 | Z26: =-Construction!Z23 -> 0 | AA26: =-Construction!AA23 -> 0 | AB26: =-Construction!AB23 -> 0 | AC26: =-Construction!AC23 -> 0 | AD26: =-Construction!AD23 -> 0 | AE26: =-Construction!AE23 -> 0 | AF26: =-Construction!AF23 -> 0 | AG26: =-Construction!AG23 -> 0 | AH26: =-Construction!AH23 -> 0 | AI26: =-Construction!AI23 -> 0 | AJ26: =-Construction!AJ23 -> 0 | AK26: =-Construction!AK23 -> 0 | AL26: =-Construction!AL23 -> 0 | AM26: =-Construction!AM23 -> 0 | AN26: =-Construction!AN23 -> 0 | AO26: =-Construction!AO23 -> 0 | AP26: =-Construction!AP23 -> 0 | AQ26: =-Construction!AQ23 -> 0 | AR26: =-Construction!AR23 -> 0 | AS26: =-Construction!AS23 -> 0 | AT26: =-Construction!AT23 -> 0 | AU26: =-Construction!AU23 -> 0 | AV26: =-Construction!AV23 -> 0 | AW26: =-Construction!AW23 -> 0 | AX26: =-Construction!AX23 -> 0 | AY26: =-Construction!AY23 -> 0 | AZ26: =-Construction!AZ23 -> 0 | BA26: =-Construction!BA23 -> 0 | BB26: =-Construction!BB23 -> 0 | BC26: =-Construction!BC23 -> 0 | BD26: =-Construction!BD23 -> 0 | BE26: =-Construction!BE23 -> 0 | BF26: =-Construction!BF23 -> 0 | BG26: =-Construction!BG23 -> 0 | BH26: =-Construction!BH23 -> 0 | BI26: =-Construction!BI23 -> 0 | BJ26: =-Construction!BJ23 -> 0 | BK26: =-Construction!BK23 -> 0 | BL26: =-Construction!BL23 -> 0 | BM26: =-Construction!BM23 -> 0
C27: Total | D27: Total | E27: DT | I27: -22165.44452 | J27: =SUM(J24:J26) -> -22165.44452 | K27: 0 | L27: 0 | M27: 0 | N27: 0 | O27: 0 | P27: 0 | Q27: 0 | R27: 0 | S27: 0 | T27: 0 | U27: 0 | V27: 0 | W27: 0 | X27: 0 | Y27: 0 | Z27: 0 | AA27: 0 | AB27: 0 | AC27: 0 | AD27: 0 | AE27: 0 | AF27: 0 | AG27: 0 | AH27: 0 | AI27: 0 | AJ27: 0 | AK27: 0 | AL27: 0 | AM27: 0 | AN27: 0 | AO27: 0 | AP27: =SUM(AP24:AP26) -> 0 | AQ27: 0 | AR27: 0 | AS27: 0 | AT27: 0 | AU27: 0 | AV27: 0 | AW27: 0 | AX27: 0 | AY27: 0 | AZ27: 0 | BA27: 0 | BB27: 0 | BC27: 0 | BD27: 0 | BE27: 0 | BF27: 0 | BG27: 0 | BH27: 0 | BI27: 0 | BJ27: 0 | BK27: 0 | BL27: 0 | BM27: 0
C29: Funding | D29: Financement
C30: Initial Equity | D30: Capital initial | E30: DT | I30: =SUM(J30:BM30) -> 6600 | J30: =-Construction!J27 -> 6600 | K30: =-Construction!K27 -> 0 | L30: =-Construction!L27 -> 0 | M30: =-Construction!M27 -> 0 | N30: =-Construction!N27 -> 0 | O30: =-Construction!O27 -> 0 | P30: =-Construction!P27 -> 0 | Q30: =-Construction!Q27 -> 0 | R30: =-Construction!R27 -> 0 | S30: =-Construction!S27 -> 0 | T30: =-Construction!T27 -> 0 | U30: =-Construction!U27 -> 0 | V30: =-Construction!V27 -> 0 | W30: =-Construction!W27 -> 0 | X30: =-Construction!X27 -> 0 | Y30: =-Construction!Y27 -> 0 | Z30: =-Construction!Z27 -> 0 | AA30: =-Construction!AA27 -> 0 | AB30: =-Construction!AB27 -> 0 | AC30: =-Construction!AC27 -> 0 | AD30: =-Construction!AD27 -> 0 | AE30: =-Construction!AE27 -> 0 | AF30: =-Construction!AF27 -> 0 | AG30: =-Construction!AG27 -> 0 | AH30: =-Construction!AH27 -> 0 | AI30: =-Construction!AI27 -> 0 | AJ30: =-Construction!AJ27 -> 0 | AK30: =-Construction!AK27 -> 0 | AL30: =-Construction!AL27 -> 0 | AM30: =-Construction!AM27 -> 0 | AN30: =-Construction!AN27 -> 0 | AO30: =-Construction!AO27 -> 0 | AP30: =-Construction!AP27 -> 0 | AQ30: =-Construction!AQ27 -> 0 | AR30: =-Construction!AR27 -> 0 | AS30: =-Construction!AS27 -> 0 | AT30: =-Construction!AT27 -> 0 | AU30: =-Construction!AU27 -> 0 | AV30: =-Construction!AV27 -> 0 | AW30: =-Construction!AW27 -> 0 | AX30: =-Construction!AX27 -> 0 | AY30: =-Construction!AY27 -> 0 | AZ30: =-Construction!AZ27 -> 0 | BA30: =-Construction!BA27 -> 0 | BB30: =-Construction!BB27 -> 0 | BC30: =-Construction!BC27 -> 0 | BD30: =-Construction!BD27 -> 0 | BE30: =-Construction!BE27 -> 0 | BF30: =-Construction!BF27 -> 0 | BG30: =-Construction!BG27 -> 0 | BH30: =-Construction!BH27 -> 0 | BI30: =-Construction!BI27 -> 0 | BJ30: =-Construction!BJ27 -> 0 | BK30: =-Construction!BK27 -> 0 | BL30: =-Construction!BL27 -> 0 | BM30: =-Construction!BM27 -> 0
C31: Debt | D31: Dette | E31: DT | I31: 15400 | J31: =-Construction!J30 -> 15400 | K31: =-Construction!K30 -> 0 | L31: =-Construction!L30 -> 0 | M31: =-Construction!M30 -> 0 | N31: =-Construction!N30 -> 0 | O31: =-Construction!O30 -> 0 | P31: =-Construction!P30 -> 0 | Q31: =-Construction!Q30 -> 0 | R31: =-Construction!R30 -> 0 | S31: =-Construction!S30 -> 0 | T31: =-Construction!T30 -> 0 | U31: =-Construction!U30 -> 0 | V31: =-Construction!V30 -> 0 | W31: =-Construction!W30 -> 0 | X31: =-Construction!X30 -> 0 | Y31: =-Construction!Y30 -> 0 | Z31: =-Construction!Z30 -> 0 | AA31: =-Construction!AA30 -> 0 | AB31: =-Construction!AB30 -> 0 | AC31: =-Construction!AC30 -> 0 | AD31: =-Construction!AD30 -> 0 | AE31: =-Construction!AE30 -> 0 | AF31: =-Construction!AF30 -> 0 | AG31: =-Construction!AG30 -> 0 | AH31: =-Construction!AH30 -> 0 | AI31: =-Construction!AI30 -> 0 | AJ31: =-Construction!AJ30 -> 0 | AK31: =-Construction!AK30 -> 0 | AL31: =-Construction!AL30 -> 0 | AM31: =-Construction!AM30 -> 0 | AN31: =-Construction!AN30 -> 0 | AO31: =-Construction!AO30 -> 0 | AP31: =-Construction!AP30 -> 0 | AQ31: =-Construction!AQ30 -> 0 | AR31: =-Construction!AR30 -> 0 | AS31: =-Construction!AS30 -> 0 | AT31: =-Construction!AT30 -> 0 | AU31: =-Construction!AU30 -> 0 | AV31: =-Construction!AV30 -> 0 | AW31: =-Construction!AW30 -> 0 | AX31: =-Construction!AX30 -> 0 | AY31: =-Construction!AY30 -> 0 | AZ31: =-Construction!AZ30 -> 0 | BA31: =-Construction!BA30 -> 0 | BB31: =-Construction!BB30 -> 0 | BC31: =-Construction!BC30 -> 0 | BD31: =-Construction!BD30 -> 0 | BE31: =-Construction!BE30 -> 0 | BF31: =-Construction!BF30 -> 0 | BG31: =-Construction!BG30 -> 0 | BH31: =-Construction!BH30 -> 0 | BI31: =-Construction!BI30 -> 0 | BJ31: =-Construction!BJ30 -> 0 | BK31: =-Construction!BK30 -> 0 | BL31: =-Construction!BL30 -> 0 | BM31: =-Construction!BM30 -> 0
C32: Additional Equity | D32: Capitaux propres supplémentaires | E32: DT | I32: 165.444521 | J32: =-Construction!J33 -> 165.444521 | K32: =-Construction!K33 -> 0 | L32: =-Construction!L33 -> 0 | M32: =-Construction!M33 -> 0 | N32: =-Construction!N33 -> 0 | O32: =-Construction!O33 -> 0 | P32: =-Construction!P33 -> 0 | Q32: =-Construction!Q33 -> 0 | R32: =-Construction!R33 -> 0 | S32: =-Construction!S33 -> 0 | T32: =-Construction!T33 -> 0 | U32: =-Construction!U33 -> 0 | V32: =-Construction!V33 -> 0 | W32: =-Construction!W33 -> 0 | X32: =-Construction!X33 -> 0 | Y32: =-Construction!Y33 -> 0 | Z32: =-Construction!Z33 -> 0 | AA32: =-Construction!AA33 -> 0 | AB32: =-Construction!AB33 -> 0 | AC32: =-Construction!AC33 -> 0 | AD32: =-Construction!AD33 -> 0 | AE32: =-Construction!AE33 -> 0 | AF32: =-Construction!AF33 -> 0 | AG32: =-Construction!AG33 -> 0 | AH32: =-Construction!AH33 -> 0 | AI32: =-Construction!AI33 -> 0 | AJ32: =-Construction!AJ33 -> 0 | AK32: =-Construction!AK33 -> 0 | AL32: =-Construction!AL33 -> 0 | AM32: =-Construction!AM33 -> 0 | AN32: =-Construction!AN33 -> 0 | AO32: =-Construction!AO33 -> 0 | AP32: =-Construction!AP33 -> 0 | AQ32: =-Construction!AQ33 -> 0 | AR32: =-Construction!AR33 -> 0 | AS32: =-Construction!AS33 -> 0 | AT32: =-Construction!AT33 -> 0 | AU32: =-Construction!AU33 -> 0 | AV32: =-Construction!AV33 -> 0 | AW32: =-Construction!AW33 -> 0 | AX32: =-Construction!AX33 -> 0 | AY32: =-Construction!AY33 -> 0 | AZ32: =-Construction!AZ33 -> 0 | BA32: =-Construction!BA33 -> 0 | BB32: =-Construction!BB33 -> 0 | BC32: =-Construction!BC33 -> 0 | BD32: =-Construction!BD33 -> 0 | BE32: =-Construction!BE33 -> 0 | BF32: =-Construction!BF33 -> 0 | BG32: =-Construction!BG33 -> 0 | BH32: =-Construction!BH33 -> 0 | BI32: =-Construction!BI33 -> 0 | BJ32: =-Construction!BJ33 -> 0 | BK32: =-Construction!BK33 -> 0 | BL32: =-Construction!BL33 -> 0 | BM32: =-Construction!BM33 -> 0
C33: Total | D33: Total | E33: DT | I33: 22165.44452 | J33: =SUM(J30:J32) -> 22165.44452 | K33: 0 | L33: 0 | M33: 0 | N33: 0 | O33: 0 | P33: 0 | Q33: 0 | R33: 0 | S33: 0 | T33: 0 | U33: 0 | V33: 0 | W33: 0 | X33: 0 | Y33: 0 | Z33: 0 | AA33: 0 | AB33: 0 | AC33: 0 | AD33: 0 | AE33: 0 | AF33: 0 | AG33: 0 | AH33: 0 | AI33: 0 | AJ33: 0 | AK33: 0 | AL33: 0 | AM33: 0 | AN33: 0 | AO33: 0 | AP33: =SUM(AP30:AP32) -> 0 | AQ33: 0 | AR33: 0 | AS33: 0 | AT33: 0 | AU33: 0 | AV33: 0 | AW33: 0 | AX33: 0 | AY33: 0 | AZ33: 0 | BA33: 0 | BB33: 0 | BC33: 0 | BD33: 0 | BE33: 0 | BF33: 0 | BG33: 0 | BH33: 0 | BI33: 0 | BJ33: 0 | BK33: 0 | BL33: 0 | BM33: 0
C35: Ongoing CapEx nominal | D35: Dépenses en immobilisations permanentes | E35: DT | I35: -30000 | J35: =-Exploitation!J80 -> 0 | K35: =-Exploitation!K80 -> 0 | L35: =-Exploitation!L80 -> 0 | M35: =-Exploitation!M80 -> 0 | N35: =-Exploitation!N80 -> 0 | O35: =-Exploitation!O80 -> 0 | P35: =-Exploitation!P80 -> 0 | Q35: =-Exploitation!Q80 -> 0 | R35: =-Exploitation!R80 -> 0 | S35: =-Exploitation!S80 -> 0 | T35: =-Exploitation!T80 -> -30000 | U35: =-Exploitation!U80 -> 0 | V35: =-Exploitation!V80 -> 0 | W35: =-Exploitation!W80 -> 0 | X35: =-Exploitation!X80 -> 0 | Y35: =-Exploitation!Y80 -> 0 | Z35: =-Exploitation!Z80 -> 0 | AA35: =-Exploitation!AA80 -> 0 | AB35: =-Exploitation!AB80 -> 0 | AC35: =-Exploitation!AC80 -> 0 | AD35: =-Exploitation!AD80 -> 0 | AE35: =-Exploitation!AE80 -> 0 | AF35: =-Exploitation!AF80 -> 0 | AG35: =-Exploitation!AG80 -> 0 | AH35: =-Exploitation!AH80 -> 0 | AI35: =-Exploitation!AI80 -> 0 | AJ35: =-Exploitation!AJ80 -> 0 | AK35: =-Exploitation!AK80 -> 0 | AL35: =-Exploitation!AL80 -> 0 | AM35: =-Exploitation!AM80 -> 0 | AN35: =-Exploitation!AN80 -> 0 | AO35: =-Exploitation!AO80 -> 0 | AP35: =-Exploitation!AP80 -> 0 | AQ35: =-Exploitation!AQ80 -> 0 | AR35: =-Exploitation!AR80 -> 0 | AS35: =-Exploitation!AS80 -> 0 | AT35: =-Exploitation!AT80 -> 0 | AU35: =-Exploitation!AU80 -> 0 | AV35: =-Exploitation!AV80 -> 0 | AW35: =-Exploitation!AW80 -> 0 | AX35: =-Exploitation!AX80 -> 0 | AY35: =-Exploitation!AY80 -> 0 | AZ35: =-Exploitation!AZ80 -> 0 | BA35: =-Exploitation!BA80 -> 0 | BB35: =-Exploitation!BB80 -> 0 | BC35: =-Exploitation!BC80 -> 0 | BD35: =-Exploitation!BD80 -> 0 | BE35: =-Exploitation!BE80 -> 0 | BF35: =-Exploitation!BF80 -> 0 | BG35: =-Exploitation!BG80 -> 0 | BH35: =-Exploitation!BH80 -> 0 | BI35: =-Exploitation!BI80 -> 0 | BJ35: =-Exploitation!BJ80 -> 0 | BK35: =-Exploitation!BK80 -> 0 | BL35: =-Exploitation!BL80 -> 0 | BM35: =-Exploitation!BM80 -> 0
C37: Tax | D37: Taxes | I37: 0
C39: CFADS | D39: Flux de trésorerie disponibles au service de la dette | I39: 76291.2535 | J39: =ROUND(J16+J21+J27+J33+J35+J37,6) -> 0 | K39: 4270.769059 | L39: 4390.092131 | M39: 4512.378895 | N39: 4637.675142 | O39: 4766.025018 | P39: 4874.866368 | Q39: 4971.397389 | R39: 5069.10865 | S39: 5167.955669 | T39: -24732.11205 | U39: 5368.848515 | V39: 5470.773345 | W39: 5573.590856 | X39: 5677.221279 | Y39: 5781.57602 | Z39: 5886.556966 | AA39: 5992.055746 | AB39: 6097.952934 | AC39: 6204.117194 | AD39: 6310.404373 | AE39: 0 | AF39: 0 | AG39: 0 | AH39: 0 | AI39: 0 | AJ39: 0 | AK39: 0 | AL39: 0 | AM39: 0 | AN39: 0 | AO39: 0 | AP39: =ROUND(AP16+AP21+AP27+AP33+AP35+AP37,6) -> 0 | AQ39: 0 | AR39: 0 | AS39: 0 | AT39: 0 | AU39: 0 | AV39: 0 | AW39: 0 | AX39: 0 | AY39: 0 | AZ39: 0 | BA39: 0 | BB39: 0 | BC39: 0 | BD39: 0 | BE39: 0 | BF39: 0 | BG39: 0 | BH39: 0 | BI39: 0 | BJ39: 0 | BK39: 0 | BL39: 0 | BM39: 0
C41: Debt Service | D41: Service de la dette
C42: Interest | D42: Interêt | E42: DT | I42: =SUM(J42:BM42) -> -5696.59644 | J42: =-Financement!J32 -> 0 | K42: =-Financement!K32 -> -1771 | L42: =-Financement!L32 -> -1489.443282 | M42: =-Financement!M32 -> -1175.507541 | N42: =-Financement!N32 -> -825.4691892 | O42: =-Financement!O32 -> -435.1764289 | P42: =-Financement!P32 -> 0 | Q42: =-Financement!Q32 -> 0 | R42: =-Financement!R32 -> 0 | S42: =-Financement!S32 -> 0 | T42: =-Financement!T32 -> 0 | U42: =-Financement!U32 -> 0 | V42: =-Financement!V32 -> 0 | W42: =-Financement!W32 -> 0 | X42: =-Financement!X32 -> 0 | Y42: =-Financement!Y32 -> 0 | Z42: =-Financement!Z32 -> 0 | AA42: =-Financement!AA32 -> 0 | AB42: =-Financement!AB32 -> 0 | AC42: =-Financement!AC32 -> 0 | AD42: =-Financement!AD32 -> 0 | AE42: =-Financement!AE32 -> 0 | AF42: =-Financement!AF32 -> 0 | AG42: =-Financement!AG32 -> 0 | AH42: =-Financement!AH32 -> 0 | AI42: =-Financement!AI32 -> 0 | AJ42: =-Financement!AJ32 -> 0 | AK42: =-Financement!AK32 -> 0 | AL42: =-Financement!AL32 -> 0 | AM42: =-Financement!AM32 -> 0 | AN42: =-Financement!AN32 -> 0 | AO42: =-Financement!AO32 -> 0 | AP42: =-Financement!AP32 -> 0 | AQ42: =-Financement!AQ32 -> 0 | AR42: =-Financement!AR32 -> 0 | AS42: =-Financement!AS32 -> 0 | AT42: =-Financement!AT32 -> 0 | AU42: =-Financement!AU32 -> 0 | AV42: =-Financement!AV32 -> 0 | AW42: =-Financement!AW32 -> 0 | AX42: =-Financement!AX32 -> 0 | AY42: =-Financement!AY32 -> 0 | AZ42: =-Financement!AZ32 -> 0 | BA42: =-Financement!BA32 -> 0 | BB42: =-Financement!BB32 -> 0 | BC42: =-Financement!BC32 -> 0 | BD42: =-Financement!BD32 -> 0 | BE42: =-Financement!BE32 -> 0 | BF42: =-Financement!BF32 -> 0 | BG42: =-Financement!BG32 -> 0 | BH42: =-Financement!BH32 -> 0 | BI42: =-Financement!BI32 -> 0 | BJ42: =-Financement!BJ32 -> 0 | BK42: =-Financement!BK32 -> 0 | BL42: =-Financement!BL32 -> 0 | BM42: =-Financement!BM32 -> 0
C43: Principal | D43: Principal | E43: DT | I43: =SUM(J43:BM43) -> -15399.99999 | J43: =Financement!J24 -> 0 | K43: =Financement!K24 -> -2448.319288 | L43: =Financement!L24 -> -2729.876006 | M43: =Financement!M24 -> -3043.811746 | N43: =Financement!N24 -> -3393.850095 | O43: =Financement!O24 -> -3784.14286 | P43: =Financement!P24 -> 0 | Q43: =Financement!Q24 -> 0 | R43: =Financement!R24 -> 0 | S43: =Financement!S24 -> 0 | T43: =Financement!T24 -> 0 | U43: =Financement!U24 -> 0 | V43: =Financement!V24 -> 0 | W43: =Financement!W24 -> 0 | X43: =Financement!X24 -> 0 | Y43: =Financement!Y24 -> 0 | Z43: =Financement!Z24 -> 0 | AA43: =Financement!AA24 -> 0 | AB43: =Financement!AB24 -> 0 | AC43: =Financement!AC24 -> 0 | AD43: =Financement!AD24 -> 0 | AE43: =Financement!AE24 -> 0 | AF43: =Financement!AF24 -> 0 | AG43: =Financement!AG24 -> 0 | AH43: =Financement!AH24 -> 0 | AI43: =Financement!AI24 -> 0 | AJ43: =Financement!AJ24 -> 0 | AK43: =Financement!AK24 -> 0 | AL43: =Financement!AL24 -> 0 | AM43: =Financement!AM24 -> 0 | AN43: =Financement!AN24 -> 0 | AO43: =Financement!AO24 -> 0 | AP43: =Financement!AP24 -> 0 | AQ43: =Financement!AQ24 -> 0 | AR43: =Financement!AR24 -> 0 | AS43: =Financement!AS24 -> 0 | AT43: =Financement!AT24 -> 0 | AU43: =Financement!AU24 -> 0 | AV43: =Financement!AV24 -> 0 | AW43: =Financement!AW24 -> 0 | AX43: =Financement!AX24 -> 0 | AY43: =Financement!AY24 -> 0 | AZ43: =Financement!AZ24 -> 0 | BA43: =Financement!BA24 -> 0 | BB43: =Financement!BB24 -> 0 | BC43: =Financement!BC24 -> 0 | BD43: =Financement!BD24 -> 0 | BE43: =Financement!BE24 -> 0 | BF43: =Financement!BF24 -> 0 | BG43: =Financement!BG24 -> 0 | BH43: =Financement!BH24 -> 0 | BI43: =Financement!BI24 -> 0 | BJ43: =Financement!BJ24 -> 0 | BK43: =Financement!BK24 -> 0 | BL43: =Financement!BL24 -> 0 | BM43: =Financement!BM24 -> 0
C44: Total | D44: Total | E44: DT | I44: =SUM(J44:BM44) -> -21096.59644 | J44: =SUM(J42:J43) -> 0 | K44: =SUM(K42:K43) -> -4219.319288 | L44: -4219.319288 | M44: -4219.319286 | N44: -4219.319284 | O44: -4219.319289 | P44: 0 | Q44: 0 | R44: 0 | S44: 0 | T44: 0 | U44: 0 | V44: 0 | W44: 0 | X44: 0 | Y44: 0 | Z44: 0 | AA44: 0 | AB44: 0 | AC44: 0 | AD44: 0 | AE44: 0 | AF44: 0 | AG44: 0 | AH44: 0 | AI44: 0 | AJ44: 0 | AK44: 0 | AL44: 0 | AM44: 0 | AN44: 0 | AO44: 0 | AP44: 0 | AQ44: 0 | AR44: 0 | AS44: 0 | AT44: 0 | AU44: 0 | AV44: 0 | AW44: 0 | AX44: 0 | AY44: 0 | AZ44: 0 | BA44: 0 | BB44: 0 | BC44: 0 | BD44: 0 | BE44: 0 | BF44: 0 | BG44: 0 | BH44: 0 | BI44: 0 | BJ44: 0 | BK44: 0 | BL44: 0 | BM44: 0
C46: Cashflow available to equity | D46: Flux de trésorerie de capitaux propres | E46: DT | I46: =SUM(J46:BM46) -> 55194.65707 | J46: =J39+J44 -> 0 | K46: 51.44977062 | L46: 170.7728431 | M46: 293.0596087 | N46: 418.3558582 | O46: 546.7057291 | P46: 4874.866368 | Q46: 4971.397389 | R46: 5069.10865 | S46: 5167.955669 | T46: -24732.11205 | U46: 5368.848515 | V46: 5470.773345 | W46: 5573.590856 | X46: 5677.221279 | Y46: 5781.57602 | Z46: 5886.556966 | AA46: 5992.055746 | AB46: 6097.952934 | AC46: 6204.117194 | AD46: 6310.404373 | AE46: 0 | AF46: 0 | AG46: 0 | AH46: 0 | AI46: 0 | AJ46: 0 | AK46: 0 | AL46: 0 | AM46: 0 | AN46: 0 | AO46: 0 | AP46: =AP39+AP44 -> 0 | AQ46: 0 | AR46: 0 | AS46: 0 | AT46: 0 | AU46: 0 | AV46: 0 | AW46: 0 | AX46: 0 | AY46: 0 | AZ46: 0 | BA46: 0 | BB46: 0 | BC46: 0 | BD46: 0 | BE46: 0 | BF46: 0 | BG46: 0 | BH46: 0 | BI46: 0 | BJ46: 0 | BK46: 0 | BL46: 0 | BM46: 0
C48: Dividends | D48: Recettes | E48: DT | I48: =SUM(J48:BM48) -> -55194.65707 | J48: =-'Capitaux propres'!J21 -> 0 | K48: =-'Capitaux propres'!K21 -> -51.44977062 | L48: =-'Capitaux propres'!L21 -> -170.7728431 | M48: =-'Capitaux propres'!M21 -> -293.0596087 | N48: =-'Capitaux propres'!N21 -> -418.3558582 | O48: =-'Capitaux propres'!O21 -> -546.7057291 | P48: =-'Capitaux propres'!P21 -> -4874.866368 | Q48: =-'Capitaux propres'!Q21 -> -4971.397389 | R48: =-'Capitaux propres'!R21 -> -5069.10865 | S48: =-'Capitaux propres'!S21 -> -5167.955669 | T48: =-'Capitaux propres'!T21 -> 24732.11205 | U48: =-'Capitaux propres'!U21 -> -5368.848515 | V48: =-'Capitaux propres'!V21 -> -5470.773345 | W48: =-'Capitaux propres'!W21 -> -5573.590856 | X48: =-'Capitaux propres'!X21 -> -5677.221279 | Y48: =-'Capitaux propres'!Y21 -> -5781.57602 | Z48: =-'Capitaux propres'!Z21 -> -5886.556966 | AA48: =-'Capitaux propres'!AA21 -> -5992.055746 | AB48: =-'Capitaux propres'!AB21 -> -6097.952934 | AC48: =-'Capitaux propres'!AC21 -> -6204.117194 | AD48: =-'Capitaux propres'!AD21 -> -6310.404373 | AE48: =-'Capitaux propres'!AE21 -> 0 | AF48: =-'Capitaux propres'!AF21 -> 0 | AG48: =-'Capitaux propres'!AG21 -> 0 | AH48: =-'Capitaux propres'!AH21 -> 0 | AI48: =-'Capitaux propres'!AI21 -> 0 | AJ48: =-'Capitaux propres'!AJ21 -> 0 | AK48: =-'Capitaux propres'!AK21 -> 0 | AL48: =-'Capitaux propres'!AL21 -> 0 | AM48: =-'Capitaux propres'!AM21 -> 0 | AN48: =-'Capitaux propres'!AN21 -> 0 | AO48: =-'Capitaux propres'!AO21 -> 0 | AP48: =-'Capitaux propres'!AP21 -> 0 | AQ48: =-'Capitaux propres'!AQ21 -> 0 | AR48: =-'Capitaux propres'!AR21 -> 0 | AS48: =-'Capitaux propres'!AS21 -> 0 | AT48: =-'Capitaux propres'!AT21 -> 0 | AU48: =-'Capitaux propres'!AU21 -> 0 | AV48: =-'Capitaux propres'!AV21 -> 0 | AW48: =-'Capitaux propres'!AW21 -> 0 | AX48: =-'Capitaux propres'!AX21 -> 0 | AY48: =-'Capitaux propres'!AY21 -> 0 | AZ48: =-'Capitaux propres'!AZ21 -> 0 | BA48: =-'Capitaux propres'!BA21 -> 0 | BB48: =-'Capitaux propres'!BB21 -> 0 | BC48: =-'Capitaux propres'!BC21 -> 0 | BD48: =-'Capitaux propres'!BD21 -> 0 | BE48: =-'Capitaux propres'!BE21 -> 0 | BF48: =-'Capitaux propres'!BF21 -> 0 | BG48: =-'Capitaux propres'!BG21 -> 0 | BH48: =-'Capitaux propres'!BH21 -> 0 | BI48: =-'Capitaux propres'!BI21 -> 0 | BJ48: =-'Capitaux propres'!BJ21 -> 0 | BK48: =-'Capitaux propres'!BK21 -> 0 | BL48: =-'Capitaux propres'!BL21 -> 0 | BM48: =-'Capitaux propres'!BM21 -> 0
C50: Net cashflow | D50: Flux de trésorerie net | E50: DT | I50: =SUM(J50:BM50) -> 0 | J50: =J46+J48 -> 0 | K50: =K46+K48 -> 0 | L50: 0 | M50: 0 | N50: 0 | O50: 0 | P50: 0 | Q50: 0 | R50: 0 | S50: 0 | T50: 0 | U50: 0 | V50: 0 | W50: 0 | X50: 0 | Y50: 0 | Z50: 0 | AA50: 0 | AB50: 0 | AC50: 0 | AD50: 0 | AE50: 0 | AF50: 0 | AG50: 0 | AH50: 0 | AI50: 0 | AJ50: 0 | AK50: 0 | AL50: 0 | AM50: 0 | AN50: 0 | AO50: 0 | AP50: 0 | AQ50: 0 | AR50: 0 | AS50: 0 | AT50: 0 | AU50: 0 | AV50: 0 | AW50: 0 | AX50: 0 | AY50: 0 | AZ50: 0 | BA50: 0 | BB50: 0 | BC50: 0 | BD50: 0 | BE50: 0 | BF50: 0 | BG50: 0 | BH50: 0 | BI50: 0 | BJ50: 0 | BK50: 0 | BL50: 0 | BM50: 0
C52: Cash balance b/f | D52: Solde de trésorerie reporté | E52: DT | J52: =I53 -> 0 | K52: =J53 -> 0 | L52: 0 | M52: 0 | N52: 0 | O52: 0 | P52: 0 | Q52: 0 | R52: 0 | S52: 0 | T52: 0 | U52: 0 | V52: 0 | W52: 0 | X52: 0 | Y52: 0 | Z52: 0 | AA52: 0 | AB52: 0 | AC52: 0 | AD52: 0 | AE52: 0 | AF52: 0 | AG52: 0 | AH52: 0 | AI52: 0 | AJ52: 0 | AK52: 0 | AL52: 0 | AM52: 0 | AN52: 0 | AO52: 0 | AP52: 0 | AQ52: 0 | AR52: 0 | AS52: 0 | AT52: 0 | AU52: 0 | AV52: 0 | AW52: 0 | AX52: 0 | AY52: 0 | AZ52: 0 | BA52: 0 | BB52: 0 | BC52: 0 | BD52: 0 | BE52: 0 | BF52: 0 | BG52: 0 | BH52: 0 | BI52: 0 | BJ52: 0 | BK52: 0 | BL52: 0 | BM52: 0
C53: Cash balance c/f | D53: Solde de trésorerie à la clôture | E53: DT | J53: =J50+J52 -> 0 | K53: =K50+K52 -> 0 | L53: 0 | M53: 0 | N53: 0 | O53: 0 | P53: 0 | Q53: 0 | R53: 0 | S53: 0 | T53: 0 | U53: 0 | V53: 0 | W53: 0 | X53: 0 | Y53: 0 | Z53: 0 | AA53: 0 | AB53: 0 | AC53: 0 | AD53: 0 | AE53: 0 | AF53: 0 | AG53: 0 | AH53: 0 | AI53: 0 | AJ53: 0 | AK53: 0 | AL53: 0 | AM53: 0 | AN53: 0 | AO53: 0 | AP53: 0 | AQ53: 0 | AR53: 0 | AS53: 0 | AT53: 0 | AU53: 0 | AV53: 0 | AW53: 0 | AX53: 0 | AY53: 0 | AZ53: 0 | BA53: 0 | BB53: 0 | BC53: 0 | BD53: 0 | BE53: 0 | BF53: 0 | BG53: 0 | BH53: 0 | BI53: 0 | BJ53: 0 | BK53: 0 | BL53: 0 | BM53: 0
C55: Project IRR | D55: TRI du projet
C56: Evaluation Cashflow | D56: Evaluation des flux de trésorerie | E56: DT | I56: =-0.00001 -> -1e-05 | J56: =J39+J27 -> -22165.44452 | K56: 4270.769059 | L56: 4390.092131 | M56: 4512.378895 | N56: 4637.675142 | O56: 4766.025018 | P56: 4874.866368 | Q56: 4971.397389 | R56: 5069.10865 | S56: 5167.955669 | T56: -24732.11205 | U56: 5368.848515 | V56: 5470.773345 | W56: 5573.590856 | X56: 5677.221279 | Y56: 5781.57602 | Z56: 5886.556966 | AA56: 5992.055746 | AB56: 6097.952934 | AC56: 6204.117194 | AD56: 6310.404373 | AE56: 0 | AF56: 0 | AG56: 0 | AH56: 0 | AI56: 0 | AJ56: 0 | AK56: 0 | AL56: 0 | AM56: 0 | AN56: 0 | AO56: 0 | AP56: =AP39+AP27 -> 0 | AQ56: 0 | AR56: 0 | AS56: 0 | AT56: 0 | AU56: 0 | AV56: 0 | AW56: 0 | AX56: 0 | AY56: 0 | AZ56: 0 | BA56: 0 | BB56: 0 | BC56: 0 | BD56: 0 | BE56: 0 | BF56: 0 | BG56: 0 | BH56: 0 | BI56: 0 | BJ56: 0 | BK56: 0 | BL56: 0 | BM56: 0
C57: Project IRR | D57: TRI du projet | E57: % | I57: =XIRR(I56:BM56,I5:BM5) -> 0.1581940472
C58: Modified Project IRR | D58: TRI modifié du projet | E58: % | I58: =MIRR(I56:BM56,Données!G100,Données!G100) -> 0.08655597207
C60: LCOE | D60: Coût Moyen Actualisé de l'Énergie
C61: WAAC Escalation | D61: Hausse du coût moyen pondéré du capital | E61: Index | J61: =Délais!J27 -> 1 | K61: =Délais!K27 -> 1 | L61: =Délais!L27 -> 1.10431713 | M61: =Délais!M27 -> 1.219516324 | N61: =Délais!N27 -> 1.346732767 | O61: =Délais!O27 -> 1.487220065 | P61: =Délais!P27 -> 1.642362594 | Q61: =Délais!Q27 -> 1.813689146 | R61: =Délais!R27 -> 2.002887993 | S61: =Délais!S27 -> 2.21182352 | T61: =Délais!T27 -> 2.442554603 | U61: =Délais!U27 -> 2.697354889 | V61: =Délais!V27 -> 2.97873521 | W61: =Délais!W27 -> 3.289468319 | X61: =Délais!X27 -> 3.632616214 | Y61: =Délais!Y27 -> 4.011560312 | Z61: =Délais!Z27 -> 4.430034771 | AA61: =Délais!AA27 -> 4.892163285 | AB61: =Délais!AB27 -> 5.40249972 | AC61: =Délais!AC27 -> 5.966072986 | AD61: =Délais!AD27 -> 6.588436599 | AE61: =Délais!AE27 -> 6.588436599 | AF61: =Délais!AF27 -> 6.588436599 | AG61: =Délais!AG27 -> 6.588436599 | AH61: =Délais!AH27 -> 6.588436599 | AI61: =Délais!AI27 -> 6.588436599 | AJ61: =Délais!AJ27 -> 6.588436599 | AK61: =Délais!AK27 -> 6.588436599 | AL61: =Délais!AL27 -> 6.588436599 | AM61: =Délais!AM27 -> 6.588436599 | AN61: =Délais!AN27 -> 6.588436599 | AO61: =Délais!AO27 -> 6.588436599 | AP61: =Délais!AP27 -> 6.588436599 | AQ61: =Délais!AQ27 -> 6.588436599 | AR61: =Délais!AR27 -> 6.588436599 | AS61: =Délais!AS27 -> 6.588436599 | AT61: =Délais!AT27 -> 6.588436599 | AU61: =Délais!AU27 -> 6.588436599 | AV61: =Délais!AV27 -> 6.588436599 | AW61: =Délais!AW27 -> 6.588436599 | AX61: =Délais!AX27 -> 6.588436599 | AY61: =Délais!AY27 -> 6.588436599 | AZ61: =Délais!AZ27 -> 6.588436599 | BA61: =Délais!BA27 -> 6.588436599 | BB61: =Délais!BB27 -> 6.588436599 | BC61: =Délais!BC27 -> 6.588436599 | BD61: =Délais!BD27 -> 6.588436599 | BE61: =Délais!BE27 -> 6.588436599 | BF61: =Délais!BF27 -> 6.588436599 | BG61: =Délais!BG27 -> 6.588436599 | BH61: =Délais!BH27 -> 6.588436599 | BI61: =Délais!BI27 -> 6.588436599 | BJ61: =Délais!BJ27 -> 6.588436599 | BK61: =Délais!BK27 -> 6.588436599 | BL61: =Délais!BL27 -> 6.588436599 | BM61: =Délais!BM27 -> 6.588436599
C63: OpEx | D63: Coûts d’exploitation | E63: DT | I63: =SUM(J63:BM63) -> 9019.008311 | J63: =-J21 -> 0 | K63: 220 | L63: 235.4 | M63: 251.878 | N63: 269.50946 | O63: 288.3751222 | P63: 308.5613808 | Q63: 330.1606774 | R63: 353.2719248 | S63: 378.0009596 | T63: 404.4610267 | U63: 432.7732986 | V63: 463.0674295 | W63: 495.4821496 | X63: 530.1659 | Y63: 567.277513 | Z63: 606.986939 | AA63: 649.4760247 | AB63: 694.9393464 | AC63: 743.5851007 | AD63: 795.6360577 | AE63: 0 | AF63: 0 | AG63: 0 | AH63: 0 | AI63: 0 | AJ63: 0 | AK63: 0 | AL63: 0 | AM63: 0 | AN63: 0 | AO63: 0 | AP63: =-AP21 -> 0 | AQ63: 0 | AR63: 0 | AS63: 0 | AT63: 0 | AU63: 0 | AV63: 0 | AW63: 0 | AX63: 0 | AY63: 0 | AZ63: 0 | BA63: 0 | BB63: 0 | BC63: 0 | BD63: 0 | BE63: 0 | BF63: 0 | BG63: 0 | BH63: 0 | BI63: 0 | BJ63: 0 | BK63: 0 | BL63: 0 | BM63: 0
C64: Ongoing CapEx nominal | D64: Dépenses en immobilisations permanentes | E64: DT | I64: =SUM(J64:BM64) -> 30000 | J64: =-J35 -> 0 | K64: 0 | L64: 0 | M64: 0 | N64: 0 | O64: 0 | P64: 0 | Q64: 0 | R64: 0 | S64: 0 | T64: 30000 | U64: 0 | V64: 0 | W64: 0 | X64: 0 | Y64: 0 | Z64: 0 | AA64: 0 | AB64: 0 | AC64: 0 | AD64: 0 | AE64: 0 | AF64: 0 | AG64: 0 | AH64: 0 | AI64: 0 | AJ64: 0 | AK64: 0 | AL64: 0 | AM64: 0 | AN64: 0 | AO64: 0 | AP64: =-AP35 -> 0 | AQ64: 0 | AR64: 0 | AS64: 0 | AT64: 0 | AU64: 0 | AV64: 0 | AW64: 0 | AX64: 0 | AY64: 0 | AZ64: 0 | BA64: 0 | BB64: 0 | BC64: 0 | BD64: 0 | BE64: 0 | BF64: 0 | BG64: 0 | BH64: 0 | BI64: 0 | BJ64: 0 | BK64: 0 | BL64: 0 | BM64: 0
C65: Discounted with WACC | D65: Actualisé au coût moyen pondéré du capital | E65: DT | I65: =SUM(J65:BM65) -> 15596.42472 | J65: =J63/J61+J64/J61 -> 0 | K65: =K63/K61+K64/K61 -> 220 | L65: 213.1634053 | M65: 206.5392607 | N65: 200.1209643 | O65: 193.9021192 | P65: 187.8765274 | Q65: 182.0381834 | R65: 176.3812685 | S65: 170.9001446 | T65: 12447.81222 | U65: 160.4435888 | V65: 155.4577352 | W65: 150.6268192 | X65: 145.9460259 | Y65: 141.4106903 | Z65: 137.0162923 | AA65: 132.758452 | AB65: 128.632926 | AC65: 124.6356024 | AD65: 120.7624974 | AE65: 0 | AF65: 0 | AG65: 0 | AH65: 0 | AI65: 0 | AJ65: 0 | AK65: 0 | AL65: 0 | AM65: 0 | AN65: 0 | AO65: 0 | AP65: 0 | AQ65: 0 | AR65: 0 | AS65: 0 | AT65: 0 | AU65: 0 | AV65: 0 | AW65: 0 | AX65: 0 | AY65: 0 | AZ65: 0 | BA65: 0 | BB65: 0 | BC65: 0 | BD65: 0 | BE65: 0 | BF65: 0 | BG65: 0 | BH65: 0 | BI65: 0 | BJ65: 0 | BK65: 0 | BL65: 0 | BM65: 0
C67: Net Generation | D67: Production nette | E67: kWh | I67: =SUM(J67:BM67) -> 185369.924 | J67: =Exploitation!J22 -> 0 | K67: =Exploitation!K22 -> 9900 | L67: =Exploitation!L22 -> 9830.7 | M67: =Exploitation!M22 -> 9761.8851 | N67: =Exploitation!N22 -> 9693.551904 | O67: =Exploitation!O22 -> 9625.697041 | P67: =Exploitation!P22 -> 9558.317162 | Q67: =Exploitation!Q22 -> 9491.408942 | R67: =Exploitation!R22 -> 9424.969079 | S67: =Exploitation!S22 -> 9358.994295 | T67: =Exploitation!T22 -> 9293.481335 | U67: =Exploitation!U22 -> 9228.426966 | V67: =Exploitation!V22 -> 9163.827977 | W67: =Exploitation!W22 -> 9099.681181 | X67: =Exploitation!X22 -> 9035.983413 | Y67: =Exploitation!Y22 -> 8972.731529 | Z67: =Exploitation!Z22 -> 8909.922409 | AA67: =Exploitation!AA22 -> 8847.552952 | AB67: =Exploitation!AB22 -> 8785.620081 | AC67: =Exploitation!AC22 -> 8724.12074 | AD67: =Exploitation!AD22 -> 8663.051895 | AE67: =Exploitation!AE22 -> 0 | AF67: =Exploitation!AF22 -> 0 | AG67: =Exploitation!AG22 -> 0 | AH67: =Exploitation!AH22 -> 0 | AI67: =Exploitation!AI22 -> 0 | AJ67: =Exploitation!AJ22 -> 0 | AK67: =Exploitation!AK22 -> 0 | AL67: =Exploitation!AL22 -> 0 | AM67: =Exploitation!AM22 -> 0 | AN67: =Exploitation!AN22 -> 0 | AO67: =Exploitation!AO22 -> 0 | AP67: =Exploitation!AP22 -> 0 | AQ67: =Exploitation!AQ22 -> 0 | AR67: =Exploitation!AR22 -> 0 | AS67: =Exploitation!AS22 -> 0 | AT67: =Exploitation!AT22 -> 0 | AU67: =Exploitation!AU22 -> 0 | AV67: =Exploitation!AV22 -> 0 | AW67: =Exploitation!AW22 -> 0 | AX67: =Exploitation!AX22 -> 0 | AY67: =Exploitation!AY22 -> 0 | AZ67: =Exploitation!AZ22 -> 0 | BA67: =Exploitation!BA22 -> 0 | BB67: =Exploitation!BB22 -> 0 | BC67: =Exploitation!BC22 -> 0 | BD67: =Exploitation!BD22 -> 0 | BE67: =Exploitation!BE22 -> 0 | BF67: =Exploitation!BF22 -> 0 | BG67: =Exploitation!BG22 -> 0 | BH67: =Exploitation!BH22 -> 0 | BI67: =Exploitation!BI22 -> 0 | BJ67: =Exploitation!BJ22 -> 0 | BK67: =Exploitation!BK22 -> 0 | BL67: =Exploitation!BL22 -> 0 | BM67: =Exploitation!BM22 -> 0
C68: Discounted Net Generation | D68: Production nette actualisée | E68: kWh | I68: =SUM(J68:BM68) -> 86483.1535 | J68: =J67/J61 -> 0 | K68: =K67/K61 -> 9900 | L68: 8902.062398 | M68: 8004.71868 | N68: 7197.828805 | O68: 6472.274864 | P68: 5819.85805 | Q68: 5233.206011 | R68: 4705.689541 | S68: 4231.347668 | T68: 3804.8203 | U68: 3421.287649 | V68: 3076.415771 | W68: 2766.307591 | X68: 2487.458868 | Y68: 2236.718591 | Z68: 2011.25338 | AA68: 1808.515464 | AB68: 1626.213889 | AC68: 1462.288638 | AD68: 1314.887343 | AE68: 0 | AF68: 0 | AG68: 0 | AH68: 0 | AI68: 0 | AJ68: 0 | AK68: 0 | AL68: 0 | AM68: 0 | AN68: 0 | AO68: 0 | AP68: 0 | AQ68: 0 | AR68: 0 | AS68: 0 | AT68: 0 | AU68: 0 | AV68: 0 | AW68: 0 | AX68: 0 | AY68: 0 | AZ68: 0 | BA68: 0 | BB68: 0 | BC68: 0 | BD68: 0 | BE68: 0 | BF68: 0 | BG68: 0 | BH68: 0 | BI68: 0 | BJ68: 0 | BK68: 0 | BL68: 0 | BM68: 0
C70: LCOE w/o subsidy | D70: Coût Moyen Actualisé de l'Énergie (sans subvention) | E70: DT/kWh | I70: =(I33+I65+Données!G29)/I68 -> 0.4366384401
C71: LCOE w subsidy | D71: Coût Moyen Actualisé de l'Énergie (avec subvention) | E71: DT/kWh | I71: =(I33+I65)/I68 -> 0.4366384401

Sheet Délais
C1: Timing | D1: Délais
C2: =Name_Project -> 
C4: Period Start | D4: Début de la période | J4: =DATE(YEAR(J5),MONTH(J5),1) -> 2021-12-01 | K4: =J5+1 -> 2022-01-01 | L4: 2023-01-01 | M4: 2024-01-01 | N4: 2025-01-01 | O4: 2026-01-01 | P4: 2027-01-01 | Q4: 2028-01-01 | R4: 2029-01-01 | S4: 2030-01-01 | T4: 2031-01-01 | U4: 2032-01-01 | V4: 2033-01-01 | W4: 2034-01-01 | X4: 2035-01-01 | Y4: 2036-01-01 | Z4: 2037-01-01 | AA4: 2038-01-01 | AB4: 2039-01-01 | AC4: 2040-01-01 | AD4: 2041-01-01 | AE4: 2042-01-01 | AF4: 2043-01-01 | AG4: 2044-01-01 | AH4: 2045-01-01 | AI4: 2046-01-01 | AJ4: 2047-01-01 | AK4: 2048-01-01 | AL4: 2049-01-01 | AM4: 2050-01-01 | AN4: 2051-01-01 | AO4: 2052-01-01 | AP4: 2053-01-01 | AQ4: 2054-01-01 | AR4: 2055-01-01 | AS4: 2056-01-01 | AT4: 2057-01-01 | AU4: 2058-01-01 | AV4: 2059-01-01 | AW4: 2060-01-01 | AX4: 2061-01-01 | AY4: 2062-01-01 | AZ4: 2063-01-01 | BA4: 2064-01-01 | BB4: 2065-01-01 | BC4: 2066-01-01 | BD4: 2067-01-01 | BE4: 2068-01-01 | BF4: 2069-01-01 | BG4: 2070-01-01 | BH4: 2071-01-01 | BI4: 2072-01-01 | BJ4: 2073-01-01 | BK4: 2074-01-01 | BL4: 2075-01-01 | BM4: 2076-01-01
C5: Period End | D5: Fin de la période | F5: Début | G5: Fin | I5: =Cons_Start -> 2022-01-01 | J5: =EOMONTH(F6,-1) -> 2021-12-31 | K5: =DATE(YEAR(K4),12,31) -> 2022-12-31 | L5: =DATE(YEAR(L4),12,31) -> 2023-12-31 | M5: 2024-12-31 | N5: 2025-12-31 | O5: 2026-12-31 | P5: 2027-12-31 | Q5: 2028-12-31 | R5: 2029-12-31 | S5: 2030-12-31 | T5: 2031-12-31 | U5: 2032-12-31 | V5: 2033-12-31 | W5: 2034-12-31 | X5: 2035-12-31 | Y5: 2036-12-31 | Z5: 2037-12-31 | AA5: 2038-12-31 | AB5: 2039-12-31 | AC5: 2040-12-31 | AD5: 2041-12-31 | AE5: 2042-12-31 | AF5: 2043-12-31 | AG5: 2044-12-31 | AH5: 2045-12-31 | AI5: 2046-12-31 | AJ5: 2047-12-31 | AK5: 2048-12-31 | AL5: 2049-12-31 | AM5: 2050-12-31 | AN5: 2051-12-31 | AO5: 2052-12-31 | AP5: 2053-12-31 | AQ5: 2054-12-31 | AR5: 2055-12-31 | AS5: 2056-12-31 | AT5: 2057-12-31 | AU5: 2058-12-31 | AV5: 2059-12-31 | AW5: 2060-12-31 | AX5: 2061-12-31 | AY5: 2062-12-31 | AZ5: 2063-12-31 | BA5: 2064-12-31 | BB5: 2065-12-31 | BC5: 2066-12-31 | BD5: 2067-12-31 | BE5: 2068-12-31 | BF5: 2069-12-31 | BG5: 2070-12-31 | BH5: 2071-12-31 | BI5: 2072-12-31 | BJ5: 2073-12-31 | BK5: 2074-12-31 | BL5: 2075-12-31 | BM5: 2076-12-31
C6: Construction | D6: Exploitation | F6: =Données!G10 -> 2022-01-01 | G6: =Données!G12 -> 2041-12-31 | J6: 1 | K6: 0 | L6: 0 | M6: 0 | N6: 0 | O6: 0 | P6: 0 | Q6: 0 | R6: 0 | S6: 0 | T6: 0 | U6: 0 | V6: 0 | W6: 0 | X6: 0 | Y6: 0 | Z6: 0 | AA6: 0 | AB6: 0 | AC6: 0 | AD6: 0 | AE6: 0 | AF6: 0 | AG6: 0 | AH6: 0 | AI6: 0 | AJ6: 0 | AK6: 0 | AL6: 0 | AM6: 0 | AN6: 0 | AO6: 0 | AP6: 0 | AQ6: 0 | AR6: 0 | AS6: 0 | AT6: 0 | AU6: 0 | AV6: 0 | AW6: 0 | AX6: 0 | AY6: 0 | AZ6: 0 | BA6: 0 | BB6: 0 | BC6: 0 | BD6: 0 | BE6: 0 | BF6: 0 | BG6: 0 | BH6: 0 | BI6: 0 | BJ6: 0 | BK6: 0 | BL6: 0 | BM6: 0
C7: Operations | J7: 0 | K7: =IF(AND(K$4>=$F6,K$5<=$G6),1,0) -> 1 | L7: 1 | M7: 1 | N7: 1 | O7: 1 | P7: 1 | Q7: 1 | R7: 1 | S7: 1 | T7: 1 | U7: 1 | V7: 1 | W7: 1 | X7: 1 | Y7: 1 | Z7: 1 | AA7: 1 | AB7: 1 | AC7: 1 | AD7: 1 | AE7: 0 | AF7: 0 | AG7: 0 | AH7: 0 | AI7: 0 | AJ7: 0 | AK7: 0 | AL7: 0 | AM7: 0 | AN7: 0 | AO7: 0 | AP7: 0 | AQ7: =IF(AND(AQ$4>=$F6,AQ$5<=$G6),1,0) -> 0 | AR7: 0 | AS7: 0 | AT7: 0 | AU7: 0 | AV7: 0 | AW7: 0 | AX7: 0 | AY7: 0 | AZ7: 0 | BA7: 0 | BB7: 0 | BC7: 0 | BD7: 0 | BE7: 0 | BF7: 0 | BG7: 0 | BH7: 0 | BI7: 0 | BJ7: 0 | BK7: 0 | BL7: 0 | BM7: 0
C9: Timing | D9: Délais
C10: Calendar Year | D10: Année civile | E10: Num# | J10: =YEAR(J5) -> 2021 | K10: 2022 | L10: 2023 | M10: 2024 | N10: 2025 | O10: 2026 | P10: 2027 | Q10: 2028 | R10: 2029 | S10: 2030 | T10: 2031 | U10: 2032 | V10: 2033 | W10: 2034 | X10: 2035 | Y10: 2036 | Z10: 2037 | AA10: 2038 | AB10: 2039 | AC10: 2040 | AD10: 2041 | AE10: 2042 | AF10: 2043 | AG10: 2044 | AH10: 2045 | AI10: 2046 | AJ10: 2047 | AK10: 2048 | AL10: 2049 | AM10: 2050 | AN10: 2051 | AO10: 2052 | AP10: =YEAR(AP5) -> 2053 | AQ10: 2054 | AR10: 2055 | AS10: 2056 | AT10: 2057 | AU10: 2058 | AV10: 2059 | AW10: 2060 | AX10: 2061 | AY10: 2062 | AZ10: 2063 | BA10: 2064 | BB10: 2065 | BC10: 2066 | BD10: 2067 | BE10: 2068 | BF10: 2069 | BG10: 2070 | BH10: 2071 | BI10: 2072 | BJ10: 2073 | BK10: 2074 | BL10: 2075 | BM10: 2076
C11: Days in Period | D11: Nombre de jours de la période | E11: Num# | J11: =J5-J4+1 -> 31 | K11: 365 | L11: 365 | M11: 366 | N11: 365 | O11: 365 | P11: 365 | Q11: 366 | R11: 365 | S11: 365 | T11: 365 | U11: 366 | V11: 365 | W11: 365 | X11: 365 | Y11: 366 | Z11: 365 | AA11: 365 | AB11: 365 | AC11: 366 | AD11: 365 | AE11: 365 | AF11: 365 | AG11: 366 | AH11: 365 | AI11: 365 | AJ11: 365 | AK11: 366 | AL11: 365 | AM11: 365 | AN11: 365 | AO11: 366 | AP11: =AP5-AP4+1 -> 365 | AQ11: 365 | AR11: 365 | AS11: 366 | AT11: 365 | AU11: 365 | AV11: 365 | AW11: 366 | AX11: 365 | AY11: 365 | AZ11: 365 | BA11: 366 | BB11: 365 | BC11: 365 | BD11: 365 | BE11: 366 | BF11: 365 | BG11: 365 | BH11: 365 | BI11: 366 | BJ11: 365 | BK11: 365 | BL11: 365 | BM11: 366
C13: Construction Period | D13: Période de construction | E13: Num# | J13: =SUM($J6:J6)*J6 -> 1 | K13: =SUM($J6:K6)*K6 -> 0 | L13: =SUM($J6:L6)*L6 -> 0 | M13: =SUM($J6:M6)*M6 -> 0 | N13: =SUM($J6:N6)*N6 -> 0 | O13: =SUM($J6:O6)*O6 -> 0 | P13: =SUM($J6:P6)*P6 -> 0 | Q13: =SUM($J6:Q6)*Q6 -> 0 | R13: =SUM($J6:R6)*R6 -> 0 | S13: =SUM($J6:S6)*S6 -> 0 | T13: =SUM($J6:T6)*T6 -> 0 | U13: =SUM($J6:U6)*U6 -> 0 | V13: =SUM($J6:V6)*V6 -> 0 | W13: =SUM($J6:W6)*W6 -> 0 | X13: =SUM($J6:X6)*X6 -> 0 | Y13: =SUM($J6:Y6)*Y6 -> 0 | Z13: =SUM($J6:Z6)*Z6 -> 0 | AA13: =SUM($J6:AA6)*AA6 -> 0 | AB13: =SUM($J6:AB6)*AB6 -> 0 | AC13: =SUM($J6:AC6)*AC6 -> 0 | AD13: =SUM($J6:AD6)*AD6 -> 0 | AE13: =SUM($J6:AE6)*AE6 -> 0 | AF13: =SUM($J6:AF6)*AF6 -> 0 | AG13: =SUM($J6:AG6)*AG6 -> 0 | AH13: =SUM($J6:AH6)*AH6 -> 0 | AI13: =SUM($J6:AI6)*AI6 -> 0 | AJ13: =SUM($J6:AJ6)*AJ6 -> 0 | AK13: =SUM($J6:AK6)*AK6 -> 0 | AL13: =SUM($J6:AL6)*AL6 -> 0 | AM13: =SUM($J6:AM6)*AM6 -> 0 | AN13: =SUM($J6:AN6)*AN6 -> 0 | AO13: =SUM($J6:AO6)*AO6 -> 0 | AP13: =SUM($J6:AP6)*AP6 -> 0 | AQ13: =SUM($J6:AQ6)*AQ6 -> 0 | AR13: =SUM($J6:AR6)*AR6 -> 0 | AS13: =SUM($J6:AS6)*AS6 -> 0 | AT13: =SUM($J6:AT6)*AT6 -> 0 | AU13: =SUM($J6:AU6)*AU6 -> 0 | AV13: =SUM($J6:AV6)*AV6 -> 0 | AW13: =SUM($J6:AW6)*AW6 -> 0 | AX13: =SUM($J6:AX6)*AX6 -> 0 | AY13: =SUM($J6:AY6)*AY6 -> 0 | AZ13: =SUM($J6:AZ6)*AZ6 -> 0 | BA13: =SUM($J6:BA6)*BA6 -> 0 | BB13: =SUM($J6:BB6)*BB6 -> 0 | BC13: =SUM($J6:BC6)*BC6 -> 0 | BD13: =SUM($J6:BD6)*BD6 -> 0 | BE13: =SUM($J6:BE6)*BE6 -> 0 | BF13: =SUM($J6:BF6)*BF6 -> 0 | BG13: =SUM($J6:BG6)*BG6 -> 0 | BH13: =SUM($J6:BH6)*BH6 -> 0 | BI13: =SUM($J6:BI6)*BI6 -> 0 | BJ13: =SUM($J6:BJ6)*BJ6 -> 0 | BK13: =SUM($J6:BK6)*BK6 -> 0 | BL13: =SUM($J6:BL6)*BL6 -> 0 | BM13: =SUM($J6:BM6)*BM6 -> 0
C14: Operations Period | D14: Période d'exploitation | E14: Num# | J14: =SUM($J7:J7)*J7 -> 0 | K14: =SUM($J7:K7)*K7 -> 1 | L14: =SUM($J7:L7)*L7 -> 2 | M14: =SUM($J7:M7)*M7 -> 3 | N14: =SUM($J7:N7)*N7 -> 4 | O14: =SUM($J7:O7)*O7 -> 5 | P14: =SUM($J7:P7)*P7 -> 6 | Q14: =SUM($J7:Q7)*Q7 -> 7 | R14: =SUM($J7:R7)*R7 -> 8 | S14: =SUM($J7:S7)*S7 -> 9 | T14: =SUM($J7:T7)*T7 -> 10 | U14: =SUM($J7:U7)*U7 -> 11 | V14: =SUM($J7:V7)*V7 -> 12 | W14: =SUM($J7:W7)*W7 -> 13 | X14: =SUM($J7:X7)*X7 -> 14 | Y14: =SUM($J7:Y7)*Y7 -> 15 | Z14: =SUM($J7:Z7)*Z7 -> 16 | AA14: =SUM($J7:AA7)*AA7 -> 17 | AB14: =SUM($J7:AB7)*AB7 -> 18 | AC14: =SUM($J7:AC7)*AC7 -> 19 | AD14: =SUM($J7:AD7)*AD7 -> 20 | AE14: =SUM($J7:AE7)*AE7 -> 0 | AF14: =SUM($J7:AF7)*AF7 -> 0 | AG14: =SUM($J7:AG7)*AG7 -> 0 | AH14: =SUM($J7:AH7)*AH7 -> 0 | AI14: =SUM($J7:AI7)*AI7 -> 0 | AJ14: =SUM($J7:AJ7)*AJ7 -> 0 | AK14: =SUM($J7:AK7)*AK7 -> 0 | AL14: =SUM($J7:AL7)*AL7 -> 0 | AM14: =SUM($J7:AM7)*AM7 -> 0 | AN14: =SUM($J7:AN7)*AN7 -> 0 | AO14: =SUM($J7:AO7)*AO7 -> 0 | AP14: =SUM($J7:AP7)*AP7 -> 0 | AQ14: =SUM($J7:AQ7)*AQ7 -> 0 | AR14: =SUM($J7:AR7)*AR7 -> 0 | AS14: =SUM($J7:AS7)*AS7 -> 0 | AT14: =SUM($J7:AT7)*AT7 -> 0 | AU14: =SUM($J7:AU7)*AU7 -> 0 | AV14: =SUM($J7:AV7)*AV7 -> 0 | AW14: =SUM($J7:AW7)*AW7 -> 0 | AX14: =SUM($J7:AX7)*AX7 -> 0 | AY14: =SUM($J7:AY7)*AY7 -> 0 | AZ14: =SUM($J7:AZ7)*AZ7 -> 0 | BA14: =SUM($J7:BA7)*BA7 -> 0 | BB14: =SUM($J7:BB7)*BB7 -> 0 | BC14: =SUM($J7:BC7)*BC7 -> 0 | BD14: =SUM($J7:BD7)*BD7 -> 0 | BE14: =SUM($J7:BE7)*BE7 -> 0 | BF14: =SUM($J7:BF7)*BF7 -> 0 | BG14: =SUM($J7:BG7)*BG7 -> 0 | BH14: =SUM($J7:BH7)*BH7 -> 0 | BI14: =SUM($J7:BI7)*BI7 -> 0 | BJ14: =SUM($J7:BJ7)*BJ7 -> 0 | BK14: =SUM($J7:BK7)*BK7 -> 0 | BL14: =SUM($J7:BL7)*BL7 -> 0 | BM14: =SUM($J7:BM7)*BM7 -> 0
C16: Index | D16: Index
C17: Escalation | D17: Inflation
C18: Rate | D18: Taux | E18: % p.a. | K18: =LOOKUP(K10,Données!$G$110:$J$110,Données!$G$111:$J$111) -> 0.07 | L18: =LOOKUP(L10,Données!$G$110:$J$110,Données!$G$111:$J$111) -> 0.07 | M18: =LOOKUP(M10,Données!$G$110:$J$110,Données!$G$111:$J$111) -> 0.07 | N18: =LOOKUP(N10,Données!$G$110:$J$110,Données!$G$111:$J$111) -> 0.07 | O18: =LOOKUP(O10,Données!$G$110:$J$110,Données!$G$111:$J$111) -> 0.07 | P18: =LOOKUP(P10,Données!$G$110:$J$110,Données!$G$111:$J$111) -> 0.07 | Q18: =LOOKUP(Q10,Données!$G$110:$J$110,Données!$G$111:$J$111) -> 0.07 | R18: =LOOKUP(R10,Données!$G$110:$J$110,Données!$G$111:$J$111) -> 0.07 | S18: =LOOKUP(S10,Données!$G$110:$J$110,Données!$G$111:$J$111) -> 0.07 | T18: =LOOKUP(T10,Données!$G$110:$J$110,Données!$G$111:$J$111) -> 0.07 | U18: =LOOKUP(U10,Données!$G$110:$J$110,Données!$G$111:$J$111) -> 0.07 | V18: =LOOKUP(V10,Données!$G$110:$J$110,Données!$G$111:$J$111) -> 0.07 | W18: =LOOKUP(W10,Données!$G$110:$J$110,Données!$G$111:$J$111) -> 0.07 | X18: =LOOKUP(X10,Données!$G$110:$J$110,Données!$G$111:$J$111) -> 0.07 | Y18: =LOOKUP(Y10,Données!$G$110:$J$110,Données!$G$111:$J$111) -> 0.07 | Z18: =LOOKUP(Z10,Données!$G$110:$J$110,Données!$G$111:$J$111) -> 0.07 | AA18: =LOOKUP(AA10,Données!$G$110:$J$110,Données!$G$111:$J$111) -> 0.07 | AB18: =LOOKUP(AB10,Données!$G$110:$J$110,Données!$G$111:$J$111) -> 0.07 | AC18: =LOOKUP(AC10,Données!$G$110:$J$110,Données!$G$111:$J$111) -> 0.07 | AD18: =LOOKUP(AD10,Données!$G$110:$J$110,Données!$G$111:$J$111) -> 0.07 | AE18: =LOOKUP(AE10,Données!$G$110:$J$110,Données!$G$111:$J$111) -> 0.07 | AF18: =LOOKUP(AF10,Données!$G$110:$J$110,Données!$G$111:$J$111) -> 0.07 | AG18: =LOOKUP(AG10,Données!$G$110:$J$110,Données!$G$111:$J$111) -> 0.07 | AH18: =LOOKUP(AH10,Données!$G$110:$J$110,Données!$G$111:$J$111) -> 0.07 | AI18: =LOOKUP(AI10,Données!$G$110:$J$110,Données!$G$111:$J$111) -> 0.07 | AJ18: =LOOKUP(AJ10,Données!$G$110:$J$110,Données!$G$111:$J$111) -> 0.07 | AK18: =LOOKUP(AK10,Données!$G$110:$J$110,Données!$G$111:$J$111) -> 0.07 | AL18: =LOOKUP(AL10,Données!$G$110:$J$110,Données!$G$111:$J$111) -> 0.07 | AM18: =LOOKUP(AM10,Données!$G$110:$J$110,Données!$G$111:$J$111) -> 0.07 | AN18: =LOOKUP(AN10,Données!$G$110:$J$110,Données!$G$111:$J$111) -> 0.07 | AO18: =LOOKUP(AO10,Données!$G$110:$J$110,Données!$G$111:$J$111) -> 0.07 | AP18: =LOOKUP(AP10,Données!$G$110:$J$110,Données!$G$111:$J$111) -> 0.07 | AQ18: =LOOKUP(AQ10,Données!$G$110:$J$110,Données!$G$111:$J$111) -> 0.07 | AR18: =LOOKUP(AR10,Données!$G$110:$J$110,Données!$G$111:$J$111) -> 0.07 | AS18: =LOOKUP(AS10,Données!$G$110:$J$110,Données!$G$111:$J$111) -> 0.07 | AT18: =LOOKUP(AT10,Données!$G$110:$J$110,Données!$G$111:$J$111) -> 0.07 | AU18: =LOOKUP(AU10,Données!$G$110:$J$110,Données!$G$111:$J$111) -> 0.07 | AV18: =LOOKUP(AV10,Données!$G$110:$J$110,Données!$G$111:$J$111) -> 0.07 | AW18: =LOOKUP(AW10,Données!$G$110:$J$110,Données!$G$111:$J$111) -> 0.07 | AX18: =LOOKUP(AX10,Données!$G$110:$J$110,Données!$G$111:$J$111) -> 0.07 | AY18: =LOOKUP(AY10,Données!$G$110:$J$110,Données!$G$111:$J$111) -> 0.07 | AZ18: =LOOKUP(AZ10,Données!$G$110:$J$110,Données!$G$111:$J$111) -> 0.07 | BA18: =LOOKUP(BA10,Données!$G$110:$J$110,Données!$G$111:$J$111) -> 0.07 | BB18: =LOOKUP(BB10,Données!$G$110:$J$110,Données!$G$111:$J$111) -> 0.07 | BC18: =LOOKUP(BC10,Données!$G$110:$J$110,Données!$G$111:$J$111) -> 0.07 | BD18: =LOOKUP(BD10,Données!$G$110:$J$110,Données!$G$111:$J$111) -> 0.07 | BE18: =LOOKUP(BE10,Données!$G$110:$J$110,Données!$G$111:$J$111) -> 0.07 | BF18: =LOOKUP(BF10,Données!$G$110:$J$110,Données!$G$111:$J$111) -> 0.07 | BG18: =LOOKUP(BG10,Données!$G$110:$J$110,Données!$G$111:$J$111) -> 0.07 | BH18: =LOOKUP(BH10,Données!$G$110:$J$110,Données!$G$111:$J$111) -> 0.07 | BI18: =LOOKUP(BI10,Données!$G$110:$J$110,Données!$G$111:$J$111) -> 0.07 | BJ18: =LOOKUP(BJ10,Données!$G$110:$J$110,Données!$G$111:$J$111) -> 0.07 | BK18: =LOOKUP(BK10,Données!$G$110:$J$110,Données!$G$111:$J$111) -> 0.07 | BL18: =LOOKUP(BL10,Données!$G$110:$J$110,Données!$G$111:$J$111) -> 0.07 | BM18: =LOOKUP(BM10,Données!$G$110:$J$110,Données!$G$111:$J$111) -> 0.07
C19: Index | D19: Index | E19: Index | I19: 1 | K19: =I19 -> 1 | L19: =K19*(1+L18*L7) -> 1.07 | M19: 1.1449 | N19: 1.225043 | O19: 1.31079601 | P19: 1.402551731 | Q19: 1.500730352 | R19: 1.605781476 | S19: 1.71818618 | T19: 1.838459212 | U19: 1.967151357 | V19: 2.104851952 | W19: 2.252191589 | X19: 2.409845 | Y19: 2.57853415 | Z19: 2.759031541 | AA19: 2.952163749 | AB19: 3.158815211 | AC19: 3.379932276 | AD19: 3.616527535 | AE19: 3.616527535 | AF19: 3.616527535 | AG19: 3.616527535 | AH19: 3.616527535 | AI19: 3.616527535 | AJ19: 3.616527535 | AK19: 3.616527535 | AL19: 3.616527535 | AM19: 3.616527535 | AN19: 3.616527535 | AO19: 3.616527535 | AP19: =AO19*(1+AP18*AP7) -> 3.616527535 | AQ19: 3.616527535 | AR19: 3.616527535 | AS19: 3.616527535 | AT19: 3.616527535 | AU19: 3.616527535 | AV19: 3.616527535 | AW19: 3.616527535 | AX19: 3.616527535 | AY19: 3.616527535 | AZ19: 3.616527535 | BA19: 3.616527535 | BB19: 3.616527535 | BC19: 3.616527535 | BD19: 3.616527535 | BE19: 3.616527535 | BF19: 3.616527535 | BG19: 3.616527535 | BH19: 3.616527535 | BI19: 3.616527535 | BJ19: 3.616527535 | BK19: 3.616527535 | BL19: 3.616527535 | BM19: 3.616527535
C21: Degradation | D21: Dégradation des performances
C22: Rate | D22: Taux | E22: % p.a. | I22: =Données!G35 -> 0.007 | J22: =$I$22 -> 0.007 | K22: =$I$22 -> 0.007 | L22: 0.007 | M22: 0.007 | N22: 0.007 | O22: 0.007 | P22: 0.007 | Q22: 0.007 | R22: 0.007 | S22: 0.007 | T22: 0.007 | U22: 0.007 | V22: 0.007 | W22: 0.007 | X22: 0.007 | Y22: 0.007 | Z22: 0.007 | AA22: 0.007 | AB22: 0.007 | AC22: 0.007 | AD22: 0.007 | AE22: 0.007 | AF22: 0.007 | AG22: 0.007 | AH22: 0.007 | AI22: 0.007 | AJ22: 0.007 | AK22: 0.007 | AL22: 0.007 | AM22: 0.007 | AN22: 0.007 | AO22: 0.007 | AP22: 0.007 | AQ22: 0.007 | AR22: 0.007 | AS22: 0.007 | AT22: 0.007 | AU22: 0.007 | AV22: 0.007 | AW22: 0.007 | AX22: 0.007 | AY22: 0.007 | AZ22: 0.007 | BA22: 0.007 | BB22: 0.007 | BC22: 0.007 | BD22: 0.007 | BE22: 0.007 | BF22: 0.007 | BG22: 0.007 | BH22: 0.007 | BI22: 0.007 | BJ22: 0.007 | BK22: 0.007 | BL22: 0.007 | BM22: 0.007
C23: Index | D23: Index | E23: Index | I23: 1 | J23: 1 | K23: 1 | L23: =K23*(1-L22*L7) -> 0.993 | M23: 0.986049 | N23: 0.979146657 | O23: 0.9722926304 | P23: 0.965486582 | Q23: 0.9587281759 | R23: 0.9520170787 | S23: 0.9453529591 | T23: 0.9387354884 | U23: 0.93216434 | V23: 0.9256391896 | W23: 0.9191597153 | X23: 0.9127255973 | Y23: 0.9063365181 | Z23: 0.8999921625 | AA23: 0.8936922173 | AB23: 0.8874363718 | AC23: 0.8812243172 | AD23: 0.875055747 | AE23: 0.875055747 | AF23: 0.875055747 | AG23: 0.875055747 | AH23: 0.875055747 | AI23: 0.875055747 | AJ23: 0.875055747 | AK23: 0.875055747 | AL23: 0.875055747 | AM23: 0.875055747 | AN23: 0.875055747 | AO23: 0.875055747 | AP23: =AO23*(1-AP22*AP7) -> 0.875055747 | AQ23: 0.875055747 | AR23: 0.875055747 | AS23: 0.875055747 | AT23: 0.875055747 | AU23: 0.875055747 | AV23: 0.875055747 | AW23: 0.875055747 | AX23: 0.875055747 | AY23: 0.875055747 | AZ23: 0.875055747 | BA23: 0.875055747 | BB23: 0.875055747 | BC23: 0.875055747 | BD23: 0.875055747 | BE23: 0.875055747 | BF23: 0.875055747 | BG23: 0.875055747 | BH23: 0.875055747 | BI23: 0.875055747 | BJ23: 0.875055747 | BK23: 0.875055747 | BL23: 0.875055747 | BM23: 0.875055747
C25: WAAC Escalation | D25: Augmentation du coût moyen pondéré du capital
C26: Rate | D26: Taux | E26: % p.a. | I26: =Données!G102 -> 0.1043171302 | J26: =$I$26 -> 0.1043171302 | K26: =$I$26 -> 0.1043171302 | L26: 0.1043171302 | M26: 0.1043171302 | N26: 0.1043171302 | O26: 0.1043171302 | P26: 0.1043171302 | Q26: 0.1043171302 | R26: 0.1043171302 | S26: 0.1043171302 | T26: 0.1043171302 | U26: 0.1043171302 | V26: 0.1043171302 | W26: 0.1043171302 | X26: 0.1043171302 | Y26: 0.1043171302 | Z26: 0.1043171302 | AA26: 0.1043171302 | AB26: 0.1043171302 | AC26: 0.1043171302 | AD26: 0.1043171302 | AE26: 0.1043171302 | AF26: 0.1043171302 | AG26: 0.1043171302 | AH26: 0.1043171302 | AI26: 0.1043171302 | AJ26: 0.1043171302 | AK26: 0.1043171302 | AL26: 0.1043171302 | AM26: 0.1043171302 | AN26: 0.1043171302 | AO26: 0.1043171302 | AP26: 0.1043171302 | AQ26: 0.1043171302 | AR26: 0.1043171302 | AS26: 0.1043171302 | AT26: 0.1043171302 | AU26: 0.1043171302 | AV26: 0.1043171302 | AW26: 0.1043171302 | AX26: 0.1043171302 | AY26: 0.1043171302 | AZ26: 0.1043171302 | BA26: 0.1043171302 | BB26: 0.1043171302 | BC26: 0.1043171302 | BD26: 0.1043171302 | BE26: 0.1043171302 | BF26: 0.1043171302 | BG26: 0.1043171302 | BH26: 0.1043171302 | BI26: 0.1043171302 | BJ26: 0.1043171302 | BK26: 0.1043171302 | BL26: 0.1043171302 | BM26: 0.1043171302
C27: Index | D27: Index | E27: Index | I27: 1 | J27: 1 | K27: 1 | L27: =K27*(1+L26*L7) -> 1.10431713 | M27: 1.219516324 | N27: 1.346732767 | O27: 1.487220065 | P27: 1.642362594 | Q27: 1.813689146 | R27: 2.002887993 | S27: 2.21182352 | T27: 2.442554603 | U27: 2.697354889 | V27: 2.97873521 | W27: 3.289468319 | X27: 3.632616214 | Y27: 4.011560312 | Z27: 4.430034771 | AA27: 4.892163285 | AB27: 5.40249972 | AC27: 5.966072986 | AD27: 6.588436599 | AE27: 6.588436599 | AF27: 6.588436599 | AG27: 6.588436599 | AH27: 6.588436599 | AI27: 6.588436599 | AJ27: 6.588436599 | AK27: 6.588436599 | AL27: 6.588436599 | AM27: 6.588436599 | AN27: 6.588436599 | AO27: 6.588436599 | AP27: =AO27*(1+AP26*AP7) -> 6.588436599 | AQ27: 6.588436599 | AR27: 6.588436599 | AS27: 6.588436599 | AT27: 6.588436599 | AU27: 6.588436599 | AV27: 6.588436599 | AW27: 6.588436599 | AX27: 6.588436599 | AY27: 6.588436599 | AZ27: 6.588436599 | BA27: 6.588436599 | BB27: 6.588436599 | BC27: 6.588436599 | BD27: 6.588436599 | BE27: 6.588436599 | BF27: 6.588436599 | BG27: 6.588436599 | BH27: 6.588436599 | BI27: 6.588436599 | BJ27: 6.588436599 | BK27: 6.588436599 | BL27: 6.588436599 | BM27: 6.588436599
C29: Discount Factor | D29: Taux d'actualisation
C30: Rate | D30: Taux | E30: % p.a. | I30: =Données!G100 -> 0.08 | J30: =$I$30 -> 0.08 | K30: =$I$30 -> 0.08 | L30: 0.08 | M30: 0.08 | N30: 0.08 | O30: 0.08 | P30: 0.08 | Q30: 0.08 | R30: 0.08 | S30: 0.08 | T30: 0.08 | U30: 0.08 | V30: 0.08 | W30: 0.08 | X30: 0.08 | Y30: 0.08 | Z30: 0.08 | AA30: 0.08 | AB30: 0.08 | AC30: 0.08 | AD30: 0.08 | AE30: 0.08 | AF30: 0.08 | AG30: 0.08 | AH30: 0.08 | AI30: 0.08 | AJ30: 0.08 | AK30: 0.08 | AL30: 0.08 | AM30: 0.08 | AN30: 0.08 | AO30: 0.08 | AP30: 0.08 | AQ30: 0.08 | AR30: 0.08 | AS30: 0.08 | AT30: 0.08 | AU30: 0.08 | AV30: 0.08 | AW30: 0.08 | AX30: 0.08 | AY30: 0.08 | AZ30: 0.08 | BA30: 0.08 | BB30: 0.08 | BC30: 0.08 | BD30: 0.08 | BE30: 0.08 | BF30: 0.08 | BG30: 0.08 | BH30: 0.08 | BI30: 0.08 | BJ30: 0.08 | BK30: 0.08 | BL30: 0.08 | BM30: 0.08
C31: Index | D31: Index | E31: Index | I31: 1 | J31: 1 | K31: 1 | L31: =K31*(1+L30*L7) -> 1.08 | M31: 1.1664 | N31: 1.259712 | O31: 1.36048896 | P31: 1.469328077 | Q31: 1.586874323 | R31: 1.713824269 | S31: 1.85093021 | T31: 1.999004627 | U31: 2.158924997 | V31: 2.331638997 | W31: 2.518170117 | X31: 2.719623726 | Y31: 2.937193624 | Z31: 3.172169114 | AA31: 3.425942643 | AB31: 3.700018055 | AC31: 3.996019499 | AD31: 4.315701059 | AE31: 4.315701059 | AF31: 4.315701059 | AG31: 4.315701059 | AH31: 4.315701059 | AI31: 4.315701059 | AJ31: 4.315701059 | AK31: 4.315701059 | AL31: 4.315701059 | AM31: 4.315701059 | AN31: 4.315701059 | AO31: 4.315701059 | AP31: 4.315701059 | AQ31: 4.315701059 | AR31: 4.315701059 | AS31: 4.315701059 | AT31: 4.315701059 | AU31: 4.315701059 | AV31: 4.315701059 | AW31: 4.315701059 | AX31: 4.315701059 | AY31: 4.315701059 | AZ31: 4.315701059 | BA31: 4.315701059 | BB31: 4.315701059 | BC31: 4.315701059 | BD31: 4.315701059 | BE31: 4.315701059 | BF31: 4.315701059 | BG31: 4.315701059 | BH31: 4.315701059 | BI31: 4.315701059 | BJ31: 4.315701059 | BK31: 4.315701059 | BL31: 4.315701059 | BM31: 4.315701059

Sheet Construction
C1: Construction | D1: Construction
C2: =Name_Project -> 
C4: Period Start | D4: Début de la période | J4: =Délais!J4 -> 2021-12-01 | K4: =Délais!K4 -> 2022-01-01 | L4: =Délais!L4 -> 2023-01-01 | M4: =Délais!M4 -> 2024-01-01 | N4: =Délais!N4 -> 2025-01-01 | O4: =Délais!O4 -> 2026-01-01 | P4: =Délais!P4 -> 2027-01-01 | Q4: =Délais!Q4 -> 2028-01-01 | R4: =Délais!R4 -> 2029-01-01 | S4: =Délais!S4 -> 2030-01-01 | T4: =Délais!T4 -> 2031-01-01 | U4: =Délais!U4 -> 2032-01-01 | V4: =Délais!V4 -> 2033-01-01 | W4: =Délais!W4 -> 2034-01-01 | X4: =Délais!X4 -> 2035-01-01 | Y4: =Délais!Y4 -> 2036-01-01 | Z4: =Délais!Z4 -> 2037-01-01 | AA4: =Délais!AA4 -> 2038-01-01 | AB4: =Délais!AB4 -> 2039-01-01 | AC4: =Délais!AC4 -> 2040-01-01 | AD4: =Délais!AD4 -> 2041-01-01 | AE4: =Délais!AE4 -> 2042-01-01 | AF4: =Délais!AF4 -> 2043-01-01 | AG4: =Délais!AG4 -> 2044-01-01 | AH4: =Délais!AH4 -> 2045-01-01 | AI4: =Délais!AI4 -> 2046-01-01 | AJ4: =Délais!AJ4 -> 2047-01-01 | AK4: =Délais!AK4 -> 2048-01-01 | AL4: =Délais!AL4 -> 2049-01-01 | AM4: =Délais!AM4 -> 2050-01-01 | AN4: =Délais!AN4 -> 2051-01-01 | AO4: =Délais!AO4 -> 2052-01-01 | AP4: =Délais!AP4 -> 2053-01-01 | AQ4: =Délais!AQ4 -> 2054-01-01 | AR4: =Délais!AR4 -> 2055-01-01 | AS4: =Délais!AS4 -> 2056-01-01 | AT4: =Délais!AT4 -> 2057-01-01 | AU4: =Délais!AU4 -> 2058-01-01 | AV4: =Délais!AV4 -> 2059-01-01 | AW4: =Délais!AW4 -> 2060-01-01 | AX4: =Délais!AX4 -> 2061-01-01 | AY4: =Délais!AY4 -> 2062-01-01 | AZ4: =Délais!AZ4 -> 2063-01-01 | BA4: =Délais!BA4 -> 2064-01-01 | BB4: =Délais!BB4 -> 2065-01-01 | BC4: =Délais!BC4 -> 2066-01-01 | BD4: =Délais!BD4 -> 2067-01-01 | BE4: =Délais!BE4 -> 2068-01-01 | BF4: =Délais!BF4 -> 2069-01-01 | BG4: =Délais!BG4 -> 2070-01-01 | BH4: =Délais!BH4 -> 2071-01-01 | BI4: =Délais!BI4 -> 2072-01-01 | BJ4: =Délais!BJ4 -> 2073-01-01 | BK4: =Délais!BK4 -> 2074-01-01 | BL4: =Délais!BL4 -> 2075-01-01 | BM4: =Délais!BM4 -> 2076-01-01
C5: Period End | D5: Fin de la période | I5: =Délais!I5 -> 2022-01-01 | J5: =Délais!J5 -> 2021-12-31 | K5: =Délais!K5 -> 2022-12-31 | L5: =Délais!L5 -> 2023-12-31 | M5: =Délais!M5 -> 2024-12-31 | N5: =Délais!N5 -> 2025-12-31 | O5: =Délais!O5 -> 2026-12-31 | P5: =Délais!P5 -> 2027-12-31 | Q5: =Délais!Q5 -> 2028-12-31 | R5: =Délais!R5 -> 2029-12-31 | S5: =Délais!S5 -> 2030-12-31 | T5: =Délais!T5 -> 2031-12-31 | U5: =Délais!U5 -> 2032-12-31 | V5: =Délais!V5 -> 2033-12-31 | W5: =Délais!W5 -> 2034-12-31 | X5: =Délais!X5 -> 2035-12-31 | Y5: =Délais!Y5 -> 2036-12-31 | Z5: =Délais!Z5 -> 2037-12-31 | AA5: =Délais!AA5 -> 2038-12-31 | AB5: =Délais!AB5 -> 2039-12-31 | AC5: =Délais!AC5 -> 2040-12-31 | AD5: =Délais!AD5 -> 2041-12-31 | AE5: =Délais!AE5 -> 2042-12-31 | AF5: =Délais!AF5 -> 2043-12-31 | AG5: =Délais!AG5 -> 2044-12-31 | AH5: =Délais!AH5 -> 2045-12-31 | AI5: =Délais!AI5 -> 2046-12-31 | AJ5: =Délais!AJ5 -> 2047-12-31 | AK5: =Délais!AK5 -> 2048-12-31 | AL5: =Délais!AL5 -> 2049-12-31 | AM5: =Délais!AM5 -> 2050-12-31 | AN5: =Délais!AN5 -> 2051-12-31 | AO5: =Délais!AO5 -> 2052-12-31 | AP5: =Délais!AP5 -> 2053-12-31 | AQ5: =Délais!AQ5 -> 2054-12-31 | AR5: =Délais!AR5 -> 2055-12-31 | AS5: =Délais!AS5 -> 2056-12-31 | AT5: =Délais!AT5 -> 2057-12-31 | AU5: =Délais!AU5 -> 2058-12-31 | AV5: =Délais!AV5 -> 2059-12-31 | AW5: =Délais!AW5 -> 2060-12-31 | AX5: =Délais!AX5 -> 2061-12-31 | AY5: =Délais!AY5 -> 2062-12-31 | AZ5: =Délais!AZ5 -> 2063-12-31 | BA5: =Délais!BA5 -> 2064-12-31 | BB5: =Délais!BB5 -> 2065-12-31 | BC5: =Délais!BC5 -> 2066-12-31 | BD5: =Délais!BD5 -> 2067-12-31 | BE5: =Délais!BE5 -> 2068-12-31 | BF5: =Délais!BF5 -> 2069-12-31 | BG5: =Délais!BG5 -> 2070-12-31 | BH5: =Délais!BH5 -> 2071-12-31 | BI5: =Délais!BI5 -> 2072-12-31 | BJ5: =Délais!BJ5 -> 2073-12-31 | BK5: =Délais!BK5 -> 2074-12-31 | BL5: =Délais!BL5 -> 2075-12-31 | BM5: =Délais!BM5 -> 2076-12-31
C6: Construction | D6: Construction | J6: 1 | K6: =Délais!K6 -> 0 | L6: =Délais!L6 -> 0 | M6: =Délais!M6 -> 0 | N6: =Délais!N6 -> 0 | O6: =Délais!O6 -> 0 | P6: =Délais!P6 -> 0 | Q6: =Délais!Q6 -> 0 | R6: =Délais!R6 -> 0 | S6: =Délais!S6 -> 0 | T6: =Délais!T6 -> 0 | U6: =Délais!U6 -> 0 | V6: =Délais!V6 -> 0 | W6: =Délais!W6 -> 0 | X6: =Délais!X6 -> 0 | Y6: =Délais!Y6 -> 0 | Z6: =Délais!Z6 -> 0 | AA6: =Délais!AA6 -> 0 | AB6: =Délais!AB6 -> 0 | AC6: =Délais!AC6 -> 0 | AD6: =Délais!AD6 -> 0 | AE6: =Délais!AE6 -> 0 | AF6: =Délais!AF6 -> 0 | AG6: =Délais!AG6 -> 0 | AH6: =Délais!AH6 -> 0 | AI6: =Délais!AI6 -> 0 | AJ6: =Délais!AJ6 -> 0 | AK6: =Délais!AK6 -> 0 | AL6: =Délais!AL6 -> 0 | AM6: =Délais!AM6 -> 0 | AN6: =Délais!AN6 -> 0 | AO6: =Délais!AO6 -> 0 | AP6: =Délais!AP6 -> 0 | AQ6: =Délais!AQ6 -> 0 | AR6: =Délais!AR6 -> 0 | AS6: =Délais!AS6 -> 0 | AT6: =Délais!AT6 -> 0 | AU6: =Délais!AU6 -> 0 | AV6: =Délais!AV6 -> 0 | AW6: =Délais!AW6 -> 0 | AX6: =Délais!AX6 -> 0 | AY6: =Délais!AY6 -> 0 | AZ6: =Délais!AZ6 -> 0 | BA6: =Délais!BA6 -> 0 | BB6: =Délais!BB6 -> 0 | BC6: =Délais!BC6 -> 0 | BD6: =Délais!BD6 -> 0 | BE6: =Délais!BE6 -> 0 | BF6: =Délais!BF6 -> 0 | BG6: =Délais!BG6 -> 0 | BH6: =Délais!BH6 -> 0 | BI6: =Délais!BI6 -> 0 | BJ6: =Délais!BJ6 -> 0 | BK6: =Délais!BK6 -> 0 | BL6: =Délais!BL6 -> 0 | BM6: =Délais!BM6 -> 0
C7: Operations | D7: Exploitation | J7: 0 | K7: =Délais!K7 -> 1 | L7: =Délais!L7 -> 1 | M7: =Délais!M7 -> 1 | N7: =Délais!N7 -> 1 | O7: =Délais!O7 -> 1 | P7: =Délais!P7 -> 1 | Q7: =Délais!Q7 -> 1 | R7: =Délais!R7 -> 1 | S7: =Délais!S7 -> 1 | T7: =Délais!T7 -> 1 | U7: =Délais!U7 -> 1 | V7: =Délais!V7 -> 1 | W7: =Délais!W7 -> 1 | X7: =Délais!X7 -> 1 | Y7: =Délais!Y7 -> 1 | Z7: =Délais!Z7 -> 1 | AA7: =Délais!AA7 -> 1 | AB7: =Délais!AB7 -> 1 | AC7: =Délais!AC7 -> 1 | AD7: =Délais!AD7 -> 1 | AE7: =Délais!AE7 -> 0 | AF7: =Délais!AF7 -> 0 | AG7: =Délais!AG7 -> 0 | AH7: =Délais!AH7 -> 0 | AI7: =Délais!AI7 -> 0 | AJ7: =Délais!AJ7 -> 0 | AK7: =Délais!AK7 -> 0 | AL7: =Délais!AL7 -> 0 | AM7: =Délais!AM7 -> 0 | AN7: =Délais!AN7 -> 0 | AO7: =Délais!AO7 -> 0 | AP7: =Délais!AP7 -> 0 | AQ7: =Délais!AQ7 -> 0 | AR7: =Délais!AR7 -> 0 | AS7: =Délais!AS7 -> 0 | AT7: =Délais!AT7 -> 0 | AU7: =Délais!AU7 -> 0 | AV7: =Délais!AV7 -> 0 | AW7: =Délais!AW7 -> 0 | AX7: =Délais!AX7 -> 0 | AY7: =Délais!AY7 -> 0 | AZ7: =Délais!AZ7 -> 0 | BA7: =Délais!BA7 -> 0 | BB7: =Délais!BB7 -> 0 | BC7: =Délais!BC7 -> 0 | BD7: =Délais!BD7 -> 0 | BE7: =Délais!BE7 -> 0 | BF7: =Délais!BF7 -> 0 | BG7: =Délais!BG7 -> 0 | BH7: =Délais!BH7 -> 0 | BI7: =Délais!BI7 -> 0 | BJ7: =Délais!BJ7 -> 0 | BK7: =Délais!BK7 -> 0 | BL7: =Délais!BL7 -> 0 | BM7: =Délais!BM7 -> 0
C9: Timing | D9: Délais
C10: Calendar Year | D10: Année civile | E10: Num# | J10: =Délais!J10 -> 2021 | K10: =Délais!K10 -> 2022 | L10: =Délais!L10 -> 2023 | M10: =Délais!M10 -> 2024 | N10: =Délais!N10 -> 2025 | O10: =Délais!O10 -> 2026 | P10: =Délais!P10 -> 2027 | Q10: =Délais!Q10 -> 2028 | R10: =Délais!R10 -> 2029 | S10: =Délais!S10 -> 2030 | T10: =Délais!T10 -> 2031 | U10: =Délais!U10 -> 2032 | V10: =Délais!V10 -> 2033 | W10: =Délais!W10 -> 2034 | X10: =Délais!X10 -> 2035 | Y10: =Délais!Y10 -> 2036 | Z10: =Délais!Z10 -> 2037 | AA10: =Délais!AA10 -> 2038 | AB10: =Délais!AB10 -> 2039 | AC10: =Délais!AC10 -> 2040 | AD10: =Délais!AD10 -> 2041 | AE10: =Délais!AE10 -> 2042 | AF10: =Délais!AF10 -> 2043 | AG10: =Délais!AG10 -> 2044 | AH10: =Délais!AH10 -> 2045 | AI10: =Délais!AI10 -> 2046 | AJ10: =Délais!AJ10 -> 2047 | AK10: =Délais!AK10 -> 2048 | AL10: =Délais!AL10 -> 2049 | AM10: =Délais!AM10 -> 2050 | AN10: =Délais!AN10 -> 2051 | AO10: =Délais!AO10 -> 2052 | AP10: =Délais!AP10 -> 2053 | AQ10: =Délais!AQ10 -> 2054 | AR10: =Délais!AR10 -> 2055 | AS10: =Délais!AS10 -> 2056 | AT10: =Délais!AT10 -> 2057 | AU10: =Délais!AU10 -> 2058 | AV10: =Délais!AV10 -> 2059 | AW10: =Délais!AW10 -> 2060 | AX10: =Délais!AX10 -> 2061 | AY10: =Délais!AY10 -> 2062 | AZ10: =Délais!AZ10 -> 2063 | BA10: =Délais!BA10 -> 2064 | BB10: =Délais!BB10 -> 2065 | BC10: =Délais!BC10 -> 2066 | BD10: =Délais!BD10 -> 2067 | BE10: =Délais!BE10 -> 2068 | BF10: =Délais!BF10 -> 2069 | BG10: =Délais!BG10 -> 2070 | BH10: =Délais!BH10 -> 2071 | BI10: =Délais!BI10 -> 2072 | BJ10: =Délais!BJ10 -> 2073 | BK10: =Délais!BK10 -> 2074 | BL10: =Délais!BL10 -> 2075 | BM10: =Délais!BM10 -> 2076
C11: Days in Period | D11: Nombre de jours de la période | E11: Num# | J11: =Délais!J11 -> 31 | K11: =Délais!K11 -> 365 | L11: =Délais!L11 -> 365 | M11: =Délais!M11 -> 366 | N11: =Délais!N11 -> 365 | O11: =Délais!O11 -> 365 | P11: =Délais!P11 -> 365 | Q11: =Délais!Q11 -> 366 | R11: =Délais!R11 -> 365 | S11: =Délais!S11 -> 365 | T11: =Délais!T11 -> 365 | U11: =Délais!U11 -> 366 | V11: =Délais!V11 -> 365 | W11: =Délais!W11 -> 365 | X11: =Délais!X11 -> 365 | Y11: =Délais!Y11 -> 366 | Z11: =Délais!Z11 -> 365 | AA11: =Délais!AA11 -> 365 | AB11: =Délais!AB11 -> 365 | AC11: =Délais!AC11 -> 366 | AD11: =Délais!AD11 -> 365 | AE11: =Délais!AE11 -> 365 | AF11: =Délais!AF11 -> 365 | AG11: =Délais!AG11 -> 366 | AH11: =Délais!AH11 -> 365 | AI11: =Délais!AI11 -> 365 | AJ11: =Délais!AJ11 -> 365 | AK11: =Délais!AK11 -> 366 | AL11: =Délais!AL11 -> 365 | AM11: =Délais!AM11 -> 365 | AN11: =Délais!AN11 -> 365 | AO11: =Délais!AO11 -> 366 | AP11: =Délais!AP11 -> 365 | AQ11: =Délais!AQ11 -> 365 | AR11: =Délais!AR11 -> 365 | AS11: =Délais!AS11 -> 366 | AT11: =Délais!AT11 -> 365 | AU11: =Délais!AU11 -> 365 | AV11: =Délais!AV11 -> 365 | AW11: =Délais!AW11 -> 366 | AX11: =Délais!AX11 -> 365 | AY11: =Délais!AY11 -> 365 | AZ11: =Délais!AZ11 -> 365 | BA11: =Délais!BA11 -> 366 | BB11: =Délais!BB11 -> 365 | BC11: =Délais!BC11 -> 365 | BD11: =Délais!BD11 -> 365 | BE11: =Délais!BE11 -> 366 | BF11: =Délais!BF11 -> 365 | BG11: =Délais!BG11 -> 365 | BH11: =Délais!BH11 -> 365 | BI11: =Délais!BI11 -> 366 | BJ11: =Délais!BJ11 -> 365 | BK11: =Délais!BK11 -> 365 | BL11: =Délais!BL11 -> 365 | BM11: =Délais!BM11 -> 366
C13: Construction Period | D13: Période de construction | E13: Num# | J13: =Délais!J13 -> 1 | K13: =Délais!K13 -> 0 | L13: =Délais!L13 -> 0 | M13: =Délais!M13 -> 0 | N13: =Délais!N13 -> 0 | O13: =Délais!O13 -> 0 | P13: =Délais!P13 -> 0 | Q13: =Délais!Q13 -> 0 | R13: =Délais!R13 -> 0 | S13: =Délais!S13 -> 0 | T13: =Délais!T13 -> 0 | U13: =Délais!U13 -> 0 | V13: =Délais!V13 -> 0 | W13: =Délais!W13 -> 0 | X13: =Délais!X13 -> 0 | Y13: =Délais!Y13 -> 0 | Z13: =Délais!Z13 -> 0 | AA13: =Délais!AA13 -> 0 | AB13: =Délais!AB13 -> 0 | AC13: =Délais!AC13 -> 0 | AD13: =Délais!AD13 -> 0 | AE13: =Délais!AE13 -> 0 | AF13: =Délais!AF13 -> 0 | AG13: =Délais!AG13 -> 0 | AH13: =Délais!AH13 -> 0 | AI13: =Délais!AI13 -> 0 | AJ13: =Délais!AJ13 -> 0 | AK13: =Délais!AK13 -> 0 | AL13: =Délais!AL13 -> 0 | AM13: =Délais!AM13 -> 0 | AN13: =Délais!AN13 -> 0 | AO13: =Délais!AO13 -> 0 | AP13: =Délais!AP13 -> 0 | AQ13: =Délais!AQ13 -> 0 | AR13: =Délais!AR13 -> 0 | AS13: =Délais!AS13 -> 0 | AT13: =Délais!AT13 -> 0 | AU13: =Délais!AU13 -> 0 | AV13: =Délais!AV13 -> 0 | AW13: =Délais!AW13 -> 0 | AX13: =Délais!AX13 -> 0 | AY13: =Délais!AY13 -> 0 | AZ13: =Délais!AZ13 -> 0 | BA13: =Délais!BA13 -> 0 | BB13: =Délais!BB13 -> 0 | BC13: =Délais!BC13 -> 0 | BD13: =Délais!BD13 -> 0 | BE13: =Délais!BE13 -> 0 | BF13: =Délais!BF13 -> 0 | BG13: =Délais!BG13 -> 0 | BH13: =Délais!BH13 -> 0 | BI13: =Délais!BI13 -> 0 | BJ13: =Délais!BJ13 -> 0 | BK13: =Délais!BK13 -> 0 | BL13: =Délais!BL13 -> 0 | BM13: =Délais!BM13 -> 0
C14: Operations Period | D14: Période d'exploitation | E14: Num# | J14: =Délais!J14 -> 0 | K14: =Délais!K14 -> 1 | L14: =Délais!L14 -> 2 | M14: =Délais!M14 -> 3 | N14: =Délais!N14 -> 4 | O14: =Délais!O14 -> 5 | P14: =Délais!P14 -> 6 | Q14: =Délais!Q14 -> 7 | R14: =Délais!R14 -> 8 | S14: =Délais!S14 -> 9 | T14: =Délais!T14 -> 10 | U14: =Délais!U14 -> 11 | V14: =Délais!V14 -> 12 | W14: =Délais!W14 -> 13 | X14: =Délais!X14 -> 14 | Y14: =Délais!Y14 -> 15 | Z14: =Délais!Z14 -> 16 | AA14: =Délais!AA14 -> 17 | AB14: =Délais!AB14 -> 18 | AC14: =Délais!AC14 -> 19 | AD14: =Délais!AD14 -> 20 | AE14: =Délais!AE14 -> 0 | AF14: =Délais!AF14 -> 0 | AG14: =Délais!AG14 -> 0 | AH14: =Délais!AH14 -> 0 | AI14: =Délais!AI14 -> 0 | AJ14: =Délais!AJ14 -> 0 | AK14: =Délais!AK14 -> 0 | AL14: =Délais!AL14 -> 0 | AM14: =Délais!AM14 -> 0 | AN14: =Délais!AN14 -> 0 | AO14: =Délais!AO14 -> 0 | AP14: =Délais!AP14 -> 0 | AQ14: =Délais!AQ14 -> 0 | AR14: =Délais!AR14 -> 0 | AS14: =Délais!AS14 -> 0 | AT14: =Délais!AT14 -> 0 | AU14: =Délais!AU14 -> 0 | AV14: =Délais!AV14 -> 0 | AW14: =Délais!AW14 -> 0 | AX14: =Délais!AX14 -> 0 | AY14: =Délais!AY14 -> 0 | AZ14: =Délais!AZ14 -> 0 | BA14: =Délais!BA14 -> 0 | BB14: =Délais!BB14 -> 0 | BC14: =Délais!BC14 -> 0 | BD14: =Délais!BD14 -> 0 | BE14: =Délais!BE14 -> 0 | BF14: =Délais!BF14 -> 0 | BG14: =Délais!BG14 -> 0 | BH14: =Délais!BH14 -> 0 | BI14: =Délais!BI14 -> 0 | BJ14: =Délais!BJ14 -> 0 | BK14: =Délais!BK14 -> 0 | BL14: =Délais!BL14 -> 0 | BM14: =Délais!BM14 -> 0
C16: System Cost | D16: Coût de l'installation
C17: Spend Profile | D17: Liste des dépenses | E17: % | J17: 1
C18: Applied System Cost | D18: Coût de l'installation appliqué | E18: DT | F18: =Données!G20 -> 22000 | I18: =SUM(J18:BM18) -> 22000 | J18: =$F$18*J17 -> 22000 | K18: =$F$18*K17 -> 0 | L18: 0 | M18: =IF(M$6=0,0,LOOKUP(M$13,Données!#REF!,Données!#REF!)) -> 0 | N18: =IF(N$6=0,0,LOOKUP(N$13,Données!#REF!,Données!#REF!)) -> 0 | O18: =IF(O$6=0,0,LOOKUP(O$13,Données!#REF!,Données!#REF!)) -> 0 | P18: =IF(P$6=0,0,LOOKUP(P$13,Données!#REF!,Données!#REF!)) -> 0 | Q18: =IF(Q$6=0,0,LOOKUP(Q$13,Données!#REF!,Données!#REF!)) -> 0 | R18: =IF(R$6=0,0,LOOKUP(R$13,Données!#REF!,Données!#REF!)) -> 0 | S18: =IF(S$6=0,0,LOOKUP(S$13,Données!#REF!,Données!#REF!)) -> 0 | T18: =IF(T$6=0,0,LOOKUP(T$13,Données!#REF!,Données!#REF!)) -> 0 | U18: =IF(U$6=0,0,LOOKUP(U$13,Données!#REF!,Données!#REF!)) -> 0 | V18: =IF(V$6=0,0,LOOKUP(V$13,Données!#REF!,Données!#REF!)) -> 0 | W18: =IF(W$6=0,0,LOOKUP(W$13,Données!#REF!,Données!#REF!)) -> 0 | X18: =IF(X$6=0,0,LOOKUP(X$13,Données!#REF!,Données!#REF!)) -> 0 | Y18: =IF(Y$6=0,0,LOOKUP(Y$13,Données!#REF!,Données!#REF!)) -> 0 | Z18: =IF(Z$6=0,0,LOOKUP(Z$13,Données!#REF!,Données!#REF!)) -> 0 | AA18: =IF(AA$6=0,0,LOOKUP(AA$13,Données!#REF!,Données!#REF!)) -> 0 | AB18: =IF(AB$6=0,0,LOOKUP(AB$13,Données!#REF!,Données!#REF!)) -> 0 | AC18: =IF(AC$6=0,0,LOOKUP(AC$13,Données!#REF!,Données!#REF!)) -> 0 | AD18: =IF(AD$6=0,0,LOOKUP(AD$13,Données!#REF!,Données!#REF!)) -> 0 | AE18: =IF(AE$6=0,0,LOOKUP(AE$13,Données!#REF!,Données!#REF!)) -> 0 | AF18: =IF(AF$6=0,0,LOOKUP(AF$13,Données!#REF!,Données!#REF!)) -> 0 | AG18: =IF(AG$6=0,0,LOOKUP(AG$13,Données!#REF!,Données!#REF!)) -> 0 | AH18: =IF(AH$6=0,0,LOOKUP(AH$13,Données!#REF!,Données!#REF!)) -> 0 | AI18: =IF(AI$6=0,0,LOOKUP(AI$13,Données!#REF!,Données!#REF!)) -> 0 | AJ18: =IF(AJ$6=0,0,LOOKUP(AJ$13,Données!#REF!,Données!#REF!)) -> 0 | AK18: =IF(AK$6=0,0,LOOKUP(AK$13,Données!#REF!,Données!#REF!)) -> 0 | AL18: =IF(AL$6=0,0,LOOKUP(AL$13,Données!#REF!,Données!#REF!)) -> 0 | AM18: =IF(AM$6=0,0,LOOKUP(AM$13,Données!#REF!,Données!#REF!)) -> 0 | AN18: =IF(AN$6=0,0,LOOKUP(AN$13,Données!#REF!,Données!#REF!)) -> 0 | AO18: =IF(AO$6=0,0,LOOKUP(AO$13,Données!#REF!,Données!#REF!)) -> 0 | AP18: =IF(AP$6=0,0,LOOKUP(AP$13,Données!#REF!,Données!#REF!)) -> 0 | AQ18: =IF(AQ$6=0,0,LOOKUP(AQ$13,Données!#REF!,Données!#REF!)) -> 0 | AR18: =IF(AR$6=0,0,LOOKUP(AR$13,Données!#REF!,Données!#REF!)) -> 0 | AS18: =IF(AS$6=0,0,LOOKUP(AS$13,Données!#REF!,Données!#REF!)) -> 0 | AT18: =IF(AT$6=0,0,LOOKUP(AT$13,Données!#REF!,Données!#REF!)) -> 0 | AU18: =IF(AU$6=0,0,LOOKUP(AU$13,Données!#REF!,Données!#REF!)) -> 0 | AV18: =IF(AV$6=0,0,LOOKUP(AV$13,Données!#REF!,Données!#REF!)) -> 0 | AW18: =IF(AW$6=0,0,LOOKUP(AW$13,Données!#REF!,Données!#REF!)) -> 0 | AX18: =IF(AX$6=0,0,LOOKUP(AX$13,Données!#REF!,Données!#REF!)) -> 0 | AY18: =IF(AY$6=0,0,LOOKUP(AY$13,Données!#REF!,Données!#REF!)) -> 0 | AZ18: =IF(AZ$6=0,0,LOOKUP(AZ$13,Données!#REF!,Données!#REF!)) -> 0 | BA18: =IF(BA$6=0,0,LOOKUP(BA$13,Données!#REF!,Données!#REF!)) -> 0 | BB18: =IF(BB$6=0,0,LOOKUP(BB$13,Données!#REF!,Données!#REF!)) -> 0 | BC18: =IF(BC$6=0,0,LOOKUP(BC$13,Données!#REF!,Données!#REF!)) -> 0 | BD18: =IF(BD$6=0,0,LOOKUP(BD$13,Données!#REF!,Données!#REF!)) -> 0 | BE18: =IF(BE$6=0,0,LOOKUP(BE$13,Données!#REF!,Données!#REF!)) -> 0 | BF18: =IF(BF$6=0,0,LOOKUP(BF$13,Données!#REF!,Données!#REF!)) -> 0 | BG18: =IF(BG$6=0,0,LOOKUP(BG$13,Données!#REF!,Données!#REF!)) -> 0 | BH18: =IF(BH$6=0,0,LOOKUP(BH$13,Données!#REF!,Données!#REF!)) -> 0 | BI18: =IF(BI$6=0,0,LOOKUP(BI$13,Données!#REF!,Données!#REF!)) -> 0 | BJ18: =IF(BJ$6=0,0,LOOKUP(BJ$13,Données!#REF!,Données!#REF!)) -> 0 | BK18: =IF(BK$6=0,0,LOOKUP(BK$13,Données!#REF!,Données!#REF!)) -> 0 | BL18: =IF(BL$6=0,0,LOOKUP(BL$13,Données!#REF!,Données!#REF!)) -> 0 | BM18: =IF(BM$6=0,0,LOOKUP(BM$13,Données!#REF!,Données!#REF!)) -> 0
C20: Funding Uses | D20: Utilisation du financement
C21: Construction costs | D21: Coûts de construction | E21: DT | I21: =SUM(J21:BM21) -> 22000 | J21: =J18 -> 22000 | K21: =K18 -> 0 | L21: 0 | M21: 0 | N21: 0 | O21: 0 | P21: 0 | Q21: 0 | R21: 0 | S21: 0 | T21: 0 | U21: 0 | V21: 0 | W21: 0 | X21: 0 | Y21: 0 | Z21: 0 | AA21: 0 | AB21: 0 | AC21: 0 | AD21: 0 | AE21: 0 | AF21: 0 | AG21: 0 | AH21: 0 | AI21: 0 | AJ21: 0 | AK21: 0 | AL21: 0 | AM21: 0 | AN21: 0 | AO21: 0 | AP21: 0 | AQ21: 0 | AR21: 0 | AS21: 0 | AT21: 0 | AU21: 0 | AV21: 0 | AW21: 0 | AX21: 0 | AY21: 0 | AZ21: 0 | BA21: 0 | BB21: 0 | BC21: 0 | BD21: 0 | BE21: 0 | BF21: 0 | BG21: 0 | BH21: 0 | BI21: 0 | BJ21: 0 | BK21: 0 | BL21: 0 | BM21: 0
C22: Interest during construction | D22: Frais d'intérêts engendrés au cours des travaux | E22: DT | I22: 0 | J22: =J57 -> 0 | K22: =K57 -> 0 | L22: 0 | M22: 0 | N22: 0 | O22: 0 | P22: 0 | Q22: 0 | R22: 0 | S22: 0 | T22: 0 | U22: 0 | V22: 0 | W22: 0 | X22: 0 | Y22: 0 | Z22: 0 | AA22: 0 | AB22: 0 | AC22: 0 | AD22: 0 | AE22: 0 | AF22: 0 | AG22: 0 | AH22: 0 | AI22: 0 | AJ22: 0 | AK22: 0 | AL22: 0 | AM22: 0 | AN22: 0 | AO22: 0 | AP22: 0 | AQ22: 0 | AR22: 0 | AS22: 0 | AT22: 0 | AU22: 0 | AV22: 0 | AW22: 0 | AX22: 0 | AY22: 0 | AZ22: 0 | BA22: 0 | BB22: 0 | BC22: 0 | BD22: 0 | BE22: 0 | BF22: 0 | BG22: 0 | BH22: 0 | BI22: 0 | BJ22: 0 | BK22: 0 | BL22: 0 | BM22: 0
C23: Financing fees | D23: Frais de financement | E23: DT | I23: 165.4445205 | J23: =J62 -> 165.4445205 | K23: =K62 -> 0 | L23: 0 | M23: 0 | N23: 0 | O23: 0 | P23: 0 | Q23: 0 | R23: 0 | S23: 0 | T23: 0 | U23: 0 | V23: 0 | W23: 0 | X23: 0 | Y23: 0 | Z23: 0 | AA23: 0 | AB23: 0 | AC23: 0 | AD23: 0 | AE23: 0 | AF23: 0 | AG23: 0 | AH23: 0 | AI23: 0 | AJ23: 0 | AK23: 0 | AL23: 0 | AM23: 0 | AN23: 0 | AO23: 0 | AP23: 0 | AQ23: 0 | AR23: 0 | AS23: 0 | AT23: 0 | AU23: 0 | AV23: 0 | AW23: 0 | AX23: 0 | AY23: 0 | AZ23: 0 | BA23: 0 | BB23: 0 | BC23: 0 | BD23: 0 | BE23: 0 | BF23: 0 | BG23: 0 | BH23: 0 | BI23: 0 | BJ23: 0 | BK23: 0 | BL23: 0 | BM23: 0
C24: Total | D24: Total | E24: DT | I24: 22165.44452 | J24: =SUM(J21:J23) -> 22165.44452 | K24: =SUM(K21:K23) -> 0 | L24: 0 | M24: 0 | N24: 0 | O24: 0 | P24: 0 | Q24: 0 | R24: 0 | S24: 0 | T24: 0 | U24: 0 | V24: 0 | W24: 0 | X24: 0 | Y24: 0 | Z24: 0 | AA24: 0 | AB24: 0 | AC24: 0 | AD24: 0 | AE24: 0 | AF24: 0 | AG24: 0 | AH24: 0 | AI24: 0 | AJ24: 0 | AK24: 0 | AL24: 0 | AM24: 0 | AN24: 0 | AO24: 0 | AP24: 0 | AQ24: 0 | AR24: 0 | AS24: 0 | AT24: 0 | AU24: 0 | AV24: 0 | AW24: 0 | AX24: 0 | AY24: 0 | AZ24: 0 | BA24: 0 | BB24: 0 | BC24: 0 | BD24: 0 | BE24: 0 | BF24: 0 | BG24: 0 | BH24: 0 | BI24: 0 | BJ24: 0 | BK24: 0 | BL24: 0 | BM24: 0
C26: Funding Sources | D26: Sources de financement
C27: Equity drawdowns | D27: Prélèvements de capitaux propres | E27: DT | I27: -6600 | J27: =-MIN(J24,J41) -> -6600 | K27: 0 | L27: 0 | M27: 0 | N27: 0 | O27: 0 | P27: 0 | Q27: 0 | R27: 0 | S27: 0 | T27: 0 | U27: 0 | V27: 0 | W27: 0 | X27: 0 | Y27: 0 | Z27: 0 | AA27: 0 | AB27: 0 | AC27: 0 | AD27: 0 | AE27: 0 | AF27: 0 | AG27: 0 | AH27: 0 | AI27: 0 | AJ27: 0 | AK27: 0 | AL27: 0 | AM27: 0 | AN27: 0 | AO27: 0 | AP27: =-MIN(AP24,AP41) -> 0 | AQ27: 0 | AR27: 0 | AS27: 0 | AT27: 0 | AU27: 0 | AV27: 0 | AW27: 0 | AX27: 0 | AY27: 0 | AZ27: 0 | BA27: 0 | BB27: 0 | BC27: 0 | BD27: 0 | BE27: 0 | BF27: 0 | BG27: 0 | BH27: 0 | BI27: 0 | BJ27: 0 | BK27: 0 | BL27: 0 | BM27: 0
C28: Funding Required | D28: Financement requis | E28: DT | I28: 15565.44452 | J28: =J24+J27 -> 15565.44452 | K28: 0 | L28: 0 | M28: 0 | N28: 0 | O28: 0 | P28: 0 | Q28: 0 | R28: 0 | S28: 0 | T28: 0 | U28: 0 | V28: 0 | W28: 0 | X28: 0 | Y28: 0 | Z28: 0 | AA28: 0 | AB28: 0 | AC28: 0 | AD28: 0 | AE28: 0 | AF28: 0 | AG28: 0 | AH28: 0 | AI28: 0 | AJ28: 0 | AK28: 0 | AL28: 0 | AM28: 0 | AN28: 0 | AO28: 0 | AP28: =AP24+AP27 -> 0 | AQ28: 0 | AR28: 0 | AS28: 0 | AT28: 0 | AU28: 0 | AV28: 0 | AW28: 0 | AX28: 0 | AY28: 0 | AZ28: 0 | BA28: 0 | BB28: 0 | BC28: 0 | BD28: 0 | BE28: 0 | BF28: 0 | BG28: 0 | BH28: 0 | BI28: 0 | BJ28: 0 | BK28: 0 | BL28: 0 | BM28: 0
C30: Debt drawdowns | D30: Prélèvements de dette | E30: DT | I30: -15400 | J30: =-MIN(J28,J49) -> -15400 | K30: 0 | L30: 0 | M30: 0 | N30: 0 | O30: 0 | P30: 0 | Q30: 0 | R30: 0 | S30: 0 | T30: 0 | U30: 0 | V30: 0 | W30: 0 | X30: 0 | Y30: 0 | Z30: 0 | AA30: 0 | AB30: 0 | AC30: 0 | AD30: 0 | AE30: 0 | AF30: 0 | AG30: 0 | AH30: 0 | AI30: 0 | AJ30: 0 | AK30: 0 | AL30: 0 | AM30: 0 | AN30: 0 | AO30: 0 | AP30: =-MIN(AP28,AP49) -> 0 | AQ30: 0 | AR30: 0 | AS30: 0 | AT30: 0 | AU30: 0 | AV30: 0 | AW30: 0 | AX30: 0 | AY30: 0 | AZ30: 0 | BA30: 0 | BB30: 0 | BC30: 0 | BD30: 0 | BE30: 0 | BF30: 0 | BG30: 0 | BH30: 0 | BI30: 0 | BJ30: 0 | BK30: 0 | BL30: 0 | BM30: 0
C31: Funding Required | D31: Financement requis | E31: DT | I31: =SUM(J31:BM31) -> 165.444521 | J31: =ROUND(J28+J30,6) -> 165.444521 | K31: =ROUND(K28+K30,6) -> 0 | L31: 0 | M31: 0 | N31: 0 | O31: 0 | P31: 0 | Q31: 0 | R31: 0 | S31: 0 | T31: 0 | U31: 0 | V31: 0 | W31: 0 | X31: 0 | Y31: 0 | Z31: 0 | AA31: 0 | AB31: 0 | AC31: 0 | AD31: 0 | AE31: 0 | AF31: 0 | AG31: 0 | AH31: 0 | AI31: 0 | AJ31: 0 | AK31: 0 | AL31: 0 | AM31: 0 | AN31: 0 | AO31: 0 | AP31: 0 | AQ31: 0 | AR31: 0 | AS31: 0 | AT31: 0 | AU31: 0 | AV31: 0 | AW31: 0 | AX31: 0 | AY31: 0 | AZ31: 0 | BA31: 0 | BB31: 0 | BC31: 0 | BD31: 0 | BE31: 0 | BF31: 0 | BG31: 0 | BH31: 0 | BI31: 0 | BJ31: 0 | BK31: 0 | BL31: 0 | BM31: 0
C33: Additional Equity | D33: Capitaux propres supplémentaires | E33: DT | I33: =SUM(J33:BM33) -> -165.444521 | J33: =-J31 -> -165.444521 | K33: =-K31 -> 0 | L33: 0 | M33: 0 | N33: 0 | O33: 0 | P33: 0 | Q33: 0 | R33: 0 | S33: 0 | T33: 0 | U33: 0 | V33: 0 | W33: 0 | X33: 0 | Y33: 0 | Z33: 0 | AA33: 0 | AB33: 0 | AC33: 0 | AD33: 0 | AE33: 0 | AF33: 0 | AG33: 0 | AH33: 0 | AI33: 0 | AJ33: 0 | AK33: 0 | AL33: 0 | AM33: 0 | AN33: 0 | AO33: 0 | AP33: 0 | AQ33: 0 | AR33: 0 | AS33: 0 | AT33: 0 | AU33: 0 | AV33: 0 | AW33: 0 | AX33: 0 | AY33: 0 | AZ33: 0 | BA33: 0 | BB33: 0 | BC33: 0 | BD33: 0 | BE33: 0 | BF33: 0 | BG33: 0 | BH33: 0 | BI33: 0 | BJ33: 0 | BK33: 0 | BL33: 0 | BM33: 0
C34: Shortfall | D34: Déficit | E34: DT | I34: =SUM(J34:BM34) -> 0 | J34: =J31+J33 -> 0 | K34: =K31+K33 -> 0 | L34: 0 | M34: 0 | N34: 0 | O34: 0 | P34: 0 | Q34: 0 | R34: 0 | S34: 0 | T34: 0 | U34: 0 | V34: 0 | W34: 0 | X34: 0 | Y34: 0 | Z34: 0 | AA34: 0 | AB34: 0 | AC34: 0 | AD34: 0 | AE34: 0 | AF34: 0 | AG34: 0 | AH34: 0 | AI34: 0 | AJ34: 0 | AK34: 0 | AL34: 0 | AM34: 0 | AN34: 0 | AO34: 0 | AP34: 0 | AQ34: 0 | AR34: 0 | AS34: 0 | AT34: 0 | AU34: 0 | AV34: 0 | AW34: 0 | AX34: 0 | AY34: 0 | AZ34: 0 | BA34: 0 | BB34: 0 | BC34: 0 | BD34: 0 | BE34: 0 | BF34: 0 | BG34: 0 | BH34: 0 | BI34: 0 | BJ34: 0 | BK34: 0 | BL34: 0 | BM34: 0
C36: Equity | D36: Capitaux propres
C37: Balance b/f | D37: Solde de trésorerie reporté | E37: DT | J37: =I39 -> 0 | K37: =J39 -> 6600 | L37: 6600 | M37: 6600 | N37: 6600 | O37: 6600 | P37: 6600 | Q37: 6600 | R37: 6600 | S37: 6600 | T37: 6600 | U37: 6600 | V37: 6600 | W37: 6600 | X37: 6600 | Y37: 6600 | Z37: 6600 | AA37: 6600 | AB37: 6600 | AC37: 6600 | AD37: 6600 | AE37: 6600 | AF37: 6600 | AG37: 6600 | AH37: 6600 | AI37: 6600 | AJ37: 6600 | AK37: 6600 | AL37: 6600 | AM37: 6600 | AN37: 6600 | AO37: 6600 | AP37: 6600 | AQ37: 6600 | AR37: 6600 | AS37: 6600 | AT37: 6600 | AU37: 6600 | AV37: 6600 | AW37: 6600 | AX37: 6600 | AY37: 6600 | AZ37: 6600 | BA37: 6600 | BB37: 6600 | BC37: 6600 | BD37: 6600 | BE37: 6600 | BF37: 6600 | BG37: 6600 | BH37: 6600 | BI37: 6600 | BJ37: 6600 | BK37: 6600 | BL37: 6600 | BM37: 6600
C38: Drawdowns | D38: Prélèvements | E38: DT | I38: =SUM(J38:BM38) -> 6600 | J38: =-J27 -> 6600 | K38: 0 | L38: 0 | M38: 0 | N38: 0 | O38: 0 | P38: 0 | Q38: 0 | R38: 0 | S38: 0 | T38: 0 | U38: 0 | V38: 0 | W38: 0 | X38: 0 | Y38: 0 | Z38: 0 | AA38: 0 | AB38: 0 | AC38: 0 | AD38: 0 | AE38: 0 | AF38: 0 | AG38: 0 | AH38: 0 | AI38: 0 | AJ38: 0 | AK38: 0 | AL38: 0 | AM38: 0 | AN38: 0 | AO38: 0 | AP38: =-AP27 -> 0 | AQ38: 0 | AR38: 0 | AS38: 0 | AT38: 0 | AU38: 0 | AV38: 0 | AW38: 0 | AX38: 0 | AY38: 0 | AZ38: 0 | BA38: 0 | BB38: 0 | BC38: 0 | BD38: 0 | BE38: 0 | BF38: 0 | BG38: 0 | BH38: 0 | BI38: 0 | BJ38: 0 | BK38: 0 | BL38: 0 | BM38: 0
C39: Balance c/f | D39: Solde de trésorerie à la clôture | E39: DT | J39: =SUM(J37:J38) -> 6600 | K39: 6600 | L39: 6600 | M39: 6600 | N39: 6600 | O39: 6600 | P39: 6600 | Q39: 6600 | R39: 6600 | S39: 6600 | T39: 6600 | U39: 6600 | V39: 6600 | W39: 6600 | X39: 6600 | Y39: 6600 | Z39: 6600 | AA39: 6600 | AB39: 6600 | AC39: 6600 | AD39: 6600 | AE39: 6600 | AF39: 6600 | AG39: 6600 | AH39: 6600 | AI39: 6600 | AJ39: 6600 | AK39: 6600 | AL39: 6600 | AM39: 6600 | AN39: 6600 | AO39: 6600 | AP39: =SUM(AP37:AP38) -> 6600 | AQ39: 6600 | AR39: 6600 | AS39: 6600 | AT39: 6600 | AU39: 6600 | AV39: 6600 | AW39: 6600 | AX39: 6600 | AY39: 6600 | AZ39: 6600 | BA39: 6600 | BB39: 6600 | BC39: 6600 | BD39: 6600 | BE39: 6600 | BF39: 6600 | BG39: 6600 | BH39: 6600 | BI39: 6600 | BJ39: 6600 | BK39: 6600 | BL39: 6600 | BM39: 6600
C41: Undrawn Amount @ start | D41: Montants non prélevés au départ | E41: DT | F41: =Données!G94 -> 6600 | J41: =$F41-J37 -> 6600 | K41: =$F41-K37 -> 0 | L41: 0 | M41: 0 | N41: 0 | O41: 0 | P41: 0 | Q41: 0 | R41: 0 | S41: 0 | T41: 0 | U41: 0 | V41: 0 | W41: 0 | X41: 0 | Y41: 0 | Z41: 0 | AA41: 0 | AB41: 0 | AC41: 0 | AD41: 0 | AE41: 0 | AF41: 0 | AG41: 0 | AH41: 0 | AI41: 0 | AJ41: 0 | AK41: 0 | AL41: 0 | AM41: 0 | AN41: 0 | AO41: 0 | AP41: 0 | AQ41: 0 | AR41: 0 | AS41: 0 | AT41: 0 | AU41: 0 | AV41: 0 | AW41: 0 | AX41: 0 | AY41: 0 | AZ41: 0 | BA41: 0 | BB41: 0 | BC41: 0 | BD41: 0 | BE41: 0 | BF41: 0 | BG41: 0 | BH41: 0 | BI41: 0 | BJ41: 0 | BK41: 0 | BL41: 0 | BM41: 0
C43: Debt | D43: Dette
C44: Balance b/f | D44: Solde de trésorerie reporté | E44: DT | J44: =I47 -> 0 | K44: =J47 -> 0 | L44: 0 | M44: 0 | N44: 0 | O44: 0 | P44: 0 | Q44: 0 | R44: 0 | S44: 0 | T44: 0 | U44: 0 | V44: 0 | W44: 0 | X44: 0 | Y44: 0 | Z44: 0 | AA44: 0 | AB44: 0 | AC44: 0 | AD44: 0 | AE44: 0 | AF44: 0 | AG44: 0 | AH44: 0 | AI44: 0 | AJ44: 0 | AK44: 0 | AL44: 0 | AM44: 0 | AN44: 0 | AO44: 0 | AP44: 0 | AQ44: 0 | AR44: 0 | AS44: 0 | AT44: 0 | AU44: 0 | AV44: 0 | AW44: 0 | AX44: 0 | AY44: 0 | AZ44: 0 | BA44: 0 | BB44: 0 | BC44: 0 | BD44: 0 | BE44: 0 | BF44: 0 | BG44: 0 | BH44: 0 | BI44: 0 | BJ44: 0 | BK44: 0 | BL44: 0 | BM44: 0
C45: Drawdowns | D45: Prélèvements | E45: DT | I45: =SUM(J45:BM45) -> 15400 | J45: =-J30 -> 15400 | K45: =-K30 -> 0 | L45: 0 | M45: 0 | N45: 0 | O45: 0 | P45: 0 | Q45: 0 | R45: 0 | S45: 0 | T45: 0 | U45: 0 | V45: 0 | W45: 0 | X45: 0 | Y45: 0 | Z45: 0 | AA45: 0 | AB45: 0 | AC45: 0 | AD45: 0 | AE45: 0 | AF45: 0 | AG45: 0 | AH45: 0 | AI45: 0 | AJ45: 0 | AK45: 0 | AL45: 0 | AM45: 0 | AN45: 0 | AO45: 0 | AP45: 0 | AQ45: 0 | AR45: 0 | AS45: 0 | AT45: 0 | AU45: 0 | AV45: 0 | AW45: 0 | AX45: 0 | AY45: 0 | AZ45: 0 | BA45: 0 | BB45: 0 | BC45: 0 | BD45: 0 | BE45: 0 | BF45: 0 | BG45: 0 | BH45: 0 | BI45: 0 | BJ45: 0 | BK45: 0 | BL45: 0 | BM45: 0
C46: Transfer to Funding sheet | D46: Montant repris dans la feuille "financement" | E46: DT | I46: =SUM(J46:BM46) -> -15400 | J46: =-IF(J5=EOMONTH(Données!G7,-1),SUM(J44:J45),0) -> -15400 | K46: =-IF(K5=EOMONTH(Données!G7,-1),SUM(K44:K45),0) -> 0 | L46: =-IF(L5=EOMONTH(Données!G7,-1),SUM(L44:L45),0) -> 0 | M46: =-IF(M5=EOMONTH(Données!G7,-1),SUM(M44:M45),0) -> 0 | N46: =-IF(N5=EOMONTH(Données!G7,-1),SUM(N44:N45),0) -> 0 | O46: =-IF(O5=EOMONTH(Données!G7,-1),SUM(O44:O45),0) -> 0 | P46: =-IF(P5=EOMONTH(Données!G7,-1),SUM(P44:P45),0) -> 0 | Q46: =-IF(Q5=EOMONTH(Données!G7,-1),SUM(Q44:Q45),0) -> 0 | R46: =-IF(R5=EOMONTH(Données!G7,-1),SUM(R44:R45),0) -> 0 | S46: =-IF(S5=EOMONTH(Données!G7,-1),SUM(S44:S45),0) -> 0 | T46: =-IF(T5=EOMONTH(Données!G7,-1),SUM(T44:T45),0) -> 0 | U46: =-IF(U5=EOMONTH(Données!G7,-1),SUM(U44:U45),0) -> 0 | V46: =-IF(V5=EOMONTH(Données!G7,-1),SUM(V44:V45),0) -> 0 | W46: =-IF(W5=EOMONTH(Données!G7,-1),SUM(W44:W45),0) -> 0 | X46: =-IF(X5=EOMONTH(Données!G7,-1),SUM(X44:X45),0) -> 0 | Y46: =-IF(Y5=EOMONTH(Données!G7,-1),SUM(Y44:Y45),0) -> 0 | Z46: =-IF(Z5=EOMONTH(Données!G7,-1),SUM(Z44:Z45),0) -> 0 | AA46: =-IF(AA5=EOMONTH(Données!G7,-1),SUM(AA44:AA45),0) -> 0 | AB46: =-IF(AB5=EOMONTH(Données!G7,-1),SUM(AB44:AB45),0) -> 0 | AC46: =-IF(AC5=EOMONTH(Données!G7,-1),SUM(AC44:AC45),0) -> 0 | AD46: =-IF(AD5=EOMONTH(Données!G7,-1),SUM(AD44:AD45),0) -> 0 | AE46: =-IF(AE5=EOMONTH(Données!G7,-1),SUM(AE44:AE45),0) -> 0 | AF46: =-IF(AF5=EOMONTH(Données!G7,-1),SUM(AF44:AF45),0) -> 0 | AG46: =-IF(AG5=EOMONTH(Données!G7,-1),SUM(AG44:AG45),0) -> 0 | AH46: =-IF(AH5=EOMONTH(Données!G7,-1),SUM(AH44:AH45),0) -> 0 | AI46: =-IF(AI5=EOMONTH(Données!G7,-1),SUM(AI44:AI45),0) -> 0 | AJ46: =-IF(AJ5=EOMONTH(Données!G7,-1),SUM(AJ44:AJ45),0) -> 0 | AK46: =-IF(AK5=EOMONTH(Données!G7,-1),SUM(AK44:AK45),0) -> 0 | AL46: =-IF(AL5=EOMONTH(Données!G7,-1),SUM(AL44:AL45),0) -> 0 | AM46: =-IF(AM5=EOMONTH(Données!G7,-1),SUM(AM44:AM45),0) -> 0 | AN46: =-IF(AN5=EOMONTH(Données!G7,-1),SUM(AN44:AN45),0) -> 0 | AO46: =-IF(AO5=EOMONTH(Données!G7,-1),SUM(AO44:AO45),0) -> 0 | AP46: =-IF(AP5=EOMONTH(Données!G7,-1),SUM(AP44:AP45),0) -> 0 | AQ46: =-IF(AQ5=EOMONTH(Données!G7,-1),SUM(AQ44:AQ45),0) -> 0 | AR46: =-IF(AR5=EOMONTH(Données!G7,-1),SUM(AR44:AR45),0) -> 0 | AS46: =-IF(AS5=EOMONTH(Données!G7,-1),SUM(AS44:AS45),0) -> 0 | AT46: =-IF(AT5=EOMONTH(Données!G7,-1),SUM(AT44:AT45),0) -> 0 | AU46: =-IF(AU5=EOMONTH(Données!G7,-1),SUM(AU44:AU45),0) -> 0 | AV46: =-IF(AV5=EOMONTH(Données!G7,-1),SUM(AV44:AV45),0) -> 0 | AW46: =-IF(AW5=EOMONTH(Données!G7,-1),SUM(AW44:AW45),0) -> 0 | AX46: =-IF(AX5=EOMONTH(Données!G7,-1),SUM(AX44:AX45),0) -> 0 | AY46: =-IF(AY5=EOMONTH(Données!G7,-1),SUM(AY44:AY45),0) -> 0 | AZ46: =-IF(AZ5=EOMONTH(Données!G7,-1),SUM(AZ44:AZ45),0) -> 0 | BA46: =-IF(BA5=EOMONTH(Données!G7,-1),SUM(BA44:BA45),0) -> 0 | BB46: =-IF(BB5=EOMONTH(Données!G7,-1),SUM(BB44:BB45),0) -> 0 | BC46: =-IF(BC5=EOMONTH(Données!G7,-1),SUM(BC44:BC45),0) -> 0 | BD46: =-IF(BD5=EOMONTH(Données!G7,-1),SUM(BD44:BD45),0) -> 0 | BE46: =-IF(BE5=EOMONTH(Données!G7,-1),SUM(BE44:BE45),0) -> 0 | BF46: =-IF(BF5=EOMONTH(Données!G7,-1),SUM(BF44:BF45),0) -> 0 | BG46: =-IF(BG5=EOMONTH(Données!G7,-1),SUM(BG44:BG45),0) -> 0 | BH46: =-IF(BH5=EOMONTH(Données!G7,-1),SUM(BH44:BH45),0) -> 0 | BI46: =-IF(BI5=EOMONTH(Données!G7,-1),SUM(BI44:BI45),0) -> 0 | BJ46: =-IF(BJ5=EOMONTH(Données!G7,-1),SUM(BJ44:BJ45),0) -> 0 | BK46: =-IF(BK5=EOMONTH(Données!G7,-1),SUM(BK44:BK45),0) -> 0 | BL46: =-IF(BL5=EOMONTH(Données!G7,-1),SUM(BL44:BL45),0) -> 0 | BM46: =-IF(BM5=EOMONTH(Données!G7,-1),SUM(BM44:BM45),0) -> 0
C47: Balance c/f | D47: Solde de trésorerie à la clôture | E47: DT | J47: =SUM(J44:J46) -> 0 | K47: =SUM(K44:K46) -> 0 | L47: 0 | M47: 0 | N47: 0 | O47: 0 | P47: 0 | Q47: 0 | R47: 0 | S47: 0 | T47: 0 | U47: 0 | V47: 0 | W47: 0 | X47: 0 | Y47: 0 | Z47: 0 | AA47: 0 | AB47: 0 | AC47: 0 | AD47: 0 | AE47: 0 | AF47: 0 | AG47: 0 | AH47: 0 | AI47: 0 | AJ47: 0 | AK47: 0 | AL47: 0 | AM47: 0 | AN47: 0 | AO47: 0 | AP47: 0 | AQ47: 0 | AR47: 0 | AS47: 0 | AT47: 0 | AU47: 0 | AV47: 0 | AW47: 0 | AX47: 0 | AY47: 0 | AZ47: 0 | BA47: 0 | BB47: 0 | BC47: 0 | BD47: 0 | BE47: 0 | BF47: 0 | BG47: 0 | BH47: 0 | BI47: 0 | BJ47: 0 | BK47: 0 | BL47: 0 | BM47: 0
C49: Undrawn Amount @ start | D49: Montants non prélevés au départ | E49: DT | F49: =Données!G78 -> 15400 | J49: =($F49-J44)*J6 -> 15400 | K49: 0 | L49: 0 | M49: 0 | N49: 0 | O49: 0 | P49: 0 | Q49: 0 | R49: 0 | S49: 0 | T49: 0 | U49: 0 | V49: 0 | W49: 0 | X49: 0 | Y49: 0 | Z49: 0 | AA49: 0 | AB49: 0 | AC49: 0 | AD49: 0 | AE49: 0 | AF49: 0 | AG49: 0 | AH49: 0 | AI49: 0 | AJ49: 0 | AK49: 0 | AL49: 0 | AM49: 0 | AN49: 0 | AO49: 0 | AP49: =($F49-AP44)*AP6 -> 0 | AQ49: 0 | AR49: 0 | AS49: 0 | AT49: 0 | AU49: 0 | AV49: 0 | AW49: 0 | AX49: 0 | AY49: 0 | AZ49: 0 | BA49: 0 | BB49: 0 | BC49: 0 | BD49: 0 | BE49: 0 | BF49: 0 | BG49: 0 | BH49: 0 | BI49: 0 | BJ49: 0 | BK49: 0 | BL49: 0 | BM49: 0
C51: Interest | D51: Interêt
C52: Base Rate | D52: Taux de référence | E52: % p.a. | J52: =LOOKUP(K10,Données!$G$106:$J$106,Données!$G$107:$J$107)*J6 -> 0.08 | K52: =LOOKUP(K10,Données!$G$106:$J$106,Données!$G$107:$J$107)*K6 -> 0 | L52: =LOOKUP(L10,Données!$G$106:$J$106,Données!$G$107:$J$107)*L6 -> 0 | M52: =LOOKUP(M10,Données!$G$106:$J$106,Données!$G$107:$J$107)*M6 -> 0 | N52: =LOOKUP(N10,Données!$G$106:$J$106,Données!$G$107:$J$107)*N6 -> 0 | O52: =LOOKUP(O10,Données!$G$106:$J$106,Données!$G$107:$J$107)*O6 -> 0 | P52: =LOOKUP(P10,Données!$G$106:$J$106,Données!$G$107:$J$107)*P6 -> 0 | Q52: =LOOKUP(Q10,Données!$G$106:$J$106,Données!$G$107:$J$107)*Q6 -> 0 | R52: =LOOKUP(R10,Données!$G$106:$J$106,Données!$G$107:$J$107)*R6 -> 0 | S52: =LOOKUP(S10,Données!$G$106:$J$106,Données!$G$107:$J$107)*S6 -> 0 | T52: =LOOKUP(T10,Données!$G$106:$J$106,Données!$G$107:$J$107)*T6 -> 0 | U52: =LOOKUP(U10,Données!$G$106:$J$106,Données!$G$107:$J$107)*U6 -> 0 | V52: =LOOKUP(V10,Données!$G$106:$J$106,Données!$G$107:$J$107)*V6 -> 0 | W52: =LOOKUP(W10,Données!$G$106:$J$106,Données!$G$107:$J$107)*W6 -> 0 | X52: =LOOKUP(X10,Données!$G$106:$J$106,Données!$G$107:$J$107)*X6 -> 0 | Y52: =LOOKUP(Y10,Données!$G$106:$J$106,Données!$G$107:$J$107)*Y6 -> 0 | Z52: =LOOKUP(Z10,Données!$G$106:$J$106,Données!$G$107:$J$107)*Z6 -> 0 | AA52: =LOOKUP(AA10,Données!$G$106:$J$106,Données!$G$107:$J$107)*AA6 -> 0 | AB52: =LOOKUP(AB10,Données!$G$106:$J$106,Données!$G$107:$J$107)*AB6 -> 0 | AC52: =LOOKUP(AC10,Données!$G$106:$J$106,Données!$G$107:$J$107)*AC6 -> 0 | AD52: =LOOKUP(AD10,Données!$G$106:$J$106,Données!$G$107:$J$107)*AD6 -> 0 | AE52: =LOOKUP(AE10,Données!$G$106:$J$106,Données!$G$107:$J$107)*AE6 -> 0 | AF52: =LOOKUP(AF10,Données!$G$106:$J$106,Données!$G$107:$J$107)*AF6 -> 0 | AG52: =LOOKUP(AG10,Données!$G$106:$J$106,Données!$G$107:$J$107)*AG6 -> 0 | AH52: =LOOKUP(AH10,Données!$G$106:$J$106,Données!$G$107:$J$107)*AH6 -> 0 | AI52: =LOOKUP(AI10,Données!$G$106:$J$106,Données!$G$107:$J$107)*AI6 -> 0 | AJ52: =LOOKUP(AJ10,Données!$G$106:$J$106,Données!$G$107:$J$107)*AJ6 -> 0 | AK52: =LOOKUP(AK10,Données!$G$106:$J$106,Données!$G$107:$J$107)*AK6 -> 0 | AL52: =LOOKUP(AL10,Données!$G$106:$J$106,Données!$G$107:$J$107)*AL6 -> 0 | AM52: =LOOKUP(AM10,Données!$G$106:$J$106,Données!$G$107:$J$107)*AM6 -> 0 | AN52: =LOOKUP(AN10,Données!$G$106:$J$106,Données!$G$107:$J$107)*AN6 -> 0 | AO52: =LOOKUP(AO10,Données!$G$106:$J$106,Données!$G$107:$J$107)*AO6 -> 0 | AP52: =LOOKUP(AP10,Données!$G$106:$J$106,Données!$G$107:$J$107)*AP6 -> 0 | AQ52: =LOOKUP(AQ10,Données!$G$106:$J$106,Données!$G$107:$J$107)*AQ6 -> 0 | AR52: =LOOKUP(AR10,Données!$G$106:$J$106,Données!$G$107:$J$107)*AR6 -> 0 | AS52: =LOOKUP(AS10,Données!$G$106:$J$106,Données!$G$107:$J$107)*AS6 -> 0 | AT52: =LOOKUP(AT10,Données!$G$106:$J$106,Données!$G$107:$J$107)*AT6 -> 0 | AU52: =LOOKUP(AU10,Données!$G$106:$J$106,Données!$G$107:$J$107)*AU6 -> 0 | AV52: =LOOKUP(AV10,Données!$G$106:$J$106,Données!$G$107:$J$107)*AV6 -> 0 | AW52: =LOOKUP(AW10,Données!$G$106:$J$106,Données!$G$107:$J$107)*AW6 -> 0 | AX52: =LOOKUP(AX10,Données!$G$106:$J$106,Données!$G$107:$J$107)*AX6 -> 0 | AY52: =LOOKUP(AY10,Données!$G$106:$J$106,Données!$G$107:$J$107)*AY6 -> 0 | AZ52: =LOOKUP(AZ10,Données!$G$106:$J$106,Données!$G$107:$J$107)*AZ6 -> 0 | BA52: =LOOKUP(BA10,Données!$G$106:$J$106,Données!$G$107:$J$107)*BA6 -> 0 | BB52: =LOOKUP(BB10,Données!$G$106:$J$106,Données!$G$107:$J$107)*BB6 -> 0 | BC52: =LOOKUP(BC10,Données!$G$106:$J$106,Données!$G$107:$J$107)*BC6 -> 0 | BD52: =LOOKUP(BD10,Données!$G$106:$J$106,Données!$G$107:$J$107)*BD6 -> 0 | BE52: =LOOKUP(BE10,Données!$G$106:$J$106,Données!$G$107:$J$107)*BE6 -> 0 | BF52: =LOOKUP(BF10,Données!$G$106:$J$106,Données!$G$107:$J$107)*BF6 -> 0 | BG52: =LOOKUP(BG10,Données!$G$106:$J$106,Données!$G$107:$J$107)*BG6 -> 0 | BH52: =LOOKUP(BH10,Données!$G$106:$J$106,Données!$G$107:$J$107)*BH6 -> 0 | BI52: =LOOKUP(BI10,Données!$G$106:$J$106,Données!$G$107:$J$107)*BI6 -> 0 | BJ52: =LOOKUP(BJ10,Données!$G$106:$J$106,Données!$G$107:$J$107)*BJ6 -> 0 | BK52: =LOOKUP(BK10,Données!$G$106:$J$106,Données!$G$107:$J$107)*BK6 -> 0 | BL52: =LOOKUP(BL10,Données!$G$106:$J$106,Données!$G$107:$J$107)*BL6 -> 0 | BM52: =LOOKUP(BM10,Données!$G$106:$J$106,Données!$G$107:$J$107)*BM6 -> 0
C53: Margin | D53: Marge | E53: % p.a. | F53: =Données!G81 -> 0.035 | J53: =$F$53*J6 -> 0.035 | K53: 0 | L53: 0 | M53: 0 | N53: 0 | O53: 0 | P53: 0 | Q53: 0 | R53: 0 | S53: 0 | T53: 0 | U53: 0 | V53: 0 | W53: 0 | X53: 0 | Y53: 0 | Z53: 0 | AA53: 0 | AB53: 0 | AC53: 0 | AD53: 0 | AE53: 0 | AF53: 0 | AG53: 0 | AH53: 0 | AI53: 0 | AJ53: 0 | AK53: 0 | AL53: 0 | AM53: 0 | AN53: 0 | AO53: 0 | AP53: =$F$53*AP6 -> 0 | AQ53: 0 | AR53: 0 | AS53: 0 | AT53: 0 | AU53: 0 | AV53: 0 | AW53: 0 | AX53: 0 | AY53: 0 | AZ53: 0 | BA53: 0 | BB53: 0 | BC53: 0 | BD53: 0 | BE53: 0 | BF53: 0 | BG53: 0 | BH53: 0 | BI53: 0 | BJ53: 0 | BK53: 0 | BL53: 0 | BM53: 0
C54: All-in rate | D54: Taux global | E54: % p.a. | J54: =SUM(J52:J53) -> 0.115 | K54: =SUM(K52:K53) -> 0 | L54: 0 | M54: 0 | N54: 0 | O54: 0 | P54: 0 | Q54: 0 | R54: 0 | S54: 0 | T54: 0 | U54: 0 | V54: 0 | W54: 0 | X54: 0 | Y54: 0 | Z54: 0 | AA54: 0 | AB54: 0 | AC54: 0 | AD54: 0 | AE54: 0 | AF54: 0 | AG54: 0 | AH54: 0 | AI54: 0 | AJ54: 0 | AK54: 0 | AL54: 0 | AM54: 0 | AN54: 0 | AO54: 0 | AP54: 0 | AQ54: 0 | AR54: 0 | AS54: 0 | AT54: 0 | AU54: 0 | AV54: 0 | AW54: 0 | AX54: 0 | AY54: 0 | AZ54: 0 | BA54: 0 | BB54: 0 | BC54: 0 | BD54: 0 | BE54: 0 | BF54: 0 | BG54: 0 | BH54: 0 | BI54: 0 | BJ54: 0 | BK54: 0 | BL54: 0 | BM54: 0
C55: All-in rate | D55: Taux global | E55: % p.m. | J55: =J54*J11/365 -> 0.009767123288 | K55: 0 | L55: 0 | M55: 0 | N55: 0 | O55: 0 | P55: 0 | Q55: 0 | R55: 0 | S55: 0 | T55: 0 | U55: 0 | V55: 0 | W55: 0 | X55: 0 | Y55: 0 | Z55: 0 | AA55: 0 | AB55: 0 | AC55: 0 | AD55: 0 | AE55: 0 | AF55: 0 | AG55: 0 | AH55: 0 | AI55: 0 | AJ55: 0 | AK55: 0 | AL55: 0 | AM55: 0 | AN55: 0 | AO55: 0 | AP55: =AP54*AP11/365 -> 0 | AQ55: 0 | AR55: 0 | AS55: 0 | AT55: 0 | AU55: 0 | AV55: 0 | AW55: 0 | AX55: 0 | AY55: 0 | AZ55: 0 | BA55: 0 | BB55: 0 | BC55: 0 | BD55: 0 | BE55: 0 | BF55: 0 | BG55: 0 | BH55: 0 | BI55: 0 | BJ55: 0 | BK55: 0 | BL55: 0 | BM55: 0
C57: Interest | D57: Intérêt | E57: DT | I57: =SUM(J57:BM57) -> 0 | J57: =J44*J55 -> 0 | K57: 0 | L57: 0 | M57: 0 | N57: 0 | O57: 0 | P57: 0 | Q57: 0 | R57: 0 | S57: 0 | T57: 0 | U57: 0 | V57: 0 | W57: 0 | X57: 0 | Y57: 0 | Z57: 0 | AA57: 0 | AB57: 0 | AC57: 0 | AD57: 0 | AE57: 0 | AF57: 0 | AG57: 0 | AH57: 0 | AI57: 0 | AJ57: 0 | AK57: 0 | AL57: 0 | AM57: 0 | AN57: 0 | AO57: 0 | AP57: =AP44*AP55 -> 0 | AQ57: 0 | AR57: 0 | AS57: 0 | AT57: 0 | AU57: 0 | AV57: 0 | AW57: 0 | AX57: 0 | AY57: 0 | AZ57: 0 | BA57: 0 | BB57: 0 | BC57: 0 | BD57: 0 | BE57: 0 | BF57: 0 | BG57: 0 | BH57: 0 | BI57: 0 | BJ57: 0 | BK57: 0 | BL57: 0 | BM57: 0
C59: Financing Fees | D59: Frais de financement
C60: Upfront Fee | D60: Commission initiale | E60: DT | F60: =Données!H84 -> 154 | I60: =SUM(J60:BM60) -> 154 | J60: =IF(J13=1,$F$60,0) -> 154 | K60: 0 | L60: 0 | M60: 0 | N60: 0 | O60: 0 | P60: 0 | Q60: 0 | R60: 0 | S60: 0 | T60: 0 | U60: 0 | V60: 0 | W60: 0 | X60: 0 | Y60: 0 | Z60: 0 | AA60: 0 | AB60: 0 | AC60: 0 | AD60: 0 | AE60: 0 | AF60: 0 | AG60: 0 | AH60: 0 | AI60: 0 | AJ60: 0 | AK60: 0 | AL60: 0 | AM60: 0 | AN60: 0 | AO60: 0 | AP60: =IF(AP13=1,$F$60,0) -> 0 | AQ60: 0 | AR60: 0 | AS60: 0 | AT60: 0 | AU60: 0 | AV60: 0 | AW60: 0 | AX60: 0 | AY60: 0 | AZ60: 0 | BA60: 0 | BB60: 0 | BC60: 0 | BD60: 0 | BE60: 0 | BF60: 0 | BG60: 0 | BH60: 0 | BI60: 0 | BJ60: 0 | BK60: 0 | BL60: 0 | BM60: 0
C61: Commitment Fee | D61: Commission d'engagement | E61: DT | F61: =Données!G86 -> 0.00875 | I61: =SUM(J61:BM61) -> 11.44452055 | J61: =J49*$F$61*J11/365 -> 11.44452055 | K61: 0 | L61: 0 | M61: 0 | N61: 0 | O61: 0 | P61: 0 | Q61: 0 | R61: 0 | S61: 0 | T61: 0 | U61: 0 | V61: 0 | W61: 0 | X61: 0 | Y61: 0 | Z61: 0 | AA61: 0 | AB61: 0 | AC61: 0 | AD61: 0 | AE61: 0 | AF61: 0 | AG61: 0 | AH61: 0 | AI61: 0 | AJ61: 0 | AK61: 0 | AL61: 0 | AM61: 0 | AN61: 0 | AO61: 0 | AP61: =AP49*$F$61*AP11/365 -> 0 | AQ61: 0 | AR61: 0 | AS61: 0 | AT61: 0 | AU61: 0 | AV61: 0 | AW61: 0 | AX61: 0 | AY61: 0 | AZ61: 0 | BA61: 0 | BB61: 0 | BC61: 0 | BD61: 0 | BE61: 0 | BF61: 0 | BG61: 0 | BH61: 0 | BI61: 0 | BJ61: 0 | BK61: 0 | BL61: 0 | BM61: 0
C62: Total | D62: Total | E62: DT | I62: =SUM(J62:BM62) -> 165.4445205 | J62: =SUM(J60:J61) -> 165.4445205 | K62: =SUM(K60:K61) -> 0 | L62: 0 | M62: 0 | N62: 0 | O62: 0 | P62: 0 | Q62: 0 | R62: 0 | S62: 0 | T62: 0 | U62: 0 | V62: 0 | W62: 0 | X62: 0 | Y62: 0 | Z62: 0 | AA62: 0 | AB62: 0 | AC62: 0 | AD62: 0 | AE62: 0 | AF62: 0 | AG62: 0 | AH62: 0 | AI62: 0 | AJ62: 0 | AK62: 0 | AL62: 0 | AM62: 0 | AN62: 0 | AO62: 0 | AP62: 0 | AQ62: 0 | AR62: 0 | AS62: 0 | AT62: 0 | AU62: 0 | AV62: 0 | AW62: 0 | AX62: 0 | AY62: 0 | AZ62: 0 | BA62: 0 | BB62: 0 | BC62: 0 | BD62: 0 | BE62: 0 | BF62: 0 | BG62: 0 | BH62: 0 | BI62: 0 | BJ62: 0 | BK62: 0 | BL62: 0 | BM62: 0

Sheet Exploitation
C1: Operations | D1: Exploitation
C2: =Name_Project -> 
C4: Period Start | D4: Début de la période | J4: =Délais!J4 -> 2021-12-01 | K4: =Délais!K4 -> 2022-01-01 | L4: =Délais!L4 -> 2023-01-01 | M4: =Délais!M4 -> 2024-01-01 | N4: =Délais!N4 -> 2025-01-01 | O4: =Délais!O4 -> 2026-01-01 | P4: =Délais!P4 -> 2027-01-01 | Q4: =Délais!Q4 -> 2028-01-01 | R4: =Délais!R4 -> 2029-01-01 | S4: =Délais!S4 -> 2030-01-01 | T4: =Délais!T4 -> 2031-01-01 | U4: =Délais!U4 -> 2032-01-01 | V4: =Délais!V4 -> 2033-01-01 | W4: =Délais!W4 -> 2034-01-01 | X4: =Délais!X4 -> 2035-01-01 | Y4: =Délais!Y4 -> 2036-01-01 | Z4: =Délais!Z4 -> 2037-01-01 | AA4: =Délais!AA4 -> 2038-01-01 | AB4: =Délais!AB4 -> 2039-01-01 | AC4: =Délais!AC4 -> 2040-01-01 | AD4: =Délais!AD4 -> 2041-01-01 | AE4: =Délais!AE4 -> 2042-01-01 | AF4: =Délais!AF4 -> 2043-01-01 | AG4: =Délais!AG4 -> 2044-01-01 | AH4: =Délais!AH4 -> 2045-01-01 | AI4: =Délais!AI4 -> 2046-01-01 | AJ4: =Délais!AJ4 -> 2047-01-01 | AK4: =Délais!AK4 -> 2048-01-01 | AL4: =Délais!AL4 -> 2049-01-01 | AM4: =Délais!AM4 -> 2050-01-01 | AN4: =Délais!AN4 -> 2051-01-01 | AO4: =Délais!AO4 -> 2052-01-01 | AP4: =Délais!AP4 -> 2053-01-01 | AQ4: =Délais!AQ4 -> 2054-01-01 | AR4: =Délais!AR4 -> 2055-01-01 | AS4: =Délais!AS4 -> 2056-01-01 | AT4: =Délais!AT4 -> 2057-01-01 | AU4: =Délais!AU4 -> 2058-01-01 | AV4: =Délais!AV4 -> 2059-01-01 | AW4: =Délais!AW4 -> 2060-01-01 | AX4: =Délais!AX4 -> 2061-01-01 | AY4: =Délais!AY4 -> 2062-01-01 | AZ4: =Délais!AZ4 -> 2063-01-01 | BA4: =Délais!BA4 -> 2064-01-01 | BB4: =Délais!BB4 -> 2065-01-01 | BC4: =Délais!BC4 -> 2066-01-01 | BD4: =Délais!BD4 -> 2067-01-01 | BE4: =Délais!BE4 -> 2068-01-01 | BF4: =Délais!BF4 -> 2069-01-01 | BG4: =Délais!BG4 -> 2070-01-01 | BH4: =Délais!BH4 -> 2071-01-01 | BI4: =Délais!BI4 -> 2072-01-01 | BJ4: =Délais!BJ4 -> 2073-01-01 | BK4: =Délais!BK4 -> 2074-01-01 | BL4: =Délais!BL4 -> 2075-01-01 | BM4: =Délais!BM4 -> 2076-01-01
C5: Period End | D5: Fin de la période | I5: =Délais!I5 -> 2022-01-01 | J5: =Délais!J5 -> 2021-12-31 | K5: =Délais!K5 -> 2022-12-31 | L5: =Délais!L5 -> 2023-12-31 | M5: =Délais!M5 -> 2024-12-31 | N5: =Délais!N5 -> 2025-12-31 | O5: =Délais!O5 -> 2026-12-31 | P5: =Délais!P5 -> 2027-12-31 | Q5: =Délais!Q5 -> 2028-12-31 | R5: =Délais!R5 -> 2029-12-31 | S5: =Délais!S5 -> 2030-12-31 | T5: =Délais!T5 -> 2031-12-31 | U5: =Délais!U5 -> 2032-12-31 | V5: =Délais!V5 -> 2033-12-31 | W5: =Délais!W5 -> 2034-12-31 | X5: =Délais!X5 -> 2035-12-31 | Y5: =Délais!Y5 -> 2036-12-31 | Z5: =Délais!Z5 -> 2037-12-31 | AA5: =Délais!AA5 -> 2038-12-31 | AB5: =Délais!AB5 -> 2039-12-31 | AC5: =Délais!AC5 -> 2040-12-31 | AD5: =Délais!AD5 -> 2041-12-31 | AE5: =Délais!AE5 -> 2042-12-31 | AF5: =Délais!AF5 -> 2043-12-31 | AG5: =Délais!AG5 -> 2044-12-31 | AH5: =Délais!AH5 -> 2045-12-31 | AI5: =Délais!AI5 -> 2046-12-31 | AJ5: =Délais!AJ5 -> 2047-12-31 | AK5: =Délais!AK5 -> 2048-12-31 | AL5: =Délais!AL5 -> 2049-12-31 | AM5: =Délais!AM5 -> 2050-12-31 | AN5: =Délais!AN5 -> 2051-12-31 | AO5: =Délais!AO5 -> 2052-12-31 | AP5: =Délais!AP5 -> 2053-12-31 | AQ5: =Délais!AQ5 -> 2054-12-31 | AR5: =Délais!AR5 -> 2055-12-31 | AS5: =Délais!AS5 -> 2056-12-31 | AT5: =Délais!AT5 -> 2057-12-31 | AU5: =Délais!AU5 -> 2058-12-31 | AV5: =Délais!AV5 -> 2059-12-31 | AW5: =Délais!AW5 -> 2060-12-31 | AX5: =Délais!AX5 -> 2061-12-31 | AY5: =Délais!AY5 -> 2062-12-31 | AZ5: =Délais!AZ5 -> 2063-12-31 | BA5: =Délais!BA5 -> 2064-12-31 | BB5: =Délais!BB5 -> 2065-12-31 | BC5: =Délais!BC5 -> 2066-12-31 | BD5: =Délais!BD5 -> 2067-12-31 | BE5: =Délais!BE5 -> 2068-12-31 | BF5: =Délais!BF5 -> 2069-12-31 | BG5: =Délais!BG5 -> 2070-12-31 | BH5: =Délais!BH5 -> 2071-12-31 | BI5: =Délais!BI5 -> 2072-12-31 | BJ5: =Délais!BJ5 -> 2073-12-31 | BK5: =Délais!BK5 -> 2074-12-31 | BL5: =Délais!BL5 -> 2075-12-31 | BM5: =Délais!BM5 -> 2076-12-31
C6: Construction | D6: Construction | J6: =Délais!J6 -> 1 | K6: =Délais!K6 -> 0 | L6: =Délais!L6 -> 0 | M6: =Délais!M6 -> 0 | N6: =Délais!N6 -> 0 | O6: =Délais!O6 -> 0 | P6: =Délais!P6 -> 0 | Q6: =Délais!Q6 -> 0 | R6: =Délais!R6 -> 0 | S6: =Délais!S6 -> 0 | T6: =Délais!T6 -> 0 | U6: =Délais!U6 -> 0 | V6: =Délais!V6 -> 0 | W6: =Délais!W6 -> 0 | X6: =Délais!X6 -> 0 | Y6: =Délais!Y6 -> 0 | Z6: =Délais!Z6 -> 0 | AA6: =Délais!AA6 -> 0 | AB6: =Délais!AB6 -> 0 | AC6: =Délais!AC6 -> 0 | AD6: =Délais!AD6 -> 0 | AE6: =Délais!AE6 -> 0 | AF6: =Délais!AF6 -> 0 | AG6: =Délais!AG6 -> 0 | AH6: =Délais!AH6 -> 0 | AI6: =Délais!AI6 -> 0 | AJ6: =Délais!AJ6 -> 0 | AK6: =Délais!AK6 -> 0 | AL6: =Délais!AL6 -> 0 | AM6: =Délais!AM6 -> 0 | AN6: =Délais!AN6 -> 0 | AO6: =Délais!AO6 -> 0 | AP6: =Délais!AP6 -> 0 | AQ6: =Délais!AQ6 -> 0 | AR6: =Délais!AR6 -> 0 | AS6: =Délais!AS6 -> 0 | AT6: =Délais!AT6 -> 0 | AU6: =Délais!AU6 -> 0 | AV6: =Délais!AV6 -> 0 | AW6: =Délais!AW6 -> 0 | AX6: =Délais!AX6 -> 0 | AY6: =Délais!AY6 -> 0 | AZ6: =Délais!AZ6 -> 0 | BA6: =Délais!BA6 -> 0 | BB6: =Délais!BB6 -> 0 | BC6: =Délais!BC6 -> 0 | BD6: =Délais!BD6 -> 0 | BE6: =Délais!BE6 -> 0 | BF6: =Délais!BF6 -> 0 | BG6: =Délais!BG6 -> 0 | BH6: =Délais!BH6 -> 0 | BI6: =Délais!BI6 -> 0 | BJ6: =Délais!BJ6 -> 0 | BK6: =Délais!BK6 -> 0 | BL6: =Délais!BL6 -> 0 | BM6: =Délais!BM6 -> 0
C7: Operations | D7: Exploitation | J7: =Délais!J7 -> 0 | K7: =Délais!K7 -> 1 | L7: =Délais!L7 -> 1 | M7: =Délais!M7 -> 1 | N7: =Délais!N7 -> 1 | O7: =Délais!O7 -> 1 | P7: =Délais!P7 -> 1 | Q7: =Délais!Q7 -> 1 | R7: =Délais!R7 -> 1 | S7: =Délais!S7 -> 1 | T7: =Délais!T7 -> 1 | U7: =Délais!U7 -> 1 | V7: =Délais!V7 -> 1 | W7: =Délais!W7 -> 1 | X7: =Délais!X7 -> 1 | Y7: =Délais!Y7 -> 1 | Z7: =Délais!Z7 -> 1 | AA7: =Délais!AA7 -> 1 | AB7: =Délais!AB7 -> 1 | AC7: =Délais!AC7 -> 1 | AD7: =Délais!AD7 -> 1 | AE7: =Délais!AE7 -> 0 | AF7: =Délais!AF7 -> 0 | AG7: =Délais!AG7 -> 0 | AH7: =Délais!AH7 -> 0 | AI7: =Délais!AI7 -> 0 | AJ7: =Délais!AJ7 -> 0 | AK7: =Délais!AK7 -> 0 | AL7: =Délais!AL7 -> 0 | AM7: =Délais!AM7 -> 0 | AN7: =Délais!AN7 -> 0 | AO7: =Délais!AO7 -> 0 | AP7: =Délais!AP7 -> 0 | AQ7: =Délais!AQ7 -> 0 | AR7: =Délais!AR7 -> 0 | AS7: =Délais!AS7 -> 0 | AT7: =Délais!AT7 -> 0 | AU7: =Délais!AU7 -> 0 | AV7: =Délais!AV7 -> 0 | AW7: =Délais!AW7 -> 0 | AX7: =Délais!AX7 -> 0 | AY7: =Délais!AY7 -> 0 | AZ7: =Délais!AZ7 -> 0 | BA7: =Délais!BA7 -> 0 | BB7: =Délais!BB7 -> 0 | BC7: =Délais!BC7 -> 0 | BD7: =Délais!BD7 -> 0 | BE7: =Délais!BE7 -> 0 | BF7: =Délais!BF7 -> 0 | BG7: =Délais!BG7 -> 0 | BH7: =Délais!BH7 -> 0 | BI7: =Délais!BI7 -> 0 | BJ7: =Délais!BJ7 -> 0 | BK7: =Délais!BK7 -> 0 | BL7: =Délais!BL7 -> 0 | BM7: =Délais!BM7 -> 0
C9: Timing | D9: Délais
C10: Calendar Year | D10: Année civile | E10: Num# | J10: =Délais!J10 -> 2021 | K10: =Délais!K10 -> 2022 | L10: =Délais!L10 -> 2023 | M10: =Délais!M10 -> 2024 | N10: =Délais!N10 -> 2025 | O10: =Délais!O10 -> 2026 | P10: =Délais!P10 -> 2027 | Q10: =Délais!Q10 -> 2028 | R10: =Délais!R10 -> 2029 | S10: =Délais!S10 -> 2030 | T10: =Délais!T10 -> 2031 | U10: =Délais!U10 -> 2032 | V10: =Délais!V10 -> 2033 | W10: =Délais!W10 -> 2034 | X10: =Délais!X10 -> 2035 | Y10: =Délais!Y10 -> 2036 | Z10: =Délais!Z10 -> 2037 | AA10: =Délais!AA10 -> 2038 | AB10: =Délais!AB10 -> 2039 | AC10: =Délais!AC10 -> 2040 | AD10: =Délais!AD10 -> 2041 | AE10: =Délais!AE10 -> 2042 | AF10: =Délais!AF10 -> 2043 | AG10: =Délais!AG10 -> 2044 | AH10: =Délais!AH10 -> 2045 | AI10: =Délais!AI10 -> 2046 | AJ10: =Délais!AJ10 -> 2047 | AK10: =Délais!AK10 -> 2048 | AL10: =Délais!AL10 -> 2049 | AM10: =Délais!AM10 -> 2050 | AN10: =Délais!AN10 -> 2051 | AO10: =Délais!AO10 -> 2052 | AP10: =Délais!AP10 -> 2053 | AQ10: =Délais!AQ10 -> 2054 | AR10: =Délais!AR10 -> 2055 | AS10: =Délais!AS10 -> 2056 | AT10: =Délais!AT10 -> 2057 | AU10: =Délais!AU10 -> 2058 | AV10: =Délais!AV10 -> 2059 | AW10: =Délais!AW10 -> 2060 | AX10: =Délais!AX10 -> 2061 | AY10: =Délais!AY10 -> 2062 | AZ10: =Délais!AZ10 -> 2063 | BA10: =Délais!BA10 -> 2064 | BB10: =Délais!BB10 -> 2065 | BC10: =Délais!BC10 -> 2066 | BD10: =Délais!BD10 -> 2067 | BE10: =Délais!BE10 -> 2068 | BF10: =Délais!BF10 -> 2069 | BG10: =Délais!BG10 -> 2070 | BH10: =Délais!BH10 -> 2071 | BI10: =Délais!BI10 -> 2072 | BJ10: =Délais!BJ10 -> 2073 | BK10: =Délais!BK10 -> 2074 | BL10: =Délais!BL10 -> 2075 | BM10: =Délais!BM10 -> 2076
C12: Construction Period | D12: Période de construction | E12: Num# | J12: =Délais!J13 -> 1 | K12: =Délais!K13 -> 0 | L12: =Délais!L13 -> 0 | M12: =Délais!M13 -> 0 | N12: =Délais!N13 -> 0 | O12: =Délais!O13 -> 0 | P12: =Délais!P13 -> 0 | Q12: =Délais!Q13 -> 0 | R12: =Délais!R13 -> 0 | S12: =Délais!S13 -> 0 | T12: =Délais!T13 -> 0 | U12: =Délais!U13 -> 0 | V12: =Délais!V13 -> 0 | W12: =Délais!W13 -> 0 | X12: =Délais!X13 -> 0 | Y12: =Délais!Y13 -> 0 | Z12: =Délais!Z13 -> 0 | AA12: =Délais!AA13 -> 0 | AB12: =Délais!AB13 -> 0 | AC12: =Délais!AC13 -> 0 | AD12: =Délais!AD13 -> 0 | AE12: =Délais!AE13 -> 0 | AF12: =Délais!AF13 -> 0 | AG12: =Délais!AG13 -> 0 | AH12: =Délais!AH13 -> 0 | AI12: =Délais!AI13 -> 0 | AJ12: =Délais!AJ13 -> 0 | AK12: =Délais!AK13 -> 0 | AL12: =Délais!AL13 -> 0 | AM12: =Délais!AM13 -> 0 | AN12: =Délais!AN13 -> 0 | AO12: =Délais!AO13 -> 0 | AP12: =Délais!AP13 -> 0 | AQ12: =Délais!AQ13 -> 0 | AR12: =Délais!AR13 -> 0 | AS12: =Délais!AS13 -> 0 | AT12: =Délais!AT13 -> 0 | AU12: =Délais!AU13 -> 0 | AV12: =Délais!AV13 -> 0 | AW12: =Délais!AW13 -> 0 | AX12: =Délais!AX13 -> 0 | AY12: =Délais!AY13 -> 0 | AZ12: =Délais!AZ13 -> 0 | BA12: =Délais!BA13 -> 0 | BB12: =Délais!BB13 -> 0 | BC12: =Délais!BC13 -> 0 | BD12: =Délais!BD13 -> 0 | BE12: =Délais!BE13 -> 0 | BF12: =Délais!BF13 -> 0 | BG12: =Délais!BG13 -> 0 | BH12: =Délais!BH13 -> 0 | BI12: =Délais!BI13 -> 0 | BJ12: =Délais!BJ13 -> 0 | BK12: =Délais!BK13 -> 0 | BL12: =Délais!BL13 -> 0 | BM12: =Délais!BM13 -> 0
C13: Operations Period | D13: Période d'exploitation | E13: Num# | J13: =Délais!J14 -> 0 | K13: =Délais!K14 -> 1 | L13: =Délais!L14 -> 2 | M13: =Délais!M14 -> 3 | N13: =Délais!N14 -> 4 | O13: =Délais!O14 -> 5 | P13: =Délais!P14 -> 6 | Q13: =Délais!Q14 -> 7 | R13: =Délais!R14 -> 8 | S13: =Délais!S14 -> 9 | T13: =Délais!T14 -> 10 | U13: =Délais!U14 -> 11 | V13: =Délais!V14 -> 12 | W13: =Délais!W14 -> 13 | X13: =Délais!X14 -> 14 | Y13: =Délais!Y14 -> 15 | Z13: =Délais!Z14 -> 16 | AA13: =Délais!AA14 -> 17 | AB13: =Délais!AB14 -> 18 | AC13: =Délais!AC14 -> 19 | AD13: =Délais!AD14 -> 20 | AE13: =Délais!AE14 -> 0 | AF13: =Délais!AF14 -> 0 | AG13: =Délais!AG14 -> 0 | AH13: =Délais!AH14 -> 0 | AI13: =Délais!AI14 -> 0 | AJ13: =Délais!AJ14 -> 0 | AK13: =Délais!AK14 -> 0 | AL13: =Délais!AL14 -> 0 | AM13: =Délais!AM14 -> 0 | AN13: =Délais!AN14 -> 0 | AO13: =Délais!AO14 -> 0 | AP13: =Délais!AP14 -> 0 | AQ13: =Délais!AQ14 -> 0 | AR13: =Délais!AR14 -> 0 | AS13: =Délais!AS14 -> 0 | AT13: =Délais!AT14 -> 0 | AU13: =Délais!AU14 -> 0 | AV13: =Délais!AV14 -> 0 | AW13: =Délais!AW14 -> 0 | AX13: =Délais!AX14 -> 0 | AY13: =Délais!AY14 -> 0 | AZ13: =Délais!AZ14 -> 0 | BA13: =Délais!BA14 -> 0 | BB13: =Délais!BB14 -> 0 | BC13: =Délais!BC14 -> 0 | BD13: =Délais!BD14 -> 0 | BE13: =Délais!BE14 -> 0 | BF13: =Délais!BF14 -> 0 | BG13: =Délais!BG14 -> 0 | BH13: =Délais!BH14 -> 0 | BI13: =Délais!BI14 -> 0 | BJ13: =Délais!BJ14 -> 0 | BK13: =Délais!BK14 -> 0 | BL13: =Délais!BL14 -> 0 | BM13: =Délais!BM14 -> 0
C15: Generation | D15: Production
C16: System Size | D16: Taille de l'installation | E16: kWp | K16: =IF(K$13=0,0,Données!$G$33) -> 6 | L16: =IF(L$13=0,0,Données!$G$33) -> 6 | M16: =IF(M$13=0,0,Données!$G$33) -> 6 | N16: =IF(N$13=0,0,Données!$G$33) -> 6 | O16: =IF(O$13=0,0,Données!$G$33) -> 6 | P16: =IF(P$13=0,0,Données!$G$33) -> 6 | Q16: =IF(Q$13=0,0,Données!$G$33) -> 6 | R16: =IF(R$13=0,0,Données!$G$33) -> 6 | S16: =IF(S$13=0,0,Données!$G$33) -> 6 | T16: =IF(T$13=0,0,Données!$G$33) -> 6 | U16: =IF(U$13=0,0,Données!$G$33) -> 6 | V16: =IF(V$13=0,0,Données!$G$33) -> 6 | W16: =IF(W$13=0,0,Données!$G$33) -> 6 | X16: =IF(X$13=0,0,Données!$G$33) -> 6 | Y16: =IF(Y$13=0,0,Données!$G$33) -> 6 | Z16: =IF(Z$13=0,0,Données!$G$33) -> 6 | AA16: =IF(AA$13=0,0,Données!$G$33) -> 6 | AB16: =IF(AB$13=0,0,Données!$G$33) -> 6 | AC16: =IF(AC$13=0,0,Données!$G$33) -> 6 | AD16: =IF(AD$13=0,0,Données!$G$33) -> 6 | AE16: =IF(AE$13=0,0,Données!$G$33) -> 0 | AF16: =IF(AF$13=0,0,Données!$G$33) -> 0 | AG16: =IF(AG$13=0,0,Données!$G$33) -> 0 | AH16: =IF(AH$13=0,0,Données!$G$33) -> 0 | AI16: =IF(AI$13=0,0,Données!$G$33) -> 0 | AJ16: =IF(AJ$13=0,0,Données!$G$33) -> 0 | AK16: =IF(AK$13=0,0,Données!$G$33) -> 0 | AL16: =IF(AL$13=0,0,Données!$G$33) -> 0 | AM16: =IF(AM$13=0,0,Données!$G$33) -> 0 | AN16: =IF(AN$13=0,0,Données!$G$33) -> 0 | AO16: =IF(AO$13=0,0,Données!$G$33) -> 0 | AP16: =IF(AP$13=0,0,Données!$G$33) -> 0 | AQ16: =IF(AQ$13=0,0,Données!$G$33) -> 0 | AR16: =IF(AR$13=0,0,Données!$G$33) -> 0 | AS16: =IF(AS$13=0,0,Données!$G$33) -> 0 | AT16: =IF(AT$13=0,0,Données!$G$33) -> 0 | AU16: =IF(AU$13=0,0,Données!$G$33) -> 0 | AV16: =IF(AV$13=0,0,Données!$G$33) -> 0 | AW16: =IF(AW$13=0,0,Données!$G$33) -> 0 | AX16: =IF(AX$13=0,0,Données!$G$33) -> 0 | AY16: =IF(AY$13=0,0,Données!$G$33) -> 0 | AZ16: =IF(AZ$13=0,0,Données!$G$33) -> 0 | BA16: =IF(BA$13=0,0,Données!$G$33) -> 0 | BB16: =IF(BB$13=0,0,Données!$G$33) -> 0 | BC16: =IF(BC$13=0,0,Données!$G$33) -> 0 | BD16: =IF(BD$13=0,0,Données!$G$33) -> 0 | BE16: =IF(BE$13=0,0,Données!$G$33) -> 0 | BF16: =IF(BF$13=0,0,Données!$G$33) -> 0 | BG16: =IF(BG$13=0,0,Données!$G$33) -> 0 | BH16: =IF(BH$13=0,0,Données!$G$33) -> 0 | BI16: =IF(BI$13=0,0,Données!$G$33) -> 0 | BJ16: =IF(BJ$13=0,0,Données!$G$33) -> 0 | BK16: =IF(BK$13=0,0,Données!$G$33) -> 0 | BL16: =IF(BL$13=0,0,Données!$G$33) -> 0 | BM16: =IF(BM$13=0,0,Données!$G$33) -> 0
C17: Generation per kWp | D17: Production par kWc | E17: kWh/kWp/a | K17: =IF(K13=0,0,Factures!$F$17/Données!$G$33) -> 1650 | L17: =IF(L13=0,0,Factures!$F$17/Données!$G$33) -> 1650 | M17: =IF(M13=0,0,Factures!$F$17/Données!$G$33) -> 1650 | N17: =IF(N13=0,0,Factures!$F$17/Données!$G$33) -> 1650 | O17: =IF(O13=0,0,Factures!$F$17/Données!$G$33) -> 1650 | P17: =IF(P13=0,0,Factures!$F$17/Données!$G$33) -> 1650 | Q17: =IF(Q13=0,0,Factures!$F$17/Données!$G$33) -> 1650 | R17: =IF(R13=0,0,Factures!$F$17/Données!$G$33) -> 1650 | S17: =IF(S13=0,0,Factures!$F$17/Données!$G$33) -> 1650 | T17: =IF(T13=0,0,Factures!$F$17/Données!$G$33) -> 1650 | U17: =IF(U13=0,0,Factures!$F$17/Données!$G$33) -> 1650 | V17: =IF(V13=0,0,Factures!$F$17/Données!$G$33) -> 1650 | W17: =IF(W13=0,0,Factures!$F$17/Données!$G$33) -> 1650 | X17: =IF(X13=0,0,Factures!$F$17/Données!$G$33) -> 1650 | Y17: =IF(Y13=0,0,Factures!$F$17/Données!$G$33) -> 1650 | Z17: =IF(Z13=0,0,Factures!$F$17/Données!$G$33) -> 1650 | AA17: =IF(AA13=0,0,Factures!$F$17/Données!$G$33) -> 1650 | AB17: =IF(AB13=0,0,Factures!$F$17/Données!$G$33) -> 1650 | AC17: =IF(AC13=0,0,Factures!$F$17/Données!$G$33) -> 1650 | AD17: =IF(AD13=0,0,Factures!$F$17/Données!$G$33) -> 1650 | AE17: =IF(AE13=0,0,Factures!$F$17/Données!$G$33) -> 0 | AF17: =IF(AF13=0,0,Factures!$F$17/Données!$G$33) -> 0 | AG17: =IF(AG13=0,0,Factures!$F$17/Données!$G$33) -> 0 | AH17: =IF(AH13=0,0,Factures!$F$17/Données!$G$33) -> 0 | AI17: =IF(AI13=0,0,Factures!$F$17/Données!$G$33) -> 0 | AJ17: =IF(AJ13=0,0,Factures!$F$17/Données!$G$33) -> 0 | AK17: =IF(AK13=0,0,Factures!$F$17/Données!$G$33) -> 0 | AL17: =IF(AL13=0,0,Factures!$F$17/Données!$G$33) -> 0 | AM17: =IF(AM13=0,0,Factures!$F$17/Données!$G$33) -> 0 | AN17: =IF(AN13=0,0,Factures!$F$17/Données!$G$33) -> 0 | AO17: =IF(AO13=0,0,Factures!$F$17/Données!$G$33) -> 0 | AP17: =IF(AP13=0,0,Factures!$F$17/Données!$G$33) -> 0 | AQ17: =IF(AQ13=0,0,Factures!$F$17/Données!$G$33) -> 0 | AR17: =IF(AR13=0,0,Factures!$F$17/Données!$G$33) -> 0 | AS17: =IF(AS13=0,0,Factures!$F$17/Données!$G$33) -> 0 | AT17: =IF(AT13=0,0,Factures!$F$17/Données!$G$33) -> 0 | AU17: =IF(AU13=0,0,Factures!$F$17/Données!$G$33) -> 0 | AV17: =IF(AV13=0,0,Factures!$F$17/Données!$G$33) -> 0 | AW17: =IF(AW13=0,0,Factures!$F$17/Données!$G$33) -> 0 | AX17: =IF(AX13=0,0,Factures!$F$17/Données!$G$33) -> 0 | AY17: =IF(AY13=0,0,Factures!$F$17/Données!$G$33) -> 0 | AZ17: =IF(AZ13=0,0,Factures!$F$17/Données!$G$33) -> 0 | BA17: =IF(BA13=0,0,Factures!$F$17/Données!$G$33) -> 0 | BB17: =IF(BB13=0,0,Factures!$F$17/Données!$G$33) -> 0 | BC17: =IF(BC13=0,0,Factures!$F$17/Données!$G$33) -> 0 | BD17: =IF(BD13=0,0,Factures!$F$17/Données!$G$33) -> 0 | BE17: =IF(BE13=0,0,Factures!$F$17/Données!$G$33) -> 0 | BF17: =IF(BF13=0,0,Factures!$F$17/Données!$G$33) -> 0 | BG17: =IF(BG13=0,0,Factures!$F$17/Données!$G$33) -> 0 | BH17: =IF(BH13=0,0,Factures!$F$17/Données!$G$33) -> 0 | BI17: =IF(BI13=0,0,Factures!$F$17/Données!$G$33) -> 0 | BJ17: =IF(BJ13=0,0,Factures!$F$17/Données!$G$33) -> 0 | BK17: =IF(BK13=0,0,Factures!$F$17/Données!$G$33) -> 0 | BL17: =IF(BL13=0,0,Factures!$F$17/Données!$G$33) -> 0 | BM17: =IF(BM13=0,0,Factures!$F$17/Données!$G$33) -> 0
C18: Degradation | D18: Dégradation des performances | E18: Index | K18: =Délais!K23 -> 1 | L18: =Délais!L23 -> 0.993 | M18: =Délais!M23 -> 0.986049 | N18: =Délais!N23 -> 0.979146657 | O18: =Délais!O23 -> 0.9722926304 | P18: =Délais!P23 -> 0.965486582 | Q18: =Délais!Q23 -> 0.9587281759 | R18: =Délais!R23 -> 0.9520170787 | S18: =Délais!S23 -> 0.9453529591 | T18: =Délais!T23 -> 0.9387354884 | U18: =Délais!U23 -> 0.93216434 | V18: =Délais!V23 -> 0.9256391896 | W18: =Délais!W23 -> 0.9191597153 | X18: =Délais!X23 -> 0.9127255973 | Y18: =Délais!Y23 -> 0.9063365181 | Z18: =Délais!Z23 -> 0.8999921625 | AA18: =Délais!AA23 -> 0.8936922173 | AB18: =Délais!AB23 -> 0.8874363718 | AC18: =Délais!AC23 -> 0.8812243172 | AD18: =Délais!AD23 -> 0.875055747 | AE18: =Délais!AE23 -> 0.875055747 | AF18: =Délais!AF23 -> 0.875055747 | AG18: =Délais!AG23 -> 0.875055747 | AH18: =Délais!AH23 -> 0.875055747 | AI18: =Délais!AI23 -> 0.875055747 | AJ18: =Délais!AJ23 -> 0.875055747 | AK18: =Délais!AK23 -> 0.875055747 | AL18: =Délais!AL23 -> 0.875055747 | AM18: =Délais!AM23 -> 0.875055747 | AN18: =Délais!AN23 -> 0.875055747 | AO18: =Délais!AO23 -> 0.875055747 | AP18: =Délais!AP23 -> 0.875055747 | AQ18: =Délais!AQ23 -> 0.875055747 | AR18: =Délais!AR23 -> 0.875055747 | AS18: =Délais!AS23 -> 0.875055747 | AT18: =Délais!AT23 -> 0.875055747 | AU18: =Délais!AU23 -> 0.875055747 | AV18: =Délais!AV23 -> 0.875055747 | AW18: =Délais!AW23 -> 0.875055747 | AX18: =Délais!AX23 -> 0.875055747 | AY18: =Délais!AY23 -> 0.875055747 | AZ18: =Délais!AZ23 -> 0.875055747 | BA18: =Délais!BA23 -> 0.875055747 | BB18: =Délais!BB23 -> 0.875055747 | BC18: =Délais!BC23 -> 0.875055747 | BD18: =Délais!BD23 -> 0.875055747 | BE18: =Délais!BE23 -> 0.875055747 | BF18: =Délais!BF23 -> 0.875055747 | BG18: =Délais!BG23 -> 0.875055747 | BH18: =Délais!BH23 -> 0.875055747 | BI18: =Délais!BI23 -> 0.875055747 | BJ18: =Délais!BJ23 -> 0.875055747 | BK18: =Délais!BK23 -> 0.875055747 | BL18: =Délais!BL23 -> 0.875055747 | BM18: =Délais!BM23 -> 0.875055747
C19: Gross Generation | D19: Production brute d'électricité | E19: kWh | I19: =SUM(J19:BM19) -> 185369.924 | K19: =K16*K17*K18 -> 9900 | L19: =L16*L17*L18 -> 9830.7 | M19: =M16*M17*M18 -> 9761.8851 | N19: =N16*N17*N18 -> 9693.551904 | O19: 9625.697041 | P19: 9558.317162 | Q19: 9491.408942 | R19: 9424.969079 | S19: 9358.994295 | T19: 9293.481335 | U19: 9228.426966 | V19: 9163.827977 | W19: 9099.681181 | X19: 9035.983413 | Y19: 8972.731529 | Z19: 8909.922409 | AA19: 8847.552952 | AB19: 8785.620081 | AC19: 8724.12074 | AD19: 8663.051895 | AE19: 0 | AF19: 0 | AG19: 0 | AH19: 0 | AI19: 0 | AJ19: 0 | AK19: 0 | AL19: 0 | AM19: 0 | AN19: 0 | AO19: 0 | AP19: 0 | AQ19: 0 | AR19: 0 | AS19: 0 | AT19: 0 | AU19: 0 | AV19: 0 | AW19: 0 | AX19: 0 | AY19: 0 | AZ19: 0 | BA19: 0 | BB19: 0 | BC19: 0 | BD19: 0 | BE19: 0 | BF19: 0 | BG19: 0 | BH19: 0 | BI19: 0 | BJ19: 0 | BK19: 0 | BL19: 0 | BM19: 0
C21: Efficiency | D21: Rendement de l'installation | E21: % | K21: =IF(K$13=0,0,Données!$G$36) -> 1 | L21: =IF(L$13=0,0,Données!$G$36) -> 1 | M21: =IF(M$13=0,0,Données!$G$36) -> 1 | N21: =IF(N$13=0,0,Données!$G$36) -> 1 | O21: =IF(O$13=0,0,Données!$G$36) -> 1 | P21: =IF(P$13=0,0,Données!$G$36) -> 1 | Q21: =IF(Q$13=0,0,Données!$G$36) -> 1 | R21: =IF(R$13=0,0,Données!$G$36) -> 1 | S21: =IF(S$13=0,0,Données!$G$36) -> 1 | T21: =IF(T$13=0,0,Données!$G$36) -> 1 | U21: =IF(U$13=0,0,Données!$G$36) -> 1 | V21: =IF(V$13=0,0,Données!$G$36) -> 1 | W21: =IF(W$13=0,0,Données!$G$36) -> 1 | X21: =IF(X$13=0,0,Données!$G$36) -> 1 | Y21: =IF(Y$13=0,0,Données!$G$36) -> 1 | Z21: =IF(Z$13=0,0,Données!$G$36) -> 1 | AA21: =IF(AA$13=0,0,Données!$G$36) -> 1 | AB21: =IF(AB$13=0,0,Données!$G$36) -> 1 | AC21: =IF(AC$13=0,0,Données!$G$36) -> 1 | AD21: =IF(AD$13=0,0,Données!$G$36) -> 1 | AE21: =IF(AE$13=0,0,Données!$G$36) -> 0 | AF21: =IF(AF$13=0,0,Données!$G$36) -> 0 | AG21: =IF(AG$13=0,0,Données!$G$36) -> 0 | AH21: =IF(AH$13=0,0,Données!$G$36) -> 0 | AI21: =IF(AI$13=0,0,Données!$G$36) -> 0 | AJ21: =IF(AJ$13=0,0,Données!$G$36) -> 0 | AK21: =IF(AK$13=0,0,Données!$G$36) -> 0 | AL21: =IF(AL$13=0,0,Données!$G$36) -> 0 | AM21: =IF(AM$13=0,0,Données!$G$36) -> 0 | AN21: =IF(AN$13=0,0,Données!$G$36) -> 0 | AO21: =IF(AO$13=0,0,Données!$G$36) -> 0 | AP21: =IF(AP$13=0,0,Données!$G$36) -> 0 | AQ21: =IF(AQ$13=0,0,Données!$G$36) -> 0 | AR21: =IF(AR$13=0,0,Données!$G$36) -> 0 | AS21: =IF(AS$13=0,0,Données!$G$36) -> 0 | AT21: =IF(AT$13=0,0,Données!$G$36) -> 0 | AU21: =IF(AU$13=0,0,Données!$G$36) -> 0 | AV21: =IF(AV$13=0,0,Données!$G$36) -> 0 | AW21: =IF(AW$13=0,0,Données!$G$36) -> 0 | AX21: =IF(AX$13=0,0,Données!$G$36) -> 0 | AY21: =IF(AY$13=0,0,Données!$G$36) -> 0 | AZ21: =IF(AZ$13=0,0,Données!$G$36) -> 0 | BA21: =IF(BA$13=0,0,Données!$G$36) -> 0 | BB21: =IF(BB$13=0,0,Données!$G$36) -> 0 | BC21: =IF(BC$13=0,0,Données!$G$36) -> 0 | BD21: =IF(BD$13=0,0,Données!$G$36) -> 0 | BE21: =IF(BE$13=0,0,Données!$G$36) -> 0 | BF21: =IF(BF$13=0,0,Données!$G$36) -> 0 | BG21: =IF(BG$13=0,0,Données!$G$36) -> 0 | BH21: =IF(BH$13=0,0,Données!$G$36) -> 0 | BI21: =IF(BI$13=0,0,Données!$G$36) -> 0 | BJ21: =IF(BJ$13=0,0,Données!$G$36) -> 0 | BK21: =IF(BK$13=0,0,Données!$G$36) -> 0 | BL21: =IF(BL$13=0,0,Données!$G$36) -> 0 | BM21: =IF(BM$13=0,0,Données!$G$36) -> 0
C22: Net Generation | D22: Production nette | E22: kWh | I22: =SUM(J22:BM22) -> 185369.924 | K22: =K19*K21 -> 9900 | L22: =L19*L21 -> 9830.7 | M22: 9761.8851 | N22: 9693.551904 | O22: 9625.697041 | P22: 9558.317162 | Q22: 9491.408942 | R22: 9424.969079 | S22: 9358.994295 | T22: 9293.481335 | U22: 9228.426966 | V22: 9163.827977 | W22: 9099.681181 | X22: 9035.983413 | Y22: 8972.731529 | Z22: 8909.922409 | AA22: 8847.552952 | AB22: 8785.620081 | AC22: 8724.12074 | AD22: 8663.051895 | AE22: 0 | AF22: 0 | AG22: 0 | AH22: 0 | AI22: 0 | AJ22: 0 | AK22: 0 | AL22: 0 | AM22: 0 | AN22: 0 | AO22: 0 | AP22: 0 | AQ22: 0 | AR22: 0 | AS22: 0 | AT22: 0 | AU22: 0 | AV22: 0 | AW22: 0 | AX22: 0 | AY22: 0 | AZ22: 0 | BA22: 0 | BB22: 0 | BC22: 0 | BD22: 0 | BE22: 0 | BF22: 0 | BG22: 0 | BH22: 0 | BI22: 0 | BJ22: 0 | BK22: 0 | BL22: 0 | BM22: 0
C24: Revenue | D24: Recettes
C25: Price | D25: tarif évité moyen | E25: DT/kWh | K25: =IF(K7=0,0,INDEX(Données!$G$45:$AH$45,MATCH(K10,Données!$G$43:$AH$43))) -> 0.4677884437 | L25: =IF(L7=0,0,INDEX(Données!$G$45:$AH$45,MATCH(L10,Données!$G$43:$AH$43))) -> 0.481822097 | M25: =IF(M7=0,0,INDEX(Données!$G$45:$AH$45,MATCH(M10,Données!$G$43:$AH$43))) -> 0.4962767599 | N25: =IF(N7=0,0,INDEX(Données!$G$45:$AH$45,MATCH(N10,Données!$G$43:$AH$43))) -> 0.5111650627 | O25: =IF(O7=0,0,INDEX(Données!$G$45:$AH$45,MATCH(O10,Données!$G$43:$AH$43))) -> 0.5265000146 | P25: =IF(P7=0,0,INDEX(Données!$G$45:$AH$45,MATCH(P10,Données!$G$43:$AH$43))) -> 0.542295015 | Q25: =IF(Q7=0,0,INDEX(Données!$G$45:$AH$45,MATCH(Q10,Données!$G$43:$AH$43))) -> 0.5585638654 | R25: =IF(R7=0,0,INDEX(Données!$G$45:$AH$45,MATCH(R10,Données!$G$43:$AH$43))) -> 0.5753207814 | S25: =IF(S7=0,0,INDEX(Données!$G$45:$AH$45,MATCH(S10,Données!$G$43:$AH$43))) -> 0.5925804048 | T25: =IF(T7=0,0,INDEX(Données!$G$45:$AH$45,MATCH(T10,Données!$G$43:$AH$43))) -> 0.610357817 | U25: =IF(U7=0,0,INDEX(Données!$G$45:$AH$45,MATCH(U10,Données!$G$43:$AH$43))) -> 0.6286685515 | V25: =IF(V7=0,0,INDEX(Données!$G$45:$AH$45,MATCH(V10,Données!$G$43:$AH$43))) -> 0.647528608 | W25: =IF(W7=0,0,INDEX(Données!$G$45:$AH$45,MATCH(W10,Données!$G$43:$AH$43))) -> 0.6669544663 | X25: =IF(X7=0,0,INDEX(Données!$G$45:$AH$45,MATCH(X10,Données!$G$43:$AH$43))) -> 0.6869631003 | Y25: =IF(Y7=0,0,INDEX(Données!$G$45:$AH$45,MATCH(Y10,Données!$G$43:$AH$43))) -> 0.7075719933 | Z25: =IF(Z7=0,0,INDEX(Données!$G$45:$AH$45,MATCH(Z10,Données!$G$43:$AH$43))) -> 0.7287991531 | AA25: =IF(AA7=0,0,INDEX(Données!$G$45:$AH$45,MATCH(AA10,Données!$G$43:$AH$43))) -> 0.7506631277 | AB25: =IF(AB7=0,0,INDEX(Données!$G$45:$AH$45,MATCH(AB10,Données!$G$43:$AH$43))) -> 0.7731830215 | AC25: =IF(AC7=0,0,INDEX(Données!$G$45:$AH$45,MATCH(AC10,Données!$G$43:$AH$43))) -> 0.7963785122 | AD25: =IF(AD7=0,0,INDEX(Données!$G$45:$AH$45,MATCH(AD10,Données!$G$43:$AH$43))) -> 0.8202698675 | AE25: =IF(AE7=0,0,INDEX(Données!$G$45:$AH$45,MATCH(AE10,Données!$G$43:$AH$43))) -> 0 | AF25: =IF(AF7=0,0,INDEX(Données!$G$45:$AH$45,MATCH(AF10,Données!$G$43:$AH$43))) -> 0 | AG25: =IF(AG7=0,0,INDEX(Données!$G$45:$AH$45,MATCH(AG10,Données!$G$43:$AH$43))) -> 0 | AH25: =IF(AH7=0,0,INDEX(Données!$G$45:$AH$45,MATCH(AH10,Données!$G$43:$AH$43))) -> 0 | AI25: =IF(AI7=0,0,INDEX(Données!$G$45:$AH$45,MATCH(AI10,Données!$G$43:$AH$43))) -> 0 | AJ25: =IF(AJ7=0,0,INDEX(Données!$G$45:$AH$45,MATCH(AJ10,Données!$G$43:$AH$43))) -> 0 | AK25: =IF(AK7=0,0,INDEX(Données!$G$45:$AH$45,MATCH(AK10,Données!$G$43:$AH$43))) -> 0 | AL25: =IF(AL7=0,0,INDEX(Données!$G$45:$AH$45,MATCH(AL10,Données!$G$43:$AH$43))) -> 0 | AM25: =IF(AM7=0,0,INDEX(Données!$G$45:$AH$45,MATCH(AM10,Données!$G$43:$AH$43))) -> 0 | AN25: =IF(AN7=0,0,INDEX(Données!$G$45:$AH$45,MATCH(AN10,Données!$G$43:$AH$43))) -> 0 | AO25: =IF(AO7=0,0,INDEX(Données!$G$45:$AH$45,MATCH(AO10,Données!$G$43:$AH$43))) -> 0 | AP25: =IF(AP7=0,0,INDEX(Données!$G$45:$AH$45,MATCH(AP10,Données!$G$43:$AH$43))) -> 0 | AQ25: =IF(AQ7=0,0,INDEX(Données!$G$45:$AH$45,MATCH(AQ10,Données!$G$43:$AH$43))) -> 0 | AR25: =IF(AR7=0,0,INDEX(Données!$G$45:$AH$45,MATCH(AR10,Données!$G$43:$AH$43))) -> 0 | AS25: =IF(AS7=0,0,INDEX(Données!$G$45:$AH$45,MATCH(AS10,Données!$G$43:$AH$43))) -> 0 | AT25: =IF(AT7=0,0,INDEX(Données!$G$45:$AH$45,MATCH(AT10,Données!$G$43:$AH$43))) -> 0 | AU25: =IF(AU7=0,0,INDEX(Données!$G$45:$AH$45,MATCH(AU10,Données!$G$43:$AH$43))) -> 0 | AV25: =IF(AV7=0,0,INDEX(Données!$G$45:$AH$45,MATCH(AV10,Données!$G$43:$AH$43))) -> 0 | AW25: =IF(AW7=0,0,INDEX(Données!$G$45:$AH$45,MATCH(AW10,Données!$G$43:$AH$43))) -> 0 | AX25: =IF(AX7=0,0,INDEX(Données!$G$45:$AH$45,MATCH(AX10,Données!$G$43:$AH$43))) -> 0 | AY25: =IF(AY7=0,0,INDEX(Données!$G$45:$AH$45,MATCH(AY10,Données!$G$43:$AH$43))) -> 0 | AZ25: =IF(AZ7=0,0,INDEX(Données!$G$45:$AH$45,MATCH(AZ10,Données!$G$43:$AH$43))) -> 0 | BA25: =IF(BA7=0,0,INDEX(Données!$G$45:$AH$45,MATCH(BA10,Données!$G$43:$AH$43))) -> 0 | BB25: =IF(BB7=0,0,INDEX(Données!$G$45:$AH$45,MATCH(BB10,Données!$G$43:$AH$43))) -> 0 | BC25: =IF(BC7=0,0,INDEX(Données!$G$45:$AH$45,MATCH(BC10,Données!$G$43:$AH$43))) -> 0 | BD25: =IF(BD7=0,0,INDEX(Données!$G$45:$AH$45,MATCH(BD10,Données!$G$43:$AH$43))) -> 0 | BE25: =IF(BE7=0,0,INDEX(Données!$G$45:$AH$45,MATCH(BE10,Données!$G$43:$AH$43))) -> 0 | BF25: =IF(BF7=0,0,INDEX(Données!$G$45:$AH$45,MATCH(BF10,Données!$G$43:$AH$43))) -> 0 | BG25: =IF(BG7=0,0,INDEX(Données!$G$45:$AH$45,MATCH(BG10,Données!$G$43:$AH$43))) -> 0 | BH25: =IF(BH7=0,0,INDEX(Données!$G$45:$AH$45,MATCH(BH10,Données!$G$43:$AH$43))) -> 0 | BI25: =IF(BI7=0,0,INDEX(Données!$G$45:$AH$45,MATCH(BI10,Données!$G$43:$AH$43))) -> 0 | BJ25: =IF(BJ7=0,0,INDEX(Données!$G$45:$AH$45,MATCH(BJ10,Données!$G$43:$AH$43))) -> 0 | BK25: =IF(BK7=0,0,INDEX(Données!$G$45:$AH$45,MATCH(BK10,Données!$G$43:$AH$43))) -> 0 | BL25: =IF(BL7=0,0,INDEX(Données!$G$45:$AH$45,MATCH(BL10,Données!$G$43:$AH$43))) -> 0 | BM25: =IF(BM7=0,0,INDEX(Données!$G$45:$AH$45,MATCH(BM10,Données!$G$43:$AH$43))) -> 0
C26: Net-Generation | D26: PV Production nette | E26: kWh | I26: =SUM(J26:BM26) -> 185369.924 | K26: =K22 -> 9900 | L26: 9830.7 | M26: 9761.8851 | N26: 9693.551904 | O26: 9625.697041 | P26: 9558.317162 | Q26: 9491.408942 | R26: 9424.969079 | S26: 9358.994295 | T26: 9293.481335 | U26: 9228.426966 | V26: 9163.827977 | W26: 9099.681181 | X26: 9035.983413 | Y26: 8972.731529 | Z26: 8909.922409 | AA26: 8847.552952 | AB26: 8785.620081 | AC26: 8724.12074 | AD26: 8663.051895 | AE26: 0 | AF26: 0 | AG26: 0 | AH26: 0 | AI26: 0 | AJ26: 0 | AK26: 0 | AL26: 0 | AM26: 0 | AN26: 0 | AO26: 0 | AP26: =AP22 -> 0 | AQ26: 0 | AR26: 0 | AS26: 0 | AT26: 0 | AU26: 0 | AV26: 0 | AW26: 0 | AX26: 0 | AY26: 0 | AZ26: 0 | BA26: 0 | BB26: 0 | BC26: 0 | BD26: 0 | BE26: 0 | BF26: 0 | BG26: 0 | BH26: 0 | BI26: 0 | BJ26: 0 | BK26: 0 | BL26: 0 | BM26: 0
C27: Total Consumption | D27: Consommation totale | E27: kWh | I27: =SUM(J27:BM27) -> 192000 | K27: =IF(K7=0,0,Factures!$D$17) -> 9600 | L27: =IF(L7=0,0,Factures!$D$17) -> 9600 | M27: =IF(M7=0,0,Factures!$D$17) -> 9600 | N27: =IF(N7=0,0,Factures!$D$17) -> 9600 | O27: =IF(O7=0,0,Factures!$D$17) -> 9600 | P27: =IF(P7=0,0,Factures!$D$17) -> 9600 | Q27: =IF(Q7=0,0,Factures!$D$17) -> 9600 | R27: =IF(R7=0,0,Factures!$D$17) -> 9600 | S27: =IF(S7=0,0,Factures!$D$17) -> 9600 | T27: =IF(T7=0,0,Factures!$D$17) -> 9600 | U27: =IF(U7=0,0,Factures!$D$17) -> 9600 | V27: =IF(V7=0,0,Factures!$D$17) -> 9600 | W27: =IF(W7=0,0,Factures!$D$17) -> 9600 | X27: =IF(X7=0,0,Factures!$D$17) -> 9600 | Y27: =IF(Y7=0,0,Factures!$D$17) -> 9600 | Z27: =IF(Z7=0,0,Factures!$D$17) -> 9600 | AA27: =IF(AA7=0,0,Factures!$D$17) -> 9600 | AB27: =IF(AB7=0,0,Factures!$D$17) -> 9600 | AC27: =IF(AC7=0,0,Factures!$D$17) -> 9600 | AD27: =IF(AD7=0,0,Factures!$D$17) -> 9600 | AE27: =IF(AE7=0,0,Factures!$D$17) -> 0 | AF27: =IF(AF7=0,0,Factures!$D$17) -> 0 | AG27: =IF(AG7=0,0,Factures!$D$17) -> 0 | AH27: =IF(AH7=0,0,Factures!$D$17) -> 0 | AI27: =IF(AI7=0,0,Factures!$D$17) -> 0 | AJ27: =IF(AJ7=0,0,Factures!$D$17) -> 0 | AK27: =IF(AK7=0,0,Factures!$D$17) -> 0 | AL27: =IF(AL7=0,0,Factures!$D$17) -> 0 | AM27: =IF(AM7=0,0,Factures!$D$17) -> 0 | AN27: =IF(AN7=0,0,Factures!$D$17) -> 0 | AO27: =IF(AO7=0,0,Factures!$D$17) -> 0 | AP27: =IF(AP7=0,0,Factures!$D$17) -> 0 | AQ27: =IF(AQ7=0,0,Factures!$D$17) -> 0 | AR27: =IF(AR7=0,0,Factures!$D$17) -> 0 | AS27: =IF(AS7=0,0,Factures!$D$17) -> 0 | AT27: =IF(AT7=0,0,Factures!$D$17) -> 0 | AU27: =IF(AU7=0,0,Factures!$D$17) -> 0 | AV27: =IF(AV7=0,0,Factures!$D$17) -> 0 | AW27: =IF(AW7=0,0,Factures!$D$17) -> 0 | AX27: =IF(AX7=0,0,Factures!$D$17) -> 0 | AY27: =IF(AY7=0,0,Factures!$D$17) -> 0 | AZ27: =IF(AZ7=0,0,Factures!$D$17) -> 0 | BA27: =IF(BA7=0,0,Factures!$D$17) -> 0 | BB27: =IF(BB7=0,0,Factures!$D$17) -> 0 | BC27: =IF(BC7=0,0,Factures!$D$17) -> 0 | BD27: =IF(BD7=0,0,Factures!$D$17) -> 0 | BE27: =IF(BE7=0,0,Factures!$D$17) -> 0 | BF27: =IF(BF7=0,0,Factures!$D$17) -> 0 | BG27: =IF(BG7=0,0,Factures!$D$17) -> 0 | BH27: =IF(BH7=0,0,Factures!$D$17) -> 0 | BI27: =IF(BI7=0,0,Factures!$D$17) -> 0 | BJ27: =IF(BJ7=0,0,Factures!$D$17) -> 0 | BK27: =IF(BK7=0,0,Factures!$D$17) -> 0 | BL27: =IF(BL7=0,0,Factures!$D$17) -> 0 | BM27: =IF(BM7=0,0,Factures!$D$17) -> 0
C28: Direct Consumption | D28: Consommation directe | E28: kWh | I28: =SUM(J28:BM28) -> 184558.09 | K28: =MIN(K26:K27) -> 9600 | L28: 9600 | M28: 9600 | N28: 9600 | O28: 9600 | P28: 9558.317162 | Q28: 9491.408942 | R28: 9424.969079 | S28: 9358.994295 | T28: 9293.481335 | U28: 9228.426966 | V28: 9163.827977 | W28: 9099.681181 | X28: 9035.983413 | Y28: 8972.731529 | Z28: 8909.922409 | AA28: 8847.552952 | AB28: 8785.620081 | AC28: 8724.12074 | AD28: 8663.051895 | AE28: 0 | AF28: 0 | AG28: 0 | AH28: 0 | AI28: 0 | AJ28: 0 | AK28: 0 | AL28: 0 | AM28: 0 | AN28: 0 | AO28: 0 | AP28: 0 | AQ28: 0 | AR28: 0 | AS28: 0 | AT28: 0 | AU28: 0 | AV28: 0 | AW28: 0 | AX28: 0 | AY28: 0 | AZ28: 0 | BA28: 0 | BB28: 0 | BC28: 0 | BD28: 0 | BE28: 0 | BF28: 0 | BG28: 0 | BH28: 0 | BI28: 0 | BJ28: 0 | BK28: 0 | BL28: 0 | BM28: 0
C29: Savings | D29: Économies réalisées | E29: DT | I29: =SUM(J29:BM29) -> 115310.2618 | K29: =K25*K28 -> 4490.769059 | L29: 4625.492131 | M29: 4764.256895 | N29: 4907.184602 | O29: 5054.40014 | P29: 5183.427748 | Q29: 5301.558067 | R29: 5422.380575 | S29: 5545.956629 | T29: 5672.34898 | U29: 5801.621813 | V29: 5933.840774 | W29: 6069.073006 | X29: 6207.38718 | Y29: 6348.853533 | Z29: 6493.543905 | AA29: 6641.531771 | AB29: 6792.89228 | AC29: 6947.702295 | AD29: 7106.04043 | AE29: 0 | AF29: 0 | AG29: 0 | AH29: 0 | AI29: 0 | AJ29: 0 | AK29: 0 | AL29: 0 | AM29: 0 | AN29: 0 | AO29: 0 | AP29: 0 | AQ29: 0 | AR29: 0 | AS29: 0 | AT29: 0 | AU29: 0 | AV29: 0 | AW29: 0 | AX29: 0 | AY29: 0 | AZ29: 0 | BA29: 0 | BB29: 0 | BC29: 0 | BD29: 0 | BE29: 0 | BF29: 0 | BG29: 0 | BH29: 0 | BI29: 0 | BJ29: 0 | BK29: 0 | BL29: 0 | BM29: 0
C32: Operating Costs | D32: Coûts d'exploitation
C33: Fixed Costs | D33: Coûts fixes
C34: Real | D34: Coûts Réels
C35: =Données!C54 -> Fixed Operation | D35: Exploitations fixes | E35: DT | F35: =Données!G54 -> 220 | I35: =SUM(J35:BM35) -> 4400 | J35: =IF(J7=0,0,$F$35) -> 0 | K35: 220 | L35: 220 | M35: 220 | N35: 220 | O35: 220 | P35: 220 | Q35: 220 | R35: 220 | S35: 220 | T35: 220 | U35: 220 | V35: 220 | W35: 220 | X35: 220 | Y35: 220 | Z35: 220 | AA35: 220 | AB35: 220 | AC35: 220 | AD35: 220 | AE35: 0 | AF35: 0 | AG35: 0 | AH35: 0 | AI35: 0 | AJ35: 0 | AK35: 0 | AL35: 0 | AM35: 0 | AN35: 0 | AO35: 0 | AP35: =IF(AP7=0,0,$F$35) -> 0 | AQ35: 0 | AR35: 0 | AS35: 0 | AT35: 0 | AU35: 0 | AV35: 0 | AW35: 0 | AX35: 0 | AY35: 0 | AZ35: 0 | BA35: 0 | BB35: 0 | BC35: 0 | BD35: 0 | BE35: 0 | BF35: 0 | BG35: 0 | BH35: 0 | BI35: 0 | BJ35: 0 | BK35: 0 | BL35: 0 | BM35: 0
C36: =Données!C55 -> Spare | D36: (autre) | E36: DT | F36: =Données!G55 -> 0 | I36: 0 | J36: =$F36*J$7 -> 0 | K36: =$F36*K$7 -> 0 | L36: 0 | M36: 0 | N36: 0 | O36: 0 | P36: 0 | Q36: 0 | R36: 0 | S36: 0 | T36: 0 | U36: 0 | V36: 0 | W36: 0 | X36: 0 | Y36: 0 | Z36: 0 | AA36: 0 | AB36: 0 | AC36: 0 | AD36: 0 | AE36: 0 | AF36: 0 | AG36: 0 | AH36: 0 | AI36: 0 | AJ36: 0 | AK36: 0 | AL36: 0 | AM36: 0 | AN36: 0 | AO36: 0 | AP36: 0 | AQ36: 0 | AR36: 0 | AS36: 0 | AT36: 0 | AU36: 0 | AV36: 0 | AW36: 0 | AX36: 0 | AY36: 0 | AZ36: 0 | BA36: 0 | BB36: 0 | BC36: 0 | BD36: 0 | BE36: 0 | BF36: 0 | BG36: 0 | BH36: 0 | BI36: 0 | BJ36: 0 | BK36: 0 | BL36: 0 | BM36: 0
C37: =Données!C56 -> Spare | D37: (autre) | E37: DT | F37: =Données!G56 -> 0 | I37: 0 | J37: =$F37*J$7 -> 0 | K37: 0 | L37: 0 | M37: 0 | N37: 0 | O37: 0 | P37: 0 | Q37: 0 | R37: 0 | S37: 0 | T37: 0 | U37: 0 | V37: 0 | W37: 0 | X37: 0 | Y37: 0 | Z37: 0 | AA37: 0 | AB37: 0 | AC37: 0 | AD37: 0 | AE37: 0 | AF37: 0 | AG37: 0 | AH37: 0 | AI37: 0 | AJ37: 0 | AK37: 0 | AL37: 0 | AM37: 0 | AN37: 0 | AO37: 0 | AP37: 0 | AQ37: 0 | AR37: 0 | AS37: 0 | AT37: 0 | AU37: 0 | AV37: 0 | AW37: 0 | AX37: 0 | AY37: 0 | AZ37: 0 | BA37: 0 | BB37: 0 | BC37: 0 | BD37: 0 | BE37: 0 | BF37: 0 | BG37: 0 | BH37: 0 | BI37: 0 | BJ37: 0 | BK37: 0 | BL37: 0 | BM37: 0
C38: =Données!C57 -> Spare | D38: (autre) | E38: DT | F38: =Données!G57 -> 0 | I38: 0 | J38: =$F38*J$7 -> 0 | K38: 0 | L38: 0 | M38: 0 | N38: 0 | O38: 0 | P38: 0 | Q38: 0 | R38: 0 | S38: 0 | T38: 0 | U38: 0 | V38: 0 | W38: 0 | X38: 0 | Y38: 0 | Z38: 0 | AA38: 0 | AB38: 0 | AC38: 0 | AD38: 0 | AE38: 0 | AF38: 0 | AG38: 0 | AH38: 0 | AI38: 0 | AJ38: 0 | AK38: 0 | AL38: 0 | AM38: 0 | AN38: 0 | AO38: 0 | AP38: 0 | AQ38: 0 | AR38: 0 | AS38: 0 | AT38: 0 | AU38: 0 | AV38: 0 | AW38: 0 | AX38: 0 | AY38: 0 | AZ38: 0 | BA38: 0 | BB38: 0 | BC38: 0 | BD38: 0 | BE38: 0 | BF38: 0 | BG38: 0 | BH38: 0 | BI38: 0 | BJ38: 0 | BK38: 0 | BL38: 0 | BM38: 0
C39: =Données!C58 -> Spare | D39: (autre) | E39: DT | F39: =Données!G58 -> 0 | I39: 0 | J39: =$F39*J$7 -> 0 | K39: 0 | L39: 0 | M39: 0 | N39: 0 | O39: 0 | P39: 0 | Q39: 0 | R39: 0 | S39: 0 | T39: 0 | U39: 0 | V39: 0 | W39: 0 | X39: 0 | Y39: 0 | Z39: 0 | AA39: 0 | AB39: 0 | AC39: 0 | AD39: 0 | AE39: 0 | AF39: 0 | AG39: 0 | AH39: 0 | AI39: 0 | AJ39: 0 | AK39: 0 | AL39: 0 | AM39: 0 | AN39: 0 | AO39: 0 | AP39: 0 | AQ39: 0 | AR39: 0 | AS39: 0 | AT39: 0 | AU39: 0 | AV39: 0 | AW39: 0 | AX39: 0 | AY39: 0 | AZ39: 0 | BA39: 0 | BB39: 0 | BC39: 0 | BD39: 0 | BE39: 0 | BF39: 0 | BG39: 0 | BH39: 0 | BI39: 0 | BJ39: 0 | BK39: 0 | BL39: 0 | BM39: 0
C40: Total | D40: Total | E40: DT | I40: 4400 | J40: =SUM(J35:J39) -> 0 | K40: 220 | L40: 220 | M40: 220 | N40: 220 | O40: 220 | P40: 220 | Q40: 220 | R40: 220 | S40: 220 | T40: 220 | U40: 220 | V40: 220 | W40: 220 | X40: 220 | Y40: 220 | Z40: 220 | AA40: 220 | AB40: 220 | AC40: 220 | AD40: 220 | AE40: 0 | AF40: 0 | AG40: 0 | AH40: 0 | AI40: 0 | AJ40: 0 | AK40: 0 | AL40: 0 | AM40: 0 | AN40: 0 | AO40: 0 | AP40: =SUM(AP35:AP39) -> 0 | AQ40: 0 | AR40: 0 | AS40: 0 | AT40: 0 | AU40: 0 | AV40: 0 | AW40: 0 | AX40: 0 | AY40: 0 | AZ40: 0 | BA40: 0 | BB40: 0 | BC40: 0 | BD40: 0 | BE40: 0 | BF40: 0 | BG40: 0 | BH40: 0 | BI40: 0 | BJ40: 0 | BK40: 0 | BL40: 0 | BM40: 0
C42: Escalation | D42: Évolution | E42: Index | J42: =Délais!J19 -> 0 | K42: =Délais!K19 -> 1 | L42: =Délais!L19 -> 1.07 | M42: =Délais!M19 -> 1.1449 | N42: =Délais!N19 -> 1.225043 | O42: =Délais!O19 -> 1.31079601 | P42: =Délais!P19 -> 1.402551731 | Q42: =Délais!Q19 -> 1.500730352 | R42: =Délais!R19 -> 1.605781476 | S42: =Délais!S19 -> 1.71818618 | T42: =Délais!T19 -> 1.838459212 | U42: =Délais!U19 -> 1.967151357 | V42: =Délais!V19 -> 2.104851952 | W42: =Délais!W19 -> 2.252191589 | X42: =Délais!X19 -> 2.409845 | Y42: =Délais!Y19 -> 2.57853415 | Z42: =Délais!Z19 -> 2.759031541 | AA42: =Délais!AA19 -> 2.952163749 | AB42: =Délais!AB19 -> 3.158815211 | AC42: =Délais!AC19 -> 3.379932276 | AD42: =Délais!AD19 -> 3.616527535 | AE42: =Délais!AE19 -> 3.616527535 | AF42: =Délais!AF19 -> 3.616527535 | AG42: =Délais!AG19 -> 3.616527535 | AH42: =Délais!AH19 -> 3.616527535 | AI42: =Délais!AI19 -> 3.616527535 | AJ42: =Délais!AJ19 -> 3.616527535 | AK42: =Délais!AK19 -> 3.616527535 | AL42: =Délais!AL19 -> 3.616527535 | AM42: =Délais!AM19 -> 3.616527535 | AN42: =Délais!AN19 -> 3.616527535 | AO42: =Délais!AO19 -> 3.616527535 | AP42: =Délais!AP19 -> 3.616527535 | AQ42: =Délais!AQ19 -> 3.616527535 | AR42: =Délais!AR19 -> 3.616527535 | AS42: =Délais!AS19 -> 3.616527535 | AT42: =Délais!AT19 -> 3.616527535 | AU42: =Délais!AU19 -> 3.616527535 | AV42: =Délais!AV19 -> 3.616527535 | AW42: =Délais!AW19 -> 3.616527535 | AX42: =Délais!AX19 -> 3.616527535 | AY42: =Délais!AY19 -> 3.616527535 | AZ42: =Délais!AZ19 -> 3.616527535 | BA42: =Délais!BA19 -> 3.616527535 | BB42: =Délais!BB19 -> 3.616527535 | BC42: =Délais!BC19 -> 3.616527535 | BD42: =Délais!BD19 -> 3.616527535 | BE42: =Délais!BE19 -> 3.616527535 | BF42: =Délais!BF19 -> 3.616527535 | BG42: =Délais!BG19 -> 3.616527535 | BH42: =Délais!BH19 -> 3.616527535 | BI42: =Délais!BI19 -> 3.616527535 | BJ42: =Délais!BJ19 -> 3.616527535 | BK42: =Délais!BK19 -> 3.616527535 | BL42: =Délais!BL19 -> 3.616527535 | BM42: =Délais!BM19 -> 3.616527535
C44: Nominal | D44: Coûts Nominaux
C45: =Données!C54 -> Fixed Operation | D45: Exploitation fixes | E45: DT | I45: =SUM(J45:BM45) -> 9019.008311 | J45: =J35*J$42 -> 0 | K45: 220 | L45: 235.4 | M45: 251.878 | N45: 269.50946 | O45: 288.3751222 | P45: 308.5613808 | Q45: 330.1606774 | R45: 353.2719248 | S45: 378.0009596 | T45: 404.4610267 | U45: 432.7732986 | V45: 463.0674295 | W45: 495.4821496 | X45: 530.1659 | Y45: 567.277513 | Z45: 606.986939 | AA45: 649.4760247 | AB45: 694.9393464 | AC45: 743.5851007 | AD45: 795.6360577 | AE45: 0 | AF45: 0 | AG45: 0 | AH45: 0 | AI45: 0 | AJ45: 0 | AK45: 0 | AL45: 0 | AM45: 0 | AN45: 0 | AO45: 0 | AP45: =AP35*AP$42 -> 0 | AQ45: 0 | AR45: 0 | AS45: 0 | AT45: 0 | AU45: 0 | AV45: 0 | AW45: 0 | AX45: 0 | AY45: 0 | AZ45: 0 | BA45: 0 | BB45: 0 | BC45: 0 | BD45: 0 | BE45: 0 | BF45: 0 | BG45: 0 | BH45: 0 | BI45: 0 | BJ45: 0 | BK45: 0 | BL45: 0 | BM45: 0
C46: =Données!C55 -> Spare | D46: (autre) | E46: DT | I46: 0 | J46: =J36*J$42 -> 0 | K46: 0 | L46: 0 | M46: 0 | N46: 0 | O46: 0 | P46: 0 | Q46: 0 | R46: 0 | S46: 0 | T46: 0 | U46: 0 | V46: 0 | W46: 0 | X46: 0 | Y46: 0 | Z46: 0 | AA46: 0 | AB46: 0 | AC46: 0 | AD46: 0 | AE46: 0 | AF46: 0 | AG46: 0 | AH46: 0 | AI46: 0 | AJ46: 0 | AK46: 0 | AL46: 0 | AM46: 0 | AN46: 0 | AO46: 0 | AP46: =AP36*AP$42 -> 0 | AQ46: 0 | AR46: 0 | AS46: 0 | AT46: 0 | AU46: 0 | AV46: 0 | AW46: 0 | AX46: 0 | AY46: 0 | AZ46: 0 | BA46: 0 | BB46: 0 | BC46: 0 | BD46: 0 | BE46: 0 | BF46: 0 | BG46: 0 | BH46: 0 | BI46: 0 | BJ46: 0 | BK46: 0 | BL46: 0 | BM46: 0
C47: =Données!C56 -> Spare | D47: (autre) | E47: DT | I47: 0 | J47: =J37*J$42 -> 0 | K47: 0 | L47: 0 | M47: 0 | N47: 0 | O47: 0 | P47: 0 | Q47: 0 | R47: 0 | S47: 0 | T47: 0 | U47: 0 | V47: 0 | W47: 0 | X47: 0 | Y47: 0 | Z47: 0 | AA47: 0 | AB47: 0 | AC47: 0 | AD47: 0 | AE47: 0 | AF47: 0 | AG47: 0 | AH47: 0 | AI47: 0 | AJ47: 0 | AK47: 0 | AL47: 0 | AM47: 0 | AN47: 0 | AO47: 0 | AP47: =AP37*AP$42 -> 0 | AQ47: 0 | AR47: 0 | AS47: 0 | AT47: 0 | AU47: 0 | AV47: 0 | AW47: 0 | AX47: 0 | AY47: 0 | AZ47: 0 | BA47: 0 | BB47: 0 | BC47: 0 | BD47: 0 | BE47: 0 | BF47: 0 | BG47: 0 | BH47: 0 | BI47: 0 | BJ47: 0 | BK47: 0 | BL47: 0 | BM47: 0
C48: =Données!C57 -> Spare | D48: (autre) | E48: DT | I48: 0 | J48: =J38*J$42 -> 0 | K48: 0 | L48: 0 | M48: 0 | N48: 0 | O48: 0 | P48: 0 | Q48: 0 | R48: 0 | S48: 0 | T48: 0 | U48: 0 | V48: 0 | W48: 0 | X48: 0 | Y48: 0 | Z48: 0 | AA48: 0 | AB48: 0 | AC48: 0 | AD48: 0 | AE48: 0 | AF48: 0 | AG48: 0 | AH48: 0 | AI48: 0 | AJ48: 0 | AK48: 0 | AL48: 0 | AM48: 0 | AN48: 0 | AO48: 0 | AP48: =AP38*AP$42 -> 0 | AQ48: 0 | AR48: 0 | AS48: 0 | AT48: 0 | AU48: 0 | AV48: 0 | AW48: 0 | AX48: 0 | AY48: 0 | AZ48: 0 | BA48: 0 | BB48: 0 | BC48: 0 | BD48: 0 | BE48: 0 | BF48: 0 | BG48: 0 | BH48: 0 | BI48: 0 | BJ48: 0 | BK48: 0 | BL48: 0 | BM48: 0
C49: =Données!C58 -> Spare | D49: (autre) | E49: DT | I49: 0 | J49: =J39*J$42 -> 0 | K49: 0 | L49: 0 | M49: 0 | N49: 0 | O49: 0 | P49: 0 | Q49: 0 | R49: 0 | S49: 0 | T49: 0 | U49: 0 | V49: 0 | W49: 0 | X49: 0 | Y49: 0 | Z49: 0 | AA49: 0 | AB49: 0 | AC49: 0 | AD49: 0 | AE49: 0 | AF49: 0 | AG49: 0 | AH49: 0 | AI49: 0 | AJ49: 0 | AK49: 0 | AL49: 0 | AM49: 0 | AN49: 0 | AO49: 0 | AP49: =AP39*AP$42 -> 0 | AQ49: 0 | AR49: 0 | AS49: 0 | AT49: 0 | AU49: 0 | AV49: 0 | AW49: 0 | AX49: 0 | AY49: 0 | AZ49: 0 | BA49: 0 | BB49: 0 | BC49: 0 | BD49: 0 | BE49: 0 | BF49: 0 | BG49: 0 | BH49: 0 | BI49: 0 | BJ49: 0 | BK49: 0 | BL49: 0 | BM49: 0
C50: Total | D50: Total | E50: DT | I50: 9019.008311 | J50: =SUM(J45:J49) -> 0 | K50: 220 | L50: 235.4 | M50: 251.878 | N50: 269.50946 | O50: 288.3751222 | P50: 308.5613808 | Q50: 330.1606774 | R50: 353.2719248 | S50: 378.0009596 | T50: 404.4610267 | U50: 432.7732986 | V50: 463.0674295 | W50: 495.4821496 | X50: 530.1659 | Y50: 567.277513 | Z50: 606.986939 | AA50: 649.4760247 | AB50: 694.9393464 | AC50: 743.5851007 | AD50: 795.6360577 | AE50: 0 | AF50: 0 | AG50: 0 | AH50: 0 | AI50: 0 | AJ50: 0 | AK50: 0 | AL50: 0 | AM50: 0 | AN50: 0 | AO50: 0 | AP50: =SUM(AP45:AP49) -> 0 | AQ50: 0 | AR50: 0 | AS50: 0 | AT50: 0 | AU50: 0 | AV50: 0 | AW50: 0 | AX50: 0 | AY50: 0 | AZ50: 0 | BA50: 0 | BB50: 0 | BC50: 0 | BD50: 0 | BE50: 0 | BF50: 0 | BG50: 0 | BH50: 0 | BI50: 0 | BJ50: 0 | BK50: 0 | BL50: 0 | BM50: 0
C52: Variable Costs | D52: Coûts variables
C53: Real | D53: Coûts Réels
C54: Net Generation | D54: Production nette d'électricité | E54: kWh | I54: =SUM(J54:BM54) -> 185369.924 | J54: =J22 -> 0 | K54: 9900 | L54: 9830.7 | M54: 9761.8851 | N54: 9693.551904 | O54: 9625.697041 | P54: 9558.317162 | Q54: 9491.408942 | R54: 9424.969079 | S54: 9358.994295 | T54: 9293.481335 | U54: 9228.426966 | V54: 9163.827977 | W54: 9099.681181 | X54: 9035.983413 | Y54: 8972.731529 | Z54: 8909.922409 | AA54: 8847.552952 | AB54: 8785.620081 | AC54: 8724.12074 | AD54: 8663.051895 | AE54: 0 | AF54: 0 | AG54: 0 | AH54: 0 | AI54: 0 | AJ54: 0 | AK54: 0 | AL54: 0 | AM54: 0 | AN54: 0 | AO54: 0 | AP54: =AP22 -> 0 | AQ54: 0 | AR54: 0 | AS54: 0 | AT54: 0 | AU54: 0 | AV54: 0 | AW54: 0 | AX54: 0 | AY54: 0 | AZ54: 0 | BA54: 0 | BB54: 0 | BC54: 0 | BD54: 0 | BE54: 0 | BF54: 0 | BG54: 0 | BH54: 0 | BI54: 0 | BJ54: 0 | BK54: 0 | BL54: 0 | BM54: 0
F55: EUR/kWh
C56: =Données!C62 -> Land Lease | D56: Bail Foncier | E56: DT | F56: =Données!G62 -> 0 | I56: 0 | J56: =$F56*J$54 -> 0 | K56: =$F56*K$54 -> 0 | L56: 0 | M56: 0 | N56: 0 | O56: 0 | P56: 0 | Q56: 0 | R56: 0 | S56: 0 | T56: 0 | U56: 0 | V56: 0 | W56: 0 | X56: 0 | Y56: 0 | Z56: 0 | AA56: =$F56*AA$54 -> 0 | AB56: 0 | AC56: 0 | AD56: 0 | AE56: 0 | AF56: 0 | AG56: 0 | AH56: 0 | AI56: 0 | AJ56: 0 | AK56: 0 | AL56: 0 | AM56: 0 | AN56: 0 | AO56: 0 | AP56: 0 | AQ56: =$F56*AQ$54 -> 0 | AR56: 0 | AS56: 0 | AT56: 0 | AU56: 0 | AV56: 0 | AW56: 0 | AX56: 0 | AY56: 0 | AZ56: 0 | BA56: 0 | BB56: 0 | BC56: 0 | BD56: 0 | BE56: 0 | BF56: 0 | BG56: =$F56*BG$54 -> 0 | BH56: 0 | BI56: 0 | BJ56: 0 | BK56: 0 | BL56: 0 | BM56: 0
C57: =Données!C63 -> Spare | D57: (autre) | E57: DT | F57: =Données!G63 -> 0 | I57: 0 | J57: =$F57*J$54 -> 0 | K57: 0 | L57: 0 | M57: 0 | N57: 0 | O57: 0 | P57: 0 | Q57: 0 | R57: 0 | S57: 0 | T57: 0 | U57: 0 | V57: 0 | W57: 0 | X57: 0 | Y57: 0 | Z57: 0 | AA57: 0 | AB57: 0 | AC57: 0 | AD57: 0 | AE57: 0 | AF57: 0 | AG57: 0 | AH57: 0 | AI57: 0 | AJ57: 0 | AK57: 0 | AL57: 0 | AM57: 0 | AN57: 0 | AO57: 0 | AP57: 0 | AQ57: 0 | AR57: 0 | AS57: 0 | AT57: 0 | AU57: 0 | AV57: 0 | AW57: 0 | AX57: 0 | AY57: 0 | AZ57: 0 | BA57: 0 | BB57: 0 | BC57: 0 | BD57: 0 | BE57: 0 | BF57: 0 | BG57: 0 | BH57: 0 | BI57: 0 | BJ57: 0 | BK57: 0 | BL57: 0 | BM57: 0
C58: =Données!C64 -> Spare | D58: (autre) | E58: DT | F58: =Données!G64 -> 0 | I58: 0 | J58: =$F58*J$54 -> 0 | K58: 0 | L58: 0 | M58: 0 | N58: 0 | O58: 0 | P58: 0 | Q58: 0 | R58: 0 | S58: 0 | T58: 0 | U58: 0 | V58: 0 | W58: 0 | X58: 0 | Y58: 0 | Z58: 0 | AA58: 0 | AB58: 0 | AC58: 0 | AD58: 0 | AE58: 0 | AF58: 0 | AG58: 0 | AH58: 0 | AI58: 0 | AJ58: 0 | AK58: 0 | AL58: 0 | AM58: 0 | AN58: 0 | AO58: 0 | AP58: 0 | AQ58: 0 | AR58: 0 | AS58: 0 | AT58: 0 | AU58: 0 | AV58: 0 | AW58: 0 | AX58: 0 | AY58: 0 | AZ58: 0 | BA58: 0 | BB58: 0 | BC58: 0 | BD58: 0 | BE58: 0 | BF58: 0 | BG58: 0 | BH58: 0 | BI58: 0 | BJ58: 0 | BK58: 0 | BL58: 0 | BM58: 0
C59: =Données!C65 -> Spare | D59: (autre) | E59: DT | F59: =Données!G65 -> 0 | I59: 0 | J59: =$F59*J$54 -> 0 | K59: 0 | L59: 0 | M59: 0 | N59: 0 | O59: 0 | P59: 0 | Q59: 0 | R59: 0 | S59: 0 | T59: 0 | U59: 0 | V59: 0 | W59: 0 | X59: 0 | Y59: 0 | Z59: 0 | AA59: 0 | AB59: 0 | AC59: 0 | AD59: 0 | AE59: 0 | AF59: 0 | AG59: 0 | AH59: 0 | AI59: 0 | AJ59: 0 | AK59: 0 | AL59: 0 | AM59: 0 | AN59: 0 | AO59: 0 | AP59: 0 | AQ59: 0 | AR59: 0 | AS59: 0 | AT59: 0 | AU59: 0 | AV59: 0 | AW59: 0 | AX59: 0 | AY59: 0 | AZ59: 0 | BA59: 0 | BB59: 0 | BC59: 0 | BD59: 0 | BE59: 0 | BF59: 0 | BG59: 0 | BH59: 0 | BI59: 0 | BJ59: 0 | BK59: 0 | BL59: 0 | BM59: 0
C60: Total | D60: Total | E60: DT | I60: 0 | J60: =SUM(J56:J59) -> 0 | K60: 0 | L60: 0 | M60: 0 | N60: 0 | O60: 0 | P60: 0 | Q60: 0 | R60: 0 | S60: 0 | T60: 0 | U60: 0 | V60: 0 | W60: 0 | X60: 0 | Y60: 0 | Z60: 0 | AA60: 0 | AB60: 0 | AC60: 0 | AD60: 0 | AE60: 0 | AF60: 0 | AG60: 0 | AH60: 0 | AI60: 0 | AJ60: 0 | AK60: 0 | AL60: 0 | AM60: 0 | AN60: 0 | AO60: 0 | AP60: =SUM(AP56:AP59) -> 0 | AQ60: 0 | AR60: 0 | AS60: 0 | AT60: 0 | AU60: 0 | AV60: 0 | AW60: 0 | AX60: 0 | AY60: 0 | AZ60: 0 | BA60: 0 | BB60: 0 | BC60: 0 | BD60: 0 | BE60: 0 | BF60: 0 | BG60: 0 | BH60: 0 | BI60: 0 | BJ60: 0 | BK60: 0 | BL60: 0 | BM60: 0
C62: Escalation | D62: Évolution | E62: DT | J62: =Délais!J19 -> 0 | K62: =Délais!K19 -> 1 | L62: =Délais!L19 -> 1.07 | M62: =Délais!M19 -> 1.1449 | N62: =Délais!N19 -> 1.225043 | O62: =Délais!O19 -> 1.31079601 | P62: =Délais!P19 -> 1.402551731 | Q62: =Délais!Q19 -> 1.500730352 | R62: =Délais!R19 -> 1.605781476 | S62: =Délais!S19 -> 1.71818618 | T62: =Délais!T19 -> 1.838459212 | U62: =Délais!U19 -> 1.967151357 | V62: =Délais!V19 -> 2.104851952 | W62: =Délais!W19 -> 2.252191589 | X62: =Délais!X19 -> 2.409845 | Y62: =Délais!Y19 -> 2.57853415 | Z62: =Délais!Z19 -> 2.759031541 | AA62: =Délais!AA19 -> 2.952163749 | AB62: =Délais!AB19 -> 3.158815211 | AC62: =Délais!AC19 -> 3.379932276 | AD62: =Délais!AD19 -> 3.616527535 | AE62: =Délais!AE19 -> 3.616527535 | AF62: =Délais!AF19 -> 3.616527535 | AG62: =Délais!AG19 -> 3.616527535 | AH62: =Délais!AH19 -> 3.616527535 | AI62: =Délais!AI19 -> 3.616527535 | AJ62: =Délais!AJ19 -> 3.616527535 | AK62: =Délais!AK19 -> 3.616527535 | AL62: =Délais!AL19 -> 3.616527535 | AM62: =Délais!AM19 -> 3.616527535 | AN62: =Délais!AN19 -> 3.616527535 | AO62: =Délais!AO19 -> 3.616527535 | AP62: =Délais!AP19 -> 3.616527535 | AQ62: =Délais!AQ19 -> 3.616527535 | AR62: =Délais!AR19 -> 3.616527535 | AS62: =Délais!AS19 -> 3.616527535 | AT62: =Délais!AT19 -> 3.616527535 | AU62: =Délais!AU19 -> 3.616527535 | AV62: =Délais!AV19 -> 3.616527535 | AW62: =Délais!AW19 -> 3.616527535 | AX62: =Délais!AX19 -> 3.616527535 | AY62: =Délais!AY19 -> 3.616527535 | AZ62: =Délais!AZ19 -> 3.616527535 | BA62: =Délais!BA19 -> 3.616527535 | BB62: =Délais!BB19 -> 3.616527535 | BC62: =Délais!BC19 -> 3.616527535 | BD62: =Délais!BD19 -> 3.616527535 | BE62: =Délais!BE19 -> 3.616527535 | BF62: =Délais!BF19 -> 3.616527535 | BG62: =Délais!BG19 -> 3.616527535 | BH62: =Délais!BH19 -> 3.616527535 | BI62: =Délais!BI19 -> 3.616527535 | BJ62: =Délais!BJ19 -> 3.616527535 | BK62: =Délais!BK19 -> 3.616527535 | BL62: =Délais!BL19 -> 3.616527535 | BM62: =Délais!BM19 -> 3.616527535
C64: Nominal | D64: Coûts Nominaux
C65: =Données!C62 -> Land Lease | D65: Bail foncier | E65: DT | I65: =SUM(J65:BM65) -> 0 | J65: =J56*J$62 -> 0 | K65: 0 | L65: 0 | M65: 0 | N65: 0 | O65: 0 | P65: 0 | Q65: 0 | R65: 0 | S65: 0 | T65: 0 | U65: 0 | V65: 0 | W65: 0 | X65: 0 | Y65: 0 | Z65: 0 | AA65: 0 | AB65: 0 | AC65: 0 | AD65: 0 | AE65: 0 | AF65: 0 | AG65: 0 | AH65: 0 | AI65: 0 | AJ65: 0 | AK65: 0 | AL65: 0 | AM65: 0 | AN65: 0 | AO65: 0 | AP65: =AP56*AP$62 -> 0 | AQ65: 0 | AR65: 0 | AS65: 0 | AT65: 0 | AU65: 0 | AV65: 0 | AW65: 0 | AX65: 0 | AY65: 0 | AZ65: 0 | BA65: 0 | BB65: 0 | BC65: 0 | BD65: 0 | BE65: 0 | BF65: 0 | BG65: 0 | BH65: 0 | BI65: 0 | BJ65: 0 | BK65: 0 | BL65: 0 | BM65: 0
C66: =Données!C63 -> Spare | D66: (autre) | E66: DT | I66: =SUM(J66:BM66) -> 0 | J66: =J57*J$62 -> 0 | K66: 0 | L66: 0 | M66: 0 | N66: 0 | O66: 0 | P66: 0 | Q66: 0 | R66: 0 | S66: 0 | T66: 0 | U66: 0 | V66: 0 | W66: 0 | X66: 0 | Y66: 0 | Z66: 0 | AA66: 0 | AB66: 0 | AC66: 0 | AD66: 0 | AE66: 0 | AF66: 0 | AG66: 0 | AH66: 0 | AI66: 0 | AJ66: 0 | AK66: 0 | AL66: 0 | AM66: 0 | AN66: 0 | AO66: 0 | AP66: =AP57*AP$62 -> 0 | AQ66: 0 | AR66: 0 | AS66: 0 | AT66: 0 | AU66: 0 | AV66: 0 | AW66: 0 | AX66: 0 | AY66: 0 | AZ66: 0 | BA66: 0 | BB66: 0 | BC66: 0 | BD66: 0 | BE66: 0 | BF66: 0 | BG66: 0 | BH66: 0 | BI66: 0 | BJ66: 0 | BK66: 0 | BL66: 0 | BM66: 0
C67: =Données!C64 -> Spare | D67: (autre) | E67: DT | I67: =SUM(J67:BM67) -> 0 | J67: =J58*J$62 -> 0 | K67: 0 | L67: 0 | M67: 0 | N67: 0 | O67: 0 | P67: 0 | Q67: 0 | R67: 0 | S67: 0 | T67: 0 | U67: 0 | V67: 0 | W67: 0 | X67: 0 | Y67: 0 | Z67: 0 | AA67: 0 | AB67: 0 | AC67: 0 | AD67: 0 | AE67: 0 | AF67: 0 | AG67: 0 | AH67: 0 | AI67: 0 | AJ67: 0 | AK67: 0 | AL67: 0 | AM67: 0 | AN67: 0 | AO67: 0 | AP67: =AP58*AP$62 -> 0 | AQ67: 0 | AR67: 0 | AS67: 0 | AT67: 0 | AU67: 0 | AV67: 0 | AW67: 0 | AX67: 0 | AY67: 0 | AZ67: 0 | BA67: 0 | BB67: 0 | BC67: 0 | BD67: 0 | BE67: 0 | BF67: 0 | BG67: 0 | BH67: 0 | BI67: 0 | BJ67: 0 | BK67: 0 | BL67: 0 | BM67: 0
C68: =Données!C65 -> Spare | D68: (autre) | E68: DT | I68: =SUM(J68:BM68) -> 0 | J68: =J59*J$62 -> 0 | K68: 0 | L68: 0 | M68: 0 | N68: 0 | O68: 0 | P68: 0 | Q68: 0 | R68: 0 | S68: 0 | T68: 0 | U68: 0 | V68: 0 | W68: 0 | X68: 0 | Y68: 0 | Z68: 0 | AA68: 0 | AB68: 0 | AC68: 0 | AD68: 0 | AE68: 0 | AF68: 0 | AG68: 0 | AH68: 0 | AI68: 0 | AJ68: 0 | AK68: 0 | AL68: 0 | AM68: 0 | AN68: 0 | AO68: 0 | AP68: =AP59*AP$62 -> 0 | AQ68: 0 | AR68: 0 | AS68: 0 | AT68: 0 | AU68: 0 | AV68: 0 | AW68: 0 | AX68: 0 | AY68: 0 | AZ68: 0 | BA68: 0 | BB68: 0 | BC68: 0 | BD68: 0 | BE68: 0 | BF68: 0 | BG68: 0 | BH68: 0 | BI68: 0 | BJ68: 0 | BK68: 0 | BL68: 0 | BM68: 0
C69: Total | D69: Total | E69: DT | I69: =SUM(J69:BM69) -> 0 | J69: =SUM(J65:J68) -> 0 | K69: 0 | L69: 0 | M69: 0 | N69: 0 | O69: 0 | P69: 0 | Q69: 0 | R69: 0 | S69: 0 | T69: 0 | U69: 0 | V69: 0 | W69: 0 | X69: 0 | Y69: 0 | Z69: 0 | AA69: 0 | AB69: 0 | AC69: 0 | AD69: 0 | AE69: 0 | AF69: 0 | AG69: 0 | AH69: 0 | AI69: 0 | AJ69: 0 | AK69: 0 | AL69: 0 | AM69: 0 | AN69: 0 | AO69: 0 | AP69: =SUM(AP65:AP68) -> 0 | AQ69: 0 | AR69: 0 | AS69: 0 | AT69: 0 | AU69: 0 | AV69: 0 | AW69: 0 | AX69: 0 | AY69: 0 | AZ69: 0 | BA69: 0 | BB69: 0 | BC69: 0 | BD69: 0 | BE69: 0 | BF69: 0 | BG69: 0 | BH69: 0 | BI69: 0 | BJ69: 0 | BK69: 0 | BL69: 0 | BM69: 0
C71: Summary | D71: Sommaire
C72: Fixed | D72: Coûts fixes | E72: DT | I72: =SUM(J72:BM72) -> 9019.008311 | J72: =J50 -> 0 | K72: =K50 -> 220 | L72: 235.4 | M72: 251.878 | N72: 269.50946 | O72: 288.3751222 | P72: 308.5613808 | Q72: 330.1606774 | R72: 353.2719248 | S72: 378.0009596 | T72: 404.4610267 | U72: 432.7732986 | V72: 463.0674295 | W72: 495.4821496 | X72: 530.1659 | Y72: 567.277513 | Z72: 606.986939 | AA72: 649.4760247 | AB72: 694.9393464 | AC72: 743.5851007 | AD72: 795.6360577 | AE72: 0 | AF72: 0 | AG72: 0 | AH72: 0 | AI72: 0 | AJ72: 0 | AK72: 0 | AL72: 0 | AM72: 0 | AN72: 0 | AO72: 0 | AP72: 0 | AQ72: 0 | AR72: 0 | AS72: 0 | AT72: 0 | AU72: 0 | AV72: 0 | AW72: 0 | AX72: 0 | AY72: 0 | AZ72: 0 | BA72: 0 | BB72: 0 | BC72: 0 | BD72: 0 | BE72: 0 | BF72: 0 | BG72: 0 | BH72: 0 | BI72: 0 | BJ72: 0 | BK72: 0 | BL72: 0 | BM72: 0
C73: Variable | D73: Coûts variables | E73: DT | I73: =SUM(J73:BM73) -> 0 | J73: =J69 -> 0 | K73: =K69 -> 0 | L73: 0 | M73: 0 | N73: 0 | O73: 0 | P73: 0 | Q73: 0 | R73: 0 | S73: 0 | T73: 0 | U73: 0 | V73: 0 | W73: 0 | X73: 0 | Y73: 0 | Z73: 0 | AA73: 0 | AB73: 0 | AC73: 0 | AD73: 0 | AE73: 0 | AF73: 0 | AG73: 0 | AH73: 0 | AI73: 0 | AJ73: 0 | AK73: 0 | AL73: 0 | AM73: 0 | AN73: 0 | AO73: 0 | AP73: 0 | AQ73: 0 | AR73: 0 | AS73: 0 | AT73: 0 | AU73: 0 | AV73: 0 | AW73: 0 | AX73: 0 | AY73: 0 | AZ73: 0 | BA73: 0 | BB73: 0 | BC73: 0 | BD73: 0 | BE73: 0 | BF73: 0 | BG73: 0 | BH73: 0 | BI73: 0 | BJ73: 0 | BK73: 0 | BL73: 0 | BM73: 0
C74: Total | D74: Total | E74: DT | I74: =SUM(J74:BM74) -> 9019.008311 | J74: =SUM(J72:J73) -> 0 | K74: =SUM(K72:K73) -> 220 | L74: 235.4 | M74: 251.878 | N74: 269.50946 | O74: 288.3751222 | P74: 308.5613808 | Q74: 330.1606774 | R74: 353.2719248 | S74: 378.0009596 | T74: 404.4610267 | U74: 432.7732986 | V74: 463.0674295 | W74: 495.4821496 | X74: 530.1659 | Y74: 567.277513 | Z74: 606.986939 | AA74: 649.4760247 | AB74: 694.9393464 | AC74: 743.5851007 | AD74: 795.6360577 | AE74: 0 | AF74: 0 | AG74: 0 | AH74: 0 | AI74: 0 | AJ74: 0 | AK74: 0 | AL74: 0 | AM74: 0 | AN74: 0 | AO74: 0 | AP74: 0 | AQ74: 0 | AR74: 0 | AS74: 0 | AT74: 0 | AU74: 0 | AV74: 0 | AW74: 0 | AX74: 0 | AY74: 0 | AZ74: 0 | BA74: 0 | BB74: 0 | BC74: 0 | BD74: 0 | BE74: 0 | BF74: 0 | BG74: 0 | BH74: 0 | BI74: 0 | BJ74: 0 | BK74: 0 | BL74: 0 | BM74: 0
C76: Ongoing CapEx | D76: Dépenses en immobilisations permanentes
C77: =Données!C70 -> Spare | D77: =Données!D70 -> Autre | E77: DT | I77: =SUM(J77:BM77) -> 30000 | J77: =IF(J$13=0,0,LOOKUP(J$13,Données!$G$69:$Z$69,Données!$G$70:$Z$70)) -> 0 | K77: =IF(K$13=0,0,LOOKUP(K$13,Données!$G$69:$Z$69,Données!$G$70:$Z$70)) -> 0 | L77: =IF(L$13=0,0,LOOKUP(L$13,Données!$G$69:$Z$69,Données!$G$70:$Z$70)) -> 0 | M77: =IF(M$13=0,0,LOOKUP(M$13,Données!$G$69:$Z$69,Données!$G$70:$Z$70)) -> 0 | N77: =IF(N$13=0,0,LOOKUP(N$13,Données!$G$69:$Z$69,Données!$G$70:$Z$70)) -> 0 | O77: =IF(O$13=0,0,LOOKUP(O$13,Données!$G$69:$Z$69,Données!$G$70:$Z$70)) -> 0 | P77: =IF(P$13=0,0,LOOKUP(P$13,Données!$G$69:$Z$69,Données!$G$70:$Z$70)) -> 0 | Q77: =IF(Q$13=0,0,LOOKUP(Q$13,Données!$G$69:$Z$69,Données!$G$70:$Z$70)) -> 0 | R77: =IF(R$13=0,0,LOOKUP(R$13,Données!$G$69:$Z$69,Données!$G$70:$Z$70)) -> 0 | S77: =IF(S$13=0,0,LOOKUP(S$13,Données!$G$69:$Z$69,Données!$G$70:$Z$70)) -> 0 | T77: =IF(T$13=0,0,LOOKUP(T$13,Données!$G$69:$Z$69,Données!$G$70:$Z$70)) -> 30000 | U77: =IF(U$13=0,0,LOOKUP(U$13,Données!$G$69:$Z$69,Données!$G$70:$Z$70)) -> 0 | V77: =IF(V$13=0,0,LOOKUP(V$13,Données!$G$69:$Z$69,Données!$G$70:$Z$70)) -> 0 | W77: =IF(W$13=0,0,LOOKUP(W$13,Données!$G$69:$Z$69,Données!$G$70:$Z$70)) -> 0 | X77: =IF(X$13=0,0,LOOKUP(X$13,Données!$G$69:$Z$69,Données!$G$70:$Z$70)) -> 0 | Y77: =IF(Y$13=0,0,LOOKUP(Y$13,Données!$G$69:$Z$69,Données!$G$70:$Z$70)) -> 0 | Z77: =IF(Z$13=0,0,LOOKUP(Z$13,Données!$G$69:$Z$69,Données!$G$70:$Z$70)) -> 0 | AA77: =IF(AA$13=0,0,LOOKUP(AA$13,Données!$G$69:$Z$69,Données!$G$70:$Z$70)) -> 0 | AB77: =IF(AB$13=0,0,LOOKUP(AB$13,Données!$G$69:$Z$69,Données!$G$70:$Z$70)) -> 0 | AC77: =IF(AC$13=0,0,LOOKUP(AC$13,Données!$G$69:$Z$69,Données!$G$70:$Z$70)) -> 0 | AD77: =IF(AD$13=0,0,LOOKUP(AD$13,Données!$G$69:$Z$69,Données!$G$70:$Z$70)) -> 0 | AE77: =IF(AE$13=0,0,LOOKUP(AE$13,Données!$G$69:$Z$69,Données!$G$70:$Z$70)) -> 0 | AF77: =IF(AF$13=0,0,LOOKUP(AF$13,Données!$G$69:$Z$69,Données!$G$70:$Z$70)) -> 0 | AG77: =IF(AG$13=0,0,LOOKUP(AG$13,Données!$G$69:$Z$69,Données!$G$70:$Z$70)) -> 0 | AH77: =IF(AH$13=0,0,LOOKUP(AH$13,Données!$G$69:$Z$69,Données!$G$70:$Z$70)) -> 0 | AI77: =IF(AI$13=0,0,LOOKUP(AI$13,Données!$G$69:$Z$69,Données!$G$70:$Z$70)) -> 0 | AJ77: =IF(AJ$13=0,0,LOOKUP(AJ$13,Données!$G$69:$Z$69,Données!$G$70:$Z$70)) -> 0 | AK77: =IF(AK$13=0,0,LOOKUP(AK$13,Données!$G$69:$Z$69,Données!$G$70:$Z$70)) -> 0 | AL77: =IF(AL$13=0,0,LOOKUP(AL$13,Données!$G$69:$Z$69,Données!$G$70:$Z$70)) -> 0 | AM77: =IF(AM$13=0,0,LOOKUP(AM$13,Données!$G$69:$Z$69,Données!$G$70:$Z$70)) -> 0 | AN77: =IF(AN$13=0,0,LOOKUP(AN$13,Données!$G$69:$Z$69,Données!$G$70:$Z$70)) -> 0 | AO77: =IF(AO$13=0,0,LOOKUP(AO$13,Données!$G$69:$Z$69,Données!$G$70:$Z$70)) -> 0 | AP77: =IF(AP$13=0,0,LOOKUP(AP$13,Données!$G$69:$Z$69,Données!$G$70:$Z$70)) -> 0 | AQ77: =IF(AQ$13=0,0,LOOKUP(AQ$13,Données!$G$69:$Z$69,Données!$G$70:$Z$70)) -> 0 | AR77: =IF(AR$13=0,0,LOOKUP(AR$13,Données!$G$69:$Z$69,Données!$G$70:$Z$70)) -> 0 | AS77: =IF(AS$13=0,0,LOOKUP(AS$13,Données!$G$69:$Z$69,Données!$G$70:$Z$70)) -> 0 | AT77: =IF(AT$13=0,0,LOOKUP(AT$13,Données!$G$69:$Z$69,Données!$G$70:$Z$70)) -> 0 | AU77: =IF(AU$13=0,0,LOOKUP(AU$13,Données!$G$69:$Z$69,Données!$G$70:$Z$70)) -> 0 | AV77: =IF(AV$13=0,0,LOOKUP(AV$13,Données!$G$69:$Z$69,Données!$G$70:$Z$70)) -> 0 | AW77: =IF(AW$13=0,0,LOOKUP(AW$13,Données!$G$69:$Z$69,Données!$G$70:$Z$70)) -> 0 | AX77: =IF(AX$13=0,0,LOOKUP(AX$13,Données!$G$69:$Z$69,Données!$G$70:$Z$70)) -> 0 | AY77: =IF(AY$13=0,0,LOOKUP(AY$13,Données!$G$69:$Z$69,Données!$G$70:$Z$70)) -> 0 | AZ77: =IF(AZ$13=0,0,LOOKUP(AZ$13,Données!$G$69:$Z$69,Données!$G$70:$Z$70)) -> 0 | BA77: =IF(BA$13=0,0,LOOKUP(BA$13,Données!$G$69:$Z$69,Données!$G$70:$Z$70)) -> 0 | BB77: =IF(BB$13=0,0,LOOKUP(BB$13,Données!$G$69:$Z$69,Données!$G$70:$Z$70)) -> 0 | BC77: =IF(BC$13=0,0,LOOKUP(BC$13,Données!$G$69:$Z$69,Données!$G$70:$Z$70)) -> 0 | BD77: =IF(BD$13=0,0,LOOKUP(BD$13,Données!$G$69:$Z$69,Données!$G$70:$Z$70)) -> 0 | BE77: =IF(BE$13=0,0,LOOKUP(BE$13,Données!$G$69:$Z$69,Données!$G$70:$Z$70)) -> 0 | BF77: =IF(BF$13=0,0,LOOKUP(BF$13,Données!$G$69:$Z$69,Données!$G$70:$Z$70)) -> 0 | BG77: =IF(BG$13=0,0,LOOKUP(BG$13,Données!$G$69:$Z$69,Données!$G$70:$Z$70)) -> 0 | BH77: =IF(BH$13=0,0,LOOKUP(BH$13,Données!$G$69:$Z$69,Données!$G$70:$Z$70)) -> 0 | BI77: =IF(BI$13=0,0,LOOKUP(BI$13,Données!$G$69:$Z$69,Données!$G$70:$Z$70)) -> 0 | BJ77: =IF(BJ$13=0,0,LOOKUP(BJ$13,Données!$G$69:$Z$69,Données!$G$70:$Z$70)) -> 0 | BK77: =IF(BK$13=0,0,LOOKUP(BK$13,Données!$G$69:$Z$69,Données!$G$70:$Z$70)) -> 0 | BL77: =IF(BL$13=0,0,LOOKUP(BL$13,Données!$G$69:$Z$69,Données!$G$70:$Z$70)) -> 0 | BM77: =IF(BM$13=0,0,LOOKUP(BM$13,Données!$G$69:$Z$69,Données!$G$70:$Z$70)) -> 0
C78: =Données!C71 -> Spare | D78: =Données!D71 -> Autre | E78: DT | I78: =SUM(J78:BM78) -> 0 | J78: =IF(J$13=0,0,LOOKUP(J$13,Données!$G$69:$Z$69,Données!$G$71:$Z$71)) -> 0 | K78: =IF(K$13=0,0,LOOKUP(K$13,Données!$G$69:$Z$69,Données!$G$71:$Z$71)) -> 0 | L78: =IF(L$13=0,0,LOOKUP(L$13,Données!$G$69:$Z$69,Données!$G$71:$Z$71)) -> 0 | M78: =IF(M$13=0,0,LOOKUP(M$13,Données!$G$69:$Z$69,Données!$G$71:$Z$71)) -> 0 | N78: =IF(N$13=0,0,LOOKUP(N$13,Données!$G$69:$Z$69,Données!$G$71:$Z$71)) -> 0 | O78: =IF(O$13=0,0,LOOKUP(O$13,Données!$G$69:$Z$69,Données!$G$71:$Z$71)) -> 0 | P78: =IF(P$13=0,0,LOOKUP(P$13,Données!$G$69:$Z$69,Données!$G$71:$Z$71)) -> 0 | Q78: =IF(Q$13=0,0,LOOKUP(Q$13,Données!$G$69:$Z$69,Données!$G$71:$Z$71)) -> 0 | R78: =IF(R$13=0,0,LOOKUP(R$13,Données!$G$69:$Z$69,Données!$G$71:$Z$71)) -> 0 | S78: =IF(S$13=0,0,LOOKUP(S$13,Données!$G$69:$Z$69,Données!$G$71:$Z$71)) -> 0 | T78: =IF(T$13=0,0,LOOKUP(T$13,Données!$G$69:$Z$69,Données!$G$71:$Z$71)) -> 0 | U78: =IF(U$13=0,0,LOOKUP(U$13,Données!$G$69:$Z$69,Données!$G$71:$Z$71)) -> 0 | V78: =IF(V$13=0,0,LOOKUP(V$13,Données!$G$69:$Z$69,Données!$G$71:$Z$71)) -> 0 | W78: =IF(W$13=0,0,LOOKUP(W$13,Données!$G$69:$Z$69,Données!$G$71:$Z$71)) -> 0 | X78: =IF(X$13=0,0,LOOKUP(X$13,Données!$G$69:$Z$69,Données!$G$71:$Z$71)) -> 0 | Y78: =IF(Y$13=0,0,LOOKUP(Y$13,Données!$G$69:$Z$69,Données!$G$71:$Z$71)) -> 0 | Z78: =IF(Z$13=0,0,LOOKUP(Z$13,Données!$G$69:$Z$69,Données!$G$71:$Z$71)) -> 0 | AA78: =IF(AA$13=0,0,LOOKUP(AA$13,Données!$G$69:$Z$69,Données!$G$71:$Z$71)) -> 0 | AB78: =IF(AB$13=0,0,LOOKUP(AB$13,Données!$G$69:$Z$69,Données!$G$71:$Z$71)) -> 0 | AC78: =IF(AC$13=0,0,LOOKUP(AC$13,Données!$G$69:$Z$69,Données!$G$71:$Z$71)) -> 0 | AD78: =IF(AD$13=0,0,LOOKUP(AD$13,Données!$G$69:$Z$69,Données!$G$71:$Z$71)) -> 0 | AE78: =IF(AE$13=0,0,LOOKUP(AE$13,Données!$G$69:$Z$69,Données!$G$71:$Z$71)) -> 0 | AF78: =IF(AF$13=0,0,LOOKUP(AF$13,Données!$G$69:$Z$69,Données!$G$71:$Z$71)) -> 0 | AG78: =IF(AG$13=0,0,LOOKUP(AG$13,Données!$G$69:$Z$69,Données!$G$71:$Z$71)) -> 0 | AH78: =IF(AH$13=0,0,LOOKUP(AH$13,Données!$G$69:$Z$69,Données!$G$71:$Z$71)) -> 0 | AI78: =IF(AI$13=0,0,LOOKUP(AI$13,Données!$G$69:$Z$69,Données!$G$71:$Z$71)) -> 0 | AJ78: =IF(AJ$13=0,0,LOOKUP(AJ$13,Données!$G$69:$Z$69,Données!$G$71:$Z$71)) -> 0 | AK78: =IF(AK$13=0,0,LOOKUP(AK$13,Données!$G$69:$Z$69,Données!$G$71:$Z$71)) -> 0 | AL78: =IF(AL$13=0,0,LOOKUP(AL$13,Données!$G$69:$Z$69,Données!$G$71:$Z$71)) -> 0 | AM78: =IF(AM$13=0,0,LOOKUP(AM$13,Données!$G$69:$Z$69,Données!$G$71:$Z$71)) -> 0 | AN78: =IF(AN$13=0,0,LOOKUP(AN$13,Données!$G$69:$Z$69,Données!$G$71:$Z$71)) -> 0 | AO78: =IF(AO$13=0,0,LOOKUP(AO$13,Données!$G$69:$Z$69,Données!$G$71:$Z$71)) -> 0 | AP78: =IF(AP$13=0,0,LOOKUP(AP$13,Données!$G$69:$Z$69,Données!$G$71:$Z$71)) -> 0 | AQ78: =IF(AQ$13=0,0,LOOKUP(AQ$13,Données!$G$69:$Z$69,Données!$G$71:$Z$71)) -> 0 | AR78: =IF(AR$13=0,0,LOOKUP(AR$13,Données!$G$69:$Z$69,Données!$G$71:$Z$71)) -> 0 | AS78: =IF(AS$13=0,0,LOOKUP(AS$13,Données!$G$69:$Z$69,Données!$G$71:$Z$71)) -> 0 | AT78: =IF(AT$13=0,0,LOOKUP(AT$13,Données!$G$69:$Z$69,Données!$G$71:$Z$71)) -> 0 | AU78: =IF(AU$13=0,0,LOOKUP(AU$13,Données!$G$69:$Z$69,Données!$G$71:$Z$71)) -> 0 | AV78: =IF(AV$13=0,0,LOOKUP(AV$13,Données!$G$69:$Z$69,Données!$G$71:$Z$71)) -> 0 | AW78: =IF(AW$13=0,0,LOOKUP(AW$13,Données!$G$69:$Z$69,Données!$G$71:$Z$71)) -> 0 | AX78: =IF(AX$13=0,0,LOOKUP(AX$13,Données!$G$69:$Z$69,Données!$G$71:$Z$71)) -> 0 | AY78: =IF(AY$13=0,0,LOOKUP(AY$13,Données!$G$69:$Z$69,Données!$G$71:$Z$71)) -> 0 | AZ78: =IF(AZ$13=0,0,LOOKUP(AZ$13,Données!$G$69:$Z$69,Données!$G$71:$Z$71)) -> 0 | BA78: =IF(BA$13=0,0,LOOKUP(BA$13,Données!$G$69:$Z$69,Données!$G$71:$Z$71)) -> 0 | BB78: =IF(BB$13=0,0,LOOKUP(BB$13,Données!$G$69:$Z$69,Données!$G$71:$Z$71)) -> 0 | BC78: =IF(BC$13=0,0,LOOKUP(BC$13,Données!$G$69:$Z$69,Données!$G$71:$Z$71)) -> 0 | BD78: =IF(BD$13=0,0,LOOKUP(BD$13,Données!$G$69:$Z$69,Données!$G$71:$Z$71)) -> 0 | BE78: =IF(BE$13=0,0,LOOKUP(BE$13,Données!$G$69:$Z$69,Données!$G$71:$Z$71)) -> 0 | BF78: =IF(BF$13=0,0,LOOKUP(BF$13,Données!$G$69:$Z$69,Données!$G$71:$Z$71)) -> 0 | BG78: =IF(BG$13=0,0,LOOKUP(BG$13,Données!$G$69:$Z$69,Données!$G$71:$Z$71)) -> 0 | BH78: =IF(BH$13=0,0,LOOKUP(BH$13,Données!$G$69:$Z$69,Données!$G$71:$Z$71)) -> 0 | BI78: =IF(BI$13=0,0,LOOKUP(BI$13,Données!$G$69:$Z$69,Données!$G$71:$Z$71)) -> 0 | BJ78: =IF(BJ$13=0,0,LOOKUP(BJ$13,Données!$G$69:$Z$69,Données!$G$71:$Z$71)) -> 0 | BK78: =IF(BK$13=0,0,LOOKUP(BK$13,Données!$G$69:$Z$69,Données!$G$71:$Z$71)) -> 0 | BL78: =IF(BL$13=0,0,LOOKUP(BL$13,Données!$G$69:$Z$69,Données!$G$71:$Z$71)) -> 0 | BM78: =IF(BM$13=0,0,LOOKUP(BM$13,Données!$G$69:$Z$69,Données!$G$71:$Z$71)) -> 0
C79: =Données!C72 -> Spare | D79: =Données!D72 -> Autre | E79: DT | I79: =SUM(J79:BM79) -> 0 | J79: =IF(J$13=0,0,LOOKUP(J$13,Données!$G$69:$Z$69,Données!$G$72:$Z$72)) -> 0 | K79: =IF(K$13=0,0,LOOKUP(K$13,Données!$G$69:$Z$69,Données!$G$72:$Z$72)) -> 0 | L79: =IF(L$13=0,0,LOOKUP(L$13,Données!$G$69:$Z$69,Données!$G$72:$Z$72)) -> 0 | M79: =IF(M$13=0,0,LOOKUP(M$13,Données!$G$69:$Z$69,Données!$G$72:$Z$72)) -> 0 | N79: =IF(N$13=0,0,LOOKUP(N$13,Données!$G$69:$Z$69,Données!$G$72:$Z$72)) -> 0 | O79: =IF(O$13=0,0,LOOKUP(O$13,Données!$G$69:$Z$69,Données!$G$72:$Z$72)) -> 0 | P79: =IF(P$13=0,0,LOOKUP(P$13,Données!$G$69:$Z$69,Données!$G$72:$Z$72)) -> 0 | Q79: =IF(Q$13=0,0,LOOKUP(Q$13,Données!$G$69:$Z$69,Données!$G$72:$Z$72)) -> 0 | R79: =IF(R$13=0,0,LOOKUP(R$13,Données!$G$69:$Z$69,Données!$G$72:$Z$72)) -> 0 | S79: =IF(S$13=0,0,LOOKUP(S$13,Données!$G$69:$Z$69,Données!$G$72:$Z$72)) -> 0 | T79: =IF(T$13=0,0,LOOKUP(T$13,Données!$G$69:$Z$69,Données!$G$72:$Z$72)) -> 0 | U79: =IF(U$13=0,0,LOOKUP(U$13,Données!$G$69:$Z$69,Données!$G$72:$Z$72)) -> 0 | V79: =IF(V$13=0,0,LOOKUP(V$13,Données!$G$69:$Z$69,Données!$G$72:$Z$72)) -> 0 | W79: =IF(W$13=0,0,LOOKUP(W$13,Données!$G$69:$Z$69,Données!$G$72:$Z$72)) -> 0 | X79: =IF(X$13=0,0,LOOKUP(X$13,Données!$G$69:$Z$69,Données!$G$72:$Z$72)) -> 0 | Y79: =IF(Y$13=0,0,LOOKUP(Y$13,Données!$G$69:$Z$69,Données!$G$72:$Z$72)) -> 0 | Z79: =IF(Z$13=0,0,LOOKUP(Z$13,Données!$G$69:$Z$69,Données!$G$72:$Z$72)) -> 0 | AA79: =IF(AA$13=0,0,LOOKUP(AA$13,Données!$G$69:$Z$69,Données!$G$72:$Z$72)) -> 0 | AB79: =IF(AB$13=0,0,LOOKUP(AB$13,Données!$G$69:$Z$69,Données!$G$72:$Z$72)) -> 0 | AC79: =IF(AC$13=0,0,LOOKUP(AC$13,Données!$G$69:$Z$69,Données!$G$72:$Z$72)) -> 0 | AD79: =IF(AD$13=0,0,LOOKUP(AD$13,Données!$G$69:$Z$69,Données!$G$72:$Z$72)) -> 0 | AE79: =IF(AE$13=0,0,LOOKUP(AE$13,Données!$G$69:$Z$69,Données!$G$72:$Z$72)) -> 0 | AF79: =IF(AF$13=0,0,LOOKUP(AF$13,Données!$G$69:$Z$69,Données!$G$72:$Z$72)) -> 0 | AG79: =IF(AG$13=0,0,LOOKUP(AG$13,Données!$G$69:$Z$69,Données!$G$72:$Z$72)) -> 0 | AH79: =IF(AH$13=0,0,LOOKUP(AH$13,Données!$G$69:$Z$69,Données!$G$72:$Z$72)) -> 0 | AI79: =IF(AI$13=0,0,LOOKUP(AI$13,Données!$G$69:$Z$69,Données!$G$72:$Z$72)) -> 0 | AJ79: =IF(AJ$13=0,0,LOOKUP(AJ$13,Données!$G$69:$Z$69,Données!$G$72:$Z$72)) -> 0 | AK79: =IF(AK$13=0,0,LOOKUP(AK$13,Données!$G$69:$Z$69,Données!$G$72:$Z$72)) -> 0 | AL79: =IF(AL$13=0,0,LOOKUP(AL$13,Données!$G$69:$Z$69,Données!$G$72:$Z$72)) -> 0 | AM79: =IF(AM$13=0,0,LOOKUP(AM$13,Données!$G$69:$Z$69,Données!$G$72:$Z$72)) -> 0 | AN79: =IF(AN$13=0,0,LOOKUP(AN$13,Données!$G$69:$Z$69,Données!$G$72:$Z$72)) -> 0 | AO79: =IF(AO$13=0,0,LOOKUP(AO$13,Données!$G$69:$Z$69,Données!$G$72:$Z$72)) -> 0 | AP79: =IF(AP$13=0,0,LOOKUP(AP$13,Données!$G$69:$Z$69,Données!$G$72:$Z$72)) -> 0 | AQ79: =IF(AQ$13=0,0,LOOKUP(AQ$13,Données!$G$69:$Z$69,Données!$G$72:$Z$72)) -> 0 | AR79: =IF(AR$13=0,0,LOOKUP(AR$13,Données!$G$69:$Z$69,Données!$G$72:$Z$72)) -> 0 | AS79: =IF(AS$13=0,0,LOOKUP(AS$13,Données!$G$69:$Z$69,Données!$G$72:$Z$72)) -> 0 | AT79: =IF(AT$13=0,0,LOOKUP(AT$13,Données!$G$69:$Z$69,Données!$G$72:$Z$72)) -> 0 | AU79: =IF(AU$13=0,0,LOOKUP(AU$13,Données!$G$69:$Z$69,Données!$G$72:$Z$72)) -> 0 | AV79: =IF(AV$13=0,0,LOOKUP(AV$13,Données!$G$69:$Z$69,Données!$G$72:$Z$72)) -> 0 | AW79: =IF(AW$13=0,0,LOOKUP(AW$13,Données!$G$69:$Z$69,Données!$G$72:$Z$72)) -> 0 | AX79: =IF(AX$13=0,0,LOOKUP(AX$13,Données!$G$69:$Z$69,Données!$G$72:$Z$72)) -> 0 | AY79: =IF(AY$13=0,0,LOOKUP(AY$13,Données!$G$69:$Z$69,Données!$G$72:$Z$72)) -> 0 | AZ79: =IF(AZ$13=0,0,LOOKUP(AZ$13,Données!$G$69:$Z$69,Données!$G$72:$Z$72)) -> 0 | BA79: =IF(BA$13=0,0,LOOKUP(BA$13,Données!$G$69:$Z$69,Données!$G$72:$Z$72)) -> 0 | BB79: =IF(BB$13=0,0,LOOKUP(BB$13,Données!$G$69:$Z$69,Données!$G$72:$Z$72)) -> 0 | BC79: =IF(BC$13=0,0,LOOKUP(BC$13,Données!$G$69:$Z$69,Données!$G$72:$Z$72)) -> 0 | BD79: =IF(BD$13=0,0,LOOKUP(BD$13,Données!$G$69:$Z$69,Données!$G$72:$Z$72)) -> 0 | BE79: =IF(BE$13=0,0,LOOKUP(BE$13,Données!$G$69:$Z$69,Données!$G$72:$Z$72)) -> 0 | BF79: =IF(BF$13=0,0,LOOKUP(BF$13,Données!$G$69:$Z$69,Données!$G$72:$Z$72)) -> 0 | BG79: =IF(BG$13=0,0,LOOKUP(BG$13,Données!$G$69:$Z$69,Données!$G$72:$Z$72)) -> 0 | BH79: =IF(BH$13=0,0,LOOKUP(BH$13,Données!$G$69:$Z$69,Données!$G$72:$Z$72)) -> 0 | BI79: =IF(BI$13=0,0,LOOKUP(BI$13,Données!$G$69:$Z$69,Données!$G$72:$Z$72)) -> 0 | BJ79: =IF(BJ$13=0,0,LOOKUP(BJ$13,Données!$G$69:$Z$69,Données!$G$72:$Z$72)) -> 0 | BK79: =IF(BK$13=0,0,LOOKUP(BK$13,Données!$G$69:$Z$69,Données!$G$72:$Z$72)) -> 0 | BL79: =IF(BL$13=0,0,LOOKUP(BL$13,Données!$G$69:$Z$69,Données!$G$72:$Z$72)) -> 0 | BM79: =IF(BM$13=0,0,LOOKUP(BM$13,Données!$G$69:$Z$69,Données!$G$72:$Z$72)) -> 0
C80: Total | D80: Total | E80: DT | I80: =SUM(J80:BM80) -> 30000 | J80: =SUM(J77:J79) -> 0 | K80: =SUM(K77:K79) -> 0 | L80: 0 | M80: 0 | N80: 0 | O80: 0 | P80: 0 | Q80: 0 | R80: 0 | S80: 0 | T80: 30000 | U80: 0 | V80: 0 | W80: 0 | X80: 0 | Y80: 0 | Z80: 0 | AA80: 0 | AB80: 0 | AC80: 0 | AD80: 0 | AE80: 0 | AF80: 0 | AG80: 0 | AH80: 0 | AI80: 0 | AJ80: 0 | AK80: 0 | AL80: 0 | AM80: 0 | AN80: 0 | AO80: 0 | AP80: 0 | AQ80: 0 | AR80: 0 | AS80: 0 | AT80: 0 | AU80: 0 | AV80: 0 | AW80: 0 | AX80: 0 | AY80: 0 | AZ80: 0 | BA80: 0 | BB80: 0 | BC80: 0 | BD80: 0 | BE80: 0 | BF80: 0 | BG80: 0 | BH80: 0 | BI80: 0 | BJ80: 0 | BK80: 0 | BL80: 0 | BM80: 0

Sheet Financement
C1: Funding | D1: Financement
C2: =Name_Project -> 
C4: Period Start | D4: Début de la période | J4: =Délais!J4 -> 2021-12-01 | K4: =Délais!K4 -> 2022-01-01 | L4: =Délais!L4 -> 2023-01-01 | M4: =Délais!M4 -> 2024-01-01 | N4: =Délais!N4 -> 2025-01-01 | O4: =Délais!O4 -> 2026-01-01 | P4: =Délais!P4 -> 2027-01-01 | Q4: =Délais!Q4 -> 2028-01-01 | R4: =Délais!R4 -> 2029-01-01 | S4: =Délais!S4 -> 2030-01-01 | T4: =Délais!T4 -> 2031-01-01 | U4: =Délais!U4 -> 2032-01-01 | V4: =Délais!V4 -> 2033-01-01 | W4: =Délais!W4 -> 2034-01-01 | X4: =Délais!X4 -> 2035-01-01 | Y4: =Délais!Y4 -> 2036-01-01 | Z4: =Délais!Z4 -> 2037-01-01 | AA4: =Délais!AA4 -> 2038-01-01 | AB4: =Délais!AB4 -> 2039-01-01 | AC4: =Délais!AC4 -> 2040-01-01 | AD4: =Délais!AD4 -> 2041-01-01 | AE4: =Délais!AE4 -> 2042-01-01 | AF4: =Délais!AF4 -> 2043-01-01 | AG4: =Délais!AG4 -> 2044-01-01 | AH4: =Délais!AH4 -> 2045-01-01 | AI4: =Délais!AI4 -> 2046-01-01 | AJ4: =Délais!AJ4 -> 2047-01-01 | AK4: =Délais!AK4 -> 2048-01-01 | AL4: =Délais!AL4 -> 2049-01-01 | AM4: =Délais!AM4 -> 2050-01-01 | AN4: =Délais!AN4 -> 2051-01-01 | AO4: =Délais!AO4 -> 2052-01-01 | AP4: =Délais!AP4 -> 2053-01-01 | AQ4: =Délais!AQ4 -> 2054-01-01 | AR4: =Délais!AR4 -> 2055-01-01 | AS4: =Délais!AS4 -> 2056-01-01 | AT4: =Délais!AT4 -> 2057-01-01 | AU4: =Délais!AU4 -> 2058-01-01 | AV4: =Délais!AV4 -> 2059-01-01 | AW4: =Délais!AW4 -> 2060-01-01 | AX4: =Délais!AX4 -> 2061-01-01 | AY4: =Délais!AY4 -> 2062-01-01 | AZ4: =Délais!AZ4 -> 2063-01-01 | BA4: =Délais!BA4 -> 2064-01-01 | BB4: =Délais!BB4 -> 2065-01-01 | BC4: =Délais!BC4 -> 2066-01-01 | BD4: =Délais!BD4 -> 2067-01-01 | BE4: =Délais!BE4 -> 2068-01-01 | BF4: =Délais!BF4 -> 2069-01-01 | BG4: =Délais!BG4 -> 2070-01-01 | BH4: =Délais!BH4 -> 2071-01-01 | BI4: =Délais!BI4 -> 2072-01-01 | BJ4: =Délais!BJ4 -> 2073-01-01 | BK4: =Délais!BK4 -> 2074-01-01 | BL4: =Délais!BL4 -> 2075-01-01 | BM4: =Délais!BM4 -> 2076-01-01
C5: Period End | D5: Fin de la période | I5: =Délais!I5 -> 2022-01-01 | J5: =Délais!J5 -> 2021-12-31 | K5: =Délais!K5 -> 2022-12-31 | L5: =Délais!L5 -> 2023-12-31 | M5: =Délais!M5 -> 2024-12-31 | N5: =Délais!N5 -> 2025-12-31 | O5: =Délais!O5 -> 2026-12-31 | P5: =Délais!P5 -> 2027-12-31 | Q5: =Délais!Q5 -> 2028-12-31 | R5: =Délais!R5 -> 2029-12-31 | S5: =Délais!S5 -> 2030-12-31 | T5: =Délais!T5 -> 2031-12-31 | U5: =Délais!U5 -> 2032-12-31 | V5: =Délais!V5 -> 2033-12-31 | W5: =Délais!W5 -> 2034-12-31 | X5: =Délais!X5 -> 2035-12-31 | Y5: =Délais!Y5 -> 2036-12-31 | Z5: =Délais!Z5 -> 2037-12-31 | AA5: =Délais!AA5 -> 2038-12-31 | AB5: =Délais!AB5 -> 2039-12-31 | AC5: =Délais!AC5 -> 2040-12-31 | AD5: =Délais!AD5 -> 2041-12-31 | AE5: =Délais!AE5 -> 2042-12-31 | AF5: =Délais!AF5 -> 2043-12-31 | AG5: =Délais!AG5 -> 2044-12-31 | AH5: =Délais!AH5 -> 2045-12-31 | AI5: =Délais!AI5 -> 2046-12-31 | AJ5: =Délais!AJ5 -> 2047-12-31 | AK5: =Délais!AK5 -> 2048-12-31 | AL5: =Délais!AL5 -> 2049-12-31 | AM5: =Délais!AM5 -> 2050-12-31 | AN5: =Délais!AN5 -> 2051-12-31 | AO5: =Délais!AO5 -> 2052-12-31 | AP5: =Délais!AP5 -> 2053-12-31 | AQ5: =Délais!AQ5 -> 2054-12-31 | AR5: =Délais!AR5 -> 2055-12-31 | AS5: =Délais!AS5 -> 2056-12-31 | AT5: =Délais!AT5 -> 2057-12-31 | AU5: =Délais!AU5 -> 2058-12-31 | AV5: =Délais!AV5 -> 2059-12-31 | AW5: =Délais!AW5 -> 2060-12-31 | AX5: =Délais!AX5 -> 2061-12-31 | AY5: =Délais!AY5 -> 2062-12-31 | AZ5: =Délais!AZ5 -> 2063-12-31 | BA5: =Délais!BA5 -> 2064-12-31 | BB5: =Délais!BB5 -> 2065-12-31 | BC5: =Délais!BC5 -> 2066-12-31 | BD5: =Délais!BD5 -> 2067-12-31 | BE5: =Délais!BE5 -> 2068-12-31 | BF5: =Délais!BF5 -> 2069-12-31 | BG5: =Délais!BG5 -> 2070-12-31 | BH5: =Délais!BH5 -> 2071-12-31 | BI5: =Délais!BI5 -> 2072-12-31 | BJ5: =Délais!BJ5 -> 2073-12-31 | BK5: =Délais!BK5 -> 2074-12-31 | BL5: =Délais!BL5 -> 2075-12-31 | BM5: =Délais!BM5 -> 2076-12-31
C6: Construction | D6: Construction | J6: =Délais!J6 -> 1 | K6: =Délais!K6 -> 0 | L6: =Délais!L6 -> 0 | M6: =Délais!M6 -> 0 | N6: =Délais!N6 -> 0 | O6: =Délais!O6 -> 0 | P6: =Délais!P6 -> 0 | Q6: =Délais!Q6 -> 0 | R6: =Délais!R6 -> 0 | S6: =Délais!S6 -> 0 | T6: =Délais!T6 -> 0 | U6: =Délais!U6 -> 0 | V6: =Délais!V6 -> 0 | W6: =Délais!W6 -> 0 | X6: =Délais!X6 -> 0 | Y6: =Délais!Y6 -> 0 | Z6: =Délais!Z6 -> 0 | AA6: =Délais!AA6 -> 0 | AB6: =Délais!AB6 -> 0 | AC6: =Délais!AC6 -> 0 | AD6: =Délais!AD6 -> 0 | AE6: =Délais!AE6 -> 0 | AF6: =Délais!AF6 -> 0 | AG6: =Délais!AG6 -> 0 | AH6: =Délais!AH6 -> 0 | AI6: =Délais!AI6 -> 0 | AJ6: =Délais!AJ6 -> 0 | AK6: =Délais!AK6 -> 0 | AL6: =Délais!AL6 -> 0 | AM6: =Délais!AM6 -> 0 | AN6: =Délais!AN6 -> 0 | AO6: =Délais!AO6 -> 0 | AP6: =Délais!AP6 -> 0 | AQ6: =Délais!AQ6 -> 0 | AR6: =Délais!AR6 -> 0 | AS6: =Délais!AS6 -> 0 | AT6: =Délais!AT6 -> 0 | AU6: =Délais!AU6 -> 0 | AV6: =Délais!AV6 -> 0 | AW6: =Délais!AW6 -> 0 | AX6: =Délais!AX6 -> 0 | AY6: =Délais!AY6 -> 0 | AZ6: =Délais!AZ6 -> 0 | BA6: =Délais!BA6 -> 0 | BB6: =Délais!BB6 -> 0 | BC6: =Délais!BC6 -> 0 | BD6: =Délais!BD6 -> 0 | BE6: =Délais!BE6 -> 0 | BF6: =Délais!BF6 -> 0 | BG6: =Délais!BG6 -> 0 | BH6: =Délais!BH6 -> 0 | BI6: =Délais!BI6 -> 0 | BJ6: =Délais!BJ6 -> 0 | BK6: =Délais!BK6 -> 0 | BL6: =Délais!BL6 -> 0 | BM6: =Délais!BM6 -> 0
C7: Operations | D7: Exploitation | J7: =Délais!J7 -> 0 | K7: =Délais!K7 -> 1 | L7: =Délais!L7 -> 1 | M7: =Délais!M7 -> 1 | N7: =Délais!N7 -> 1 | O7: =Délais!O7 -> 1 | P7: =Délais!P7 -> 1 | Q7: =Délais!Q7 -> 1 | R7: =Délais!R7 -> 1 | S7: =Délais!S7 -> 1 | T7: =Délais!T7 -> 1 | U7: =Délais!U7 -> 1 | V7: =Délais!V7 -> 1 | W7: =Délais!W7 -> 1 | X7: =Délais!X7 -> 1 | Y7: =Délais!Y7 -> 1 | Z7: =Délais!Z7 -> 1 | AA7: =Délais!AA7 -> 1 | AB7: =Délais!AB7 -> 1 | AC7: =Délais!AC7 -> 1 | AD7: =Délais!AD7 -> 1 | AE7: =Délais!AE7 -> 0 | AF7: =Délais!AF7 -> 0 | AG7: =Délais!AG7 -> 0 | AH7: =Délais!AH7 -> 0 | AI7: =Délais!AI7 -> 0 | AJ7: =Délais!AJ7 -> 0 | AK7: =Délais!AK7 -> 0 | AL7: =Délais!AL7 -> 0 | AM7: =Délais!AM7 -> 0 | AN7: =Délais!AN7 -> 0 | AO7: =Délais!AO7 -> 0 | AP7: =Délais!AP7 -> 0 | AQ7: =Délais!AQ7 -> 0 | AR7: =Délais!AR7 -> 0 | AS7: =Délais!AS7 -> 0 | AT7: =Délais!AT7 -> 0 | AU7: =Délais!AU7 -> 0 | AV7: =Délais!AV7 -> 0 | AW7: =Délais!AW7 -> 0 | AX7: =Délais!AX7 -> 0 | AY7: =Délais!AY7 -> 0 | AZ7: =Délais!AZ7 -> 0 | BA7: =Délais!BA7 -> 0 | BB7: =Délais!BB7 -> 0 | BC7: =Délais!BC7 -> 0 | BD7: =Délais!BD7 -> 0 | BE7: =Délais!BE7 -> 0 | BF7: =Délais!BF7 -> 0 | BG7: =Délais!BG7 -> 0 | BH7: =Délais!BH7 -> 0 | BI7: =Délais!BI7 -> 0 | BJ7: =Délais!BJ7 -> 0 | BK7: =Délais!BK7 -> 0 | BL7: =Délais!BL7 -> 0 | BM7: =Délais!BM7 -> 0
C9: Timing | D9: Délais
C10: Calendar Year | D10: Année civile | E10: Num# | J10: =Délais!J10 -> 2021 | K10: =Délais!K10 -> 2022 | L10: =Délais!L10 -> 2023 | M10: =Délais!M10 -> 2024 | N10: =Délais!N10 -> 2025 | O10: =Délais!O10 -> 2026 | P10: =Délais!P10 -> 2027 | Q10: =Délais!Q10 -> 2028 | R10: =Délais!R10 -> 2029 | S10: =Délais!S10 -> 2030 | T10: =Délais!T10 -> 2031 | U10: =Délais!U10 -> 2032 | V10: =Délais!V10 -> 2033 | W10: =Délais!W10 -> 2034 | X10: =Délais!X10 -> 2035 | Y10: =Délais!Y10 -> 2036 | Z10: =Délais!Z10 -> 2037 | AA10: =Délais!AA10 -> 2038 | AB10: =Délais!AB10 -> 2039 | AC10: =Délais!AC10 -> 2040 | AD10: =Délais!AD10 -> 2041 | AE10: =Délais!AE10 -> 2042 | AF10: =Délais!AF10 -> 2043 | AG10: =Délais!AG10 -> 2044 | AH10: =Délais!AH10 -> 2045 | AI10: =Délais!AI10 -> 2046 | AJ10: =Délais!AJ10 -> 2047 | AK10: =Délais!AK10 -> 2048 | AL10: =Délais!AL10 -> 2049 | AM10: =Délais!AM10 -> 2050 | AN10: =Délais!AN10 -> 2051 | AO10: =Délais!AO10 -> 2052 | AP10: =Délais!AP10 -> 2053 | AQ10: =Délais!AQ10 -> 2054 | AR10: =Délais!AR10 -> 2055 | AS10: =Délais!AS10 -> 2056 | AT10: =Délais!AT10 -> 2057 | AU10: =Délais!AU10 -> 2058 | AV10: =Délais!AV10 -> 2059 | AW10: =Délais!AW10 -> 2060 | AX10: =Délais!AX10 -> 2061 | AY10: =Délais!AY10 -> 2062 | AZ10: =Délais!AZ10 -> 2063 | BA10: =Délais!BA10 -> 2064 | BB10: =Délais!BB10 -> 2065 | BC10: =Délais!BC10 -> 2066 | BD10: =Délais!BD10 -> 2067 | BE10: =Délais!BE10 -> 2068 | BF10: =Délais!BF10 -> 2069 | BG10: =Délais!BG10 -> 2070 | BH10: =Délais!BH10 -> 2071 | BI10: =Délais!BI10 -> 2072 | BJ10: =Délais!BJ10 -> 2073 | BK10: =Délais!BK10 -> 2074 | BL10: =Délais!BL10 -> 2075 | BM10: =Délais!BM10 -> 2076
C11: Days in Period | D11: Nombre de jours de la période | E11: Num# | J11: =Délais!J11 -> 31 | K11: =Délais!K11 -> 365 | L11: =Délais!L11 -> 365 | M11: =Délais!M11 -> 366 | N11: =Délais!N11 -> 365 | O11: =Délais!O11 -> 365 | P11: =Délais!P11 -> 365 | Q11: =Délais!Q11 -> 366 | R11: =Délais!R11 -> 365 | S11: =Délais!S11 -> 365 | T11: =Délais!T11 -> 365 | U11: =Délais!U11 -> 366 | V11: =Délais!V11 -> 365 | W11: =Délais!W11 -> 365 | X11: =Délais!X11 -> 365 | Y11: =Délais!Y11 -> 366 | Z11: =Délais!Z11 -> 365 | AA11: =Délais!AA11 -> 365 | AB11: =Délais!AB11 -> 365 | AC11: =Délais!AC11 -> 366 | AD11: =Délais!AD11 -> 365 | AE11: =Délais!AE11 -> 365 | AF11: =Délais!AF11 -> 365 | AG11: =Délais!AG11 -> 366 | AH11: =Délais!AH11 -> 365 | AI11: =Délais!AI11 -> 365 | AJ11: =Délais!AJ11 -> 365 | AK11: =Délais!AK11 -> 366 | AL11: =Délais!AL11 -> 365 | AM11: =Délais!AM11 -> 365 | AN11: =Délais!AN11 -> 365 | AO11: =Délais!AO11 -> 366 | AP11: =Délais!AP11 -> 365 | AQ11: =Délais!AQ11 -> 365 | AR11: =Délais!AR11 -> 365 | AS11: =Délais!AS11 -> 366 | AT11: =Délais!AT11 -> 365 | AU11: =Délais!AU11 -> 365 | AV11: =Délais!AV11 -> 365 | AW11: =Délais!AW11 -> 366 | AX11: =Délais!AX11 -> 365 | AY11: =Délais!AY11 -> 365 | AZ11: =Délais!AZ11 -> 365 | BA11: =Délais!BA11 -> 366 | BB11: =Délais!BB11 -> 365 | BC11: =Délais!BC11 -> 365 | BD11: =Délais!BD11 -> 365 | BE11: =Délais!BE11 -> 366 | BF11: =Délais!BF11 -> 365 | BG11: =Délais!BG11 -> 365 | BH11: =Délais!BH11 -> 365 | BI11: =Délais!BI11 -> 366 | BJ11: =Délais!BJ11 -> 365 | BK11: =Délais!BK11 -> 365 | BL11: =Délais!BL11 -> 365 | BM11: =Délais!BM11 -> 366
C13: Construction Period | D13: Période de construction | E13: Num# | J13: =Délais!J13 -> 1 | K13: =Délais!K13 -> 0 | L13: =Délais!L13 -> 0 | M13: =Délais!M13 -> 0 | N13: =Délais!N13 -> 0 | O13: =Délais!O13 -> 0 | P13: =Délais!P13 -> 0 | Q13: =Délais!Q13 -> 0 | R13: =Délais!R13 -> 0 | S13: =Délais!S13 -> 0 | T13: =Délais!T13 -> 0 | U13: =Délais!U13 -> 0 | V13: =Délais!V13 -> 0 | W13: =Délais!W13 -> 0 | X13: =Délais!X13 -> 0 | Y13: =Délais!Y13 -> 0 | Z13: =Délais!Z13 -> 0 | AA13: =Délais!AA13 -> 0 | AB13: =Délais!AB13 -> 0 | AC13: =Délais!AC13 -> 0 | AD13: =Délais!AD13 -> 0 | AE13: =Délais!AE13 -> 0 | AF13: =Délais!AF13 -> 0 | AG13: =Délais!AG13 -> 0 | AH13: =Délais!AH13 -> 0 | AI13: =Délais!AI13 -> 0 | AJ13: =Délais!AJ13 -> 0 | AK13: =Délais!AK13 -> 0 | AL13: =Délais!AL13 -> 0 | AM13: =Délais!AM13 -> 0 | AN13: =Délais!AN13 -> 0 | AO13: =Délais!AO13 -> 0 | AP13: =Délais!AP13 -> 0 | AQ13: =Délais!AQ13 -> 0 | AR13: =Délais!AR13 -> 0 | AS13: =Délais!AS13 -> 0 | AT13: =Délais!AT13 -> 0 | AU13: =Délais!AU13 -> 0 | AV13: =Délais!AV13 -> 0 | AW13: =Délais!AW13 -> 0 | AX13: =Délais!AX13 -> 0 | AY13: =Délais!AY13 -> 0 | AZ13: =Délais!AZ13 -> 0 | BA13: =Délais!BA13 -> 0 | BB13: =Délais!BB13 -> 0 | BC13: =Délais!BC13 -> 0 | BD13: =Délais!BD13 -> 0 | BE13: =Délais!BE13 -> 0 | BF13: =Délais!BF13 -> 0 | BG13: =Délais!BG13 -> 0 | BH13: =Délais!BH13 -> 0 | BI13: =Délais!BI13 -> 0 | BJ13: =Délais!BJ13 -> 0 | BK13: =Délais!BK13 -> 0 | BL13: =Délais!BL13 -> 0 | BM13: =Délais!BM13 -> 0
C14: Operations Period | D14: Période d'exploitation | E14: Num# | J14: =Délais!J14 -> 0 | K14: =Délais!K14 -> 1 | L14: =Délais!L14 -> 2 | M14: =Délais!M14 -> 3 | N14: =Délais!N14 -> 4 | O14: =Délais!O14 -> 5 | P14: =Délais!P14 -> 6 | Q14: =Délais!Q14 -> 7 | R14: =Délais!R14 -> 8 | S14: =Délais!S14 -> 9 | T14: =Délais!T14 -> 10 | U14: =Délais!U14 -> 11 | V14: =Délais!V14 -> 12 | W14: =Délais!W14 -> 13 | X14: =Délais!X14 -> 14 | Y14: =Délais!Y14 -> 15 | Z14: =Délais!Z14 -> 16 | AA14: =Délais!AA14 -> 17 | AB14: =Délais!AB14 -> 18 | AC14: =Délais!AC14 -> 19 | AD14: =Délais!AD14 -> 20 | AE14: =Délais!AE14 -> 0 | AF14: =Délais!AF14 -> 0 | AG14: =Délais!AG14 -> 0 | AH14: =Délais!AH14 -> 0 | AI14: =Délais!AI14 -> 0 | AJ14: =Délais!AJ14 -> 0 | AK14: =Délais!AK14 -> 0 | AL14: =Délais!AL14 -> 0 | AM14: =Délais!AM14 -> 0 | AN14: =Délais!AN14 -> 0 | AO14: =Délais!AO14 -> 0 | AP14: =Délais!AP14 -> 0 | AQ14: =Délais!AQ14 -> 0 | AR14: =Délais!AR14 -> 0 | AS14: =Délais!AS14 -> 0 | AT14: =Délais!AT14 -> 0 | AU14: =Délais!AU14 -> 0 | AV14: =Délais!AV14 -> 0 | AW14: =Délais!AW14 -> 0 | AX14: =Délais!AX14 -> 0 | AY14: =Délais!AY14 -> 0 | AZ14: =Délais!AZ14 -> 0 | BA14: =Délais!BA14 -> 0 | BB14: =Délais!BB14 -> 0 | BC14: =Délais!BC14 -> 0 | BD14: =Délais!BD14 -> 0 | BE14: =Délais!BE14 -> 0 | BF14: =Délais!BF14 -> 0 | BG14: =Délais!BG14 -> 0 | BH14: =Délais!BH14 -> 0 | BI14: =Délais!BI14 -> 0 | BJ14: =Délais!BJ14 -> 0 | BK14: =Délais!BK14 -> 0 | BL14: =Délais!BL14 -> 0 | BM14: =Délais!BM14 -> 0
C16: Debt Account | D16: Créances financières
C17: Tenor | D17: Durée du crédit | E17: [1,0] | F17: =Données!I89 -> 2022-01-01 | G17: =Données!J89 -> 2026-12-31 | J17: =IF(AND(J$4>=$F17,J$5<=$G17),1,0) -> 0 | K17: =IF(AND(K$4>=$F17,K$5<=$G17),1,0) -> 1 | L17: 1 | M17: 1 | N17: 1 | O17: 1 | P17: 0 | Q17: 0 | R17: 0 | S17: 0 | T17: 0 | U17: 0 | V17: 0 | W17: 0 | X17: 0 | Y17: 0 | Z17: 0 | AA17: 0 | AB17: 0 | AC17: 0 | AD17: 0 | AE17: 0 | AF17: 0 | AG17: 0 | AH17: 0 | AI17: 0 | AJ17: 0 | AK17: 0 | AL17: 0 | AM17: 0 | AN17: 0 | AO17: 0 | AP17: 0 | AQ17: 0 | AR17: 0 | AS17: 0 | AT17: 0 | AU17: 0 | AV17: 0 | AW17: 0 | AX17: 0 | AY17: 0 | AZ17: 0 | BA17: 0 | BB17: 0 | BC17: 0 | BD17: 0 | BE17: 0 | BF17: 0 | BG17: 0 | BH17: 0 | BI17: 0 | BJ17: 0 | BK17: 0 | BL17: 0 | BM17: 0
C18: Grace Period | D18: Délai de grâce | E18: [1,0] | F18: =Données!I90 -> 2022-01-01 | G18: =Données!J90 -> 2021-12-31 | J18: =IF(AND(J$4>=$F18,J$5<=$G18),1,0) -> 0 | K18: 0 | L18: 0 | M18: 0 | N18: 0 | O18: 0 | P18: 0 | Q18: 0 | R18: 0 | S18: 0 | T18: 0 | U18: 0 | V18: 0 | W18: 0 | X18: 0 | Y18: 0 | Z18: 0 | AA18: 0 | AB18: 0 | AC18: 0 | AD18: 0 | AE18: 0 | AF18: 0 | AG18: 0 | AH18: 0 | AI18: 0 | AJ18: 0 | AK18: 0 | AL18: 0 | AM18: 0 | AN18: 0 | AO18: 0 | AP18: 0 | AQ18: 0 | AR18: 0 | AS18: 0 | AT18: 0 | AU18: 0 | AV18: 0 | AW18: 0 | AX18: 0 | AY18: 0 | AZ18: 0 | BA18: 0 | BB18: 0 | BC18: 0 | BD18: 0 | BE18: 0 | BF18: 0 | BG18: 0 | BH18: 0 | BI18: 0 | BJ18: 0 | BK18: 0 | BL18: 0 | BM18: 0
C19: Repayment Flag | D19: Modalités de remboursement | E19: [1,0] | I19: =SUM(J19:BM19) -> 5 | J19: =J17-J18 -> 0 | K19: =K17-K18 -> 1 | L19: 1 | M19: 1 | N19: 1 | O19: 1 | P19: 0 | Q19: 0 | R19: 0 | S19: 0 | T19: 0 | U19: 0 | V19: 0 | W19: 0 | X19: 0 | Y19: 0 | Z19: 0 | AA19: 0 | AB19: 0 | AC19: 0 | AD19: 0 | AE19: 0 | AF19: 0 | AG19: 0 | AH19: 0 | AI19: 0 | AJ19: 0 | AK19: 0 | AL19: 0 | AM19: 0 | AN19: 0 | AO19: 0 | AP19: 0 | AQ19: 0 | AR19: 0 | AS19: 0 | AT19: 0 | AU19: 0 | AV19: 0 | AW19: 0 | AX19: 0 | AY19: 0 | AZ19: 0 | BA19: 0 | BB19: 0 | BC19: 0 | BD19: 0 | BE19: 0 | BF19: 0 | BG19: 0 | BH19: 0 | BI19: 0 | BJ19: 0 | BK19: 0 | BL19: 0 | BM19: 0
C20: Remaining Periods | D20: Périodes restantes | E20: Num# | J20: =SUM(J19:$BM$19)*J19 -> 0 | K20: =SUM(K19:$BM$19)*K19 -> 5 | L20: =SUM(L19:$BM$19)*L19 -> 4 | M20: =SUM(M19:$BM$19)*M19 -> 3 | N20: =SUM(N19:$BM$19)*N19 -> 2 | O20: =SUM(O19:$BM$19)*O19 -> 1 | P20: =SUM(P19:$BM$19)*P19 -> 0 | Q20: =SUM(Q19:$BM$19)*Q19 -> 0 | R20: =SUM(R19:$BM$19)*R19 -> 0 | S20: =SUM(S19:$BM$19)*S19 -> 0 | T20: =SUM(T19:$BM$19)*T19 -> 0 | U20: =SUM(U19:$BM$19)*U19 -> 0 | V20: =SUM(V19:$BM$19)*V19 -> 0 | W20: =SUM(W19:$BM$19)*W19 -> 0 | X20: =SUM(X19:$BM$19)*X19 -> 0 | Y20: =SUM(Y19:$BM$19)*Y19 -> 0 | Z20: =SUM(Z19:$BM$19)*Z19 -> 0 | AA20: =SUM(AA19:$BM$19)*AA19 -> 0 | AB20: =SUM(AB19:$BM$19)*AB19 -> 0 | AC20: =SUM(AC19:$BM$19)*AC19 -> 0 | AD20: =SUM(AD19:$BM$19)*AD19 -> 0 | AE20: =SUM(AE19:$BM$19)*AE19 -> 0 | AF20: =SUM(AF19:$BM$19)*AF19 -> 0 | AG20: =SUM(AG19:$BM$19)*AG19 -> 0 | AH20: =SUM(AH19:$BM$19)*AH19 -> 0 | AI20: =SUM(AI19:$BM$19)*AI19 -> 0 | AJ20: =SUM(AJ19:$BM$19)*AJ19 -> 0 | AK20: =SUM(AK19:$BM$19)*AK19 -> 0 | AL20: =SUM(AL19:$BM$19)*AL19 -> 0 | AM20: =SUM(AM19:$BM$19)*AM19 -> 0 | AN20: =SUM(AN19:$BM$19)*AN19 -> 0 | AO20: =SUM(AO19:$BM$19)*AO19 -> 0 | AP20: =SUM(AP19:$BM$19)*AP19 -> 0 | AQ20: =SUM(AQ19:$BM$19)*AQ19 -> 0 | AR20: =SUM(AR19:$BM$19)*AR19 -> 0 | AS20: =SUM(AS19:$BM$19)*AS19 -> 0 | AT20: =SUM(AT19:$BM$19)*AT19 -> 0 | AU20: =SUM(AU19:$BM$19)*AU19 -> 0 | AV20: =SUM(AV19:$BM$19)*AV19 -> 0 | AW20: =SUM(AW19:$BM$19)*AW19 -> 0 | AX20: =SUM(AX19:$BM$19)*AX19 -> 0 | AY20: =SUM(AY19:$BM$19)*AY19 -> 0 | AZ20: =SUM(AZ19:$BM$19)*AZ19 -> 0 | BA20: =SUM(BA19:$BM$19)*BA19 -> 0 | BB20: =SUM(BB19:$BM$19)*BB19 -> 0 | BC20: =SUM(BC19:$BM$19)*BC19 -> 0 | BD20: =SUM(BD19:$BM$19)*BD19 -> 0 | BE20: =SUM(BE19:$BM$19)*BE19 -> 0 | BF20: =SUM(BF19:$BM$19)*BF19 -> 0 | BG20: =SUM(BG19:$BM$19)*BG19 -> 0 | BH20: =SUM(BH19:$BM$19)*BH19 -> 0 | BI20: =SUM(BI19:$BM$19)*BI19 -> 0 | BJ20: =SUM(BJ19:$BM$19)*BJ19 -> 0 | BK20: =SUM(BK19:$BM$19)*BK19 -> 0 | BL20: =SUM(BL19:$BM$19)*BL19 -> 0 | BM20: =SUM(BM19:$BM$19)*BM19 -> 0
C22: Balance b/f | D22: Solde de trésorerie reporté | E22: DT | J22: =I25 -> 0 | K22: =J25 -> 15400 | L22: 12951.68071 | M22: 10221.8047 | N22: 7177.99295 | O22: 3784.14286 | P22: 0 | Q22: 0 | R22: 0 | S22: 0 | T22: 0 | U22: 0 | V22: 0 | W22: 0 | X22: 0 | Y22: 0 | Z22: 0 | AA22: 0 | AB22: 0 | AC22: 0 | AD22: 0 | AE22: 0 | AF22: 0 | AG22: 0 | AH22: 0 | AI22: 0 | AJ22: 0 | AK22: 0 | AL22: 0 | AM22: 0 | AN22: 0 | AO22: 0 | AP22: 0 | AQ22: 0 | AR22: 0 | AS22: 0 | AT22: 0 | AU22: 0 | AV22: 0 | AW22: 0 | AX22: 0 | AY22: 0 | AZ22: 0 | BA22: 0 | BB22: 0 | BC22: 0 | BD22: 0 | BE22: 0 | BF22: 0 | BG22: 0 | BH22: 0 | BI22: 0 | BJ22: 0 | BK22: 0 | BL22: 0 | BM22: 0
C23: Transfer from Cons | D23: Montant repris dans la feuille "construction" | E23: DT | I23: =SUM(J23:BM23) -> 15400 | J23: =-Construction!J46 -> 15400 | K23: =-Construction!K46 -> 0 | L23: =-Construction!L46 -> 0 | M23: =-Construction!M46 -> 0 | N23: =-Construction!N46 -> 0 | O23: =-Construction!O46 -> 0 | P23: =-Construction!P46 -> 0 | Q23: =-Construction!Q46 -> 0 | R23: =-Construction!R46 -> 0 | S23: =-Construction!S46 -> 0 | T23: =-Construction!T46 -> 0 | U23: =-Construction!U46 -> 0 | V23: =-Construction!V46 -> 0 | W23: =-Construction!W46 -> 0 | X23: =-Construction!X46 -> 0 | Y23: =-Construction!Y46 -> 0 | Z23: =-Construction!Z46 -> 0 | AA23: =-Construction!AA46 -> 0 | AB23: =-Construction!AB46 -> 0 | AC23: =-Construction!AC46 -> 0 | AD23: =-Construction!AD46 -> 0 | AE23: =-Construction!AE46 -> 0 | AF23: =-Construction!AF46 -> 0 | AG23: =-Construction!AG46 -> 0 | AH23: =-Construction!AH46 -> 0 | AI23: =-Construction!AI46 -> 0 | AJ23: =-Construction!AJ46 -> 0 | AK23: =-Construction!AK46 -> 0 | AL23: =-Construction!AL46 -> 0 | AM23: =-Construction!AM46 -> 0 | AN23: =-Construction!AN46 -> 0 | AO23: =-Construction!AO46 -> 0 | AP23: =-Construction!AP46 -> 0 | AQ23: =-Construction!AQ46 -> 0 | AR23: =-Construction!AR46 -> 0 | AS23: =-Construction!AS46 -> 0 | AT23: =-Construction!AT46 -> 0 | AU23: =-Construction!AU46 -> 0 | AV23: =-Construction!AV46 -> 0 | AW23: =-Construction!AW46 -> 0 | AX23: =-Construction!AX46 -> 0 | AY23: =-Construction!AY46 -> 0 | AZ23: =-Construction!AZ46 -> 0 | BA23: =-Construction!BA46 -> 0 | BB23: =-Construction!BB46 -> 0 | BC23: =-Construction!BC46 -> 0 | BD23: =-Construction!BD46 -> 0 | BE23: =-Construction!BE46 -> 0 | BF23: =-Construction!BF46 -> 0 | BG23: =-Construction!BG46 -> 0 | BH23: =-Construction!BH46 -> 0 | BI23: =-Construction!BI46 -> 0 | BJ23: =-Construction!BJ46 -> 0 | BK23: =-Construction!BK46 -> 0 | BL23: =-Construction!BL46 -> 0 | BM23: =-Construction!BM46 -> 0
C24: Repayments | D24: Remboursement | E24: DT | I24: =SUM(J24:BM24) -> -15399.99999 | J24: =-J37 -> 0 | K24: =-K37 -> -2448.319288 | L24: -2729.876006 | M24: -3043.811746 | N24: -3393.850095 | O24: -3784.14286 | P24: 0 | Q24: 0 | R24: 0 | S24: 0 | T24: 0 | U24: 0 | V24: 0 | W24: 0 | X24: 0 | Y24: 0 | Z24: 0 | AA24: 0 | AB24: 0 | AC24: 0 | AD24: 0 | AE24: 0 | AF24: 0 | AG24: 0 | AH24: 0 | AI24: 0 | AJ24: 0 | AK24: 0 | AL24: 0 | AM24: 0 | AN24: 0 | AO24: 0 | AP24: 0 | AQ24: 0 | AR24: 0 | AS24: 0 | AT24: 0 | AU24: 0 | AV24: 0 | AW24: 0 | AX24: 0 | AY24: 0 | AZ24: 0 | BA24: 0 | BB24: 0 | BC24: 0 | BD24: 0 | BE24: 0 | BF24: 0 | BG24: 0 | BH24: 0 | BI24: 0 | BJ24: 0 | BK24: 0 | BL24: 0 | BM24: 0
C25: Balance c/f | D25: Solde de trésorerie à la clôture | E25: DT | J25: =IF(J5=$G$17,ROUND(SUM(J22:J24),5),ROUND(SUM(J22:J24),5)) -> 15400 | K25: 12951.68071 | L25: 10221.8047 | M25: 7177.99295 | N25: 3784.14286 | O25: 0 | P25: 0 | Q25: 0 | R25: 0 | S25: 0 | T25: 0 | U25: 0 | V25: 0 | W25: 0 | X25: 0 | Y25: 0 | Z25: 0 | AA25: 0 | AB25: 0 | AC25: 0 | AD25: 0 | AE25: 0 | AF25: 0 | AG25: 0 | AH25: 0 | AI25: 0 | AJ25: 0 | AK25: 0 | AL25: 0 | AM25: 0 | AN25: 0 | AO25: 0 | AP25: =IF(AP5=$G$17,ROUND(SUM(AP22:AP24),5),ROUND(SUM(AP22:AP24),5)) -> 0 | AQ25: 0 | AR25: 0 | AS25: 0 | AT25: 0 | AU25: 0 | AV25: 0 | AW25: 0 | AX25: 0 | AY25: 0 | AZ25: 0 | BA25: 0 | BB25: 0 | BC25: 0 | BD25: 0 | BE25: 0 | BF25: 0 | BG25: 0 | BH25: 0 | BI25: 0 | BJ25: 0 | BK25: 0 | BL25: 0 | BM25: 0
C27: Interest | D27: Interêt
C28: Base Rate | D28: Taux de référence | E28: % p.a. | J28: =LOOKUP(K10,Données!$G$106:$J$106,Données!$G$107:$J$107)*J7 -> 0 | K28: =LOOKUP(K10,Données!$G$106:$J$106,Données!$G$107:$J$107)*K7 -> 0.08 | L28: =LOOKUP(L10,Données!$G$106:$J$106,Données!$G$107:$J$107)*L7 -> 0.08 | M28: =LOOKUP(M10,Données!$G$106:$J$106,Données!$G$107:$J$107)*M7 -> 0.08 | N28: =LOOKUP(N10,Données!$G$106:$J$106,Données!$G$107:$J$107)*N7 -> 0.08 | O28: =LOOKUP(O10,Données!$G$106:$J$106,Données!$G$107:$J$107)*O7 -> 0.08 | P28: =LOOKUP(P10,Données!$G$106:$J$106,Données!$G$107:$J$107)*P7 -> 0.08 | Q28: =LOOKUP(Q10,Données!$G$106:$J$106,Données!$G$107:$J$107)*Q7 -> 0.08 | R28: =LOOKUP(R10,Données!$G$106:$J$106,Données!$G$107:$J$107)*R7 -> 0.08 | S28: =LOOKUP(S10,Données!$G$106:$J$106,Données!$G$107:$J$107)*S7 -> 0.08 | T28: =LOOKUP(T10,Données!$G$106:$J$106,Données!$G$107:$J$107)*T7 -> 0.08 | U28: =LOOKUP(U10,Données!$G$106:$J$106,Données!$G$107:$J$107)*U7 -> 0.08 | V28: =LOOKUP(V10,Données!$G$106:$J$106,Données!$G$107:$J$107)*V7 -> 0.08 | W28: =LOOKUP(W10,Données!$G$106:$J$106,Données!$G$107:$J$107)*W7 -> 0.08 | X28: =LOOKUP(X10,Données!$G$106:$J$106,Données!$G$107:$J$107)*X7 -> 0.08 | Y28: =LOOKUP(Y10,Données!$G$106:$J$106,Données!$G$107:$J$107)*Y7 -> 0.08 | Z28: =LOOKUP(Z10,Données!$G$106:$J$106,Données!$G$107:$J$107)*Z7 -> 0.08 | AA28: =LOOKUP(AA10,Données!$G$106:$J$106,Données!$G$107:$J$107)*AA7 -> 0.08 | AB28: =LOOKUP(AB10,Données!$G$106:$J$106,Données!$G$107:$J$107)*AB7 -> 0.08 | AC28: =LOOKUP(AC10,Données!$G$106:$J$106,Données!$G$107:$J$107)*AC7 -> 0.08 | AD28: =LOOKUP(AD10,Données!$G$106:$J$106,Données!$G$107:$J$107)*AD7 -> 0.08 | AE28: =LOOKUP(AE10,Données!$G$106:$J$106,Données!$G$107:$J$107)*AE7 -> 0 | AF28: =LOOKUP(AF10,Données!$G$106:$J$106,Données!$G$107:$J$107)*AF7 -> 0 | AG28: =LOOKUP(AG10,Données!$G$106:$J$106,Données!$G$107:$J$107)*AG7 -> 0 | AH28: =LOOKUP(AH10,Données!$G$106:$J$106,Données!$G$107:$J$107)*AH7 -> 0 | AI28: =LOOKUP(AI10,Données!$G$106:$J$106,Données!$G$107:$J$107)*AI7 -> 0 | AJ28: =LOOKUP(AJ10,Données!$G$106:$J$106,Données!$G$107:$J$107)*AJ7 -> 0 | AK28: =LOOKUP(AK10,Données!$G$106:$J$106,Données!$G$107:$J$107)*AK7 -> 0 | AL28: =LOOKUP(AL10,Données!$G$106:$J$106,Données!$G$107:$J$107)*AL7 -> 0 | AM28: =LOOKUP(AM10,Données!$G$106:$J$106,Données!$G$107:$J$107)*AM7 -> 0 | AN28: =LOOKUP(AN10,Données!$G$106:$J$106,Données!$G$107:$J$107)*AN7 -> 0 | AO28: =LOOKUP(AO10,Données!$G$106:$J$106,Données!$G$107:$J$107)*AO7 -> 0 | AP28: =LOOKUP(AP10,Données!$G$106:$J$106,Données!$G$107:$J$107)*AP7 -> 0 | AQ28: =LOOKUP(AQ10,Données!$G$106:$J$106,Données!$G$107:$J$107)*AQ7 -> 0 | AR28: =LOOKUP(AR10,Données!$G$106:$J$106,Données!$G$107:$J$107)*AR7 -> 0 | AS28: =LOOKUP(AS10,Données!$G$106:$J$106,Données!$G$107:$J$107)*AS7 -> 0 | AT28: =LOOKUP(AT10,Données!$G$106:$J$106,Données!$G$107:$J$107)*AT7 -> 0 | AU28: =LOOKUP(AU10,Données!$G$106:$J$106,Données!$G$107:$J$107)*AU7 -> 0 | AV28: =LOOKUP(AV10,Données!$G$106:$J$106,Données!$G$107:$J$107)*AV7 -> 0 | AW28: =LOOKUP(AW10,Données!$G$106:$J$106,Données!$G$107:$J$107)*AW7 -> 0 | AX28: =LOOKUP(AX10,Données!$G$106:$J$106,Données!$G$107:$J$107)*AX7 -> 0 | AY28: =LOOKUP(AY10,Données!$G$106:$J$106,Données!$G$107:$J$107)*AY7 -> 0 | AZ28: =LOOKUP(AZ10,Données!$G$106:$J$106,Données!$G$107:$J$107)*AZ7 -> 0 | BA28: =LOOKUP(BA10,Données!$G$106:$J$106,Données!$G$107:$J$107)*BA7 -> 0 | BB28: =LOOKUP(BB10,Données!$G$106:$J$106,Données!$G$107:$J$107)*BB7 -> 0 | BC28: =LOOKUP(BC10,Données!$G$106:$J$106,Données!$G$107:$J$107)*BC7 -> 0 | BD28: =LOOKUP(BD10,Données!$G$106:$J$106,Données!$G$107:$J$107)*BD7 -> 0 | BE28: =LOOKUP(BE10,Données!$G$106:$J$106,Données!$G$107:$J$107)*BE7 -> 0 | BF28: =LOOKUP(BF10,Données!$G$106:$J$106,Données!$G$107:$J$107)*BF7 -> 0 | BG28: =LOOKUP(BG10,Données!$G$106:$J$106,Données!$G$107:$J$107)*BG7 -> 0 | BH28: =LOOKUP(BH10,Données!$G$106:$J$106,Données!$G$107:$J$107)*BH7 -> 0 | BI28: =LOOKUP(BI10,Données!$G$106:$J$106,Données!$G$107:$J$107)*BI7 -> 0 | BJ28: =LOOKUP(BJ10,Données!$G$106:$J$106,Données!$G$107:$J$107)*BJ7 -> 0 | BK28: =LOOKUP(BK10,Données!$G$106:$J$106,Données!$G$107:$J$107)*BK7 -> 0 | BL28: =LOOKUP(BL10,Données!$G$106:$J$106,Données!$G$107:$J$107)*BL7 -> 0 | BM28: =LOOKUP(BM10,Données!$G$106:$J$106,Données!$G$107:$J$107)*BM7 -> 0
C29: Margin | D29: Marge | E29: % p.a. | J29: =IF(J14=0,0,LOOKUP(J14,Données!$H$80:$K$80,Données!$H$81:$K$81)) -> 0 | K29: =IF(K14=0,0,LOOKUP(K14,Données!$H$80:$K$80,Données!$H$81:$K$81)) -> 0.035 | L29: =IF(L14=0,0,LOOKUP(L14,Données!$H$80:$K$80,Données!$H$81:$K$81)) -> 0.035 | M29: =IF(M14=0,0,LOOKUP(M14,Données!$H$80:$K$80,Données!$H$81:$K$81)) -> 0.035 | N29: =IF(N14=0,0,LOOKUP(N14,Données!$H$80:$K$80,Données!$H$81:$K$81)) -> 0.035 | O29: =IF(O14=0,0,LOOKUP(O14,Données!$H$80:$K$80,Données!$H$81:$K$81)) -> 0.035 | P29: =IF(P14=0,0,LOOKUP(P14,Données!$H$80:$K$80,Données!$H$81:$K$81)) -> 0.035 | Q29: =IF(Q14=0,0,LOOKUP(Q14,Données!$H$80:$K$80,Données!$H$81:$K$81)) -> 0.035 | R29: =IF(R14=0,0,LOOKUP(R14,Données!$H$80:$K$80,Données!$H$81:$K$81)) -> 0.035 | S29: =IF(S14=0,0,LOOKUP(S14,Données!$H$80:$K$80,Données!$H$81:$K$81)) -> 0.035 | T29: =IF(T14=0,0,LOOKUP(T14,Données!$H$80:$K$80,Données!$H$81:$K$81)) -> 0.035 | U29: =IF(U14=0,0,LOOKUP(U14,Données!$H$80:$K$80,Données!$H$81:$K$81)) -> 0.035 | V29: =IF(V14=0,0,LOOKUP(V14,Données!$H$80:$K$80,Données!$H$81:$K$81)) -> 0.035 | W29: =IF(W14=0,0,LOOKUP(W14,Données!$H$80:$K$80,Données!$H$81:$K$81)) -> 0.035 | X29: =IF(X14=0,0,LOOKUP(X14,Données!$H$80:$K$80,Données!$H$81:$K$81)) -> 0.035 | Y29: =IF(Y14=0,0,LOOKUP(Y14,Données!$H$80:$K$80,Données!$H$81:$K$81)) -> 0.035 | Z29: =IF(Z14=0,0,LOOKUP(Z14,Données!$H$80:$K$80,Données!$H$81:$K$81)) -> 0.035 | AA29: =IF(AA14=0,0,LOOKUP(AA14,Données!$H$80:$K$80,Données!$H$81:$K$81)) -> 0.035 | AB29: =IF(AB14=0,0,LOOKUP(AB14,Données!$H$80:$K$80,Données!$H$81:$K$81)) -> 0.035 | AC29: =IF(AC14=0,0,LOOKUP(AC14,Données!$H$80:$K$80,Données!$H$81:$K$81)) -> 0.035 | AD29: =IF(AD14=0,0,LOOKUP(AD14,Données!$H$80:$K$80,Données!$H$81:$K$81)) -> 0.035 | AE29: =IF(AE14=0,0,LOOKUP(AE14,Données!$H$80:$K$80,Données!$H$81:$K$81)) -> 0 | AF29: =IF(AF14=0,0,LOOKUP(AF14,Données!$H$80:$K$80,Données!$H$81:$K$81)) -> 0 | AG29: =IF(AG14=0,0,LOOKUP(AG14,Données!$H$80:$K$80,Données!$H$81:$K$81)) -> 0 | AH29: =IF(AH14=0,0,LOOKUP(AH14,Données!$H$80:$K$80,Données!$H$81:$K$81)) -> 0 | AI29: =IF(AI14=0,0,LOOKUP(AI14,Données!$H$80:$K$80,Données!$H$81:$K$81)) -> 0 | AJ29: =IF(AJ14=0,0,LOOKUP(AJ14,Données!$H$80:$K$80,Données!$H$81:$K$81)) -> 0 | AK29: =IF(AK14=0,0,LOOKUP(AK14,Données!$H$80:$K$80,Données!$H$81:$K$81)) -> 0 | AL29: =IF(AL14=0,0,LOOKUP(AL14,Données!$H$80:$K$80,Données!$H$81:$K$81)) -> 0 | AM29: =IF(AM14=0,0,LOOKUP(AM14,Données!$H$80:$K$80,Données!$H$81:$K$81)) -> 0 | AN29: =IF(AN14=0,0,LOOKUP(AN14,Données!$H$80:$K$80,Données!$H$81:$K$81)) -> 0 | AO29: =IF(AO14=0,0,LOOKUP(AO14,Données!$H$80:$K$80,Données!$H$81:$K$81)) -> 0 | AP29: =IF(AP14=0,0,LOOKUP(AP14,Données!$H$80:$K$80,Données!$H$81:$K$81)) -> 0 | AQ29: =IF(AQ14=0,0,LOOKUP(AQ14,Données!$H$80:$K$80,Données!$H$81:$K$81)) -> 0 | AR29: =IF(AR14=0,0,LOOKUP(AR14,Données!$H$80:$K$80,Données!$H$81:$K$81)) -> 0 | AS29: =IF(AS14=0,0,LOOKUP(AS14,Données!$H$80:$K$80,Données!$H$81:$K$81)) -> 0 | AT29: =IF(AT14=0,0,LOOKUP(AT14,Données!$H$80:$K$80,Données!$H$81:$K$81)) -> 0 | AU29: =IF(AU14=0,0,LOOKUP(AU14,Données!$H$80:$K$80,Données!$H$81:$K$81)) -> 0 | AV29: =IF(AV14=0,0,LOOKUP(AV14,Données!$H$80:$K$80,Données!$H$81:$K$81)) -> 0 | AW29: =IF(AW14=0,0,LOOKUP(AW14,Données!$H$80:$K$80,Données!$H$81:$K$81)) -> 0 | AX29: =IF(AX14=0,0,LOOKUP(AX14,Données!$H$80:$K$80,Données!$H$81:$K$81)) -> 0 | AY29: =IF(AY14=0,0,LOOKUP(AY14,Données!$H$80:$K$80,Données!$H$81:$K$81)) -> 0 | AZ29: =IF(AZ14=0,0,LOOKUP(AZ14,Données!$H$80:$K$80,Données!$H$81:$K$81)) -> 0 | BA29: =IF(BA14=0,0,LOOKUP(BA14,Données!$H$80:$K$80,Données!$H$81:$K$81)) -> 0 | BB29: =IF(BB14=0,0,LOOKUP(BB14,Données!$H$80:$K$80,Données!$H$81:$K$81)) -> 0 | BC29: =IF(BC14=0,0,LOOKUP(BC14,Données!$H$80:$K$80,Données!$H$81:$K$81)) -> 0 | BD29: =IF(BD14=0,0,LOOKUP(BD14,Données!$H$80:$K$80,Données!$H$81:$K$81)) -> 0 | BE29: =IF(BE14=0,0,LOOKUP(BE14,Données!$H$80:$K$80,Données!$H$81:$K$81)) -> 0 | BF29: =IF(BF14=0,0,LOOKUP(BF14,Données!$H$80:$K$80,Données!$H$81:$K$81)) -> 0 | BG29: =IF(BG14=0,0,LOOKUP(BG14,Données!$H$80:$K$80,Données!$H$81:$K$81)) -> 0 | BH29: =IF(BH14=0,0,LOOKUP(BH14,Données!$H$80:$K$80,Données!$H$81:$K$81)) -> 0 | BI29: =IF(BI14=0,0,LOOKUP(BI14,Données!$H$80:$K$80,Données!$H$81:$K$81)) -> 0 | BJ29: =IF(BJ14=0,0,LOOKUP(BJ14,Données!$H$80:$K$80,Données!$H$81:$K$81)) -> 0 | BK29: =IF(BK14=0,0,LOOKUP(BK14,Données!$H$80:$K$80,Données!$H$81:$K$81)) -> 0 | BL29: =IF(BL14=0,0,LOOKUP(BL14,Données!$H$80:$K$80,Données!$H$81:$K$81)) -> 0 | BM29: =IF(BM14=0,0,LOOKUP(BM14,Données!$H$80:$K$80,Données!$H$81:$K$81)) -> 0
C30: All-in rate | D30: Taux global | E30: % p.a. | J30: =SUM(J28:J29) -> 0 | K30: =SUM(K28:K29) -> 0.115 | L30: 0.115 | M30: 0.115 | N30: 0.115 | O30: 0.115 | P30: 0.115 | Q30: 0.115 | R30: 0.115 | S30: 0.115 | T30: 0.115 | U30: 0.115 | V30: 0.115 | W30: 0.115 | X30: 0.115 | Y30: 0.115 | Z30: 0.115 | AA30: 0.115 | AB30: 0.115 | AC30: 0.115 | AD30: 0.115 | AE30: 0 | AF30: 0 | AG30: 0 | AH30: 0 | AI30: 0 | AJ30: 0 | AK30: 0 | AL30: 0 | AM30: 0 | AN30: 0 | AO30: 0 | AP30: 0 | AQ30: 0 | AR30: 0 | AS30: 0 | AT30: 0 | AU30: 0 | AV30: 0 | AW30: 0 | AX30: 0 | AY30: 0 | AZ30: 0 | BA30: 0 | BB30: 0 | BC30: 0 | BD30: 0 | BE30: 0 | BF30: 0 | BG30: 0 | BH30: 0 | BI30: 0 | BJ30: 0 | BK30: 0 | BL30: 0 | BM30: 0
C32: Interest | D32: Interêt | E32: DT | I32: =SUM(J32:BM32) -> 5696.59644 | J32: =J22*J30 -> 0 | K32: 1771 | L32: 1489.443282 | M32: 1175.507541 | N32: 825.4691892 | O32: 435.1764289 | P32: 0 | Q32: 0 | R32: 0 | S32: 0 | T32: 0 | U32: 0 | V32: 0 | W32: 0 | X32: 0 | Y32: 0 | Z32: 0 | AA32: 0 | AB32: 0 | AC32: 0 | AD32: 0 | AE32: 0 | AF32: 0 | AG32: 0 | AH32: 0 | AI32: 0 | AJ32: 0 | AK32: 0 | AL32: 0 | AM32: 0 | AN32: 0 | AO32: 0 | AP32: =AP22*AP30 -> 0 | AQ32: 0 | AR32: 0 | AS32: 0 | AT32: 0 | AU32: 0 | AV32: 0 | AW32: 0 | AX32: 0 | AY32: 0 | AZ32: 0 | BA32: 0 | BB32: 0 | BC32: 0 | BD32: 0 | BE32: 0 | BF32: 0 | BG32: 0 | BH32: 0 | BI32: 0 | BJ32: 0 | BK32: 0 | BL32: 0 | BM32: 0
C34: Principal Repayment | D34: Remboursement du Principal
C35: Annuity | D35: Annuités | E35: DT | I35: =SUM(J35:BM35) -> 21096.59644 | J35: =IF(J20=0,0,J22*J30/(1-(1+J30)^-J20)) -> 0 | K35: 4219.319288 | L35: 4219.319288 | M35: 4219.319286 | N35: 4219.319284 | O35: 4219.319289 | P35: 0 | Q35: 0 | R35: 0 | S35: 0 | T35: 0 | U35: 0 | V35: 0 | W35: 0 | X35: 0 | Y35: 0 | Z35: 0 | AA35: 0 | AB35: 0 | AC35: 0 | AD35: 0 | AE35: 0 | AF35: 0 | AG35: 0 | AH35: 0 | AI35: 0 | AJ35: 0 | AK35: 0 | AL35: 0 | AM35: 0 | AN35: 0 | AO35: 0 | AP35: =IF(AP20=0,0,AP22*AP30/(1-(1+AP30)^-AP20)) -> 0 | AQ35: 0 | AR35: 0 | AS35: 0 | AT35: 0 | AU35: 0 | AV35: 0 | AW35: 0 | AX35: 0 | AY35: 0 | AZ35: 0 | BA35: 0 | BB35: 0 | BC35: 0 | BD35: 0 | BE35: 0 | BF35: 0 | BG35: 0 | BH35: 0 | BI35: 0 | BJ35: 0 | BK35: 0 | BL35: 0 | BM35: 0
C36: Minus Interest | D36: Moins les intérêts | E36: DT | I36: =SUM(J36:BM36) -> -5696.59644 | J36: =-J32*J19 -> 0 | K36: -1771 | L36: -1489.443282 | M36: -1175.507541 | N36: -825.4691892 | O36: -435.1764289 | P36: 0 | Q36: 0 | R36: 0 | S36: 0 | T36: 0 | U36: 0 | V36: 0 | W36: 0 | X36: 0 | Y36: 0 | Z36: 0 | AA36: 0 | AB36: 0 | AC36: 0 | AD36: 0 | AE36: 0 | AF36: 0 | AG36: 0 | AH36: 0 | AI36: 0 | AJ36: 0 | AK36: 0 | AL36: 0 | AM36: 0 | AN36: 0 | AO36: 0 | AP36: =-AP32*AP19 -> 0 | AQ36: 0 | AR36: 0 | AS36: 0 | AT36: 0 | AU36: 0 | AV36: 0 | AW36: 0 | AX36: 0 | AY36: 0 | AZ36: 0 | BA36: 0 | BB36: 0 | BC36: 0 | BD36: 0 | BE36: 0 | BF36: 0 | BG36: 0 | BH36: 0 | BI36: 0 | BJ36: 0 | BK36: 0 | BL36: 0 | BM36: 0
C37: Principal | D37: Montant du principal | E37: DT | I37: =SUM(J37:BM37) -> 15399.99999 | J37: =SUM(J35:J36) -> 0 | K37: 2448.319288 | L37: 2729.876006 | M37: 3043.811746 | N37: 3393.850095 | O37: 3784.14286 | P37: 0 | Q37: 0 | R37: 0 | S37: 0 | T37: 0 | U37: 0 | V37: 0 | W37: 0 | X37: 0 | Y37: 0 | Z37: 0 | AA37: 0 | AB37: 0 | AC37: 0 | AD37: 0 | AE37: 0 | AF37: 0 | AG37: 0 | AH37: 0 | AI37: 0 | AJ37: 0 | AK37: 0 | AL37: 0 | AM37: 0 | AN37: 0 | AO37: 0 | AP37: =SUM(AP35:AP36) -> 0 | AQ37: 0 | AR37: 0 | AS37: 0 | AT37: 0 | AU37: 0 | AV37: 0 | AW37: 0 | AX37: 0 | AY37: 0 | AZ37: 0 | BA37: 0 | BB37: 0 | BC37: 0 | BD37: 0 | BE37: 0 | BF37: 0 | BG37: 0 | BH37: 0 | BI37: 0 | BJ37: 0 | BK37: 0 | BL37: 0 | BM37: 0
C39: Debt Ratios | D39: Ratio de la dette
C40: DSCR | D40: Ratio de couverture du service de la dette
C41: CFADS | D41: Flux de trésorerie disponibles au service de la dette | E41: DT | I41: =SUM(J41:BM41) -> 76291.2535 | J41: ='Flux de trésorerie'!J39 -> 0 | K41: ='Flux de trésorerie'!K39 -> 4270.769059 | L41: ='Flux de trésorerie'!L39 -> 4390.092131 | M41: ='Flux de trésorerie'!M39 -> 4512.378895 | N41: ='Flux de trésorerie'!N39 -> 4637.675142 | O41: ='Flux de trésorerie'!O39 -> 4766.025018 | P41: ='Flux de trésorerie'!P39 -> 4874.866368 | Q41: ='Flux de trésorerie'!Q39 -> 4971.397389 | R41: ='Flux de trésorerie'!R39 -> 5069.10865 | S41: ='Flux de trésorerie'!S39 -> 5167.955669 | T41: ='Flux de trésorerie'!T39 -> -24732.11205 | U41: ='Flux de trésorerie'!U39 -> 5368.848515 | V41: ='Flux de trésorerie'!V39 -> 5470.773345 | W41: ='Flux de trésorerie'!W39 -> 5573.590856 | X41: ='Flux de trésorerie'!X39 -> 5677.221279 | Y41: ='Flux de trésorerie'!Y39 -> 5781.57602 | Z41: ='Flux de trésorerie'!Z39 -> 5886.556966 | AA41: ='Flux de trésorerie'!AA39 -> 5992.055746 | AB41: ='Flux de trésorerie'!AB39 -> 6097.952934 | AC41: ='Flux de trésorerie'!AC39 -> 6204.117194 | AD41: ='Flux de trésorerie'!AD39 -> 6310.404373 | AE41: ='Flux de trésorerie'!AE39 -> 0 | AF41: ='Flux de trésorerie'!AF39 -> 0 | AG41: ='Flux de trésorerie'!AG39 -> 0 | AH41: ='Flux de trésorerie'!AH39 -> 0 | AI41: ='Flux de trésorerie'!AI39 -> 0 | AJ41: ='Flux de trésorerie'!AJ39 -> 0 | AK41: ='Flux de trésorerie'!AK39 -> 0 | AL41: ='Flux de trésorerie'!AL39 -> 0 | AM41: ='Flux de trésorerie'!AM39 -> 0 | AN41: ='Flux de trésorerie'!AN39 -> 0 | AO41: ='Flux de trésorerie'!AO39 -> 0 | AP41: ='Flux de trésorerie'!AP39 -> 0 | AQ41: ='Flux de trésorerie'!AQ39 -> 0 | AR41: ='Flux de trésorerie'!AR39 -> 0 | AS41: ='Flux de trésorerie'!AS39 -> 0 | AT41: ='Flux de trésorerie'!AT39 -> 0 | AU41: ='Flux de trésorerie'!AU39 -> 0 | AV41: ='Flux de trésorerie'!AV39 -> 0 | AW41: ='Flux de trésorerie'!AW39 -> 0 | AX41: ='Flux de trésorerie'!AX39 -> 0 | AY41: ='Flux de trésorerie'!AY39 -> 0 | AZ41: ='Flux de trésorerie'!AZ39 -> 0 | BA41: ='Flux de trésorerie'!BA39 -> 0 | BB41: ='Flux de trésorerie'!BB39 -> 0 | BC41: ='Flux de trésorerie'!BC39 -> 0 | BD41: ='Flux de trésorerie'!BD39 -> 0 | BE41: ='Flux de trésorerie'!BE39 -> 0 | BF41: ='Flux de trésorerie'!BF39 -> 0 | BG41: ='Flux de trésorerie'!BG39 -> 0 | BH41: ='Flux de trésorerie'!BH39 -> 0 | BI41: ='Flux de trésorerie'!BI39 -> 0 | BJ41: ='Flux de trésorerie'!BJ39 -> 0 | BK41: ='Flux de trésorerie'!BK39 -> 0 | BL41: ='Flux de trésorerie'!BL39 -> 0 | BM41: ='Flux de trésorerie'!BM39 -> 0
C43: Interest | D43: Interêt | E43: DT | I43: =SUM(J43:BM43) -> 5696.59644 | J43: =-'Flux de trésorerie'!J42 -> 0 | K43: =-'Flux de trésorerie'!K42 -> 1771 | L43: =-'Flux de trésorerie'!L42 -> 1489.443282 | M43: =-'Flux de trésorerie'!M42 -> 1175.507541 | N43: =-'Flux de trésorerie'!N42 -> 825.4691892 | O43: =-'Flux de trésorerie'!O42 -> 435.1764289 | P43: =-'Flux de trésorerie'!P42 -> 0 | Q43: =-'Flux de trésorerie'!Q42 -> 0 | R43: =-'Flux de trésorerie'!R42 -> 0 | S43: =-'Flux de trésorerie'!S42 -> 0 | T43: =-'Flux de trésorerie'!T42 -> 0 | U43: =-'Flux de trésorerie'!U42 -> 0 | V43: =-'Flux de trésorerie'!V42 -> 0 | W43: =-'Flux de trésorerie'!W42 -> 0 | X43: =-'Flux de trésorerie'!X42 -> 0 | Y43: =-'Flux de trésorerie'!Y42 -> 0 | Z43: =-'Flux de trésorerie'!Z42 -> 0 | AA43: =-'Flux de trésorerie'!AA42 -> 0 | AB43: =-'Flux de trésorerie'!AB42 -> 0 | AC43: =-'Flux de trésorerie'!AC42 -> 0 | AD43: =-'Flux de trésorerie'!AD42 -> 0 | AE43: =-'Flux de trésorerie'!AE42 -> 0 | AF43: =-'Flux de trésorerie'!AF42 -> 0 | AG43: =-'Flux de trésorerie'!AG42 -> 0 | AH43: =-'Flux de trésorerie'!AH42 -> 0 | AI43: =-'Flux de trésorerie'!AI42 -> 0 | AJ43: =-'Flux de trésorerie'!AJ42 -> 0 | AK43: =-'Flux de trésorerie'!AK42 -> 0 | AL43: =-'Flux de trésorerie'!AL42 -> 0 | AM43: =-'Flux de trésorerie'!AM42 -> 0 | AN43: =-'Flux de trésorerie'!AN42 -> 0 | AO43: =-'Flux de trésorerie'!AO42 -> 0 | AP43: =-'Flux de trésorerie'!AP42 -> 0 | AQ43: =-'Flux de trésorerie'!AQ42 -> 0 | AR43: =-'Flux de trésorerie'!AR42 -> 0 | AS43: =-'Flux de trésorerie'!AS42 -> 0 | AT43: =-'Flux de trésorerie'!AT42 -> 0 | AU43: =-'Flux de trésorerie'!AU42 -> 0 | AV43: =-'Flux de trésorerie'!AV42 -> 0 | AW43: =-'Flux de trésorerie'!AW42 -> 0 | AX43: =-'Flux de trésorerie'!AX42 -> 0 | AY43: =-'Flux de trésorerie'!AY42 -> 0 | AZ43: =-'Flux de trésorerie'!AZ42 -> 0 | BA43: =-'Flux de trésorerie'!BA42 -> 0 | BB43: =-'Flux de trésorerie'!BB42 -> 0 | BC43: =-'Flux de trésorerie'!BC42 -> 0 | BD43: =-'Flux de trésorerie'!BD42 -> 0 | BE43: =-'Flux de trésorerie'!BE42 -> 0 | BF43: =-'Flux de trésorerie'!BF42 -> 0 | BG43: =-'Flux de trésorerie'!BG42 -> 0 | BH43: =-'Flux de trésorerie'!BH42 -> 0 | BI43: =-'Flux de trésorerie'!BI42 -> 0 | BJ43: =-'Flux de trésorerie'!BJ42 -> 0 | BK43: =-'Flux de trésorerie'!BK42 -> 0 | BL43: =-'Flux de trésorerie'!BL42 -> 0 | BM43: =-'Flux de trésorerie'!BM42 -> 0
C44: Principal | D44: Montant du principal | E44: DT | I44: =SUM(J44:BM44) -> 15399.99999 | J44: =-'Flux de trésorerie'!J43 -> 0 | K44: =-'Flux de trésorerie'!K43 -> 2448.319288 | L44: =-'Flux de trésorerie'!L43 -> 2729.876006 | M44: =-'Flux de trésorerie'!M43 -> 3043.811746 | N44: =-'Flux de trésorerie'!N43 -> 3393.850095 | O44: =-'Flux de trésorerie'!O43 -> 3784.14286 | P44: =-'Flux de trésorerie'!P43 -> 0 | Q44: =-'Flux de trésorerie'!Q43 -> 0 | R44: =-'Flux de trésorerie'!R43 -> 0 | S44: =-'Flux de trésorerie'!S43 -> 0 | T44: =-'Flux de trésorerie'!T43 -> 0 | U44: =-'Flux de trésorerie'!U43 -> 0 | V44: =-'Flux de trésorerie'!V43 -> 0 | W44: =-'Flux de trésorerie'!W43 -> 0 | X44: =-'Flux de trésorerie'!X43 -> 0 | Y44: =-'Flux de trésorerie'!Y43 -> 0 | Z44: =-'Flux de trésorerie'!Z43 -> 0 | AA44: =-'Flux de trésorerie'!AA43 -> 0 | AB44: =-'Flux de trésorerie'!AB43 -> 0 | AC44: =-'Flux de trésorerie'!AC43 -> 0 | AD44: =-'Flux de trésorerie'!AD43 -> 0 | AE44: =-'Flux de trésorerie'!AE43 -> 0 | AF44: =-'Flux de trésorerie'!AF43 -> 0 | AG44: =-'Flux de trésorerie'!AG43 -> 0 | AH44: =-'Flux de trésorerie'!AH43 -> 0 | AI44: =-'Flux de trésorerie'!AI43 -> 0 | AJ44: =-'Flux de trésorerie'!AJ43 -> 0 | AK44: =-'Flux de trésorerie'!AK43 -> 0 | AL44: =-'Flux de trésorerie'!AL43 -> 0 | AM44: =-'Flux de trésorerie'!AM43 -> 0 | AN44: =-'Flux de trésorerie'!AN43 -> 0 | AO44: =-'Flux de trésorerie'!AO43 -> 0 | AP44: =-'Flux de trésorerie'!AP43 -> 0 | AQ44: =-'Flux de trésorerie'!AQ43 -> 0 | AR44: =-'Flux de trésorerie'!AR43 -> 0 | AS44: =-'Flux de trésorerie'!AS43 -> 0 | AT44: =-'Flux de trésorerie'!AT43 -> 0 | AU44: =-'Flux de trésorerie'!AU43 -> 0 | AV44: =-'Flux de trésorerie'!AV43 -> 0 | AW44: =-'Flux de trésorerie'!AW43 -> 0 | AX44: =-'Flux de trésorerie'!AX43 -> 0 | AY44: =-'Flux de trésorerie'!AY43 -> 0 | AZ44: =-'Flux de trésorerie'!AZ43 -> 0 | BA44: =-'Flux de trésorerie'!BA43 -> 0 | BB44: =-'Flux de trésorerie'!BB43 -> 0 | BC44: =-'Flux de trésorerie'!BC43 -> 0 | BD44: =-'Flux de trésorerie'!BD43 -> 0 | BE44: =-'Flux de trésorerie'!BE43 -> 0 | BF44: =-'Flux de trésorerie'!BF43 -> 0 | BG44: =-'Flux de trésorerie'!BG43 -> 0 | BH44: =-'Flux de trésorerie'!BH43 -> 0 | BI44: =-'Flux de trésorerie'!BI43 -> 0 | BJ44: =-'Flux de trésorerie'!BJ43 -> 0 | BK44: =-'Flux de trésorerie'!BK43 -> 0 | BL44: =-'Flux de trésorerie'!BL43 -> 0 | BM44: =-'Flux de trésorerie'!BM43 -> 0
C45: Debt Service | D45: Service de la dette | E45: DT | I45: =SUM(J45:BM45) -> 21096.59644 | J45: =-'Flux de trésorerie'!J44 -> 0 | K45: =-'Flux de trésorerie'!K44 -> 4219.319288 | L45: =-'Flux de trésorerie'!L44 -> 4219.319288 | M45: =-'Flux de trésorerie'!M44 -> 4219.319286 | N45: =-'Flux de trésorerie'!N44 -> 4219.319284 | O45: =-'Flux de trésorerie'!O44 -> 4219.319289 | P45: =-'Flux de trésorerie'!P44 -> 0 | Q45: =-'Flux de trésorerie'!Q44 -> 0 | R45: =-'Flux de trésorerie'!R44 -> 0 | S45: =-'Flux de trésorerie'!S44 -> 0 | T45: =-'Flux de trésorerie'!T44 -> 0 | U45: =-'Flux de trésorerie'!U44 -> 0 | V45: =-'Flux de trésorerie'!V44 -> 0 | W45: =-'Flux de trésorerie'!W44 -> 0 | X45: =-'Flux de trésorerie'!X44 -> 0 | Y45: =-'Flux de trésorerie'!Y44 -> 0 | Z45: =-'Flux de trésorerie'!Z44 -> 0 | AA45: =-'Flux de trésorerie'!AA44 -> 0 | AB45: =-'Flux de trésorerie'!AB44 -> 0 | AC45: =-'Flux de trésorerie'!AC44 -> 0 | AD45: =-'Flux de trésorerie'!AD44 -> 0 | AE45: =-'Flux de trésorerie'!AE44 -> 0 | AF45: =-'Flux de trésorerie'!AF44 -> 0 | AG45: =-'Flux de trésorerie'!AG44 -> 0 | AH45: =-'Flux de trésorerie'!AH44 -> 0 | AI45: =-'Flux de trésorerie'!AI44 -> 0 | AJ45: =-'Flux de trésorerie'!AJ44 -> 0 | AK45: =-'Flux de trésorerie'!AK44 -> 0 | AL45: =-'Flux de trésorerie'!AL44 -> 0 | AM45: =-'Flux de trésorerie'!AM44 -> 0 | AN45: =-'Flux de trésorerie'!AN44 -> 0 | AO45: =-'Flux de trésorerie'!AO44 -> 0 | AP45: =-'Flux de trésorerie'!AP44 -> 0 | AQ45: =-'Flux de trésorerie'!AQ44 -> 0 | AR45: =-'Flux de trésorerie'!AR44 -> 0 | AS45: =-'Flux de trésorerie'!AS44 -> 0 | AT45: =-'Flux de trésorerie'!AT44 -> 0 | AU45: =-'Flux de trésorerie'!AU44 -> 0 | AV45: =-'Flux de trésorerie'!AV44 -> 0 | AW45: =-'Flux de trésorerie'!AW44 -> 0 | AX45: =-'Flux de trésorerie'!AX44 -> 0 | AY45: =-'Flux de trésorerie'!AY44 -> 0 | AZ45: =-'Flux de trésorerie'!AZ44 -> 0 | BA45: =-'Flux de trésorerie'!BA44 -> 0 | BB45: =-'Flux de trésorerie'!BB44 -> 0 | BC45: =-'Flux de trésorerie'!BC44 -> 0 | BD45: =-'Flux de trésorerie'!BD44 -> 0 | BE45: =-'Flux de trésorerie'!BE44 -> 0 | BF45: =-'Flux de trésorerie'!BF44 -> 0 | BG45: =-'Flux de trésorerie'!BG44 -> 0 | BH45: =-'Flux de trésorerie'!BH44 -> 0 | BI45: =-'Flux de trésorerie'!BI44 -> 0 | BJ45: =-'Flux de trésorerie'!BJ44 -> 0 | BK45: =-'Flux de trésorerie'!BK44 -> 0 | BL45: =-'Flux de trésorerie'!BL44 -> 0 | BM45: =-'Flux de trésorerie'!BM44 -> 0
F46: Min | G46: Min Date | H46: Total
C47: DSCR | D47: Ratio de couverture du service de la dette | E47: x | F47: =MIN(IF(J47:BM47<>0,J47:BM47)) -> 1.012193856 | G47: =INDEX($J$5:$BM$5,MATCH(F47,J47:BM47,0)) -> 2022-12-31 | H47: =SUMIF(J45:BM45,"<>0",J41:BM41)/I45 -> 1.070169793 | J47: =IF(J45=0,0,J41/J45) -> 0 | K47: =IF(K45=0,0,K41/K45) -> 1.012193856 | L47: 1.040474027 | M47: 1.069456609 | N47: 1.099152453 | O47: 1.129572021 | P47: 0 | Q47: 0 | R47: 0 | S47: 0 | T47: 0 | U47: 0 | V47: 0 | W47: 0 | X47: 0 | Y47: 0 | Z47: 0 | AA47: 0 | AB47: 0 | AC47: 0 | AD47: 0 | AE47: 0 | AF47: 0 | AG47: 0 | AH47: 0 | AI47: 0 | AJ47: 0 | AK47: 0 | AL47: 0 | AM47: 0 | AN47: 0 | AO47: 0 | AP47: 0 | AQ47: 0 | AR47: 0 | AS47: 0 | AT47: 0 | AU47: 0 | AV47: 0 | AW47: 0 | AX47: 0 | AY47: 0 | AZ47: 0 | BA47: 0 | BB47: 0 | BC47: 0 | BD47: 0 | BE47: 0 | BF47: 0 | BG47: 0 | BH47: 0 | BI47: 0 | BJ47: 0 | BK47: 0 | BL47: 0 | BM47: 0
C49: LLCR | D49: Ratio de Couverture pendant la Durée du Prêt
C50: CFADS | D50: Flux de trésorerie disponibles au service de la dette (CFADS) | E50: DT | I50: =SUM(J50:BM50) -> 76291.2535 | J50: =J41 -> 0 | K50: =K41 -> 4270.769059 | L50: 4390.092131 | M50: 4512.378895 | N50: 4637.675142 | O50: 4766.025018 | P50: 4874.866368 | Q50: 4971.397389 | R50: 5069.10865 | S50: 5167.955669 | T50: -24732.11205 | U50: 5368.848515 | V50: 5470.773345 | W50: 5573.590856 | X50: 5677.221279 | Y50: 5781.57602 | Z50: 5886.556966 | AA50: 5992.055746 | AB50: 6097.952934 | AC50: 6204.117194 | AD50: 6310.404373 | AE50: 0 | AF50: 0 | AG50: 0 | AH50: 0 | AI50: 0 | AJ50: 0 | AK50: 0 | AL50: 0 | AM50: 0 | AN50: 0 | AO50: 0 | AP50: 0 | AQ50: 0 | AR50: 0 | AS50: 0 | AT50: 0 | AU50: 0 | AV50: 0 | AW50: 0 | AX50: 0 | AY50: 0 | AZ50: 0 | BA50: 0 | BB50: 0 | BC50: 0 | BD50: 0 | BE50: 0 | BF50: 0 | BG50: 0 | BH50: 0 | BI50: 0 | BJ50: 0 | BK50: 0 | BL50: 0 | BM50: 0
C51: Qualifying CFADS | D51: CFADS admissible | E51: DT | I51: =SUM(J51:BM51) -> 22576.94024 | J51: =J50*J17 -> 0 | K51: 4270.769059 | L51: 4390.092131 | M51: 4512.378895 | N51: 4637.675142 | O51: 4766.025018 | P51: 0 | Q51: 0 | R51: 0 | S51: 0 | T51: 0 | U51: 0 | V51: 0 | W51: 0 | X51: 0 | Y51: 0 | Z51: 0 | AA51: 0 | AB51: 0 | AC51: 0 | AD51: 0 | AE51: 0 | AF51: 0 | AG51: 0 | AH51: 0 | AI51: 0 | AJ51: 0 | AK51: 0 | AL51: 0 | AM51: 0 | AN51: 0 | AO51: 0 | AP51: =AP50*AP17 -> 0 | AQ51: 0 | AR51: 0 | AS51: 0 | AT51: 0 | AU51: 0 | AV51: 0 | AW51: 0 | AX51: 0 | AY51: 0 | AZ51: 0 | BA51: 0 | BB51: 0 | BC51: 0 | BD51: 0 | BE51: 0 | BF51: 0 | BG51: 0 | BH51: 0 | BI51: 0 | BJ51: 0 | BK51: 0 | BL51: 0 | BM51: 0
C53: Cost of debt | D53: Coût de la dette | E53: % p.q | J53: =J30*J7 -> 0 | K53: 0.115 | L53: 0.115 | M53: 0.115 | N53: 0.115 | O53: 0.115 | P53: 0.115 | Q53: 0.115 | R53: 0.115 | S53: 0.115 | T53: 0.115 | U53: 0.115 | V53: 0.115 | W53: 0.115 | X53: 0.115 | Y53: 0.115 | Z53: 0.115 | AA53: 0.115 | AB53: 0.115 | AC53: 0.115 | AD53: 0.115 | AE53: 0 | AF53: 0 | AG53: 0 | AH53: 0 | AI53: 0 | AJ53: 0 | AK53: 0 | AL53: 0 | AM53: 0 | AN53: 0 | AO53: 0 | AP53: =AP30*AP7 -> 0 | AQ53: 0 | AR53: 0 | AS53: 0 | AT53: 0 | AU53: 0 | AV53: 0 | AW53: 0 | AX53: 0 | AY53: 0 | AZ53: 0 | BA53: 0 | BB53: 0 | BC53: 0 | BD53: 0 | BE53: 0 | BF53: 0 | BG53: 0 | BH53: 0 | BI53: 0 | BJ53: 0 | BK53: 0 | BL53: 0 | BM53: 0
C54: Discount factor | D54: Facteur d’actualisation | E54: Num# | J54: =1+J53 -> 1 | K54: =1+K53 -> 1.115 | L54: 1.115 | M54: 1.115 | N54: 1.115 | O54: 1.115 | P54: 1.115 | Q54: 1.115 | R54: 1.115 | S54: 1.115 | T54: 1.115 | U54: 1.115 | V54: 1.115 | W54: 1.115 | X54: 1.115 | Y54: 1.115 | Z54: 1.115 | AA54: 1.115 | AB54: 1.115 | AC54: 1.115 | AD54: 1.115 | AE54: 1 | AF54: 1 | AG54: 1 | AH54: 1 | AI54: 1 | AJ54: 1 | AK54: 1 | AL54: 1 | AM54: 1 | AN54: 1 | AO54: 1 | AP54: 1 | AQ54: 1 | AR54: 1 | AS54: 1 | AT54: 1 | AU54: 1 | AV54: 1 | AW54: 1 | AX54: 1 | AY54: 1 | AZ54: 1 | BA54: 1 | BB54: 1 | BC54: 1 | BD54: 1 | BE54: 1 | BF54: 1 | BG54: 1 | BH54: 1 | BI54: 1 | BJ54: 1 | BK54: 1 | BL54: 1 | BM54: 1
C56: NPV CFADS (start) | D56: Valeur actualisée nette du CFADS | E56: DT | J56: =(J51+K56)/J54 -> 16382.82649 | K56: =(K51+L56)/K54 -> 16382.82649 | L56: 13996.08248 | M56: 11215.53983 | N56: 7992.948019 | O56: 4274.4619 | P56: 0 | Q56: 0 | R56: 0 | S56: 0 | T56: 0 | U56: 0 | V56: 0 | W56: 0 | X56: 0 | Y56: 0 | Z56: 0 | AA56: 0 | AB56: 0 | AC56: 0 | AD56: 0 | AE56: 0 | AF56: 0 | AG56: 0 | AH56: 0 | AI56: 0 | AJ56: 0 | AK56: 0 | AL56: 0 | AM56: 0 | AN56: 0 | AO56: 0 | AP56: 0 | AQ56: 0 | AR56: 0 | AS56: 0 | AT56: 0 | AU56: 0 | AV56: 0 | AW56: 0 | AX56: 0 | AY56: 0 | AZ56: 0 | BA56: 0 | BB56: 0 | BC56: 0 | BD56: 0 | BE56: 0 | BF56: 0 | BG56: 0 | BH56: 0 | BI56: 0 | BJ56: 0 | BK56: 0 | BL56: 0 | BM56: 0
C58: Debt balance b/f | D58: Solde de la dette reporté | E58: DT | J58: =J22 -> 0 | K58: 15400 | L58: 12951.68071 | M58: 10221.8047 | N58: 7177.99295 | O58: 3784.14286 | P58: 0 | Q58: 0 | R58: 0 | S58: 0 | T58: 0 | U58: 0 | V58: 0 | W58: 0 | X58: 0 | Y58: 0 | Z58: 0 | AA58: 0 | AB58: 0 | AC58: 0 | AD58: 0 | AE58: 0 | AF58: 0 | AG58: 0 | AH58: 0 | AI58: 0 | AJ58: 0 | AK58: 0 | AL58: 0 | AM58: 0 | AN58: 0 | AO58: 0 | AP58: =AP22 -> 0 | AQ58: 0 | AR58: 0 | AS58: 0 | AT58: 0 | AU58: 0 | AV58: 0 | AW58: 0 | AX58: 0 | AY58: 0 | AZ58: 0 | BA58: 0 | BB58: 0 | BC58: 0 | BD58: 0 | BE58: 0 | BF58: 0 | BG58: 0 | BH58: 0 | BI58: 0 | BJ58: 0 | BK58: 0 | BL58: 0 | BM58: 0
F59: Min | G59: Min Date | H59: Ops Start
C60: LLCR | D60: Ratio de Couverture pendant la Durée du Prêt | E60: x | F60: =MIN(IF(J60:BM60<>0,J60:BM60)) -> 1.063819902 | G60: =INDEX($J$5:$BM$5,MATCH(F60,J60:BM60,0)) -> 2022-12-31 | H60: =LOOKUP(Ops_Start,J4:BM4,J60:BM60) -> 1.063819902 | J60: =IF(J58=0,0,J56/J58) -> 0 | K60: =IF(K58=0,0,K56/K58) -> 1.063819902 | L60: 1.08063832 | M60: 1.09721719 | N60: 1.113535228 | O60: 1.129572021 | P60: 0 | Q60: 0 | R60: 0 | S60: 0 | T60: 0 | U60: 0 | V60: 0 | W60: 0 | X60: 0 | Y60: 0 | Z60: 0 | AA60: 0 | AB60: 0 | AC60: 0 | AD60: 0 | AE60: 0 | AF60: 0 | AG60: 0 | AH60: 0 | AI60: 0 | AJ60: 0 | AK60: 0 | AL60: 0 | AM60: 0 | AN60: 0 | AO60: 0 | AP60: 0 | AQ60: 0 | AR60: 0 | AS60: 0 | AT60: 0 | AU60: 0 | AV60: 0 | AW60: 0 | AX60: 0 | AY60: 0 | AZ60: 0 | BA60: 0 | BB60: 0 | BC60: 0 | BD60: 0 | BE60: 0 | BF60: 0 | BG60: 0 | BH60: 0 | BI60: 0 | BJ60: 0 | BK60: 0 | BL60: 0 | BM60: 0

Sheet Capitaux propres
C1: Equity | D1: Capitaux propres
C2: =Name_Project -> 
C4: Period Start | D4: Début de la période | J4: =Délais!J4 -> 2021-12-01 | K4: =Délais!K4 -> 2022-01-01 | L4: =Délais!L4 -> 2023-01-01 | M4: =Délais!M4 -> 2024-01-01 | N4: =Délais!N4 -> 2025-01-01 | O4: =Délais!O4 -> 2026-01-01 | P4: =Délais!P4 -> 2027-01-01 | Q4: =Délais!Q4 -> 2028-01-01 | R4: =Délais!R4 -> 2029-01-01 | S4: =Délais!S4 -> 2030-01-01 | T4: =Délais!T4 -> 2031-01-01 | U4: =Délais!U4 -> 2032-01-01 | V4: =Délais!V4 -> 2033-01-01 | W4: =Délais!W4 -> 2034-01-01 | X4: =Délais!X4 -> 2035-01-01 | Y4: =Délais!Y4 -> 2036-01-01 | Z4: =Délais!Z4 -> 2037-01-01 | AA4: =Délais!AA4 -> 2038-01-01 | AB4: =Délais!AB4 -> 2039-01-01 | AC4: =Délais!AC4 -> 2040-01-01 | AD4: =Délais!AD4 -> 2041-01-01 | AE4: =Délais!AE4 -> 2042-01-01 | AF4: =Délais!AF4 -> 2043-01-01 | AG4: =Délais!AG4 -> 2044-01-01 | AH4: =Délais!AH4 -> 2045-01-01 | AI4: =Délais!AI4 -> 2046-01-01 | AJ4: =Délais!AJ4 -> 2047-01-01 | AK4: =Délais!AK4 -> 2048-01-01 | AL4: =Délais!AL4 -> 2049-01-01 | AM4: =Délais!AM4 -> 2050-01-01 | AN4: =Délais!AN4 -> 2051-01-01 | AO4: =Délais!AO4 -> 2052-01-01 | AP4: =Délais!AP4 -> 2053-01-01 | AQ4: =Délais!AQ4 -> 2054-01-01 | AR4: =Délais!AR4 -> 2055-01-01 | AS4: =Délais!AS4 -> 2056-01-01 | AT4: =Délais!AT4 -> 2057-01-01 | AU4: =Délais!AU4 -> 2058-01-01 | AV4: =Délais!AV4 -> 2059-01-01 | AW4: =Délais!AW4 -> 2060-01-01 | AX4: =Délais!AX4 -> 2061-01-01 | AY4: =Délais!AY4 -> 2062-01-01 | AZ4: =Délais!AZ4 -> 2063-01-01 | BA4: =Délais!BA4 -> 2064-01-01 | BB4: =Délais!BB4 -> 2065-01-01 | BC4: =Délais!BC4 -> 2066-01-01 | BD4: =Délais!BD4 -> 2067-01-01 | BE4: =Délais!BE4 -> 2068-01-01 | BF4: =Délais!BF4 -> 2069-01-01 | BG4: =Délais!BG4 -> 2070-01-01 | BH4: =Délais!BH4 -> 2071-01-01 | BI4: =Délais!BI4 -> 2072-01-01 | BJ4: =Délais!BJ4 -> 2073-01-01 | BK4: =Délais!BK4 -> 2074-01-01 | BL4: =Délais!BL4 -> 2075-01-01 | BM4: =Délais!BM4 -> 2076-01-01
C5: Period End | D5: Fin de la période | I5: =Délais!I5 -> 2022-01-01 | J5: =Délais!J5 -> 2021-12-31 | K5: =Délais!K5 -> 2022-12-31 | L5: =Délais!L5 -> 2023-12-31 | M5: =Délais!M5 -> 2024-12-31 | N5: =Délais!N5 -> 2025-12-31 | O5: =Délais!O5 -> 2026-12-31 | P5: =Délais!P5 -> 2027-12-31 | Q5: =Délais!Q5 -> 2028-12-31 | R5: =Délais!R5 -> 2029-12-31 | S5: =Délais!S5 -> 2030-12-31 | T5: =Délais!T5 -> 2031-12-31 | U5: =Délais!U5 -> 2032-12-31 | V5: =Délais!V5 -> 2033-12-31 | W5: =Délais!W5 -> 2034-12-31 | X5: =Délais!X5 -> 2035-12-31 | Y5: =Délais!Y5 -> 2036-12-31 | Z5: =Délais!Z5 -> 2037-12-31 | AA5: =Délais!AA5 -> 2038-12-31 | AB5: =Délais!AB5 -> 2039-12-31 | AC5: =Délais!AC5 -> 2040-12-31 | AD5: =Délais!AD5 -> 2041-12-31 | AE5: =Délais!AE5 -> 2042-12-31 | AF5: =Délais!AF5 -> 2043-12-31 | AG5: =Délais!AG5 -> 2044-12-31 | AH5: =Délais!AH5 -> 2045-12-31 | AI5: =Délais!AI5 -> 2046-12-31 | AJ5: =Délais!AJ5 -> 2047-12-31 | AK5: =Délais!AK5 -> 2048-12-31 | AL5: =Délais!AL5 -> 2049-12-31 | AM5: =Délais!AM5 -> 2050-12-31 | AN5: =Délais!AN5 -> 2051-12-31 | AO5: =Délais!AO5 -> 2052-12-31 | AP5: =Délais!AP5 -> 2053-12-31 | AQ5: =Délais!AQ5 -> 2054-12-31 | AR5: =Délais!AR5 -> 2055-12-31 | AS5: =Délais!AS5 -> 2056-12-31 | AT5: =Délais!AT5 -> 2057-12-31 | AU5: =Délais!AU5 -> 2058-12-31 | AV5: =Délais!AV5 -> 2059-12-31 | AW5: =Délais!AW5 -> 2060-12-31 | AX5: =Délais!AX5 -> 2061-12-31 | AY5: =Délais!AY5 -> 2062-12-31 | AZ5: =Délais!AZ5 -> 2063-12-31 | BA5: =Délais!BA5 -> 2064-12-31 | BB5: =Délais!BB5 -> 2065-12-31 | BC5: =Délais!BC5 -> 2066-12-31 | BD5: =Délais!BD5 -> 2067-12-31 | BE5: =Délais!BE5 -> 2068-12-31 | BF5: =Délais!BF5 -> 2069-12-31 | BG5: =Délais!BG5 -> 2070-12-31 | BH5: =Délais!BH5 -> 2071-12-31 | BI5: =Délais!BI5 -> 2072-12-31 | BJ5: =Délais!BJ5 -> 2073-12-31 | BK5: =Délais!BK5 -> 2074-12-31 | BL5: =Délais!BL5 -> 2075-12-31 | BM5: =Délais!BM5 -> 2076-12-31
C6: Construction | D6: Construction | J6: =Délais!J6 -> 1 | K6: =Délais!K6 -> 0 | L6: =Délais!L6 -> 0 | M6: =Délais!M6 -> 0 | N6: =Délais!N6 -> 0 | O6: =Délais!O6 -> 0 | P6: =Délais!P6 -> 0 | Q6: =Délais!Q6 -> 0 | R6: =Délais!R6 -> 0 | S6: =Délais!S6 -> 0 | T6: =Délais!T6 -> 0 | U6: =Délais!U6 -> 0 | V6: =Délais!V6 -> 0 | W6: =Délais!W6 -> 0 | X6: =Délais!X6 -> 0 | Y6: =Délais!Y6 -> 0 | Z6: =Délais!Z6 -> 0 | AA6: =Délais!AA6 -> 0 | AB6: =Délais!AB6 -> 0 | AC6: =Délais!AC6 -> 0 | AD6: =Délais!AD6 -> 0 | AE6: =Délais!AE6 -> 0 | AF6: =Délais!AF6 -> 0 | AG6: =Délais!AG6 -> 0 | AH6: =Délais!AH6 -> 0 | AI6: =Délais!AI6 -> 0 | AJ6: =Délais!AJ6 -> 0 | AK6: =Délais!AK6 -> 0 | AL6: =Délais!AL6 -> 0 | AM6: =Délais!AM6 -> 0 | AN6: =Délais!AN6 -> 0 | AO6: =Délais!AO6 -> 0 | AP6: =Délais!AP6 -> 0 | AQ6: =Délais!AQ6 -> 0 | AR6: =Délais!AR6 -> 0 | AS6: =Délais!AS6 -> 0 | AT6: =Délais!AT6 -> 0 | AU6: =Délais!AU6 -> 0 | AV6: =Délais!AV6 -> 0 | AW6: =Délais!AW6 -> 0 | AX6: =Délais!AX6 -> 0 | AY6: =Délais!AY6 -> 0 | AZ6: =Délais!AZ6 -> 0 | BA6: =Délais!BA6 -> 0 | BB6: =Délais!BB6 -> 0 | BC6: =Délais!BC6 -> 0 | BD6: =Délais!BD6 -> 0 | BE6: =Délais!BE6 -> 0 | BF6: =Délais!BF6 -> 0 | BG6: =Délais!BG6 -> 0 | BH6: =Délais!BH6 -> 0 | BI6: =Délais!BI6 -> 0 | BJ6: =Délais!BJ6 -> 0 | BK6: =Délais!BK6 -> 0 | BL6: =Délais!BL6 -> 0 | BM6: =Délais!BM6 -> 0
C7: Operations | D7: Exploitation | J7: =Délais!J7 -> 0 | K7: =Délais!K7 -> 1 | L7: =Délais!L7 -> 1 | M7: =Délais!M7 -> 1 | N7: =Délais!N7 -> 1 | O7: =Délais!O7 -> 1 | P7: =Délais!P7 -> 1 | Q7: =Délais!Q7 -> 1 | R7: =Délais!R7 -> 1 | S7: =Délais!S7 -> 1 | T7: =Délais!T7 -> 1 | U7: =Délais!U7 -> 1 | V7: =Délais!V7 -> 1 | W7: =Délais!W7 -> 1 | X7: =Délais!X7 -> 1 | Y7: =Délais!Y7 -> 1 | Z7: =Délais!Z7 -> 1 | AA7: =Délais!AA7 -> 1 | AB7: =Délais!AB7 -> 1 | AC7: =Délais!AC7 -> 1 | AD7: =Délais!AD7 -> 1 | AE7: =Délais!AE7 -> 0 | AF7: =Délais!AF7 -> 0 | AG7: =Délais!AG7 -> 0 | AH7: =Délais!AH7 -> 0 | AI7: =Délais!AI7 -> 0 | AJ7: =Délais!AJ7 -> 0 | AK7: =Délais!AK7 -> 0 | AL7: =Délais!AL7 -> 0 | AM7: =Délais!AM7 -> 0 | AN7: =Délais!AN7 -> 0 | AO7: =Délais!AO7 -> 0 | AP7: =Délais!AP7 -> 0 | AQ7: =Délais!AQ7 -> 0 | AR7: =Délais!AR7 -> 0 | AS7: =Délais!AS7 -> 0 | AT7: =Délais!AT7 -> 0 | AU7: =Délais!AU7 -> 0 | AV7: =Délais!AV7 -> 0 | AW7: =Délais!AW7 -> 0 | AX7: =Délais!AX7 -> 0 | AY7: =Délais!AY7 -> 0 | AZ7: =Délais!AZ7 -> 0 | BA7: =Délais!BA7 -> 0 | BB7: =Délais!BB7 -> 0 | BC7: =Délais!BC7 -> 0 | BD7: =Délais!BD7 -> 0 | BE7: =Délais!BE7 -> 0 | BF7: =Délais!BF7 -> 0 | BG7: =Délais!BG7 -> 0 | BH7: =Délais!BH7 -> 0 | BI7: =Délais!BI7 -> 0 | BJ7: =Délais!BJ7 -> 0 | BK7: =Délais!BK7 -> 0 | BL7: =Délais!BL7 -> 0 | BM7: =Délais!BM7 -> 0
C9: Timing | D9: Délais
C10: Calendar Year | D10: Année civile | E10: Num# | J10: =Délais!J10 -> 2021 | K10: =Délais!K10 -> 2022 | L10: =Délais!L10 -> 2023 | M10: =Délais!M10 -> 2024 | N10: =Délais!N10 -> 2025 | O10: =Délais!O10 -> 2026 | P10: =Délais!P10 -> 2027 | Q10: =Délais!Q10 -> 2028 | R10: =Délais!R10 -> 2029 | S10: =Délais!S10 -> 2030 | T10: =Délais!T10 -> 2031 | U10: =Délais!U10 -> 2032 | V10: =Délais!V10 -> 2033 | W10: =Délais!W10 -> 2034 | X10: =Délais!X10 -> 2035 | Y10: =Délais!Y10 -> 2036 | Z10: =Délais!Z10 -> 2037 | AA10: =Délais!AA10 -> 2038 | AB10: =Délais!AB10 -> 2039 | AC10: =Délais!AC10 -> 2040 | AD10: =Délais!AD10 -> 2041 | AE10: =Délais!AE10 -> 2042 | AF10: =Délais!AF10 -> 2043 | AG10: =Délais!AG10 -> 2044 | AH10: =Délais!AH10 -> 2045 | AI10: =Délais!AI10 -> 2046 | AJ10: =Délais!AJ10 -> 2047 | AK10: =Délais!AK10 -> 2048 | AL10: =Délais!AL10 -> 2049 | AM10: =Délais!AM10 -> 2050 | AN10: =Délais!AN10 -> 2051 | AO10: =Délais!AO10 -> 2052 | AP10: =Délais!AP10 -> 2053 | AQ10: =Délais!AQ10 -> 2054 | AR10: =Délais!AR10 -> 2055 | AS10: =Délais!AS10 -> 2056 | AT10: =Délais!AT10 -> 2057 | AU10: =Délais!AU10 -> 2058 | AV10: =Délais!AV10 -> 2059 | AW10: =Délais!AW10 -> 2060 | AX10: =Délais!AX10 -> 2061 | AY10: =Délais!AY10 -> 2062 | AZ10: =Délais!AZ10 -> 2063 | BA10: =Délais!BA10 -> 2064 | BB10: =Délais!BB10 -> 2065 | BC10: =Délais!BC10 -> 2066 | BD10: =Délais!BD10 -> 2067 | BE10: =Délais!BE10 -> 2068 | BF10: =Délais!BF10 -> 2069 | BG10: =Délais!BG10 -> 2070 | BH10: =Délais!BH10 -> 2071 | BI10: =Délais!BI10 -> 2072 | BJ10: =Délais!BJ10 -> 2073 | BK10: =Délais!BK10 -> 2074 | BL10: =Délais!BL10 -> 2075 | BM10: =Délais!BM10 -> 2076
C11: Days in Period | D11: Nombre de jours de la période | E11: Num# | J11: =Délais!J11 -> 31 | K11: =Délais!K11 -> 365 | L11: =Délais!L11 -> 365 | M11: =Délais!M11 -> 366 | N11: =Délais!N11 -> 365 | O11: =Délais!O11 -> 365 | P11: =Délais!P11 -> 365 | Q11: =Délais!Q11 -> 366 | R11: =Délais!R11 -> 365 | S11: =Délais!S11 -> 365 | T11: =Délais!T11 -> 365 | U11: =Délais!U11 -> 366 | V11: =Délais!V11 -> 365 | W11: =Délais!W11 -> 365 | X11: =Délais!X11 -> 365 | Y11: =Délais!Y11 -> 366 | Z11: =Délais!Z11 -> 365 | AA11: =Délais!AA11 -> 365 | AB11: =Délais!AB11 -> 365 | AC11: =Délais!AC11 -> 366 | AD11: =Délais!AD11 -> 365 | AE11: =Délais!AE11 -> 365 | AF11: =Délais!AF11 -> 365 | AG11: =Délais!AG11 -> 366 | AH11: =Délais!AH11 -> 365 | AI11: =Délais!AI11 -> 365 | AJ11: =Délais!AJ11 -> 365 | AK11: =Délais!AK11 -> 366 | AL11: =Délais!AL11 -> 365 | AM11: =Délais!AM11 -> 365 | AN11: =Délais!AN11 -> 365 | AO11: =Délais!AO11 -> 366 | AP11: =Délais!AP11 -> 365 | AQ11: =Délais!AQ11 -> 365 | AR11: =Délais!AR11 -> 365 | AS11: =Délais!AS11 -> 366 | AT11: =Délais!AT11 -> 365 | AU11: =Délais!AU11 -> 365 | AV11: =Délais!AV11 -> 365 | AW11: =Délais!AW11 -> 366 | AX11: =Délais!AX11 -> 365 | AY11: =Délais!AY11 -> 365 | AZ11: =Délais!AZ11 -> 365 | BA11: =Délais!BA11 -> 366 | BB11: =Délais!BB11 -> 365 | BC11: =Délais!BC11 -> 365 | BD11: =Délais!BD11 -> 365 | BE11: =Délais!BE11 -> 366 | BF11: =Délais!BF11 -> 365 | BG11: =Délais!BG11 -> 365 | BH11: =Délais!BH11 -> 365 | BI11: =Délais!BI11 -> 366 | BJ11: =Délais!BJ11 -> 365 | BK11: =Délais!BK11 -> 365 | BL11: =Délais!BL11 -> 365 | BM11: =Délais!BM11 -> 366 | BO11: 365
C13: Construction Period | D13: Période de construction | E13: Num# | J13: =Délais!J13 -> 1 | K13: =Délais!K13 -> 0 | L13: =Délais!L13 -> 0 | M13: =Délais!M13 -> 0 | N13: =Délais!N13 -> 0 | O13: =Délais!O13 -> 0 | P13: =Délais!P13 -> 0 | Q13: =Délais!Q13 -> 0 | R13: =Délais!R13 -> 0 | S13: =Délais!S13 -> 0 | T13: =Délais!T13 -> 0 | U13: =Délais!U13 -> 0 | V13: =Délais!V13 -> 0 | W13: =Délais!W13 -> 0 | X13: =Délais!X13 -> 0 | Y13: =Délais!Y13 -> 0 | Z13: =Délais!Z13 -> 0 | AA13: =Délais!AA13 -> 0 | AB13: =Délais!AB13 -> 0 | AC13: =Délais!AC13 -> 0 | AD13: =Délais!AD13 -> 0 | AE13: =Délais!AE13 -> 0 | AF13: =Délais!AF13 -> 0 | AG13: =Délais!AG13 -> 0 | AH13: =Délais!AH13 -> 0 | AI13: =Délais!AI13 -> 0 | AJ13: =Délais!AJ13 -> 0 | AK13: =Délais!AK13 -> 0 | AL13: =Délais!AL13 -> 0 | AM13: =Délais!AM13 -> 0 | AN13: =Délais!AN13 -> 0 | AO13: =Délais!AO13 -> 0 | AP13: =Délais!AP13 -> 0 | AQ13: =Délais!AQ13 -> 0 | AR13: =Délais!AR13 -> 0 | AS13: =Délais!AS13 -> 0 | AT13: =Délais!AT13 -> 0 | AU13: =Délais!AU13 -> 0 | AV13: =Délais!AV13 -> 0 | AW13: =Délais!AW13 -> 0 | AX13: =Délais!AX13 -> 0 | AY13: =Délais!AY13 -> 0 | AZ13: =Délais!AZ13 -> 0 | BA13: =Délais!BA13 -> 0 | BB13: =Délais!BB13 -> 0 | BC13: =Délais!BC13 -> 0 | BD13: =Délais!BD13 -> 0 | BE13: =Délais!BE13 -> 0 | BF13: =Délais!BF13 -> 0 | BG13: =Délais!BG13 -> 0 | BH13: =Délais!BH13 -> 0 | BI13: =Délais!BI13 -> 0 | BJ13: =Délais!BJ13 -> 0 | BK13: =Délais!BK13 -> 0 | BL13: =Délais!BL13 -> 0 | BM13: =Délais!BM13 -> 0 | BO13: -
C14: Operations Period | D14: Période d'exploitation | E14: Num# | J14: =Délais!J14 -> 0 | K14: =Délais!K14 -> 1 | L14: =Délais!L14 -> 2 | M14: =Délais!M14 -> 3 | N14: =Délais!N14 -> 4 | O14: =Délais!O14 -> 5 | P14: =Délais!P14 -> 6 | Q14: =Délais!Q14 -> 7 | R14: =Délais!R14 -> 8 | S14: =Délais!S14 -> 9 | T14: =Délais!T14 -> 10 | U14: =Délais!U14 -> 11 | V14: =Délais!V14 -> 12 | W14: =Délais!W14 -> 13 | X14: =Délais!X14 -> 14 | Y14: =Délais!Y14 -> 15 | Z14: =Délais!Z14 -> 16 | AA14: =Délais!AA14 -> 17 | AB14: =Délais!AB14 -> 18 | AC14: =Délais!AC14 -> 19 | AD14: =Délais!AD14 -> 20 | AE14: =Délais!AE14 -> 0 | AF14: =Délais!AF14 -> 0 | AG14: =Délais!AG14 -> 0 | AH14: =Délais!AH14 -> 0 | AI14: =Délais!AI14 -> 0 | AJ14: =Délais!AJ14 -> 0 | AK14: =Délais!AK14 -> 0 | AL14: =Délais!AL14 -> 0 | AM14: =Délais!AM14 -> 0 | AN14: =Délais!AN14 -> 0 | AO14: =Délais!AO14 -> 0 | AP14: =Délais!AP14 -> 0 | AQ14: =Délais!AQ14 -> 0 | AR14: =Délais!AR14 -> 0 | AS14: =Délais!AS14 -> 0 | AT14: =Délais!AT14 -> 0 | AU14: =Délais!AU14 -> 0 | AV14: =Délais!AV14 -> 0 | AW14: =Délais!AW14 -> 0 | AX14: =Délais!AX14 -> 0 | AY14: =Délais!AY14 -> 0 | AZ14: =Délais!AZ14 -> 0 | BA14: =Délais!BA14 -> 0 | BB14: =Délais!BB14 -> 0 | BC14: =Délais!BC14 -> 0 | BD14: =Délais!BD14 -> 0 | BE14: =Délais!BE14 -> 0 | BF14: =Délais!BF14 -> 0 | BG14: =Délais!BG14 -> 0 | BH14: =Délais!BH14 -> 0 | BI14: =Délais!BI14 -> 0 | BJ14: =Délais!BJ14 -> 0 | BK14: =Délais!BK14 -> 0 | BL14: =Délais!BL14 -> 0 | BM14: =Délais!BM14 -> 0
C16: Dividends | D16: Recettes
C17: Cashflow available to equity | D17: Flux de trésorerie de capitaux propres | E17: DT | I17: =SUM(J17:BM17) -> 55194.65707 | J17: ='Flux de trésorerie'!J46 -> 0 | K17: ='Flux de trésorerie'!K46 -> 51.44977062 | L17: ='Flux de trésorerie'!L46 -> 170.7728431 | M17: ='Flux de trésorerie'!M46 -> 293.0596087 | N17: ='Flux de trésorerie'!N46 -> 418.3558582 | O17: ='Flux de trésorerie'!O46 -> 546.7057291 | P17: ='Flux de trésorerie'!P46 -> 4874.866368 | Q17: ='Flux de trésorerie'!Q46 -> 4971.397389 | R17: ='Flux de trésorerie'!R46 -> 5069.10865 | S17: ='Flux de trésorerie'!S46 -> 5167.955669 | T17: ='Flux de trésorerie'!T46 -> -24732.11205 | U17: ='Flux de trésorerie'!U46 -> 5368.848515 | V17: ='Flux de trésorerie'!V46 -> 5470.773345 | W17: ='Flux de trésorerie'!W46 -> 5573.590856 | X17: ='Flux de trésorerie'!X46 -> 5677.221279 | Y17: ='Flux de trésorerie'!Y46 -> 5781.57602 | Z17: ='Flux de trésorerie'!Z46 -> 5886.556966 | AA17: ='Flux de trésorerie'!AA46 -> 5992.055746 | AB17: ='Flux de trésorerie'!AB46 -> 6097.952934 | AC17: ='Flux de trésorerie'!AC46 -> 6204.117194 | AD17: ='Flux de trésorerie'!AD46 -> 6310.404373 | AE17: ='Flux de trésorerie'!AE46 -> 0 | AF17: ='Flux de trésorerie'!AF46 -> 0 | AG17: ='Flux de trésorerie'!AG46 -> 0 | AH17: ='Flux de trésorerie'!AH46 -> 0 | AI17: ='Flux de trésorerie'!AI46 -> 0 | AJ17: ='Flux de trésorerie'!AJ46 -> 0 | AK17: ='Flux de trésorerie'!AK46 -> 0 | AL17: ='Flux de trésorerie'!AL46 -> 0 | AM17: ='Flux de trésorerie'!AM46 -> 0 | AN17: ='Flux de trésorerie'!AN46 -> 0 | AO17: ='Flux de trésorerie'!AO46 -> 0 | AP17: ='Flux de trésorerie'!AP46 -> 0 | AQ17: ='Flux de trésorerie'!AQ46 -> 0 | AR17: ='Flux de trésorerie'!AR46 -> 0 | AS17: ='Flux de trésorerie'!AS46 -> 0 | AT17: ='Flux de trésorerie'!AT46 -> 0 | AU17: ='Flux de trésorerie'!AU46 -> 0 | AV17: ='Flux de trésorerie'!AV46 -> 0 | AW17: ='Flux de trésorerie'!AW46 -> 0 | AX17: ='Flux de trésorerie'!AX46 -> 0 | AY17: ='Flux de trésorerie'!AY46 -> 0 | AZ17: ='Flux de trésorerie'!AZ46 -> 0 | BA17: ='Flux de trésorerie'!BA46 -> 0 | BB17: ='Flux de trésorerie'!BB46 -> 0 | BC17: ='Flux de trésorerie'!BC46 -> 0 | BD17: ='Flux de trésorerie'!BD46 -> 0 | BE17: ='Flux de trésorerie'!BE46 -> 0 | BF17: ='Flux de trésorerie'!BF46 -> 0 | BG17: ='Flux de trésorerie'!BG46 -> 0 | BH17: ='Flux de trésorerie'!BH46 -> 0 | BI17: ='Flux de trésorerie'!BI46 -> 0 | BJ17: ='Flux de trésorerie'!BJ46 -> 0 | BK17: ='Flux de trésorerie'!BK46 -> 0 | BL17: ='Flux de trésorerie'!BL46 -> 0 | BM17: ='Flux de trésorerie'!BM46 -> 0
C18: Cash balance b/f | D18: Solde de trésorerie reporté | E18: DT | J18: ='Flux de trésorerie'!J52 -> 0 | K18: ='Flux de trésorerie'!K52 -> 0 | L18: ='Flux de trésorerie'!L52 -> 0 | M18: ='Flux de trésorerie'!M52 -> 0 | N18: ='Flux de trésorerie'!N52 -> 0 | O18: ='Flux de trésorerie'!O52 -> 0 | P18: ='Flux de trésorerie'!P52 -> 0 | Q18: ='Flux de trésorerie'!Q52 -> 0 | R18: ='Flux de trésorerie'!R52 -> 0 | S18: ='Flux de trésorerie'!S52 -> 0 | T18: ='Flux de trésorerie'!T52 -> 0 | U18: ='Flux de trésorerie'!U52 -> 0 | V18: ='Flux de trésorerie'!V52 -> 0 | W18: ='Flux de trésorerie'!W52 -> 0 | X18: ='Flux de trésorerie'!X52 -> 0 | Y18: ='Flux de trésorerie'!Y52 -> 0 | Z18: ='Flux de trésorerie'!Z52 -> 0 | AA18: ='Flux de trésorerie'!AA52 -> 0 | AB18: ='Flux de trésorerie'!AB52 -> 0 | AC18: ='Flux de trésorerie'!AC52 -> 0 | AD18: ='Flux de trésorerie'!AD52 -> 0 | AE18: ='Flux de trésorerie'!AE52 -> 0 | AF18: ='Flux de trésorerie'!AF52 -> 0 | AG18: ='Flux de trésorerie'!AG52 -> 0 | AH18: ='Flux de trésorerie'!AH52 -> 0 | AI18: ='Flux de trésorerie'!AI52 -> 0 | AJ18: ='Flux de trésorerie'!AJ52 -> 0 | AK18: ='Flux de trésorerie'!AK52 -> 0 | AL18: ='Flux de trésorerie'!AL52 -> 0 | AM18: ='Flux de trésorerie'!AM52 -> 0 | AN18: ='Flux de trésorerie'!AN52 -> 0 | AO18: ='Flux de trésorerie'!AO52 -> 0 | AP18: ='Flux de trésorerie'!AP52 -> 0 | AQ18: ='Flux de trésorerie'!AQ52 -> 0 | AR18: ='Flux de trésorerie'!AR52 -> 0 | AS18: ='Flux de trésorerie'!AS52 -> 0 | AT18: ='Flux de trésorerie'!AT52 -> 0 | AU18: ='Flux de trésorerie'!AU52 -> 0 | AV18: ='Flux de trésorerie'!AV52 -> 0 | AW18: ='Flux de trésorerie'!AW52 -> 0 | AX18: ='Flux de trésorerie'!AX52 -> 0 | AY18: ='Flux de trésorerie'!AY52 -> 0 | AZ18: ='Flux de trésorerie'!AZ52 -> 0 | BA18: ='Flux de trésorerie'!BA52 -> 0 | BB18: ='Flux de trésorerie'!BB52 -> 0 | BC18: ='Flux de trésorerie'!BC52 -> 0 | BD18: ='Flux de trésorerie'!BD52 -> 0 | BE18: ='Flux de trésorerie'!BE52 -> 0 | BF18: ='Flux de trésorerie'!BF52 -> 0 | BG18: ='Flux de trésorerie'!BG52 -> 0 | BH18: ='Flux de trésorerie'!BH52 -> 0 | BI18: ='Flux de trésorerie'!BI52 -> 0 | BJ18: ='Flux de trésorerie'!BJ52 -> 0 | BK18: ='Flux de trésorerie'!BK52 -> 0 | BL18: ='Flux de trésorerie'!BL52 -> 0 | BM18: ='Flux de trésorerie'!BM52 -> 0
